Workbook

Sheet rooster en stand
C2: Updated: | D2: 2025-04-02T21:35:27 | F2: © 2024/2025 - Wim Gielis - wim.gielis@gmail.com - https://www.wimgielis.com
C3: LUCYVO | Q3: =P5 -> Alberta Schilde | R3: =P6 -> Antwerp Global | S3: =P7 -> Bar Patron | T3: =P8 -> Bariton | U3: =P9 -> Corum | V3: =P10 -> Daltons | W3: =P11 -> Goka | X3: =P12 -> Hombeek | Y3: =P13 -> Jolika | Z3: =P14 -> Lucyvo | AA3: =P15 -> Racing Emblem | AB3: =P16 -> Sint Anneke | AC3: =P17 -> SC Duffel | AD3: =P18 -> Yerevan United | AE3: =P5 -> Alberta Schilde | AF3: =P6 -> Antwerp Global | AG3: =P7 -> Bar Patron | AH3: =P8 -> Bariton | AI3: =P9 -> Corum | AJ3: =P10 -> Daltons | AK3: =P11 -> Goka | AL3: =P12 -> Hombeek | AM3: =P13 -> Jolika | AN3: =P14 -> Lucyvo | AO3: =P15 -> Racing Emblem | AP3: =P16 -> Sint Anneke | AQ3: =P17 -> SC Duffel | AR3: =P18 -> Yerevan United | AS3: =P5 -> Alberta Schilde | AT3: =P6 -> Antwerp Global | AU3: =P7 -> Bar Patron | AV3: =P8 -> Bariton | AW3: =P9 -> Corum | AX3: =P10 -> Daltons | AY3: =P11 -> Goka | AZ3: =P12 -> Hombeek | BA3: =P13 -> Jolika | BB3: =P14 -> Lucyvo | BC3: =P15 -> Racing Emblem | BD3: =P16 -> Sint Anneke | BE3: =P17 -> SC Duffel | BF3: =P18 -> Yerevan United
D4: Ploeg | E4: P | F4: M | H4: W | I4: V | J4: G | K4: + | L4: - | M4: S | N4: VP | BH4: Coëfficiënt | BI4: Ploeg | BJ4: Punten | BK4: Matchen | BL4: W | BM4: V | BN4: G | BO4: D+ | BP4: D- | BQ4: DS | BR4: Ff | BS4: Nr | BT4: Coëf sorted | BW4: 1 | BX4: 2 | BY4: 3 | BZ4: 4 | CA4: 5 | CB4: 6 | CC4: 7 | CD4: 8 | CE4: 9 | CF4: 10 | CG4: 11 | CH4: 12 | CI4: 13 | CJ4: 14 | CL4: 1 | CM4: 2 | CN4: 3 | CO4: 4 | CP4: 5 | CQ4: 6 | CR4: 7 | CS4: 8 | CT4: 9 | CU4: 10 | CV4: 11 | CW4: 12 | CX4: 13 | CY4: 14
C5: 1 | D5: =VLOOKUP(BT5,HulpberekeningenStand,2,FALSE) -> Daltons | E5: =3*H5+J5 -> 69 | F5: =SUM(H5:J5) -> 25 | G5: =REPT(IF(F5-MODE($F$5:$F$18)<0,"-","+"),ABS(F5-MODE($F$5:$F$18))) ->  | H5: =VLOOKUP(BT5,HulpberekeningenStand,5,FALSE) -> 22 | I5: =VLOOKUP(BT5,HulpberekeningenStand,6,FALSE) -> 0 | J5: =VLOOKUP(BT5,HulpberekeningenStand,7,FALSE) -> 3 | K5: =VLOOKUP(BT5,HulpberekeningenStand,8,FALSE) -> 113 | L5: =VLOOKUP(BT5,HulpberekeningenStand,9,FALSE) -> 15 | M5: =K5-L5 -> 98 | N5: =3*F5-E5 -> 6 | P5: Alberta Schilde | R5: 2-0 | S5: 3-3 | T5: 7-1 | U5: *5-0 | V5: 1-2 | W5: *5-0 | X5: 9-2 | Y5: 2-1 | Z5: 4-5 | AA5: 5-0 | AB5: 8-0 | AC5: 3-1 | AD5: 2-2 | AF5: 6 | AG5: 8 | AH5: 18 | AI5: 14 | AJ5: 13 | AK5: 22 | AL5: 25 | AM5: 10 | AN5: 16 | AO5: 20 | AP5: 2 | AQ5: 11 | AR5: 4 | AT5: 2024-10-06 | AU5: 2024-10-20 | AV5: 2025-03-12 | AW5: 2024-12-08 | AX5: 2024-12-01 | AY5: 2025-03-09 | AZ5: 2025-03-30 | BA5: 2024-11-10 | BB5: 2025-01-19 | BC5: 2025-02-16 | BD5: 2024-09-08 | BE5: 2024-11-17 | BF5: 2024-09-22 | BH5: =RANK( BJ5, $BJ$5:$BJ$18, 0 ) - RANK( BK5, $BK$5:$BK$18, 0 ) / 10^2 + RANK( BL5, $BL$5:$BL$18, 0 ) / 10^4 + RANK( BQ5, $BQ$5:$BQ$18, 0 ) / 10^6 + RANK( BO5, $BO$5:$BO$18, 0 ) / 10^8 + BS5 / 10^10 -> 2.99030204 | BI5: =P5 -> Alberta Schilde | BJ5: =3 * BL5 + BN5 -> 48 | BK5: =SUM( BL5:BN5 ) -> 25 | BL5: =CHOOSE(StandBer,COUNTIF(BW35:CJ35,"t")+COUNTIF(BW35:BW48,"u")+COUNTIF(CL35:CY35,"t")+COUNTIF(CL35:CL48,"u"),COUNTIF(BW35:CJ35,"t")+COUNTIF(BW35:BW48,"u"),COUNTIF(CL35:CY35,"t")+COUNTIF(CL35:CL48,"u"),COUNTIF(BW35:CJ35,"t")+COUNTIF(CL35:CY35,"t"),COUNTIF(BW35:BW48,"u")+COUNTIF(CL35:CL48,"u")) -> 15 | BM5: =CHOOSE(StandBer,COUNTIF(BW35:CJ35,"u")+COUNTIF(BW35:BW48,"t")+COUNTIF(CL35:CY35,"u")+COUNTIF(CL35:CL48,"t"),COUNTIF(BW35:CJ35,"u")+COUNTIF(BW35:BW48,"t"),COUNTIF(CL35:CY35,"u")+COUNTIF(CL35:CL48,"t"),COUNTIF(BW35:CJ35,"u")+COUNTIF(CL35:CY35,"u"),COUNTIF(BW35:BW48,"t")+COUNTIF(CL35:CL48,"t"))+BR5 -> 7 | BN5: =CHOOSE(StandBer,COUNTIF(BW35:CJ35,"g")+COUNTIF(BW35:BW48,"g")+COUNTIF(CL35:CY35,"g")+COUNTIF(CL35:CL48,"g"),COUNTIF(BW35:CJ35,"g")+COUNTIF(BW35:BW48,"g"),COUNTIF(CL35:CY35,"g")+COUNTIF(CL35:CL48,"g"),COUNTIF(BW35:CJ35,"g")+COUNTIF(CL35:CY35,"g"),COUNTIF(BW35:BW48,"g")+COUNTIF(CL35:CL48,"g")) -> 3 | BO5: =CHOOSE(StandBer,SUM(BW5:CJ5)+SUM(BW20:BW33)+SUM(CL5:CY5)+SUM(CL20:CL33),SUM(BW5:CJ5)+SUM(BW20:BW33),SUM(CL5:CY5)+SUM(CL20:CL33),SUM(BW5:CJ5)+SUM(CL5:CY5),SUM(BW20:BW33)+SUM(CL20:CL33))-5*BR5 -> 88 | BP5: =CHOOSE(StandBer,SUM(BW5:BW18)+SUM(BW20:CJ20)+SUM(CL5:CL18)+SUM(CL20:CY20),SUM(BW5:BW18)+SUM(BW20:CJ20),SUM(CL5:CL18)+SUM(CL20:CY20),SUM(BW5:BW18)+SUM(CL5:CL18),SUM(BW20:CJ20)+SUM(CL20:CY20)) -> 41 | BQ5: =BO5 - BP5 -> 47 | BR5: =CHOOSE(StandBer,COUNTIF(BW35:CJ35,"ff")+COUNTIF(BW35:BW48,"ff")+COUNTIF(CL35:CY35,"ff")+COUNTIF(CL35:CL48,"ff"),COUNTIF(BW35:CJ35,"ff")+COUNTIF(BW35:BW48,"ff"),COUNTIF(CL35:CY35,"ff")+COUNTIF(CL35:CL48,"ff"),COUNTIF(BW35:CJ35,"ff")+COUNTIF(CL35:CY35,"ff"),COUNTIF(BW35:BW48,"ff")+COUNTIF(CL35:CL48,"ff")) -> 0 | BS5: 1 | BT5: =SMALL( $BH$5:$BH$18, BS5 ) -> 0.9901010106 | BV5: 1 | BX5: =IF(OR(ISERROR(FIND("-",R5)),AF5>'export html'!$AR$7),"",SUBSTITUTE(_xlfn.TEXTBEFORE(R5,"-"),"*","")-0) -> 2 | BY5: =IF(OR(ISERROR(FIND("-",S5)),AG5>'export html'!$AR$7),"",SUBSTITUTE(_xlfn.TEXTBEFORE(S5,"-"),"*","")-0) -> 3 | BZ5: =IF(OR(ISERROR(FIND("-",T5)),AH5>'export html'!$AR$7),"",SUBSTITUTE(_xlfn.TEXTBEFORE(T5,"-"),"*","")-0) ->  | CA5: =IF(OR(ISERROR(FIND("-",U5)),AI5>'export html'!$AR$7),"",SUBSTITUTE(_xlfn.TEXTBEFORE(U5,"-"),"*","")-0) ->  | CB5: =IF(OR(ISERROR(FIND("-",V5)),AJ5>'export html'!$AR$7),"",SUBSTITUTE(_xlfn.TEXTBEFORE(V5,"-"),"*","")-0) -> 1 | CC5: =IF(OR(ISERROR(FIND("-",W5)),AK5>'export html'!$AR$7),"",SUBSTITUTE(_xlfn.TEXTBEFORE(W5,"-"),"*","")-0) ->  | CD5: =IF(OR(ISERROR(FIND("-",X5)),AL5>'export html'!$AR$7),"",SUBSTITUTE(_xlfn.TEXTBEFORE(X5,"-"),"*","")-0) ->  | CE5: =IF(OR(ISERROR(FIND("-",Y5)),AM5>'export html'!$AR$7),"",SUBSTITUTE(_xlfn.TEXTBEFORE(Y5,"-"),"*","")-0) -> 2 | CF5: =IF(OR(ISERROR(FIND("-",Z5)),AN5>'export html'!$AR$7),"",SUBSTITUTE(_xlfn.TEXTBEFORE(Z5,"-"),"*","")-0) ->  | CG5: =IF(OR(ISERROR(FIND("-",AA5)),AO5>'export html'!$AR$7),"",SUBSTITUTE(_xlfn.TEXTBEFORE(AA5,"-"),"*","")-0) ->  | CH5: =IF(OR(ISERROR(FIND("-",AB5)),AP5>'export html'!$AR$7),"",SUBSTITUTE(_xlfn.TEXTBEFORE(AB5,"-"),"*","")-0) -> 8 | CI5: =IF(OR(ISERROR(FIND("-",AC5)),AQ5>'export html'!$AR$7),"",SUBSTITUTE(_xlfn.TEXTBEFORE(AC5,"-"),"*","")-0) -> 3 | CJ5: =IF(OR(ISERROR(FIND("-",AD5)),AR5>'export html'!$AR$7),"",SUBSTITUTE(_xlfn.TEXTBEFORE(AD5,"-"),"*","")-0) -> 2 | CK5: 1 | CM5: =IF(OR(ISERROR(FIND("-",R5)),AF5<='export html'!$AR$7),"",SUBSTITUTE(_xlfn.TEXTBEFORE(R5,"-"),"*","")-0) ->  | CN5: =IF(OR(ISERROR(FIND("-",S5)),AG5<='export html'!$AR$7),"",SUBSTITUTE(_xlfn.TEXTBEFORE(S5,"-"),"*","")-0) ->  | CO5: =IF(OR(ISERROR(FIND("-",T5)),AH5<='export html'!$AR$7),"",SUBSTITUTE(_xlfn.TEXTBEFORE(T5,"-"),"*","")-0) -> 7 | CP5: =IF(OR(ISERROR(FIND("-",U5)),AI5<='export html'!$AR$7),"",SUBSTITUTE(_xlfn.TEXTBEFORE(U5,"-"),"*","")-0) -> 5 | CQ5: =IF(OR(ISERROR(FIND("-",V5)),AJ5<='export html'!$AR$7),"",SUBSTITUTE(_xlfn.TEXTBEFORE(V5,"-"),"*","")-0) ->  | CR5: =IF(OR(ISERROR(FIND("-",W5)),AK5<='export html'!$AR$7),"",SUBSTITUTE(_xlfn.TEXTBEFORE(W5,"-"),"*","")-0) -> 5 | CS5: =IF(OR(ISERROR(FIND("-",X5)),AL5<='export html'!$AR$7),"",SUBSTITUTE(_xlfn.TEXTBEFORE(X5,"-"),"*","")-0) -> 9 | CT5: =IF(OR(ISERROR(FIND("-",Y5)),AM5<='export html'!$AR$7),"",SUBSTITUTE(_xlfn.TEXTBEFORE(Y5,"-"),"*","")-0) ->  | CU5: =IF(OR(ISERROR(FIND("-",Z5)),AN5<='export html'!$AR$7),"",SUBSTITUTE(_xlfn.TEXTBEFORE(Z5,"-"),"*","")-0) -> 4 | CV5: =IF(OR(ISERROR(FIND("-",AA5)),AO5<='export html'!$AR$7),"",SUBSTITUTE(_xlfn.TEXTBEFORE(AA5,"-"),"*","")-0) -> 5 | CW5: =IF(OR(ISERROR(FIND("-",AB5)),AP5<='export html'!$AR$7),"",SUBSTITUTE(_xlfn.TEXTBEFORE(AB5,"-"),"*","")-0) ->  | CX5: =IF(OR(ISERROR(FIND("-",AC5)),AQ5<='export html'!$AR$7),"",SUBSTITUTE(_xlfn.TEXTBEFORE(AC5,"-"),"*","")-0) ->  | CY5: =IF(OR(ISERROR(FIND("-",AD5)),AR5<='export html'!$AR$7),"",SUBSTITUTE(_xlfn.TEXTBEFORE(AD5,"-"),"*","")-0) ->  | CZ5: 1
C6: =IF(RANK(E6,$E$5:$E$18,0)>RANK(E5,$E$5:$E$18,0),RANK(E6,$E$5:$E$18,0),"") -> 2 | D6: =VLOOKUP(BT6,HulpberekeningenStand,2,FALSE) -> Yerevan United | E6: 51 | F6: 25 | G6: =REPT(IF(F6-MODE($F$5:$F$18)<0,"-","+"),ABS(F6-MODE($F$5:$F$18))) ->  | H6: =VLOOKUP(BT6,HulpberekeningenStand,5,FALSE) -> 16 | I6: =VLOOKUP(BT6,HulpberekeningenStand,6,FALSE) -> 6 | J6: =VLOOKUP(BT6,HulpberekeningenStand,7,FALSE) -> 3 | K6: =VLOOKUP(BT6,HulpberekeningenStand,8,FALSE) -> 103 | L6: =VLOOKUP(BT6,HulpberekeningenStand,9,FALSE) -> 62 | M6: 41 | N6: 24 | P6: Antwerp Global | Q6: 4-2 | S6: 2-2 | T6: 8-1 | U6: 3-2 | V6: 0-4 | W6: 3-1 | X6: 1-1 | Y6: *5-0 | Z6: 4-0 | AA6: 4-3 | AB6: 4-4 | AC6: 3-1 | AD6: 2-4 | AE6: 19 | AG6: 17 | AH6: 14 | AI6: 23 | AJ6: 9 | AK6: 5 | AL6: 21 | AM6: 2 | AN6: 25 | AO6: 3 | AP6: 11 | AQ6: 7 | AR6: 13 | AS6: 2025-02-09 | AU6: 2025-01-26 | AV6: 2024-12-08 | AW6: 2025-03-16 | AX6: 2024-11-03 | AY6: 2024-09-29 | AZ6: 2025-02-23 | BA6: 2024-09-08 | BB6: 2025-03-30 | BC6: 2024-09-15 | BD6: 2024-11-17 | BE6: 2024-10-13 | BF6: 2024-12-01 | BH6: =RANK( BJ6, $BJ$5:$BJ$18, 0 ) - RANK( BK6, $BK$5:$BK$18, 0 ) / 10^2 + RANK( BL6, $BL$5:$BL$18, 0 ) / 10^4 + RANK( BQ6, $BQ$5:$BQ$18, 0 ) / 10^6 + RANK( BO6, $BO$5:$BO$18, 0 ) / 10^8 + BS6 / 10^10 -> 3.99040406 | BI6: Antwerp Global | BJ6: =3 * BL6 + BN6 -> 47 | BK6: =SUM( BL6:BN6 ) -> 25 | BL6: =CHOOSE(StandBer,COUNTIF(BW36:CJ36,"t")+COUNTIF(BX35:BX48,"u")+COUNTIF(CL36:CY36,"t")+COUNTIF(CM35:CM48,"u"),COUNTIF(BW36:CJ36,"t")+COUNTIF(BX35:BX48,"u"),COUNTIF(CL36:CY36,"t")+COUNTIF(CM35:CM48,"u"),COUNTIF(BW36:CJ36,"t")+COUNTIF(CL36:CY36,"t"),COUNTIF(BX35:BX48,"u")+COUNTIF(CM35:CM48,"u")) -> 14 | BM6: =CHOOSE(StandBer,COUNTIF(BW36:CJ36,"u")+COUNTIF(BX35:BX48,"t")+COUNTIF(CL36:CY36,"u")+COUNTIF(CM35:CM48,"t"),COUNTIF(BW36:CJ36,"u")+COUNTIF(BX35:BX48,"t"),COUNTIF(CL36:CY36,"u")+COUNTIF(CM35:CM48,"t"),COUNTIF(BW36:CJ36,"u")+COUNTIF(CL36:CY36,"u"),COUNTIF(BX35:BX48,"t")+COUNTIF(CM35:CM48,"t"))+BR6 -> 6 | BN6: =CHOOSE(StandBer,COUNTIF(BW36:CJ36,"g")+COUNTIF(BX35:BX48,"g")+COUNTIF(CL36:CY36,"g")+COUNTIF(CM35:CM48,"g"),COUNTIF(BW36:CJ36,"g")+COUNTIF(BX35:BX48,"g"),COUNTIF(CL36:CY36,"g")+COUNTIF(CM35:CM48,"g"),COUNTIF(BW36:CJ36,"g")+COUNTIF(CL36:CY36,"g"),COUNTIF(BX35:BX48,"g")+COUNTIF(CM35:CM48,"g")) -> 5 | BO6: =CHOOSE(StandBer,SUM(BW6:CJ6)+SUM(BX20:BX33)+SUM(CL6:CY6)+SUM(CM20:CM33),SUM(BW6:CJ6)+SUM(BX20:BX33),SUM(CL6:CY6)+SUM(CM20:CM33),SUM(BW6:CJ6)+SUM(CL6:CY6),SUM(BX20:BX33)+SUM(CM20:CM33))-5*BR6 -> 83 | BP6: =CHOOSE(StandBer,SUM(BX5:BX18)+SUM(BW21:CJ21)+SUM(CM5:CM18)+SUM(CL21:CY21),SUM(BX5:BX18)+SUM(BW21:CJ21),SUM(CM5:CM18)+SUM(CL21:CY21),SUM(BX5:BX18)+SUM(CM5:CM18),SUM(BW21:CJ21)+SUM(CL21:CY21)) -> 48 | BQ6: =BO6 - BP6 -> 35 | BR6: =CHOOSE(StandBer,COUNTIF(BW36:CJ36,"ff")+COUNTIF(BX35:BX48,"ff")+COUNTIF(CL36:CY36,"ff")+COUNTIF(CM35:CM48,"ff"),COUNTIF(BW36:CJ36,"ff")+COUNTIF(BX35:BX48,"ff"),COUNTIF(CL36:CY36,"ff")+COUNTIF(CM35:CM48,"ff"),COUNTIF(BW36:CJ36,"ff")+COUNTIF(CL36:CY36,"ff"),COUNTIF(BX35:BX48,"ff")+COUNTIF(CM35:CM48,"ff")) -> 0 | BS6: 2 | BT6: =SMALL( $BH$5:$BH$18, BS6 ) -> 1.990203021 | BV6: 2 | BW6: =IF(OR(ISERROR(FIND("-",Q6)),AE6>'export html'!$AR$7),"",SUBSTITUTE(_xlfn.TEXTBEFORE(Q6,"-"),"*","")-0) ->  | BY6: =IF(OR(ISERROR(FIND("-",S6)),AG6>'export html'!$AR$7),"",SUBSTITUTE(_xlfn.TEXTBEFORE(S6,"-"),"*","")-0) ->  | BZ6: =IF(OR(ISERROR(FIND("-",T6)),AH6>'export html'!$AR$7),"",SUBSTITUTE(_xlfn.TEXTBEFORE(T6,"-"),"*","")-0) ->  | CA6: =IF(OR(ISERROR(FIND("-",U6)),AI6>'export html'!$AR$7),"",SUBSTITUTE(_xlfn.TEXTBEFORE(U6,"-"),"*","")-0) ->  | CB6: =IF(OR(ISERROR(FIND("-",V6)),AJ6>'export html'!$AR$7),"",SUBSTITUTE(_xlfn.TEXTBEFORE(V6,"-"),"*","")-0) -> 0 | CC6: =IF(OR(ISERROR(FIND("-",W6)),AK6>'export html'!$AR$7),"",SUBSTITUTE(_xlfn.TEXTBEFORE(W6,"-"),"*","")-0) -> 3 | CD6: =IF(OR(ISERROR(FIND("-",X6)),AL6>'export html'!$AR$7),"",SUBSTITUTE(_xlfn.TEXTBEFORE(X6,"-"),"*","")-0) ->  | CE6: =IF(OR(ISERROR(FIND("-",Y6)),AM6>'export html'!$AR$7),"",SUBSTITUTE(_xlfn.TEXTBEFORE(Y6,"-"),"*","")-0) -> 5 | CF6: =IF(OR(ISERROR(FIND("-",Z6)),AN6>'export html'!$AR$7),"",SUBSTITUTE(_xlfn.TEXTBEFORE(Z6,"-"),"*","")-0) ->  | CG6: =IF(OR(ISERROR(FIND("-",AA6)),AO6>'export html'!$AR$7),"",SUBSTITUTE(_xlfn.TEXTBEFORE(AA6,"-"),"*","")-0) -> 4 | CH6: =IF(OR(ISERROR(FIND("-",AB6)),AP6>'export html'!$AR$7),"",SUBSTITUTE(_xlfn.TEXTBEFORE(AB6,"-"),"*","")-0) -> 4 | CI6: =IF(OR(ISERROR(FIND("-",AC6)),AQ6>'export html'!$AR$7),"",SUBSTITUTE(_xlfn.TEXTBEFORE(AC6,"-"),"*","")-0) -> 3 | CJ6: =IF(OR(ISERROR(FIND("-",AD6)),AR6>'export html'!$AR$7),"",SUBSTITUTE(_xlfn.TEXTBEFORE(AD6,"-"),"*","")-0) -> 2 | CK6: 2 | CL6: =IF(OR(ISERROR(FIND("-",Q6)),AE6<='export html'!$AR$7),"",SUBSTITUTE(_xlfn.TEXTBEFORE(Q6,"-"),"*","")-0) -> 4 | CN6: =IF(OR(ISERROR(FIND("-",S6)),AG6<='export html'!$AR$7),"",SUBSTITUTE(_xlfn.TEXTBEFORE(S6,"-"),"*","")-0) -> 2 | CO6: =IF(OR(ISERROR(FIND("-",T6)),AH6<='export html'!$AR$7),"",SUBSTITUTE(_xlfn.TEXTBEFORE(T6,"-"),"*","")-0) -> 8 | CP6: =IF(OR(ISERROR(FIND("-",U6)),AI6<='export html'!$AR$7),"",SUBSTITUTE(_xlfn.TEXTBEFORE(U6,"-"),"*","")-0) -> 3 | CQ6: =IF(OR(ISERROR(FIND("-",V6)),AJ6<='export html'!$AR$7),"",SUBSTITUTE(_xlfn.TEXTBEFORE(V6,"-"),"*","")-0) ->  | CR6: =IF(OR(ISERROR(FIND("-",W6)),AK6<='export html'!$AR$7),"",SUBSTITUTE(_xlfn.TEXTBEFORE(W6,"-"),"*","")-0) ->  | CS6: =IF(OR(ISERROR(FIND("-",X6)),AL6<='export html'!$AR$7),"",SUBSTITUTE(_xlfn.TEXTBEFORE(X6,"-"),"*","")-0) -> 1 | CT6: =IF(OR(ISERROR(FIND("-",Y6)),AM6<='export html'!$AR$7),"",SUBSTITUTE(_xlfn.TEXTBEFORE(Y6,"-"),"*","")-0) ->  | CU6: =IF(OR(ISERROR(FIND("-",Z6)),AN6<='export html'!$AR$7),"",SUBSTITUTE(_xlfn.TEXTBEFORE(Z6,"-"),"*","")-0) -> 4 | CV6: =IF(OR(ISERROR(FIND("-",AA6)),AO6<='export html'!$AR$7),"",SUBSTITUTE(_xlfn.TEXTBEFORE(AA6,"-"),"*","")-0) ->  | CW6: =IF(OR(ISERROR(FIND("-",AB6)),AP6<='export html'!$AR$7),"",SUBSTITUTE(_xlfn.TEXTBEFORE(AB6,"-"),"*","")-0) ->  | CX6: =IF(OR(ISERROR(FIND("-",AC6)),AQ6<='export html'!$AR$7),"",SUBSTITUTE(_xlfn.TEXTBEFORE(AC6,"-"),"*","")-0) ->  | CY6: =IF(OR(ISERROR(FIND("-",AD6)),AR6<='export html'!$AR$7),"",SUBSTITUTE(_xlfn.TEXTBEFORE(AD6,"-"),"*","")-0) ->  | CZ6: 2
C7: =IF(RANK(E7,$E$5:$E$18,0)>RANK(E6,$E$5:$E$18,0),RANK(E7,$E$5:$E$18,0),"") -> 3 | D7: =VLOOKUP(BT7,HulpberekeningenStand,2,FALSE) -> Alberta Schilde | E7: 48 | F7: 25 | G7: =REPT(IF(F7-MODE($F$5:$F$18)<0,"-","+"),ABS(F7-MODE($F$5:$F$18))) ->  | H7: =VLOOKUP(BT7,HulpberekeningenStand,5,FALSE) -> 15 | I7: =VLOOKUP(BT7,HulpberekeningenStand,6,FALSE) -> 7 | J7: =VLOOKUP(BT7,HulpberekeningenStand,7,FALSE) -> 3 | K7: =VLOOKUP(BT7,HulpberekeningenStand,8,FALSE) -> 88 | L7: =VLOOKUP(BT7,HulpberekeningenStand,9,FALSE) -> 41 | M7: 47 | N7: 27 | P7: Bar Patron | Q7: 2-5 | R7: 4-2 | T7: *5-0 | U7: 4-1 | V7: 1-1 | W7: 4-2 | X7: 2-1 | Y7: 6-0 | Z7: 3-3 | AA7: 2-2 | AB7: 2-6 | AC7: 2-3 | AD7: 4-4 | AE7: 21 | AF7: 4 | AH7: 16 | AI7: 25 | AJ7: 11 | AK7: 7 | AL7: 23 | AM7: 6 | AN7: 14 | AO7: 18 | AP7: 13 | AQ7: 9 | AR7: 2 | AS7: 2025-02-23 | AT7: 2024-09-22 | AV7: 2025-01-19 | AW7: 2025-03-30 | AX7: 2024-11-17 | AY7: 2024-10-13 | AZ7: 2025-03-16 | BA7: 2024-10-06 | BB7: 2024-12-08 | BC7: 2025-02-02 | BD7: 2024-12-01 | BE7: 2024-11-03 | BF7: 2024-09-08 | BH7: =RANK( BJ7, $BJ$5:$BJ$18, 0 ) - RANK( BK7, $BK$5:$BK$18, 0 ) / 10^2 + RANK( BL7, $BL$5:$BL$18, 0 ) / 10^4 + RANK( BQ7, $BQ$5:$BQ$18, 0 ) / 10^6 + RANK( BO7, $BO$5:$BO$18, 0 ) / 10^8 + BS7 / 10^10 -> 4.99050607 | BI7: Bar Patron | BJ7: 42 | BK7: 25 | BL7: =CHOOSE(StandBer,COUNTIF(BW37:CJ37,"t")+COUNTIF(BY35:BY48,"u")+COUNTIF(CL37:CY37,"t")+COUNTIF(CN35:CN48,"u"),COUNTIF(BW37:CJ37,"t")+COUNTIF(BY35:BY48,"u"),COUNTIF(CL37:CY37,"t")+COUNTIF(CN35:CN48,"u"),COUNTIF(BW37:CJ37,"t")+COUNTIF(CL37:CY37,"t"),COUNTIF(BY35:BY48,"u")+COUNTIF(CN35:CN48,"u")) -> 12 | BM7: =CHOOSE(StandBer,COUNTIF(BW37:CJ37,"u")+COUNTIF(BY35:BY48,"t")+COUNTIF(CL37:CY37,"u")+COUNTIF(CN35:CN48,"t"),COUNTIF(BW37:CJ37,"u")+COUNTIF(BY35:BY48,"t"),COUNTIF(CL37:CY37,"u")+COUNTIF(CN35:CN48,"t"),COUNTIF(BW37:CJ37,"u")+COUNTIF(CL37:CY37,"u"),COUNTIF(BY35:BY48,"t")+COUNTIF(CN35:CN48,"t"))+BR7 -> 7 | BN7: =CHOOSE(StandBer,COUNTIF(BW37:CJ37,"g")+COUNTIF(BY35:BY48,"g")+COUNTIF(CL37:CY37,"g")+COUNTIF(CN35:CN48,"g"),COUNTIF(BW37:CJ37,"g")+COUNTIF(BY35:BY48,"g"),COUNTIF(CL37:CY37,"g")+COUNTIF(CN35:CN48,"g"),COUNTIF(BW37:CJ37,"g")+COUNTIF(CL37:CY37,"g"),COUNTIF(BY35:BY48,"g")+COUNTIF(CN35:CN48,"g")) -> 6 | BO7: =CHOOSE(StandBer,SUM(BW7:CJ7)+SUM(BY20:BY33)+SUM(CL7:CY7)+SUM(CN20:CN33),SUM(BW7:CJ7)+SUM(BY20:BY33),SUM(CL7:CY7)+SUM(CN20:CN33),SUM(BW7:CJ7)+SUM(CL7:CY7),SUM(BY20:BY33)+SUM(CN20:CN33))-5*BR7 -> 73 | BP7: =CHOOSE(StandBer,SUM(BY5:BY18)+SUM(BW22:CJ22)+SUM(CN5:CN18)+SUM(CL22:CY22),SUM(BY5:BY18)+SUM(BW22:CJ22),SUM(CN5:CN18)+SUM(CL22:CY22),SUM(BY5:BY18)+SUM(CN5:CN18),SUM(BW22:CJ22)+SUM(CL22:CY22)) -> 66 | BQ7: 7 | BR7: =CHOOSE(StandBer,COUNTIF(BW37:CJ37,"ff")+COUNTIF(BY35:BY48,"ff")+COUNTIF(CL37:CY37,"ff")+COUNTIF(CN35:CN48,"ff"),COUNTIF(BW37:CJ37,"ff")+COUNTIF(BY35:BY48,"ff"),COUNTIF(CL37:CY37,"ff")+COUNTIF(CN35:CN48,"ff"),COUNTIF(BW37:CJ37,"ff")+COUNTIF(CL37:CY37,"ff"),COUNTIF(BY35:BY48,"ff")+COUNTIF(CN35:CN48,"ff")) -> 0 | BS7: 3 | BT7: =SMALL( $BH$5:$BH$18, BS7 ) -> 2.99030204 | BV7: 3 | BW7: =IF(OR(ISERROR(FIND("-",Q7)),AE7>'export html'!$AR$7),"",SUBSTITUTE(_xlfn.TEXTBEFORE(Q7,"-"),"*","")-0) ->  | BX7: =IF(OR(ISERROR(FIND("-",R7)),AF7>'export html'!$AR$7),"",SUBSTITUTE(_xlfn.TEXTBEFORE(R7,"-"),"*","")-0) -> 4 | BZ7: =IF(OR(ISERROR(FIND("-",T7)),AH7>'export html'!$AR$7),"",SUBSTITUTE(_xlfn.TEXTBEFORE(T7,"-"),"*","")-0) ->  | CA7: =IF(OR(ISERROR(FIND("-",U7)),AI7>'export html'!$AR$7),"",SUBSTITUTE(_xlfn.TEXTBEFORE(U7,"-"),"*","")-0) ->  | CB7: =IF(OR(ISERROR(FIND("-",V7)),AJ7>'export html'!$AR$7),"",SUBSTITUTE(_xlfn.TEXTBEFORE(V7,"-"),"*","")-0) -> 1 | CC7: =IF(OR(ISERROR(FIND("-",W7)),AK7>'export html'!$AR$7),"",SUBSTITUTE(_xlfn.TEXTBEFORE(W7,"-"),"*","")-0) -> 4 | CD7: =IF(OR(ISERROR(FIND("-",X7)),AL7>'export html'!$AR$7),"",SUBSTITUTE(_xlfn.TEXTBEFORE(X7,"-"),"*","")-0) ->  | CE7: =IF(OR(ISERROR(FIND("-",Y7)),AM7>'export html'!$AR$7),"",SUBSTITUTE(_xlfn.TEXTBEFORE(Y7,"-"),"*","")-0) -> 6 | CF7: =IF(OR(ISERROR(FIND("-",Z7)),AN7>'export html'!$AR$7),"",SUBSTITUTE(_xlfn.TEXTBEFORE(Z7,"-"),"*","")-0) ->  | CG7: =IF(OR(ISERROR(FIND("-",AA7)),AO7>'export html'!$AR$7),"",SUBSTITUTE(_xlfn.TEXTBEFORE(AA7,"-"),"*","")-0) ->  | CH7: =IF(OR(ISERROR(FIND("-",AB7)),AP7>'export html'!$AR$7),"",SUBSTITUTE(_xlfn.TEXTBEFORE(AB7,"-"),"*","")-0) -> 2 | CI7: =IF(OR(ISERROR(FIND("-",AC7)),AQ7>'export html'!$AR$7),"",SUBSTITUTE(_xlfn.TEXTBEFORE(AC7,"-"),"*","")-0) -> 2 | CJ7: =IF(OR(ISERROR(FIND("-",AD7)),AR7>'export html'!$AR$7),"",SUBSTITUTE(_xlfn.TEXTBEFORE(AD7,"-"),"*","")-0) -> 4 | CK7: 3 | CL7: =IF(OR(ISERROR(FIND("-",Q7)),AE7<='export html'!$AR$7),"",SUBSTITUTE(_xlfn.TEXTBEFORE(Q7,"-"),"*","")-0) -> 2 | CM7: =IF(OR(ISERROR(FIND("-",R7)),AF7<='export html'!$AR$7),"",SUBSTITUTE(_xlfn.TEXTBEFORE(R7,"-"),"*","")-0) ->  | CO7: =IF(OR(ISERROR(FIND("-",T7)),AH7<='export html'!$AR$7),"",SUBSTITUTE(_xlfn.TEXTBEFORE(T7,"-"),"*","")-0) -> 5 | CP7: =IF(OR(ISERROR(FIND("-",U7)),AI7<='export html'!$AR$7),"",SUBSTITUTE(_xlfn.TEXTBEFORE(U7,"-"),"*","")-0) -> 4 | CQ7: =IF(OR(ISERROR(FIND("-",V7)),AJ7<='export html'!$AR$7),"",SUBSTITUTE(_xlfn.TEXTBEFORE(V7,"-"),"*","")-0) ->  | CR7: =IF(OR(ISERROR(FIND("-",W7)),AK7<='export html'!$AR$7),"",SUBSTITUTE(_xlfn.TEXTBEFORE(W7,"-"),"*","")-0) ->  | CS7: =IF(OR(ISERROR(FIND("-",X7)),AL7<='export html'!$AR$7),"",SUBSTITUTE(_xlfn.TEXTBEFORE(X7,"-"),"*","")-0) -> 2 | CT7: =IF(OR(ISERROR(FIND("-",Y7)),AM7<='export html'!$AR$7),"",SUBSTITUTE(_xlfn.TEXTBEFORE(Y7,"-"),"*","")-0) ->  | CU7: =IF(OR(ISERROR(FIND("-",Z7)),AN7<='export html'!$AR$7),"",SUBSTITUTE(_xlfn.TEXTBEFORE(Z7,"-"),"*","")-0) -> 3 | CV7: =IF(OR(ISERROR(FIND("-",AA7)),AO7<='export html'!$AR$7),"",SUBSTITUTE(_xlfn.TEXTBEFORE(AA7,"-"),"*","")-0) -> 2 | CW7: =IF(OR(ISERROR(FIND("-",AB7)),AP7<='export html'!$AR$7),"",SUBSTITUTE(_xlfn.TEXTBEFORE(AB7,"-"),"*","")-0) ->  | CX7: =IF(OR(ISERROR(FIND("-",AC7)),AQ7<='export html'!$AR$7),"",SUBSTITUTE(_xlfn.TEXTBEFORE(AC7,"-"),"*","")-0) ->  | CY7: =IF(OR(ISERROR(FIND("-",AD7)),AR7<='export html'!$AR$7),"",SUBSTITUTE(_xlfn.TEXTBEFORE(AD7,"-"),"*","")-0) ->  | CZ7: 3
C8: 4 | D8: =VLOOKUP(BT8,HulpberekeningenStand,2,FALSE) -> Antwerp Global | E8: =3*H8+J8 -> 47 | F8: =SUM(H8:J8) -> 25 | G8: =REPT(IF(F8-MODE($F$5:$F$18)<0,"-","+"),ABS(F8-MODE($F$5:$F$18))) ->  | H8: =VLOOKUP(BT8,HulpberekeningenStand,5,FALSE) -> 14 | I8: =VLOOKUP(BT8,HulpberekeningenStand,6,FALSE) -> 6 | J8: =VLOOKUP(BT8,HulpberekeningenStand,7,FALSE) -> 5 | K8: =VLOOKUP(BT8,HulpberekeningenStand,8,FALSE) -> 83 | L8: =VLOOKUP(BT8,HulpberekeningenStand,9,FALSE) -> 48 | M8: =K8-L8 -> 35 | N8: =3*F8-E8 -> 28 | P8: Bariton | Q8: 4-1 | R8: 2-7 | S8: 3-7 | U8: 3-2 | V8: 0-10 | W8: 1-3 | X8: 4-5 | Y8: 4-1 | Z8: 1-1 | AA8: 2-4 | AB8: 2-1 | AC8: 3-0 | AD8: 1-4 | AE8: 5 | AF8: 1 | AG8: 3 | AI8: 9 | AJ8: 21 | AK8: 17 | AL8: 7 | AM8: 13 | AN8: 11 | AO8: 15 | AP8: 23 | AQ8: 19 | AR8: 25 | AS8: 2024-09-29 | AT8: 2024-09-01 | AU8: 2024-09-15 | AW8: 2024-11-03 | AX8: 2025-02-23 | AY8: 2025-01-26 | AZ8: 2024-10-13 | BA8: 2024-12-01 | BB8: 2024-11-17 | BC8: 2025-03-02 | BD8: 2025-03-16 | BE8: 2025-02-09 | BF8: 2025-03-30 | BH8: =RANK( BJ8, $BJ$5:$BJ$18, 0 ) - RANK( BK8, $BK$5:$BK$18, 0 ) / 10^2 + RANK( BL8, $BL$5:$BL$18, 0 ) / 10^4 + RANK( BQ8, $BQ$5:$BQ$18, 0 ) / 10^6 + RANK( BO8, $BO$5:$BO$18, 0 ) / 10^8 + BS8 / 10^10 -> 11.99121313 | BI8: Bariton | BJ8: 20 | BK8: 25 | BL8: =CHOOSE(StandBer,COUNTIF(BW38:CJ38,"t")+COUNTIF(BZ35:BZ48,"u")+COUNTIF(CL38:CY38,"t")+COUNTIF(CO35:CO48,"u"),COUNTIF(BW38:CJ38,"t")+COUNTIF(BZ35:BZ48,"u"),COUNTIF(CL38:CY38,"t")+COUNTIF(CO35:CO48,"u"),COUNTIF(BW38:CJ38,"t")+COUNTIF(CL38:CY38,"t"),COUNTIF(BZ35:BZ48,"u")+COUNTIF(CO35:CO48,"u")) -> 6 | BM8: =CHOOSE(StandBer,COUNTIF(BW38:CJ38,"u")+COUNTIF(BZ35:BZ48,"t")+COUNTIF(CL38:CY38,"u")+COUNTIF(CO35:CO48,"t"),COUNTIF(BW38:CJ38,"u")+COUNTIF(BZ35:BZ48,"t"),COUNTIF(CL38:CY38,"u")+COUNTIF(CO35:CO48,"t"),COUNTIF(BW38:CJ38,"u")+COUNTIF(CL38:CY38,"u"),COUNTIF(BZ35:BZ48,"t")+COUNTIF(CO35:CO48,"t"))+BR8 -> 17 | BN8: =CHOOSE(StandBer,COUNTIF(BW38:CJ38,"g")+COUNTIF(BZ35:BZ48,"g")+COUNTIF(CL38:CY38,"g")+COUNTIF(CO35:CO48,"g"),COUNTIF(BW38:CJ38,"g")+COUNTIF(BZ35:BZ48,"g"),COUNTIF(CL38:CY38,"g")+COUNTIF(CO35:CO48,"g"),COUNTIF(BW38:CJ38,"g")+COUNTIF(CL38:CY38,"g"),COUNTIF(BZ35:BZ48,"g")+COUNTIF(CO35:CO48,"g")) -> 2 | BO8: =CHOOSE(StandBer,SUM(BW8:CJ8)+SUM(BZ20:BZ33)+SUM(CL8:CY8)+SUM(CO20:CO33),SUM(BW8:CJ8)+SUM(BZ20:BZ33),SUM(CL8:CY8)+SUM(CO20:CO33),SUM(BW8:CJ8)+SUM(CL8:CY8),SUM(BZ20:BZ33)+SUM(CO20:CO33))-5*BR8 -> 45 | BP8: =CHOOSE(StandBer,SUM(BZ5:BZ18)+SUM(BW23:CJ23)+SUM(CO5:CO18)+SUM(CL23:CY23),SUM(BZ5:BZ18)+SUM(BW23:CJ23),SUM(CO5:CO18)+SUM(CL23:CY23),SUM(BZ5:BZ18)+SUM(CO5:CO18),SUM(BW23:CJ23)+SUM(CL23:CY23)) -> 102 | BQ8: -57 | BR8: =CHOOSE(StandBer,COUNTIF(BW38:CJ38,"ff")+COUNTIF(BZ35:BZ48,"ff")+COUNTIF(CL38:CY38,"ff")+COUNTIF(CO35:CO48,"ff"),COUNTIF(BW38:CJ38,"ff")+COUNTIF(BZ35:BZ48,"ff"),COUNTIF(CL38:CY38,"ff")+COUNTIF(CO35:CO48,"ff"),COUNTIF(BW38:CJ38,"ff")+COUNTIF(CL38:CY38,"ff"),COUNTIF(BZ35:BZ48,"ff")+COUNTIF(CO35:CO48,"ff")) -> 0 | BS8: 4 | BT8: =SMALL( $BH$5:$BH$18, BS8 ) -> 3.99040406 | BV8: 4 | BW8: =IF(OR(ISERROR(FIND("-",Q8)),AE8>'export html'!$AR$7),"",SUBSTITUTE(_xlfn.TEXTBEFORE(Q8,"-"),"*","")-0) -> 4 | BX8: =IF(OR(ISERROR(FIND("-",R8)),AF8>'export html'!$AR$7),"",SUBSTITUTE(_xlfn.TEXTBEFORE(R8,"-"),"*","")-0) -> 2 | BY8: =IF(OR(ISERROR(FIND("-",S8)),AG8>'export html'!$AR$7),"",SUBSTITUTE(_xlfn.TEXTBEFORE(S8,"-"),"*","")-0) -> 3 | CA8: =IF(OR(ISERROR(FIND("-",U8)),AI8>'export html'!$AR$7),"",SUBSTITUTE(_xlfn.TEXTBEFORE(U8,"-"),"*","")-0) -> 3 | CB8: =IF(OR(ISERROR(FIND("-",V8)),AJ8>'export html'!$AR$7),"",SUBSTITUTE(_xlfn.TEXTBEFORE(V8,"-"),"*","")-0) ->  | CC8: =IF(OR(ISERROR(FIND("-",W8)),AK8>'export html'!$AR$7),"",SUBSTITUTE(_xlfn.TEXTBEFORE(W8,"-"),"*","")-0) ->  | CD8: =IF(OR(ISERROR(FIND("-",X8)),AL8>'export html'!$AR$7),"",SUBSTITUTE(_xlfn.TEXTBEFORE(X8,"-"),"*","")-0) -> 4 | CE8: =IF(OR(ISERROR(FIND("-",Y8)),AM8>'export html'!$AR$7),"",SUBSTITUTE(_xlfn.TEXTBEFORE(Y8,"-"),"*","")-0) -> 4 | CF8: =IF(OR(ISERROR(FIND("-",Z8)),AN8>'export html'!$AR$7),"",SUBSTITUTE(_xlfn.TEXTBEFORE(Z8,"-"),"*","")-0) -> 1 | CG8: =IF(OR(ISERROR(FIND("-",AA8)),AO8>'export html'!$AR$7),"",SUBSTITUTE(_xlfn.TEXTBEFORE(AA8,"-"),"*","")-0) ->  | CH8: =IF(OR(ISERROR(FIND("-",AB8)),AP8>'export html'!$AR$7),"",SUBSTITUTE(_xlfn.TEXTBEFORE(AB8,"-"),"*","")-0) ->  | CI8: =IF(OR(ISERROR(FIND("-",AC8)),AQ8>'export html'!$AR$7),"",SUBSTITUTE(_xlfn.TEXTBEFORE(AC8,"-"),"*","")-0) ->  | CJ8: =IF(OR(ISERROR(FIND("-",AD8)),AR8>'export html'!$AR$7),"",SUBSTITUTE(_xlfn.TEXTBEFORE(AD8,"-"),"*","")-0) ->  | CK8: 4 | CL8: =IF(OR(ISERROR(FIND("-",Q8)),AE8<='export html'!$AR$7),"",SUBSTITUTE(_xlfn.TEXTBEFORE(Q8,"-"),"*","")-0) ->  | CM8: =IF(OR(ISERROR(FIND("-",R8)),AF8<='export html'!$AR$7),"",SUBSTITUTE(_xlfn.TEXTBEFORE(R8,"-"),"*","")-0) ->  | CN8: =IF(OR(ISERROR(FIND("-",S8)),AG8<='export html'!$AR$7),"",SUBSTITUTE(_xlfn.TEXTBEFORE(S8,"-"),"*","")-0) ->  | CP8: =IF(OR(ISERROR(FIND("-",U8)),AI8<='export html'!$AR$7),"",SUBSTITUTE(_xlfn.TEXTBEFORE(U8,"-"),"*","")-0) ->  | CQ8: =IF(OR(ISERROR(FIND("-",V8)),AJ8<='export html'!$AR$7),"",SUBSTITUTE(_xlfn.TEXTBEFORE(V8,"-"),"*","")-0) -> 0 | CR8: =IF(OR(ISERROR(FIND("-",W8)),AK8<='export html'!$AR$7),"",SUBSTITUTE(_xlfn.TEXTBEFORE(W8,"-"),"*","")-0) -> 1 | CS8: =IF(OR(ISERROR(FIND("-",X8)),AL8<='export html'!$AR$7),"",SUBSTITUTE(_xlfn.TEXTBEFORE(X8,"-"),"*","")-0) ->  | CT8: =IF(OR(ISERROR(FIND("-",Y8)),AM8<='export html'!$AR$7),"",SUBSTITUTE(_xlfn.TEXTBEFORE(Y8,"-"),"*","")-0) ->  | CU8: =IF(OR(ISERROR(FIND("-",Z8)),AN8<='export html'!$AR$7),"",SUBSTITUTE(_xlfn.TEXTBEFORE(Z8,"-"),"*","")-0) ->  | CV8: =IF(OR(ISERROR(FIND("-",AA8)),AO8<='export html'!$AR$7),"",SUBSTITUTE(_xlfn.TEXTBEFORE(AA8,"-"),"*","")-0) -> 2 | CW8: =IF(OR(ISERROR(FIND("-",AB8)),AP8<='export html'!$AR$7),"",SUBSTITUTE(_xlfn.TEXTBEFORE(AB8,"-"),"*","")-0) -> 2 | CX8: =IF(OR(ISERROR(FIND("-",AC8)),AQ8<='export html'!$AR$7),"",SUBSTITUTE(_xlfn.TEXTBEFORE(AC8,"-"),"*","")-0) -> 3 | CY8: =IF(OR(ISERROR(FIND("-",AD8)),AR8<='export html'!$AR$7),"",SUBSTITUTE(_xlfn.TEXTBEFORE(AD8,"-"),"*","")-0) -> 1 | CZ8: 4
C9: 5 | D9: Bar Patron | E9: 42 | F9: 25 | G9: =REPT(IF(F9-MODE($F$5:$F$18)<0,"-","+"),ABS(F9-MODE($F$5:$F$18))) ->  | H9: 12 | I9: 7 | J9: 6 | K9: 73 | L9: 66 | M9: 7 | N9: 33 | P9: Corum | Q9: 2-3 | R9: 4-4 | S9: 4-1 | T9: 8-1 | V9: 0-9 | X9: 4-5 | Y9: 8-1 | Z9: 9-0 | AA9: 2-5 | AB9: 2-10 | AC9: 3-2 | AD9: 2-6 | AE9: 1 | AF9: 10 | AG9: 12 | AH9: 22 | AJ9: 17 | AK9: 26 | AL9: 3 | AM9: 18 | AN9: 20 | AO9: 24 | AP9: 6 | AQ9: 15 | AR9: 8 | AS9: 2024-09-01 | AT9: 2024-11-10 | AU9: 2024-11-24 | AV9: 2025-03-09 | AX9: 2025-01-26 | AY9: 2025-04-06 | AZ9: 2024-09-15 | BA9: 2025-02-02 | BB9: 2025-02-16 | BC9: 2025-03-23 | BD9: 2024-10-06 | BE9: 2024-10-27 | BF9: 2024-10-20 | BH9: =RANK( BJ9, $BJ$5:$BJ$18, 0 ) - RANK( BK9, $BK$5:$BK$18, 0 ) / 10^2 + RANK( BL9, $BL$5:$BL$18, 0 ) / 10^4 + RANK( BQ9, $BQ$5:$BQ$18, 0 ) / 10^6 + RANK( BO9, $BO$5:$BO$18, 0 ) / 10^8 + BS9 / 10^10 -> 10.99101005 | BI9: Corum | BJ9: 25 | BK9: 25 | BL9: =CHOOSE(StandBer,COUNTIF(BW39:CJ39,"t")+COUNTIF(CA35:CA48,"u")+COUNTIF(CL39:CY39,"t")+COUNTIF(CP35:CP48,"u"),COUNTIF(BW39:CJ39,"t")+COUNTIF(CA35:CA48,"u"),COUNTIF(CL39:CY39,"t")+COUNTIF(CP35:CP48,"u"),COUNTIF(BW39:CJ39,"t")+COUNTIF(CL39:CY39,"t"),COUNTIF(CA35:CA48,"u")+COUNTIF(CP35:CP48,"u")) -> 7 | BM9: =CHOOSE(StandBer,COUNTIF(BW39:CJ39,"u")+COUNTIF(CA35:CA48,"t")+COUNTIF(CL39:CY39,"u")+COUNTIF(CP35:CP48,"t"),COUNTIF(BW39:CJ39,"u")+COUNTIF(CA35:CA48,"t"),COUNTIF(CL39:CY39,"u")+COUNTIF(CP35:CP48,"t"),COUNTIF(BW39:CJ39,"u")+COUNTIF(CL39:CY39,"u"),COUNTIF(CA35:CA48,"t")+COUNTIF(CP35:CP48,"t"))+BR9 -> 14 | BN9: =CHOOSE(StandBer,COUNTIF(BW39:CJ39,"g")+COUNTIF(CA35:CA48,"g")+COUNTIF(CL39:CY39,"g")+COUNTIF(CP35:CP48,"g"),COUNTIF(BW39:CJ39,"g")+COUNTIF(CA35:CA48,"g"),COUNTIF(CL39:CY39,"g")+COUNTIF(CP35:CP48,"g"),COUNTIF(BW39:CJ39,"g")+COUNTIF(CL39:CY39,"g"),COUNTIF(CA35:CA48,"g")+COUNTIF(CP35:CP48,"g")) -> 4 | BO9: =CHOOSE(StandBer,SUM(BW9:CJ9)+SUM(CA20:CA33)+SUM(CL9:CY9)+SUM(CP20:CP33),SUM(BW9:CJ9)+SUM(CA20:CA33),SUM(CL9:CY9)+SUM(CP20:CP33),SUM(BW9:CJ9)+SUM(CL9:CY9),SUM(CA20:CA33)+SUM(CP20:CP33))-5*BR9 -> 87 | BP9: =CHOOSE(StandBer,SUM(CA5:CA18)+SUM(BW24:CJ24)+SUM(CP5:CP18)+SUM(CL24:CY24),SUM(CA5:CA18)+SUM(BW24:CJ24),SUM(CP5:CP18)+SUM(CL24:CY24),SUM(CA5:CA18)+SUM(CP5:CP18),SUM(BW24:CJ24)+SUM(CL24:CY24)) -> 102 | BQ9: -15 | BR9: =CHOOSE(StandBer,COUNTIF(BW39:CJ39,"ff")+COUNTIF(CA35:CA48,"ff")+COUNTIF(CL39:CY39,"ff")+COUNTIF(CP35:CP48,"ff"),COUNTIF(BW39:CJ39,"ff")+COUNTIF(CA35:CA48,"ff"),COUNTIF(CL39:CY39,"ff")+COUNTIF(CP35:CP48,"ff"),COUNTIF(BW39:CJ39,"ff")+COUNTIF(CL39:CY39,"ff"),COUNTIF(CA35:CA48,"ff")+COUNTIF(CP35:CP48,"ff")) -> 0 | BS9: 5 | BT9: =SMALL( $BH$5:$BH$18, BS9 ) -> 4.99050607 | BV9: 5 | BW9: =IF(OR(ISERROR(FIND("-",Q9)),AE9>'export html'!$AR$7),"",SUBSTITUTE(_xlfn.TEXTBEFORE(Q9,"-"),"*","")-0) -> 2 | BX9: =IF(OR(ISERROR(FIND("-",R9)),AF9>'export html'!$AR$7),"",SUBSTITUTE(_xlfn.TEXTBEFORE(R9,"-"),"*","")-0) -> 4 | BY9: =IF(OR(ISERROR(FIND("-",S9)),AG9>'export html'!$AR$7),"",SUBSTITUTE(_xlfn.TEXTBEFORE(S9,"-"),"*","")-0) -> 4 | BZ9: =IF(OR(ISERROR(FIND("-",T9)),AH9>'export html'!$AR$7),"",SUBSTITUTE(_xlfn.TEXTBEFORE(T9,"-"),"*","")-0) ->  | CB9: =IF(OR(ISERROR(FIND("-",V9)),AJ9>'export html'!$AR$7),"",SUBSTITUTE(_xlfn.TEXTBEFORE(V9,"-"),"*","")-0) ->  | CC9: =IF(OR(ISERROR(FIND("-",W9)),AK9>'export html'!$AR$7),"",SUBSTITUTE(_xlfn.TEXTBEFORE(W9,"-"),"*","")-0) ->  | CD9: =IF(OR(ISERROR(FIND("-",X9)),AL9>'export html'!$AR$7),"",SUBSTITUTE(_xlfn.TEXTBEFORE(X9,"-"),"*","")-0) -> 4 | CE9: =IF(OR(ISERROR(FIND("-",Y9)),AM9>'export html'!$AR$7),"",SUBSTITUTE(_xlfn.TEXTBEFORE(Y9,"-"),"*","")-0) ->  | CF9: =IF(OR(ISERROR(FIND("-",Z9)),AN9>'export html'!$AR$7),"",SUBSTITUTE(_xlfn.TEXTBEFORE(Z9,"-"),"*","")-0) ->  | CG9: =IF(OR(ISERROR(FIND("-",AA9)),AO9>'export html'!$AR$7),"",SUBSTITUTE(_xlfn.TEXTBEFORE(AA9,"-"),"*","")-0) ->  | CH9: =IF(OR(ISERROR(FIND("-",AB9)),AP9>'export html'!$AR$7),"",SUBSTITUTE(_xlfn.TEXTBEFORE(AB9,"-"),"*","")-0) -> 2 | CI9: =IF(OR(ISERROR(FIND("-",AC9)),AQ9>'export html'!$AR$7),"",SUBSTITUTE(_xlfn.TEXTBEFORE(AC9,"-"),"*","")-0) ->  | CJ9: =IF(OR(ISERROR(FIND("-",AD9)),AR9>'export html'!$AR$7),"",SUBSTITUTE(_xlfn.TEXTBEFORE(AD9,"-"),"*","")-0) -> 2 | CK9: 5 | CL9: =IF(OR(ISERROR(FIND("-",Q9)),AE9<='export html'!$AR$7),"",SUBSTITUTE(_xlfn.TEXTBEFORE(Q9,"-"),"*","")-0) ->  | CM9: =IF(OR(ISERROR(FIND("-",R9)),AF9<='export html'!$AR$7),"",SUBSTITUTE(_xlfn.TEXTBEFORE(R9,"-"),"*","")-0) ->  | CN9: =IF(OR(ISERROR(FIND("-",S9)),AG9<='export html'!$AR$7),"",SUBSTITUTE(_xlfn.TEXTBEFORE(S9,"-"),"*","")-0) ->  | CO9: =IF(OR(ISERROR(FIND("-",T9)),AH9<='export html'!$AR$7),"",SUBSTITUTE(_xlfn.TEXTBEFORE(T9,"-"),"*","")-0) -> 8 | CQ9: =IF(OR(ISERROR(FIND("-",V9)),AJ9<='export html'!$AR$7),"",SUBSTITUTE(_xlfn.TEXTBEFORE(V9,"-"),"*","")-0) -> 0 | CR9: =IF(OR(ISERROR(FIND("-",W9)),AK9<='export html'!$AR$7),"",SUBSTITUTE(_xlfn.TEXTBEFORE(W9,"-"),"*","")-0) ->  | CS9: =IF(OR(ISERROR(FIND("-",X9)),AL9<='export html'!$AR$7),"",SUBSTITUTE(_xlfn.TEXTBEFORE(X9,"-"),"*","")-0) ->  | CT9: =IF(OR(ISERROR(FIND("-",Y9)),AM9<='export html'!$AR$7),"",SUBSTITUTE(_xlfn.TEXTBEFORE(Y9,"-"),"*","")-0) -> 8 | CU9: =IF(OR(ISERROR(FIND("-",Z9)),AN9<='export html'!$AR$7),"",SUBSTITUTE(_xlfn.TEXTBEFORE(Z9,"-"),"*","")-0) -> 9 | CV9: =IF(OR(ISERROR(FIND("-",AA9)),AO9<='export html'!$AR$7),"",SUBSTITUTE(_xlfn.TEXTBEFORE(AA9,"-"),"*","")-0) -> 2 | CW9: =IF(OR(ISERROR(FIND("-",AB9)),AP9<='export html'!$AR$7),"",SUBSTITUTE(_xlfn.TEXTBEFORE(AB9,"-"),"*","")-0) ->  | CX9: =IF(OR(ISERROR(FIND("-",AC9)),AQ9<='export html'!$AR$7),"",SUBSTITUTE(_xlfn.TEXTBEFORE(AC9,"-"),"*","")-0) -> 3 | CY9: =IF(OR(ISERROR(FIND("-",AD9)),AR9<='export html'!$AR$7),"",SUBSTITUTE(_xlfn.TEXTBEFORE(AD9,"-"),"*","")-0) ->  | CZ9: 5
C10: 6 | D10: =VLOOKUP(BT10,HulpberekeningenStand,2,FALSE) -> Racing Emblem | E10: =3*H10+J10 -> 39 | F10: =SUM(H10:J10) -> 24 | G10: =REPT(IF(F10-MODE($F$5:$F$18)<0,"-","+"),ABS(F10-MODE($F$5:$F$18))) -> - | H10: =VLOOKUP(BT10,HulpberekeningenStand,5,FALSE) -> 12 | I10: =VLOOKUP(BT10,HulpberekeningenStand,6,FALSE) -> 9 | J10: =VLOOKUP(BT10,HulpberekeningenStand,7,FALSE) -> 3 | K10: =VLOOKUP(BT10,HulpberekeningenStand,8,FALSE) -> 65 | L10: =VLOOKUP(BT10,HulpberekeningenStand,9,FALSE) -> 61 | M10: =K10-L10 -> 4 | N10: =3*F10-E10 -> 33 | P10: Daltons | R10: 2-0 | S10: 7-1 | T10: 2-0 | U10: *5-0 | W10: *5-0 | X10: 8-1 | Y10: 7-0 | Z10: 3-0 | AA10: 6-2 | AB10: 6-1 | AC10: 4-1 | AD10: 6-0 | AE10: 26 | AF10: 22 | AG10: 24 | AH10: 8 | AI10: 4 | AK10: 12 | AL10: 15 | AM10: 16 | AN10: 6 | AO10: 10 | AP10: 18 | AQ10: 1 | AR10: 20 | AS10: 2025-04-06 | AT10: 2025-03-09 | AU10: 2025-03-23 | AV10: 2024-10-20 | AW10: 2024-09-22 | AY10: 2024-11-24 | AZ10: 2025-03-02 | BA10: 2025-01-19 | BB10: 2024-10-06 | BC10: 2024-11-10 | BD10: 2024-12-04 | BE10: 2024-09-01 | BF10: 2025-02-16 | BH10: =RANK( BJ10, $BJ$5:$BJ$18, 0 ) - RANK( BK10, $BK$5:$BK$18, 0 ) / 10^2 + RANK( BL10, $BL$5:$BL$18, 0 ) / 10^4 + RANK( BQ10, $BQ$5:$BQ$18, 0 ) / 10^6 + RANK( BO10, $BO$5:$BO$18, 0 ) / 10^8 + BS10 / 10^10 -> 0.9901010106 | BI10: =P10 -> Daltons | BJ10: =3 * BL10 + BN10 -> 69 | BK10: =SUM( BL10:BN10 ) -> 25 | BL10: =CHOOSE(StandBer,COUNTIF(BW40:CJ40,"t")+COUNTIF(CB35:CB48,"u")+COUNTIF(CL40:CY40,"t")+COUNTIF(CQ35:CQ48,"u"),COUNTIF(BW40:CJ40,"t")+COUNTIF(CB35:CB48,"u"),COUNTIF(CL40:CY40,"t")+COUNTIF(CQ35:CQ48,"u"),COUNTIF(BW40:CJ40,"t")+COUNTIF(CL40:CY40,"t"),COUNTIF(CB35:CB48,"u")+COUNTIF(CQ35:CQ48,"u")) -> 22 | BM10: =CHOOSE(StandBer,COUNTIF(BW40:CJ40,"u")+COUNTIF(CB35:CB48,"t")+COUNTIF(CL40:CY40,"u")+COUNTIF(CQ35:CQ48,"t"),COUNTIF(BW40:CJ40,"u")+COUNTIF(CB35:CB48,"t"),COUNTIF(CL40:CY40,"u")+COUNTIF(CQ35:CQ48,"t"),COUNTIF(BW40:CJ40,"u")+COUNTIF(CL40:CY40,"u"),COUNTIF(CB35:CB48,"t")+COUNTIF(CQ35:CQ48,"t"))+BR10 -> 0 | BN10: =CHOOSE(StandBer,COUNTIF(BW40:CJ40,"g")+COUNTIF(CB35:CB48,"g")+COUNTIF(CL40:CY40,"g")+COUNTIF(CQ35:CQ48,"g"),COUNTIF(BW40:CJ40,"g")+COUNTIF(CB35:CB48,"g"),COUNTIF(CL40:CY40,"g")+COUNTIF(CQ35:CQ48,"g"),COUNTIF(BW40:CJ40,"g")+COUNTIF(CL40:CY40,"g"),COUNTIF(CB35:CB48,"g")+COUNTIF(CQ35:CQ48,"g")) -> 3 | BO10: =CHOOSE(StandBer,SUM(BW10:CJ10)+SUM(CB20:CB33)+SUM(CL10:CY10)+SUM(CQ20:CQ33),SUM(BW10:CJ10)+SUM(CB20:CB33),SUM(CL10:CY10)+SUM(CQ20:CQ33),SUM(BW10:CJ10)+SUM(CL10:CY10),SUM(CB20:CB33)+SUM(CQ20:CQ33))-5*BR10 -> 113 | BP10: =CHOOSE(StandBer,SUM(CB5:CB18)+SUM(BW25:CJ25)+SUM(CQ5:CQ18)+SUM(CL25:CY25),SUM(CB5:CB18)+SUM(BW25:CJ25),SUM(CQ5:CQ18)+SUM(CL25:CY25),SUM(CB5:CB18)+SUM(CQ5:CQ18),SUM(BW25:CJ25)+SUM(CL25:CY25)) -> 15 | BQ10: =BO10 - BP10 -> 98 | BR10: =CHOOSE(StandBer,COUNTIF(BW40:CJ40,"ff")+COUNTIF(CB35:CB48,"ff")+COUNTIF(CL40:CY40,"ff")+COUNTIF(CQ35:CQ48,"ff"),COUNTIF(BW40:CJ40,"ff")+COUNTIF(CB35:CB48,"ff"),COUNTIF(CL40:CY40,"ff")+COUNTIF(CQ35:CQ48,"ff"),COUNTIF(BW40:CJ40,"ff")+COUNTIF(CL40:CY40,"ff"),COUNTIF(CB35:CB48,"ff")+COUNTIF(CQ35:CQ48,"ff")) -> 0 | BS10: 6 | BT10: =SMALL( $BH$5:$BH$18, BS10 ) -> 5.890508091 | BV10: 6 | BW10: =IF(OR(ISERROR(FIND("-",Q10)),AE10>'export html'!$AR$7),"",SUBSTITUTE(_xlfn.TEXTBEFORE(Q10,"-"),"*","")-0) ->  | BX10: =IF(OR(ISERROR(FIND("-",R10)),AF10>'export html'!$AR$7),"",SUBSTITUTE(_xlfn.TEXTBEFORE(R10,"-"),"*","")-0) ->  | BY10: =IF(OR(ISERROR(FIND("-",S10)),AG10>'export html'!$AR$7),"",SUBSTITUTE(_xlfn.TEXTBEFORE(S10,"-"),"*","")-0) ->  | BZ10: =IF(OR(ISERROR(FIND("-",T10)),AH10>'export html'!$AR$7),"",SUBSTITUTE(_xlfn.TEXTBEFORE(T10,"-"),"*","")-0) -> 2 | CA10: =IF(OR(ISERROR(FIND("-",U10)),AI10>'export html'!$AR$7),"",SUBSTITUTE(_xlfn.TEXTBEFORE(U10,"-"),"*","")-0) -> 5 | CC10: =IF(OR(ISERROR(FIND("-",W10)),AK10>'export html'!$AR$7),"",SUBSTITUTE(_xlfn.TEXTBEFORE(W10,"-"),"*","")-0) -> 5 | CD10: =IF(OR(ISERROR(FIND("-",X10)),AL10>'export html'!$AR$7),"",SUBSTITUTE(_xlfn.TEXTBEFORE(X10,"-"),"*","")-0) ->  | CE10: =IF(OR(ISERROR(FIND("-",Y10)),AM10>'export html'!$AR$7),"",SUBSTITUTE(_xlfn.TEXTBEFORE(Y10,"-"),"*","")-0) ->  | CF10: =IF(OR(ISERROR(FIND("-",Z10)),AN10>'export html'!$AR$7),"",SUBSTITUTE(_xlfn.TEXTBEFORE(Z10,"-"),"*","")-0) -> 3 | CG10: =IF(OR(ISERROR(FIND("-",AA10)),AO10>'export html'!$AR$7),"",SUBSTITUTE(_xlfn.TEXTBEFORE(AA10,"-"),"*","")-0) -> 6 | CH10: =IF(OR(ISERROR(FIND("-",AB10)),AP10>'export html'!$AR$7),"",SUBSTITUTE(_xlfn.TEXTBEFORE(AB10,"-"),"*","")-0) ->  | CI10: =IF(OR(ISERROR(FIND("-",AC10)),AQ10>'export html'!$AR$7),"",SUBSTITUTE(_xlfn.TEXTBEFORE(AC10,"-"),"*","")-0) -> 4 | CJ10: =IF(OR(ISERROR(FIND("-",AD10)),AR10>'export html'!$AR$7),"",SUBSTITUTE(_xlfn.TEXTBEFORE(AD10,"-"),"*","")-0) ->  | CK10: 6 | CL10: =IF(OR(ISERROR(FIND("-",Q10)),AE10<='export html'!$AR$7),"",SUBSTITUTE(_xlfn.TEXTBEFORE(Q10,"-"),"*","")-0) ->  | CM10: =IF(OR(ISERROR(FIND("-",R10)),AF10<='export html'!$AR$7),"",SUBSTITUTE(_xlfn.TEXTBEFORE(R10,"-"),"*","")-0) -> 2 | CN10: =IF(OR(ISERROR(FIND("-",S10)),AG10<='export html'!$AR$7),"",SUBSTITUTE(_xlfn.TEXTBEFORE(S10,"-"),"*","")-0) -> 7 | CO10: =IF(OR(ISERROR(FIND("-",T10)),AH10<='export html'!$AR$7),"",SUBSTITUTE(_xlfn.TEXTBEFORE(T10,"-"),"*","")-0) ->  | CP10: =IF(OR(ISERROR(FIND("-",U10)),AI10<='export html'!$AR$7),"",SUBSTITUTE(_xlfn.TEXTBEFORE(U10,"-"),"*","")-0) ->  | CR10: =IF(OR(ISERROR(FIND("-",W10)),AK10<='export html'!$AR$7),"",SUBSTITUTE(_xlfn.TEXTBEFORE(W10,"-"),"*","")-0) ->  | CS10: =IF(OR(ISERROR(FIND("-",X10)),AL10<='export html'!$AR$7),"",SUBSTITUTE(_xlfn.TEXTBEFORE(X10,"-"),"*","")-0) -> 8 | CT10: =IF(OR(ISERROR(FIND("-",Y10)),AM10<='export html'!$AR$7),"",SUBSTITUTE(_xlfn.TEXTBEFORE(Y10,"-"),"*","")-0) -> 7 | CU10: =IF(OR(ISERROR(FIND("-",Z10)),AN10<='export html'!$AR$7),"",SUBSTITUTE(_xlfn.TEXTBEFORE(Z10,"-"),"*","")-0) ->  | CV10: =IF(OR(ISERROR(FIND("-",AA10)),AO10<='export html'!$AR$7),"",SUBSTITUTE(_xlfn.TEXTBEFORE(AA10,"-"),"*","")-0) ->  | CW10: =IF(OR(ISERROR(FIND("-",AB10)),AP10<='export html'!$AR$7),"",SUBSTITUTE(_xlfn.TEXTBEFORE(AB10,"-"),"*","")-0) -> 6 | CX10: =IF(OR(ISERROR(FIND("-",AC10)),AQ10<='export html'!$AR$7),"",SUBSTITUTE(_xlfn.TEXTBEFORE(AC10,"-"),"*","")-0) ->  | CY10: =IF(OR(ISERROR(FIND("-",AD10)),AR10<='export html'!$AR$7),"",SUBSTITUTE(_xlfn.TEXTBEFORE(AD10,"-"),"*","")-0) -> 6 | CZ10: 6
C11: 7 | D11: Sint Anneke | E11: 37 | F11: 25 | H11: 11 | I11: 10 | J11: 4 | K11: 91 | L11: 79 | M11: 12 | N11: 38 | P11: Goka | Q11: 5-2 | R11: 0-5* | S11: 1-2 | T11: 3-1 | U11: 5-5 | V11: 0-2 | X11: 4-4 | Y11: *5-0 | Z11: 3-0 | AA11: 2-5 | AB11: 3-3 | AC11: 1-4 | AD11: 0-1 | AE11: 9 | AF11: 18 | AG11: 20 | AH11: 4 | AI11: 13 | AJ11: 25 | AL11: 11 | AM11: 8 | AN11: 2 | AO11: 6 | AP11: 14 | AQ11: 23 | AR11: 16 | AS11: 2024-11-03 | AT11: 2025-02-02 | AU11: 2025-02-16 | AV11: 2024-09-22 | AW11: 2024-12-01 | AX11: 2025-03-30 | AZ11: 2024-11-17 | BA11: 2024-10-20 | BB11: 2024-09-08 | BC11: 2024-10-06 | BD11: 2024-12-08 | BE11: 2025-03-16 | BF11: 2025-01-19 | BH11: 12.99131212 | BI11: Goka | BJ11: 19 | BK11: 25 | BL11: =CHOOSE(StandBer,COUNTIF(BW41:CJ41,"t")+COUNTIF(CC35:CC48,"u")+COUNTIF(CL41:CY41,"t")+COUNTIF(CR35:CR48,"u"),COUNTIF(BW41:CJ41,"t")+COUNTIF(CC35:CC48,"u"),COUNTIF(CL41:CY41,"t")+COUNTIF(CR35:CR48,"u"),COUNTIF(BW41:CJ41,"t")+COUNTIF(CL41:CY41,"t"),COUNTIF(CC35:CC48,"u")+COUNTIF(CR35:CR48,"u")) -> 5 | BM11: =CHOOSE(StandBer,COUNTIF(BW41:CJ41,"u")+COUNTIF(CC35:CC48,"t")+COUNTIF(CL41:CY41,"u")+COUNTIF(CR35:CR48,"t"),COUNTIF(BW41:CJ41,"u")+COUNTIF(CC35:CC48,"t"),COUNTIF(CL41:CY41,"u")+COUNTIF(CR35:CR48,"t"),COUNTIF(BW41:CJ41,"u")+COUNTIF(CL41:CY41,"u"),COUNTIF(CC35:CC48,"t")+COUNTIF(CR35:CR48,"t"))+BR11 -> 16 | BN11: =CHOOSE(StandBer,COUNTIF(BW41:CJ41,"g")+COUNTIF(CC35:CC48,"g")+COUNTIF(CL41:CY41,"g")+COUNTIF(CR35:CR48,"g"),COUNTIF(BW41:CJ41,"g")+COUNTIF(CC35:CC48,"g"),COUNTIF(CL41:CY41,"g")+COUNTIF(CR35:CR48,"g"),COUNTIF(BW41:CJ41,"g")+COUNTIF(CL41:CY41,"g"),COUNTIF(CC35:CC48,"g")+COUNTIF(CR35:CR48,"g")) -> 4 | BO11: =CHOOSE(StandBer,SUM(BW11:CJ11)+SUM(CC20:CC33)+SUM(CL11:CY11)+SUM(CR20:CR33),SUM(BW11:CJ11)+SUM(CC20:CC33),SUM(CL11:CY11)+SUM(CR20:CR33),SUM(BW11:CJ11)+SUM(CL11:CY11),SUM(CC20:CC33)+SUM(CR20:CR33))-5*BR11 -> 47 | BP11: =CHOOSE(StandBer,SUM(CC5:CC18)+SUM(BW26:CJ26)+SUM(CR5:CR18)+SUM(CL26:CY26),SUM(CC5:CC18)+SUM(BW26:CJ26),SUM(CR5:CR18)+SUM(CL26:CY26),SUM(CC5:CC18)+SUM(CR5:CR18),SUM(BW26:CJ26)+SUM(CL26:CY26)) -> 81 | BQ11: -34 | BR11: =CHOOSE(StandBer,COUNTIF(BW41:CJ41,"ff")+COUNTIF(CC35:CC48,"ff")+COUNTIF(CL41:CY41,"ff")+COUNTIF(CR35:CR48,"ff"),COUNTIF(BW41:CJ41,"ff")+COUNTIF(CC35:CC48,"ff"),COUNTIF(CL41:CY41,"ff")+COUNTIF(CR35:CR48,"ff"),COUNTIF(BW41:CJ41,"ff")+COUNTIF(CL41:CY41,"ff"),COUNTIF(CC35:CC48,"ff")+COUNTIF(CR35:CR48,"ff")) -> 0 | BS11: 7 | BT11: 6.990705031 | BV11: 7 | BW11: =IF(OR(ISERROR(FIND("-",Q11)),AE11>'export html'!$AR$7),"",SUBSTITUTE(_xlfn.TEXTBEFORE(Q11,"-"),"*","")-0) -> 5 | BX11: =IF(OR(ISERROR(FIND("-",R11)),AF11>'export html'!$AR$7),"",SUBSTITUTE(_xlfn.TEXTBEFORE(R11,"-"),"*","")-0) ->  | BY11: =IF(OR(ISERROR(FIND("-",S11)),AG11>'export html'!$AR$7),"",SUBSTITUTE(_xlfn.TEXTBEFORE(S11,"-"),"*","")-0) ->  | BZ11: =IF(OR(ISERROR(FIND("-",T11)),AH11>'export html'!$AR$7),"",SUBSTITUTE(_xlfn.TEXTBEFORE(T11,"-"),"*","")-0) -> 3 | CA11: =IF(OR(ISERROR(FIND("-",U11)),AI11>'export html'!$AR$7),"",SUBSTITUTE(_xlfn.TEXTBEFORE(U11,"-"),"*","")-0) -> 5 | CB11: =IF(OR(ISERROR(FIND("-",V11)),AJ11>'export html'!$AR$7),"",SUBSTITUTE(_xlfn.TEXTBEFORE(V11,"-"),"*","")-0) ->  | CD11: =IF(OR(ISERROR(FIND("-",X11)),AL11>'export html'!$AR$7),"",SUBSTITUTE(_xlfn.TEXTBEFORE(X11,"-"),"*","")-0) -> 4 | CE11: =IF(OR(ISERROR(FIND("-",Y11)),AM11>'export html'!$AR$7),"",SUBSTITUTE(_xlfn.TEXTBEFORE(Y11,"-"),"*","")-0) -> 5 | CF11: =IF(OR(ISERROR(FIND("-",Z11)),AN11>'export html'!$AR$7),"",SUBSTITUTE(_xlfn.TEXTBEFORE(Z11,"-"),"*","")-0) -> 3 | CG11: =IF(OR(ISERROR(FIND("-",AA11)),AO11>'export html'!$AR$7),"",SUBSTITUTE(_xlfn.TEXTBEFORE(AA11,"-"),"*","")-0) -> 2 | CH11: =IF(OR(ISERROR(FIND("-",AB11)),AP11>'export html'!$AR$7),"",SUBSTITUTE(_xlfn.TEXTBEFORE(AB11,"-"),"*","")-0) ->  | CI11: =IF(OR(ISERROR(FIND("-",AC11)),AQ11>'export html'!$AR$7),"",SUBSTITUTE(_xlfn.TEXTBEFORE(AC11,"-"),"*","")-0) ->  | CJ11: =IF(OR(ISERROR(FIND("-",AD11)),AR11>'export html'!$AR$7),"",SUBSTITUTE(_xlfn.TEXTBEFORE(AD11,"-"),"*","")-0) ->  | CK11: 7 | CL11: =IF(OR(ISERROR(FIND("-",Q11)),AE11<='export html'!$AR$7),"",SUBSTITUTE(_xlfn.TEXTBEFORE(Q11,"-"),"*","")-0) ->  | CM11: =IF(OR(ISERROR(FIND("-",R11)),AF11<='export html'!$AR$7),"",SUBSTITUTE(_xlfn.TEXTBEFORE(R11,"-"),"*","")-0) -> 0 | CN11: =IF(OR(ISERROR(FIND("-",S11)),AG11<='export html'!$AR$7),"",SUBSTITUTE(_xlfn.TEXTBEFORE(S11,"-"),"*","")-0) -> 1 | CO11: =IF(OR(ISERROR(FIND("-",T11)),AH11<='export html'!$AR$7),"",SUBSTITUTE(_xlfn.TEXTBEFORE(T11,"-"),"*","")-0) ->  | CP11: =IF(OR(ISERROR(FIND("-",U11)),AI11<='export html'!$AR$7),"",SUBSTITUTE(_xlfn.TEXTBEFORE(U11,"-"),"*","")-0) ->  | CQ11: =IF(OR(ISERROR(FIND("-",V11)),AJ11<='export html'!$AR$7),"",SUBSTITUTE(_xlfn.TEXTBEFORE(V11,"-"),"*","")-0) -> 0 | CS11: =IF(OR(ISERROR(FIND("-",X11)),AL11<='export html'!$AR$7),"",SUBSTITUTE(_xlfn.TEXTBEFORE(X11,"-"),"*","")-0) ->  | CT11: =IF(OR(ISERROR(FIND("-",Y11)),AM11<='export html'!$AR$7),"",SUBSTITUTE(_xlfn.TEXTBEFORE(Y11,"-"),"*","")-0) ->  | CU11: =IF(OR(ISERROR(FIND("-",Z11)),AN11<='export html'!$AR$7),"",SUBSTITUTE(_xlfn.TEXTBEFORE(Z11,"-"),"*","")-0) ->  | CV11: =IF(OR(ISERROR(FIND("-",AA11)),AO11<='export html'!$AR$7),"",SUBSTITUTE(_xlfn.TEXTBEFORE(AA11,"-"),"*","")-0) ->  | CW11: =IF(OR(ISERROR(FIND("-",AB11)),AP11<='export html'!$AR$7),"",SUBSTITUTE(_xlfn.TEXTBEFORE(AB11,"-"),"*","")-0) -> 3 | CX11: =IF(OR(ISERROR(FIND("-",AC11)),AQ11<='export html'!$AR$7),"",SUBSTITUTE(_xlfn.TEXTBEFORE(AC11,"-"),"*","")-0) -> 1 | CY11: =IF(OR(ISERROR(FIND("-",AD11)),AR11<='export html'!$AR$7),"",SUBSTITUTE(_xlfn.TEXTBEFORE(AD11,"-"),"*","")-0) -> 0 | CZ11: 7
C12: 8 | D12: SC Duffel | E12: 33 | F12: 25 | G12: =REPT(IF(F12-MODE($F$5:$F$18)<0,"-","+"),ABS(F12-MODE($F$5:$F$18))) ->  | H12: 9 | I12: 10 | J12: 6 | K12: 70 | L12: 65 | M12: 5 | N12: 42 | P12: Hombeek | Q12: 0-4 | R12: 4-3 | S12: 0-4 | T12: *5-0 | U12: 5-6 | V12: 2-3 | W12: 3-2 | Y12: 4-0 | AA12: 0-1 | AB12: 2-6 | AD12: 1-1 | AE12: 12 | AF12: 8 | AG12: 10 | AH12: 20 | AI12: 16 | AJ12: 2 | AK12: 24 | AM12: 14 | AN12: 18 | AO12: 22 | AP12: 4 | AQ12: 26 | AR12: 6 | AS12: 2024-11-24 | AT12: 2024-10-20 | AU12: 2024-11-10 | AV12: 2025-02-16 | AW12: 2025-01-19 | AX12: 2024-09-08 | AY12: 2025-03-23 | BA12: 2024-12-08 | BB12: 2025-04-13 | BC12: 2025-03-09 | BD12: 2024-09-22 | BE12: 2025-04-06 | BF12: 2024-10-06 | BH12: =RANK( BJ12, $BJ$5:$BJ$18, 0 ) - RANK( BK12, $BK$5:$BK$18, 0 ) / 10^2 + RANK( BL12, $BL$5:$BL$18, 0 ) / 10^4 + RANK( BQ12, $BQ$5:$BQ$18, 0 ) / 10^6 + RANK( BO12, $BO$5:$BO$18, 0 ) / 10^8 + BS12 / 10^10 -> 8.890809101 | BI12: Hombeek | BJ12: 30 | BK12: 24 | BL12: =CHOOSE(StandBer,COUNTIF(BW42:CJ42,"t")+COUNTIF(CD35:CD48,"u")+COUNTIF(CL42:CY42,"t")+COUNTIF(CS35:CS48,"u"),COUNTIF(BW42:CJ42,"t")+COUNTIF(CD35:CD48,"u"),COUNTIF(CL42:CY42,"t")+COUNTIF(CS35:CS48,"u"),COUNTIF(BW42:CJ42,"t")+COUNTIF(CL42:CY42,"t"),COUNTIF(CD35:CD48,"u")+COUNTIF(CS35:CS48,"u")) -> 9 | BM12: =CHOOSE(StandBer,COUNTIF(BW42:CJ42,"u")+COUNTIF(CD35:CD48,"t")+COUNTIF(CL42:CY42,"u")+COUNTIF(CS35:CS48,"t"),COUNTIF(BW42:CJ42,"u")+COUNTIF(CD35:CD48,"t"),COUNTIF(CL42:CY42,"u")+COUNTIF(CS35:CS48,"t"),COUNTIF(BW42:CJ42,"u")+COUNTIF(CL42:CY42,"u"),COUNTIF(CD35:CD48,"t")+COUNTIF(CS35:CS48,"t"))+BR12 -> 12 | BN12: =CHOOSE(StandBer,COUNTIF(BW42:CJ42,"g")+COUNTIF(CD35:CD48,"g")+COUNTIF(CL42:CY42,"g")+COUNTIF(CS35:CS48,"g"),COUNTIF(BW42:CJ42,"g")+COUNTIF(CD35:CD48,"g"),COUNTIF(CL42:CY42,"g")+COUNTIF(CS35:CS48,"g"),COUNTIF(BW42:CJ42,"g")+COUNTIF(CL42:CY42,"g"),COUNTIF(CD35:CD48,"g")+COUNTIF(CS35:CS48,"g")) -> 3 | BO12: =CHOOSE(StandBer,SUM(BW12:CJ12)+SUM(CD20:CD33)+SUM(CL12:CY12)+SUM(CS20:CS33),SUM(BW12:CJ12)+SUM(CD20:CD33),SUM(CL12:CY12)+SUM(CS20:CS33),SUM(BW12:CJ12)+SUM(CL12:CY12),SUM(CD20:CD33)+SUM(CS20:CS33))-5*BR12 -> 60 | BP12: =CHOOSE(StandBer,SUM(CD5:CD18)+SUM(BW27:CJ27)+SUM(CS5:CS18)+SUM(CL27:CY27),SUM(CD5:CD18)+SUM(BW27:CJ27),SUM(CS5:CS18)+SUM(CL27:CY27),SUM(CD5:CD18)+SUM(CS5:CS18),SUM(BW27:CJ27)+SUM(CL27:CY27)) -> 72 | BQ12: -12 | BR12: =CHOOSE(StandBer,COUNTIF(BW42:CJ42,"ff")+COUNTIF(CD35:CD48,"ff")+COUNTIF(CL42:CY42,"ff")+COUNTIF(CS35:CS48,"ff"),COUNTIF(BW42:CJ42,"ff")+COUNTIF(CD35:CD48,"ff"),COUNTIF(CL42:CY42,"ff")+COUNTIF(CS35:CS48,"ff"),COUNTIF(BW42:CJ42,"ff")+COUNTIF(CL42:CY42,"ff"),COUNTIF(CD35:CD48,"ff")+COUNTIF(CS35:CS48,"ff")) -> 0 | BS12: 8 | BT12: =SMALL( $BH$5:$BH$18, BS12 ) -> 7.990807081 | BV12: 8 | BW12: =IF(OR(ISERROR(FIND("-",Q12)),AE12>'export html'!$AR$7),"",SUBSTITUTE(_xlfn.TEXTBEFORE(Q12,"-"),"*","")-0) -> 0 | BX12: =IF(OR(ISERROR(FIND("-",R12)),AF12>'export html'!$AR$7),"",SUBSTITUTE(_xlfn.TEXTBEFORE(R12,"-"),"*","")-0) -> 4 | BY12: =IF(OR(ISERROR(FIND("-",S12)),AG12>'export html'!$AR$7),"",SUBSTITUTE(_xlfn.TEXTBEFORE(S12,"-"),"*","")-0) -> 0 | BZ12: =IF(OR(ISERROR(FIND("-",T12)),AH12>'export html'!$AR$7),"",SUBSTITUTE(_xlfn.TEXTBEFORE(T12,"-"),"*","")-0) ->  | CA12: =IF(OR(ISERROR(FIND("-",U12)),AI12>'export html'!$AR$7),"",SUBSTITUTE(_xlfn.TEXTBEFORE(U12,"-"),"*","")-0) ->  | CB12: =IF(OR(ISERROR(FIND("-",V12)),AJ12>'export html'!$AR$7),"",SUBSTITUTE(_xlfn.TEXTBEFORE(V12,"-"),"*","")-0) -> 2 | CC12: =IF(OR(ISERROR(FIND("-",W12)),AK12>'export html'!$AR$7),"",SUBSTITUTE(_xlfn.TEXTBEFORE(W12,"-"),"*","")-0) ->  | CE12: =IF(OR(ISERROR(FIND("-",Y12)),AM12>'export html'!$AR$7),"",SUBSTITUTE(_xlfn.TEXTBEFORE(Y12,"-"),"*","")-0) ->  | CF12: =IF(OR(ISERROR(FIND("-",Z12)),AN12>'export html'!$AR$7),"",SUBSTITUTE(_xlfn.TEXTBEFORE(Z12,"-"),"*","")-0) ->  | CG12: =IF(OR(ISERROR(FIND("-",AA12)),AO12>'export html'!$AR$7),"",SUBSTITUTE(_xlfn.TEXTBEFORE(AA12,"-"),"*","")-0) ->  | CH12: =IF(OR(ISERROR(FIND("-",AB12)),AP12>'export html'!$AR$7),"",SUBSTITUTE(_xlfn.TEXTBEFORE(AB12,"-"),"*","")-0) -> 2 | CI12: =IF(OR(ISERROR(FIND("-",AC12)),AQ12>'export html'!$AR$7),"",SUBSTITUTE(_xlfn.TEXTBEFORE(AC12,"-"),"*","")-0) ->  | CJ12: =IF(OR(ISERROR(FIND("-",AD12)),AR12>'export html'!$AR$7),"",SUBSTITUTE(_xlfn.TEXTBEFORE(AD12,"-"),"*","")-0) -> 1 | CK12: 8 | CL12: =IF(OR(ISERROR(FIND("-",Q12)),AE12<='export html'!$AR$7),"",SUBSTITUTE(_xlfn.TEXTBEFORE(Q12,"-"),"*","")-0) ->  | CM12: =IF(OR(ISERROR(FIND("-",R12)),AF12<='export html'!$AR$7),"",SUBSTITUTE(_xlfn.TEXTBEFORE(R12,"-"),"*","")-0) ->  | CN12: =IF(OR(ISERROR(FIND("-",S12)),AG12<='export html'!$AR$7),"",SUBSTITUTE(_xlfn.TEXTBEFORE(S12,"-"),"*","")-0) ->  | CO12: =IF(OR(ISERROR(FIND("-",T12)),AH12<='export html'!$AR$7),"",SUBSTITUTE(_xlfn.TEXTBEFORE(T12,"-"),"*","")-0) -> 5 | CP12: =IF(OR(ISERROR(FIND("-",U12)),AI12<='export html'!$AR$7),"",SUBSTITUTE(_xlfn.TEXTBEFORE(U12,"-"),"*","")-0) -> 5 | CQ12: =IF(OR(ISERROR(FIND("-",V12)),AJ12<='export html'!$AR$7),"",SUBSTITUTE(_xlfn.TEXTBEFORE(V12,"-"),"*","")-0) ->  | CR12: =IF(OR(ISERROR(FIND("-",W12)),AK12<='export html'!$AR$7),"",SUBSTITUTE(_xlfn.TEXTBEFORE(W12,"-"),"*","")-0) -> 3 | CT12: =IF(OR(ISERROR(FIND("-",Y12)),AM12<='export html'!$AR$7),"",SUBSTITUTE(_xlfn.TEXTBEFORE(Y12,"-"),"*","")-0) -> 4 | CU12: =IF(OR(ISERROR(FIND("-",Z12)),AN12<='export html'!$AR$7),"",SUBSTITUTE(_xlfn.TEXTBEFORE(Z12,"-"),"*","")-0) ->  | CV12: =IF(OR(ISERROR(FIND("-",AA12)),AO12<='export html'!$AR$7),"",SUBSTITUTE(_xlfn.TEXTBEFORE(AA12,"-"),"*","")-0) -> 0 | CW12: =IF(OR(ISERROR(FIND("-",AB12)),AP12<='export html'!$AR$7),"",SUBSTITUTE(_xlfn.TEXTBEFORE(AB12,"-"),"*","")-0) ->  | CX12: =IF(OR(ISERROR(FIND("-",AC12)),AQ12<='export html'!$AR$7),"",SUBSTITUTE(_xlfn.TEXTBEFORE(AC12,"-"),"*","")-0) ->  | CY12: =IF(OR(ISERROR(FIND("-",AD12)),AR12<='export html'!$AR$7),"",SUBSTITUTE(_xlfn.TEXTBEFORE(AD12,"-"),"*","")-0) ->  | CZ12: 8
C13: 9 | D13: =VLOOKUP(BT13,HulpberekeningenStand,2,FALSE) -> Hombeek | E13: 30 | F13: 24 | G13: - | H13: =VLOOKUP(BT13,HulpberekeningenStand,5,FALSE) -> 9 | I13: =VLOOKUP(BT13,HulpberekeningenStand,6,FALSE) -> 12 | J13: =VLOOKUP(BT13,HulpberekeningenStand,7,FALSE) -> 3 | K13: =VLOOKUP(BT13,HulpberekeningenStand,8,FALSE) -> 60 | L13: =VLOOKUP(BT13,HulpberekeningenStand,9,FALSE) -> 72 | M13: -12 | N13: 42 | P13: Jolika | Q13: 0-5 | R13: 0-5 | S13: 0-2 | U13: 1-8 | V13: 0-7 | W13: 1-1 | X13: 0-6 | Z13: 1-1 | AB13: 0-8 | AC13: 7-0 | AD13: 0-5 | AE13: 23 | AF13: 15 | AG13: 19 | AH13: 26 | AI13: 5 | AJ13: 3 | AK13: 21 | AL13: 1 | AN13: 9 | AO13: 17 | AP13: 7 | AQ13: 12 | AR13: 11 | AS13: 2025-03-16 | AT13: 2025-03-02 | AU13: 2025-02-09 | AV13: 2025-04-06 | AW13: 2024-09-29 | AX13: 2024-09-15 | AY13: 2025-02-23 | AZ13: 2024-09-01 | BB13: 2024-11-03 | BC13: 2025-04-13 | BD13: 2024-10-13 | BE13: 2024-11-24 | BF13: 2024-11-17 | BH13: 13.89141414 | BI13: Jolika | BJ13: 6 | BK13: 24 | BL13: =CHOOSE(StandBer,COUNTIF(BW43:CJ43,"t")+COUNTIF(CE35:CE48,"u")+COUNTIF(CL43:CY43,"t")+COUNTIF(CT35:CT48,"u"),COUNTIF(BW43:CJ43,"t")+COUNTIF(CE35:CE48,"u"),COUNTIF(CL43:CY43,"t")+COUNTIF(CT35:CT48,"u"),COUNTIF(BW43:CJ43,"t")+COUNTIF(CL43:CY43,"t"),COUNTIF(CE35:CE48,"u")+COUNTIF(CT35:CT48,"u")) -> 1 | BM13: =CHOOSE(StandBer,COUNTIF(BW43:CJ43,"u")+COUNTIF(CE35:CE48,"t")+COUNTIF(CL43:CY43,"u")+COUNTIF(CT35:CT48,"t"),COUNTIF(BW43:CJ43,"u")+COUNTIF(CE35:CE48,"t"),COUNTIF(CL43:CY43,"u")+COUNTIF(CT35:CT48,"t"),COUNTIF(BW43:CJ43,"u")+COUNTIF(CL43:CY43,"u"),COUNTIF(CE35:CE48,"t")+COUNTIF(CT35:CT48,"t"))+BR13 -> 20 | BN13: =CHOOSE(StandBer,COUNTIF(BW43:CJ43,"g")+COUNTIF(CE35:CE48,"g")+COUNTIF(CL43:CY43,"g")+COUNTIF(CT35:CT48,"g"),COUNTIF(BW43:CJ43,"g")+COUNTIF(CE35:CE48,"g"),COUNTIF(CL43:CY43,"g")+COUNTIF(CT35:CT48,"g"),COUNTIF(BW43:CJ43,"g")+COUNTIF(CL43:CY43,"g"),COUNTIF(CE35:CE48,"g")+COUNTIF(CT35:CT48,"g")) -> 3 | BO13: =CHOOSE(StandBer,SUM(BW13:CJ13)+SUM(CE20:CE33)+SUM(CL13:CY13)+SUM(CT20:CT33),SUM(BW13:CJ13)+SUM(CE20:CE33),SUM(CL13:CY13)+SUM(CT20:CT33),SUM(BW13:CJ13)+SUM(CL13:CY13),SUM(CE20:CE33)+SUM(CT20:CT33))-5*BR13 -> 21 | BP13: =CHOOSE(StandBer,SUM(CE5:CE18)+SUM(BW28:CJ28)+SUM(CT5:CT18)+SUM(CL28:CY28),SUM(CE5:CE18)+SUM(BW28:CJ28),SUM(CT5:CT18)+SUM(CL28:CY28),SUM(CE5:CE18)+SUM(CT5:CT18),SUM(BW28:CJ28)+SUM(CL28:CY28)) -> 122 | BQ13: -101 | BR13: =CHOOSE(StandBer,COUNTIF(BW43:CJ43,"ff")+COUNTIF(CE35:CE48,"ff")+COUNTIF(CL43:CY43,"ff")+COUNTIF(CT35:CT48,"ff"),COUNTIF(BW43:CJ43,"ff")+COUNTIF(CE35:CE48,"ff"),COUNTIF(CL43:CY43,"ff")+COUNTIF(CT35:CT48,"ff"),COUNTIF(BW43:CJ43,"ff")+COUNTIF(CL43:CY43,"ff"),COUNTIF(CE35:CE48,"ff")+COUNTIF(CT35:CT48,"ff")) -> 0 | BS13: 9 | BT13: 8.890809101 | BV13: 9 | BW13: =IF(OR(ISERROR(FIND("-",Q13)),AE13>'export html'!$AR$7),"",SUBSTITUTE(_xlfn.TEXTBEFORE(Q13,"-"),"*","")-0) ->  | BX13: =IF(OR(ISERROR(FIND("-",R13)),AF13>'export html'!$AR$7),"",SUBSTITUTE(_xlfn.TEXTBEFORE(R13,"-"),"*","")-0) ->  | BY13: =IF(OR(ISERROR(FIND("-",S13)),AG13>'export html'!$AR$7),"",SUBSTITUTE(_xlfn.TEXTBEFORE(S13,"-"),"*","")-0) ->  | BZ13: =IF(OR(ISERROR(FIND("-",T13)),AH13>'export html'!$AR$7),"",SUBSTITUTE(_xlfn.TEXTBEFORE(T13,"-"),"*","")-0) ->  | CA13: =IF(OR(ISERROR(FIND("-",U13)),AI13>'export html'!$AR$7),"",SUBSTITUTE(_xlfn.TEXTBEFORE(U13,"-"),"*","")-0) -> 1 | CB13: =IF(OR(ISERROR(FIND("-",V13)),AJ13>'export html'!$AR$7),"",SUBSTITUTE(_xlfn.TEXTBEFORE(V13,"-"),"*","")-0) -> 0 | CC13: =IF(OR(ISERROR(FIND("-",W13)),AK13>'export html'!$AR$7),"",SUBSTITUTE(_xlfn.TEXTBEFORE(W13,"-"),"*","")-0) ->  | CD13: =IF(OR(ISERROR(FIND("-",X13)),AL13>'export html'!$AR$7),"",SUBSTITUTE(_xlfn.TEXTBEFORE(X13,"-"),"*","")-0) -> 0 | CF13: =IF(OR(ISERROR(FIND("-",Z13)),AN13>'export html'!$AR$7),"",SUBSTITUTE(_xlfn.TEXTBEFORE(Z13,"-"),"*","")-0) -> 1 | CG13: =IF(OR(ISERROR(FIND("-",AA13)),AO13>'export html'!$AR$7),"",SUBSTITUTE(_xlfn.TEXTBEFORE(AA13,"-"),"*","")-0) ->  | CH13: =IF(OR(ISERROR(FIND("-",AB13)),AP13>'export html'!$AR$7),"",SUBSTITUTE(_xlfn.TEXTBEFORE(AB13,"-"),"*","")-0) -> 0 | CI13: =IF(OR(ISERROR(FIND("-",AC13)),AQ13>'export html'!$AR$7),"",SUBSTITUTE(_xlfn.TEXTBEFORE(AC13,"-"),"*","")-0) -> 7 | CJ13: =IF(OR(ISERROR(FIND("-",AD13)),AR13>'export html'!$AR$7),"",SUBSTITUTE(_xlfn.TEXTBEFORE(AD13,"-"),"*","")-0) -> 0 | CK13: 9 | CL13: =IF(OR(ISERROR(FIND("-",Q13)),AE13<='export html'!$AR$7),"",SUBSTITUTE(_xlfn.TEXTBEFORE(Q13,"-"),"*","")-0) -> 0 | CM13: =IF(OR(ISERROR(FIND("-",R13)),AF13<='export html'!$AR$7),"",SUBSTITUTE(_xlfn.TEXTBEFORE(R13,"-"),"*","")-0) -> 0 | CN13: =IF(OR(ISERROR(FIND("-",S13)),AG13<='export html'!$AR$7),"",SUBSTITUTE(_xlfn.TEXTBEFORE(S13,"-"),"*","")-0) -> 0 | CO13: =IF(OR(ISERROR(FIND("-",T13)),AH13<='export html'!$AR$7),"",SUBSTITUTE(_xlfn.TEXTBEFORE(T13,"-"),"*","")-0) ->  | CP13: =IF(OR(ISERROR(FIND("-",U13)),AI13<='export html'!$AR$7),"",SUBSTITUTE(_xlfn.TEXTBEFORE(U13,"-"),"*","")-0) ->  | CQ13: =IF(OR(ISERROR(FIND("-",V13)),AJ13<='export html'!$AR$7),"",SUBSTITUTE(_xlfn.TEXTBEFORE(V13,"-"),"*","")-0) ->  | CR13: =IF(OR(ISERROR(FIND("-",W13)),AK13<='export html'!$AR$7),"",SUBSTITUTE(_xlfn.TEXTBEFORE(W13,"-"),"*","")-0) -> 1 | CS13: =IF(OR(ISERROR(FIND("-",X13)),AL13<='export html'!$AR$7),"",SUBSTITUTE(_xlfn.TEXTBEFORE(X13,"-"),"*","")-0) ->  | CU13: =IF(OR(ISERROR(FIND("-",Z13)),AN13<='export html'!$AR$7),"",SUBSTITUTE(_xlfn.TEXTBEFORE(Z13,"-"),"*","")-0) ->  | CV13: =IF(OR(ISERROR(FIND("-",AA13)),AO13<='export html'!$AR$7),"",SUBSTITUTE(_xlfn.TEXTBEFORE(AA13,"-"),"*","")-0) ->  | CW13: =IF(OR(ISERROR(FIND("-",AB13)),AP13<='export html'!$AR$7),"",SUBSTITUTE(_xlfn.TEXTBEFORE(AB13,"-"),"*","")-0) ->  | CX13: =IF(OR(ISERROR(FIND("-",AC13)),AQ13<='export html'!$AR$7),"",SUBSTITUTE(_xlfn.TEXTBEFORE(AC13,"-"),"*","")-0) ->  | CY13: =IF(OR(ISERROR(FIND("-",AD13)),AR13<='export html'!$AR$7),"",SUBSTITUTE(_xlfn.TEXTBEFORE(AD13,"-"),"*","")-0) ->  | CZ13: 9
C14: 10 | D14: Lucyvo | E14: =3*H14+J14 -> 26 | F14: =SUM(H14:J14) -> 24 | G14: - | H14: 7 | I14: 12 | J14: 5 | K14: 56 | L14: 86 | M14: =K14-L14 -> -30 | N14: =3*F14-E14 -> 46 | P14: Lucyvo | Q14: 1-5 | R14: 1-7 | S14: 2-4 | T14: 2-1 | U14: 5-5 | V14: 0-5* | W14: 3-0 | X14: 5-1 | Y14: 2-2 | AB14: 5-2 | AC14: 4-8 | AD14: 6-2 | AE14: 3 | AF14: 12 | AG14: 1 | AH14: 24 | AI14: 7 | AJ14: 19 | AK14: 15 | AL14: 5 | AM14: 22 | AO14: 26 | AP14: 21 | AQ14: 17 | AR14: 10 | AS14: 2024-09-15 | AT14: 2024-11-24 | AU14: 2024-09-01 | AV14: 2025-03-23 | AW14: 2024-10-13 | AX14: 2025-02-09 | AY14: 2025-03-02 | AZ14: 2024-09-29 | BA14: 2025-03-09 | BC14: 2025-04-06 | BD14: 2025-02-23 | BE14: 2024-12-22 | BF14: 2024-11-10 | BH14: 9.891011111 | BI14: Lucyvo | BJ14: 26 | BK14: 24 | BL14: =CHOOSE(StandBer,COUNTIF(BW44:CJ44,"t")+COUNTIF(CF35:CF48,"u")+COUNTIF(CL44:CY44,"t")+COUNTIF(CU35:CU48,"u"),COUNTIF(BW44:CJ44,"t")+COUNTIF(CF35:CF48,"u"),COUNTIF(CL44:CY44,"t")+COUNTIF(CU35:CU48,"u"),COUNTIF(BW44:CJ44,"t")+COUNTIF(CL44:CY44,"t"),COUNTIF(CF35:CF48,"u")+COUNTIF(CU35:CU48,"u")) -> 7 | BM14: =CHOOSE(StandBer,COUNTIF(BW44:CJ44,"u")+COUNTIF(CF35:CF48,"t")+COUNTIF(CL44:CY44,"u")+COUNTIF(CU35:CU48,"t"),COUNTIF(BW44:CJ44,"u")+COUNTIF(CF35:CF48,"t"),COUNTIF(CL44:CY44,"u")+COUNTIF(CU35:CU48,"t"),COUNTIF(BW44:CJ44,"u")+COUNTIF(CL44:CY44,"u"),COUNTIF(CF35:CF48,"t")+COUNTIF(CU35:CU48,"t"))+BR14 -> 12 | BN14: =CHOOSE(StandBer,COUNTIF(BW44:CJ44,"g")+COUNTIF(CF35:CF48,"g")+COUNTIF(CL44:CY44,"g")+COUNTIF(CU35:CU48,"g"),COUNTIF(BW44:CJ44,"g")+COUNTIF(CF35:CF48,"g"),COUNTIF(CL44:CY44,"g")+COUNTIF(CU35:CU48,"g"),COUNTIF(BW44:CJ44,"g")+COUNTIF(CL44:CY44,"g"),COUNTIF(CF35:CF48,"g")+COUNTIF(CU35:CU48,"g")) -> 5 | BO14: =CHOOSE(StandBer,SUM(BW14:CJ14)+SUM(CF20:CF33)+SUM(CL14:CY14)+SUM(CU20:CU33),SUM(BW14:CJ14)+SUM(CF20:CF33),SUM(CL14:CY14)+SUM(CU20:CU33),SUM(BW14:CJ14)+SUM(CL14:CY14),SUM(CF20:CF33)+SUM(CU20:CU33))-5*BR14 -> 56 | BP14: =CHOOSE(StandBer,SUM(CF5:CF18)+SUM(BW29:CJ29)+SUM(CU5:CU18)+SUM(CL29:CY29),SUM(CF5:CF18)+SUM(BW29:CJ29),SUM(CU5:CU18)+SUM(CL29:CY29),SUM(CF5:CF18)+SUM(CU5:CU18),SUM(BW29:CJ29)+SUM(CL29:CY29)) -> 86 | BQ14: -30 | BR14: =CHOOSE(StandBer,COUNTIF(BW44:CJ44,"ff")+COUNTIF(CF35:CF48,"ff")+COUNTIF(CL44:CY44,"ff")+COUNTIF(CU35:CU48,"ff"),COUNTIF(BW44:CJ44,"ff")+COUNTIF(CF35:CF48,"ff"),COUNTIF(CL44:CY44,"ff")+COUNTIF(CU35:CU48,"ff"),COUNTIF(BW44:CJ44,"ff")+COUNTIF(CL44:CY44,"ff"),COUNTIF(CF35:CF48,"ff")+COUNTIF(CU35:CU48,"ff")) -> 0 | BS14: 10 | BT14: 9.891011111 | BV14: 10 | BW14: =IF(OR(ISERROR(FIND("-",Q14)),AE14>'export html'!$AR$7),"",SUBSTITUTE(_xlfn.TEXTBEFORE(Q14,"-"),"*","")-0) -> 1 | BX14: =IF(OR(ISERROR(FIND("-",R14)),AF14>'export html'!$AR$7),"",SUBSTITUTE(_xlfn.TEXTBEFORE(R14,"-"),"*","")-0) -> 1 | BY14: =IF(OR(ISERROR(FIND("-",S14)),AG14>'export html'!$AR$7),"",SUBSTITUTE(_xlfn.TEXTBEFORE(S14,"-"),"*","")-0) -> 2 | BZ14: =IF(OR(ISERROR(FIND("-",T14)),AH14>'export html'!$AR$7),"",SUBSTITUTE(_xlfn.TEXTBEFORE(T14,"-"),"*","")-0) ->  | CA14: =IF(OR(ISERROR(FIND("-",U14)),AI14>'export html'!$AR$7),"",SUBSTITUTE(_xlfn.TEXTBEFORE(U14,"-"),"*","")-0) -> 5 | CB14: =IF(OR(ISERROR(FIND("-",V14)),AJ14>'export html'!$AR$7),"",SUBSTITUTE(_xlfn.TEXTBEFORE(V14,"-"),"*","")-0) ->  | CC14: =IF(OR(ISERROR(FIND("-",W14)),AK14>'export html'!$AR$7),"",SUBSTITUTE(_xlfn.TEXTBEFORE(W14,"-"),"*","")-0) ->  | CD14: =IF(OR(ISERROR(FIND("-",X14)),AL14>'export html'!$AR$7),"",SUBSTITUTE(_xlfn.TEXTBEFORE(X14,"-"),"*","")-0) -> 5 | CE14: =IF(OR(ISERROR(FIND("-",Y14)),AM14>'export html'!$AR$7),"",SUBSTITUTE(_xlfn.TEXTBEFORE(Y14,"-"),"*","")-0) ->  | CG14: =IF(OR(ISERROR(FIND("-",AA14)),AO14>'export html'!$AR$7),"",SUBSTITUTE(_xlfn.TEXTBEFORE(AA14,"-"),"*","")-0) ->  | CH14: =IF(OR(ISERROR(FIND("-",AB14)),AP14>'export html'!$AR$7),"",SUBSTITUTE(_xlfn.TEXTBEFORE(AB14,"-"),"*","")-0) ->  | CI14: =IF(OR(ISERROR(FIND("-",AC14)),AQ14>'export html'!$AR$7),"",SUBSTITUTE(_xlfn.TEXTBEFORE(AC14,"-"),"*","")-0) ->  | CJ14: =IF(OR(ISERROR(FIND("-",AD14)),AR14>'export html'!$AR$7),"",SUBSTITUTE(_xlfn.TEXTBEFORE(AD14,"-"),"*","")-0) -> 6 | CK14: 10 | CL14: =IF(OR(ISERROR(FIND("-",Q14)),AE14<='export html'!$AR$7),"",SUBSTITUTE(_xlfn.TEXTBEFORE(Q14,"-"),"*","")-0) ->  | CM14: =IF(OR(ISERROR(FIND("-",R14)),AF14<='export html'!$AR$7),"",SUBSTITUTE(_xlfn.TEXTBEFORE(R14,"-"),"*","")-0) ->  | CN14: =IF(OR(ISERROR(FIND("-",S14)),AG14<='export html'!$AR$7),"",SUBSTITUTE(_xlfn.TEXTBEFORE(S14,"-"),"*","")-0) ->  | CO14: =IF(OR(ISERROR(FIND("-",T14)),AH14<='export html'!$AR$7),"",SUBSTITUTE(_xlfn.TEXTBEFORE(T14,"-"),"*","")-0) -> 2 | CP14: =IF(OR(ISERROR(FIND("-",U14)),AI14<='export html'!$AR$7),"",SUBSTITUTE(_xlfn.TEXTBEFORE(U14,"-"),"*","")-0) ->  | CQ14: =IF(OR(ISERROR(FIND("-",V14)),AJ14<='export html'!$AR$7),"",SUBSTITUTE(_xlfn.TEXTBEFORE(V14,"-"),"*","")-0) -> 0 | CR14: =IF(OR(ISERROR(FIND("-",W14)),AK14<='export html'!$AR$7),"",SUBSTITUTE(_xlfn.TEXTBEFORE(W14,"-"),"*","")-0) -> 3 | CS14: =IF(OR(ISERROR(FIND("-",X14)),AL14<='export html'!$AR$7),"",SUBSTITUTE(_xlfn.TEXTBEFORE(X14,"-"),"*","")-0) ->  | CT14: =IF(OR(ISERROR(FIND("-",Y14)),AM14<='export html'!$AR$7),"",SUBSTITUTE(_xlfn.TEXTBEFORE(Y14,"-"),"*","")-0) -> 2 | CV14: =IF(OR(ISERROR(FIND("-",AA14)),AO14<='export html'!$AR$7),"",SUBSTITUTE(_xlfn.TEXTBEFORE(AA14,"-"),"*","")-0) ->  | CW14: =IF(OR(ISERROR(FIND("-",AB14)),AP14<='export html'!$AR$7),"",SUBSTITUTE(_xlfn.TEXTBEFORE(AB14,"-"),"*","")-0) -> 5 | CX14: =IF(OR(ISERROR(FIND("-",AC14)),AQ14<='export html'!$AR$7),"",SUBSTITUTE(_xlfn.TEXTBEFORE(AC14,"-"),"*","")-0) -> 4 | CY14: =IF(OR(ISERROR(FIND("-",AD14)),AR14<='export html'!$AR$7),"",SUBSTITUTE(_xlfn.TEXTBEFORE(AD14,"-"),"*","")-0) ->  | CZ14: 10
C15: 11 | D15: Corum | E15: 25 | F15: 25 | H15: 7 | I15: 14 | J15: 4 | K15: 87 | L15: 102 | M15: -15 | N15: 50 | P15: Racing Emblem | Q15: 2-1 | R15: 2-3 | S15: 2-0 | T15: 0-5* | U15: 4-1 | V15: 1-1 | W15: 5-0 | X15: 0-2 | Y15: 4-1 | Z15: 8-2 | AB15: 1-1 | AC15: 3-6 | AD15: 0-5* | AE15: 7 | AF15: 16 | AG15: 5 | AH15: 2 | AI15: 11 | AJ15: 23 | AK15: 19 | AL15: 9 | AM15: 4 | AN15: 13 | AP15: 25 | AQ15: 21 | AR15: 14 | AS15: 2024-10-13 | AT15: 2025-01-19 | AU15: 2024-09-29 | AV15: 2024-09-08 | AW15: 2024-11-17 | AX15: 2025-03-16 | AY15: 2025-02-09 | AZ15: 2024-11-03 | BA15: 2024-09-22 | BB15: 2024-12-01 | BD15: 2025-03-30 | BE15: 2025-02-23 | BF15: 2025-04-02 | BH15: 5.890508091 | BI15: Racing Emblem | BJ15: 39 | BK15: 24 | BL15: =CHOOSE(StandBer,COUNTIF(BW45:CJ45,"t")+COUNTIF(CG35:CG48,"u")+COUNTIF(CL45:CY45,"t")+COUNTIF(CV35:CV48,"u"),COUNTIF(BW45:CJ45,"t")+COUNTIF(CG35:CG48,"u"),COUNTIF(CL45:CY45,"t")+COUNTIF(CV35:CV48,"u"),COUNTIF(BW45:CJ45,"t")+COUNTIF(CL45:CY45,"t"),COUNTIF(CG35:CG48,"u")+COUNTIF(CV35:CV48,"u")) -> 12 | BM15: =CHOOSE(StandBer,COUNTIF(BW45:CJ45,"u")+COUNTIF(CG35:CG48,"t")+COUNTIF(CL45:CY45,"u")+COUNTIF(CV35:CV48,"t"),COUNTIF(BW45:CJ45,"u")+COUNTIF(CG35:CG48,"t"),COUNTIF(CL45:CY45,"u")+COUNTIF(CV35:CV48,"t"),COUNTIF(BW45:CJ45,"u")+COUNTIF(CL45:CY45,"u"),COUNTIF(CG35:CG48,"t")+COUNTIF(CV35:CV48,"t"))+BR15 -> 9 | BN15: =CHOOSE(StandBer,COUNTIF(BW45:CJ45,"g")+COUNTIF(CG35:CG48,"g")+COUNTIF(CL45:CY45,"g")+COUNTIF(CV35:CV48,"g"),COUNTIF(BW45:CJ45,"g")+COUNTIF(CG35:CG48,"g"),COUNTIF(CL45:CY45,"g")+COUNTIF(CV35:CV48,"g"),COUNTIF(BW45:CJ45,"g")+COUNTIF(CL45:CY45,"g"),COUNTIF(CG35:CG48,"g")+COUNTIF(CV35:CV48,"g")) -> 3 | BO15: =CHOOSE(StandBer,SUM(BW15:CJ15)+SUM(CG20:CG33)+SUM(CL15:CY15)+SUM(CV20:CV33),SUM(BW15:CJ15)+SUM(CG20:CG33),SUM(CL15:CY15)+SUM(CV20:CV33),SUM(BW15:CJ15)+SUM(CL15:CY15),SUM(CG20:CG33)+SUM(CV20:CV33))-5*BR15 -> 65 | BP15: =CHOOSE(StandBer,SUM(CG5:CG18)+SUM(BW30:CJ30)+SUM(CV5:CV18)+SUM(CL30:CY30),SUM(CG5:CG18)+SUM(BW30:CJ30),SUM(CV5:CV18)+SUM(CL30:CY30),SUM(CG5:CG18)+SUM(CV5:CV18),SUM(BW30:CJ30)+SUM(CL30:CY30)) -> 61 | BQ15: 4 | BR15: =CHOOSE(StandBer,COUNTIF(BW45:CJ45,"ff")+COUNTIF(CG35:CG48,"ff")+COUNTIF(CL45:CY45,"ff")+COUNTIF(CV35:CV48,"ff"),COUNTIF(BW45:CJ45,"ff")+COUNTIF(CG35:CG48,"ff"),COUNTIF(CL45:CY45,"ff")+COUNTIF(CV35:CV48,"ff"),COUNTIF(BW45:CJ45,"ff")+COUNTIF(CL45:CY45,"ff"),COUNTIF(CG35:CG48,"ff")+COUNTIF(CV35:CV48,"ff")) -> 0 | BS15: 11 | BT15: 10.99101005 | BV15: 11 | BW15: =IF(OR(ISERROR(FIND("-",Q15)),AE15>'export html'!$AR$7),"",SUBSTITUTE(_xlfn.TEXTBEFORE(Q15,"-"),"*","")-0) -> 2 | BX15: =IF(OR(ISERROR(FIND("-",R15)),AF15>'export html'!$AR$7),"",SUBSTITUTE(_xlfn.TEXTBEFORE(R15,"-"),"*","")-0) ->  | BY15: =IF(OR(ISERROR(FIND("-",S15)),AG15>'export html'!$AR$7),"",SUBSTITUTE(_xlfn.TEXTBEFORE(S15,"-"),"*","")-0) -> 2 | BZ15: =IF(OR(ISERROR(FIND("-",T15)),AH15>'export html'!$AR$7),"",SUBSTITUTE(_xlfn.TEXTBEFORE(T15,"-"),"*","")-0) -> 0 | CA15: =IF(OR(ISERROR(FIND("-",U15)),AI15>'export html'!$AR$7),"",SUBSTITUTE(_xlfn.TEXTBEFORE(U15,"-"),"*","")-0) -> 4 | CB15: =IF(OR(ISERROR(FIND("-",V15)),AJ15>'export html'!$AR$7),"",SUBSTITUTE(_xlfn.TEXTBEFORE(V15,"-"),"*","")-0) ->  | CC15: =IF(OR(ISERROR(FIND("-",W15)),AK15>'export html'!$AR$7),"",SUBSTITUTE(_xlfn.TEXTBEFORE(W15,"-"),"*","")-0) ->  | CD15: =IF(OR(ISERROR(FIND("-",X15)),AL15>'export html'!$AR$7),"",SUBSTITUTE(_xlfn.TEXTBEFORE(X15,"-"),"*","")-0) -> 0 | CE15: =IF(OR(ISERROR(FIND("-",Y15)),AM15>'export html'!$AR$7),"",SUBSTITUTE(_xlfn.TEXTBEFORE(Y15,"-"),"*","")-0) -> 4 | CF15: =IF(OR(ISERROR(FIND("-",Z15)),AN15>'export html'!$AR$7),"",SUBSTITUTE(_xlfn.TEXTBEFORE(Z15,"-"),"*","")-0) -> 8 | CH15: =IF(OR(ISERROR(FIND("-",AB15)),AP15>'export html'!$AR$7),"",SUBSTITUTE(_xlfn.TEXTBEFORE(AB15,"-"),"*","")-0) ->  | CI15: =IF(OR(ISERROR(FIND("-",AC15)),AQ15>'export html'!$AR$7),"",SUBSTITUTE(_xlfn.TEXTBEFORE(AC15,"-"),"*","")-0) ->  | CJ15: =IF(OR(ISERROR(FIND("-",AD15)),AR15>'export html'!$AR$7),"",SUBSTITUTE(_xlfn.TEXTBEFORE(AD15,"-"),"*","")-0) ->  | CK15: 11 | CL15: =IF(OR(ISERROR(FIND("-",Q15)),AE15<='export html'!$AR$7),"",SUBSTITUTE(_xlfn.TEXTBEFORE(Q15,"-"),"*","")-0) ->  | CM15: =IF(OR(ISERROR(FIND("-",R15)),AF15<='export html'!$AR$7),"",SUBSTITUTE(_xlfn.TEXTBEFORE(R15,"-"),"*","")-0) -> 2 | CN15: =IF(OR(ISERROR(FIND("-",S15)),AG15<='export html'!$AR$7),"",SUBSTITUTE(_xlfn.TEXTBEFORE(S15,"-"),"*","")-0) ->  | CO15: =IF(OR(ISERROR(FIND("-",T15)),AH15<='export html'!$AR$7),"",SUBSTITUTE(_xlfn.TEXTBEFORE(T15,"-"),"*","")-0) ->  | CP15: =IF(OR(ISERROR(FIND("-",U15)),AI15<='export html'!$AR$7),"",SUBSTITUTE(_xlfn.TEXTBEFORE(U15,"-"),"*","")-0) ->  | CQ15: =IF(OR(ISERROR(FIND("-",V15)),AJ15<='export html'!$AR$7),"",SUBSTITUTE(_xlfn.TEXTBEFORE(V15,"-"),"*","")-0) -> 1 | CR15: =IF(OR(ISERROR(FIND("-",W15)),AK15<='export html'!$AR$7),"",SUBSTITUTE(_xlfn.TEXTBEFORE(W15,"-"),"*","")-0) -> 5 | CS15: =IF(OR(ISERROR(FIND("-",X15)),AL15<='export html'!$AR$7),"",SUBSTITUTE(_xlfn.TEXTBEFORE(X15,"-"),"*","")-0) ->  | CT15: =IF(OR(ISERROR(FIND("-",Y15)),AM15<='export html'!$AR$7),"",SUBSTITUTE(_xlfn.TEXTBEFORE(Y15,"-"),"*","")-0) ->  | CU15: =IF(OR(ISERROR(FIND("-",Z15)),AN15<='export html'!$AR$7),"",SUBSTITUTE(_xlfn.TEXTBEFORE(Z15,"-"),"*","")-0) ->  | CW15: =IF(OR(ISERROR(FIND("-",AB15)),AP15<='export html'!$AR$7),"",SUBSTITUTE(_xlfn.TEXTBEFORE(AB15,"-"),"*","")-0) -> 1 | CX15: =IF(OR(ISERROR(FIND("-",AC15)),AQ15<='export html'!$AR$7),"",SUBSTITUTE(_xlfn.TEXTBEFORE(AC15,"-"),"*","")-0) -> 3 | CY15: =IF(OR(ISERROR(FIND("-",AD15)),AR15<='export html'!$AR$7),"",SUBSTITUTE(_xlfn.TEXTBEFORE(AD15,"-"),"*","")-0) -> 0 | CZ15: 11
C16: 12 | D16: Bariton | E16: 20 | F16: 25 | H16: 6 | I16: 17 | J16: 2 | K16: 45 | L16: 102 | M16: -57 | N16: 55 | P16: Sint Anneke | Q16: 1-2 | R16: 0-2 | T16: 10-2 | U16: 7-3 | V16: 2-3 | W16: 5-2 | X16: 2-0 | Y16: 4-2 | Z16: 4-0 | AA16: 2-8 | AC16: 6-3 | AD16: 0-9 | AE16: 15 | AF16: 24 | AG16: 26 | AH16: 10 | AI16: 19 | AJ16: 5 | AK16: 1 | AL16: 17 | AM16: 20 | AN16: 8 | AO16: 12 | AQ16: 3 | AR16: 22 | AS16: 2025-03-02 | AT16: 2025-03-23 | AU16: 2025-04-06 | AV16: 2024-11-10 | AW16: 2025-02-09 | AX16: 2024-09-29 | AY16: 2024-09-01 | AZ16: 2025-01-26 | BA16: 2025-02-16 | BB16: 2024-10-20 | BC16: 2024-11-24 | BE16: 2024-09-15 | BF16: 2025-03-09 | BH16: 6.990705031 | BI16: Sint Anneke | BJ16: 37 | BK16: 25 | BL16: =CHOOSE(StandBer,COUNTIF(BW46:CJ46,"t")+COUNTIF(CH35:CH48,"u")+COUNTIF(CL46:CY46,"t")+COUNTIF(CW35:CW48,"u"),COUNTIF(BW46:CJ46,"t")+COUNTIF(CH35:CH48,"u"),COUNTIF(CL46:CY46,"t")+COUNTIF(CW35:CW48,"u"),COUNTIF(BW46:CJ46,"t")+COUNTIF(CL46:CY46,"t"),COUNTIF(CH35:CH48,"u")+COUNTIF(CW35:CW48,"u")) -> 11 | BM16: =CHOOSE(StandBer,COUNTIF(BW46:CJ46,"u")+COUNTIF(CH35:CH48,"t")+COUNTIF(CL46:CY46,"u")+COUNTIF(CW35:CW48,"t"),COUNTIF(BW46:CJ46,"u")+COUNTIF(CH35:CH48,"t"),COUNTIF(CL46:CY46,"u")+COUNTIF(CW35:CW48,"t"),COUNTIF(BW46:CJ46,"u")+COUNTIF(CL46:CY46,"u"),COUNTIF(CH35:CH48,"t")+COUNTIF(CW35:CW48,"t"))+BR16 -> 10 | BN16: =CHOOSE(StandBer,COUNTIF(BW46:CJ46,"g")+COUNTIF(CH35:CH48,"g")+COUNTIF(CL46:CY46,"g")+COUNTIF(CW35:CW48,"g"),COUNTIF(BW46:CJ46,"g")+COUNTIF(CH35:CH48,"g"),COUNTIF(CL46:CY46,"g")+COUNTIF(CW35:CW48,"g"),COUNTIF(BW46:CJ46,"g")+COUNTIF(CL46:CY46,"g"),COUNTIF(CH35:CH48,"g")+COUNTIF(CW35:CW48,"g")) -> 4 | BO16: =CHOOSE(StandBer,SUM(BW16:CJ16)+SUM(CH20:CH33)+SUM(CL16:CY16)+SUM(CW20:CW33),SUM(BW16:CJ16)+SUM(CH20:CH33),SUM(CL16:CY16)+SUM(CW20:CW33),SUM(BW16:CJ16)+SUM(CL16:CY16),SUM(CH20:CH33)+SUM(CW20:CW33))-5*BR16 -> 91 | BP16: =CHOOSE(StandBer,SUM(CH5:CH18)+SUM(BW31:CJ31)+SUM(CW5:CW18)+SUM(CL31:CY31),SUM(CH5:CH18)+SUM(BW31:CJ31),SUM(CW5:CW18)+SUM(CL31:CY31),SUM(CH5:CH18)+SUM(CW5:CW18),SUM(BW31:CJ31)+SUM(CL31:CY31)) -> 79 | BQ16: 12 | BR16: =CHOOSE(StandBer,COUNTIF(BW46:CJ46,"ff")+COUNTIF(CH35:CH48,"ff")+COUNTIF(CL46:CY46,"ff")+COUNTIF(CW35:CW48,"ff"),COUNTIF(BW46:CJ46,"ff")+COUNTIF(CH35:CH48,"ff"),COUNTIF(CL46:CY46,"ff")+COUNTIF(CW35:CW48,"ff"),COUNTIF(BW46:CJ46,"ff")+COUNTIF(CL46:CY46,"ff"),COUNTIF(CH35:CH48,"ff")+COUNTIF(CW35:CW48,"ff")) -> 0 | BS16: 12 | BT16: 11.99121313 | BV16: 12 | BW16: =IF(OR(ISERROR(FIND("-",Q16)),AE16>'export html'!$AR$7),"",SUBSTITUTE(_xlfn.TEXTBEFORE(Q16,"-"),"*","")-0) ->  | BX16: =IF(OR(ISERROR(FIND("-",R16)),AF16>'export html'!$AR$7),"",SUBSTITUTE(_xlfn.TEXTBEFORE(R16,"-"),"*","")-0) ->  | BY16: =IF(OR(ISERROR(FIND("-",S16)),AG16>'export html'!$AR$7),"",SUBSTITUTE(_xlfn.TEXTBEFORE(S16,"-"),"*","")-0) ->  | BZ16: =IF(OR(ISERROR(FIND("-",T16)),AH16>'export html'!$AR$7),"",SUBSTITUTE(_xlfn.TEXTBEFORE(T16,"-"),"*","")-0) -> 10 | CA16: =IF(OR(ISERROR(FIND("-",U16)),AI16>'export html'!$AR$7),"",SUBSTITUTE(_xlfn.TEXTBEFORE(U16,"-"),"*","")-0) ->  | CB16: =IF(OR(ISERROR(FIND("-",V16)),AJ16>'export html'!$AR$7),"",SUBSTITUTE(_xlfn.TEXTBEFORE(V16,"-"),"*","")-0) -> 2 | CC16: =IF(OR(ISERROR(FIND("-",W16)),AK16>'export html'!$AR$7),"",SUBSTITUTE(_xlfn.TEXTBEFORE(W16,"-"),"*","")-0) -> 5 | CD16: =IF(OR(ISERROR(FIND("-",X16)),AL16>'export html'!$AR$7),"",SUBSTITUTE(_xlfn.TEXTBEFORE(X16,"-"),"*","")-0) ->  | CE16: =IF(OR(ISERROR(FIND("-",Y16)),AM16>'export html'!$AR$7),"",SUBSTITUTE(_xlfn.TEXTBEFORE(Y16,"-"),"*","")-0) ->  | CF16: =IF(OR(ISERROR(FIND("-",Z16)),AN16>'export html'!$AR$7),"",SUBSTITUTE(_xlfn.TEXTBEFORE(Z16,"-"),"*","")-0) -> 4 | CG16: =IF(OR(ISERROR(FIND("-",AA16)),AO16>'export html'!$AR$7),"",SUBSTITUTE(_xlfn.TEXTBEFORE(AA16,"-"),"*","")-0) -> 2 | CI16: =IF(OR(ISERROR(FIND("-",AC16)),AQ16>'export html'!$AR$7),"",SUBSTITUTE(_xlfn.TEXTBEFORE(AC16,"-"),"*","")-0) -> 6 | CJ16: =IF(OR(ISERROR(FIND("-",AD16)),AR16>'export html'!$AR$7),"",SUBSTITUTE(_xlfn.TEXTBEFORE(AD16,"-"),"*","")-0) ->  | CK16: 12 | CL16: =IF(OR(ISERROR(FIND("-",Q16)),AE16<='export html'!$AR$7),"",SUBSTITUTE(_xlfn.TEXTBEFORE(Q16,"-"),"*","")-0) -> 1 | CM16: =IF(OR(ISERROR(FIND("-",R16)),AF16<='export html'!$AR$7),"",SUBSTITUTE(_xlfn.TEXTBEFORE(R16,"-"),"*","")-0) -> 0 | CN16: =IF(OR(ISERROR(FIND("-",S16)),AG16<='export html'!$AR$7),"",SUBSTITUTE(_xlfn.TEXTBEFORE(S16,"-"),"*","")-0) ->  | CO16: =IF(OR(ISERROR(FIND("-",T16)),AH16<='export html'!$AR$7),"",SUBSTITUTE(_xlfn.TEXTBEFORE(T16,"-"),"*","")-0) ->  | CP16: =IF(OR(ISERROR(FIND("-",U16)),AI16<='export html'!$AR$7),"",SUBSTITUTE(_xlfn.TEXTBEFORE(U16,"-"),"*","")-0) -> 7 | CQ16: =IF(OR(ISERROR(FIND("-",V16)),AJ16<='export html'!$AR$7),"",SUBSTITUTE(_xlfn.TEXTBEFORE(V16,"-"),"*","")-0) ->  | CR16: =IF(OR(ISERROR(FIND("-",W16)),AK16<='export html'!$AR$7),"",SUBSTITUTE(_xlfn.TEXTBEFORE(W16,"-"),"*","")-0) ->  | CS16: =IF(OR(ISERROR(FIND("-",X16)),AL16<='export html'!$AR$7),"",SUBSTITUTE(_xlfn.TEXTBEFORE(X16,"-"),"*","")-0) -> 2 | CT16: =IF(OR(ISERROR(FIND("-",Y16)),AM16<='export html'!$AR$7),"",SUBSTITUTE(_xlfn.TEXTBEFORE(Y16,"-"),"*","")-0) -> 4 | CU16: =IF(OR(ISERROR(FIND("-",Z16)),AN16<='export html'!$AR$7),"",SUBSTITUTE(_xlfn.TEXTBEFORE(Z16,"-"),"*","")-0) ->  | CV16: =IF(OR(ISERROR(FIND("-",AA16)),AO16<='export html'!$AR$7),"",SUBSTITUTE(_xlfn.TEXTBEFORE(AA16,"-"),"*","")-0) ->  | CX16: =IF(OR(ISERROR(FIND("-",AC16)),AQ16<='export html'!$AR$7),"",SUBSTITUTE(_xlfn.TEXTBEFORE(AC16,"-"),"*","")-0) ->  | CY16: =IF(OR(ISERROR(FIND("-",AD16)),AR16<='export html'!$AR$7),"",SUBSTITUTE(_xlfn.TEXTBEFORE(AD16,"-"),"*","")-0) -> 0 | CZ16: 12
C17: 13 | D17: Goka | E17: =3*H17+J17 -> 19 | F17: =SUM(H17:J17) -> 25 | H17: 5 | I17: 16 | J17: 4 | K17: 47 | L17: 81 | M17: =K17-L17 -> -34 | N17: =3*F17-E17 -> 56 | P17: SC Duffel | Q17: 1-1 | R17: 2-2 | S17: 11-3 | T17: 1-1 | U17: 3-3 | V17: 1-1 | W17: 3-1 | X17: 3-1 | Y17: 10-0 | Z17: 3-1 | AA17: 0-1 | AB17: 2-2 | AD17: 0-5* | AE17: 24 | AF17: 20 | AG17: 22 | AH17: 6 | AI17: 2 | AJ17: 14 | AK17: 10 | AL17: 13 | AM17: 25 | AN17: 4 | AO17: 8 | AP17: 16 | AR17: 18 | AS17: 2025-03-22 | AT17: 2025-02-15 | AU17: 2025-03-08 | AV17: 2024-10-05 | AW17: 2024-09-07 | AX17: 2025-01-04 | AY17: 2024-11-09 | AZ17: 2024-11-30 | BA17: 2025-03-29 | BB17: 2024-09-21 | BC17: 2024-10-19 | BD17: 2024-12-14 | BF17: 2025-02-01 | BH17: 7.990807081 | BI17: SC Duffel | BJ17: 33 | BK17: 25 | BL17: =CHOOSE(StandBer,COUNTIF(BW47:CJ47,"t")+COUNTIF(CI35:CI48,"u")+COUNTIF(CL47:CY47,"t")+COUNTIF(CX35:CX48,"u"),COUNTIF(BW47:CJ47,"t")+COUNTIF(CI35:CI48,"u"),COUNTIF(CL47:CY47,"t")+COUNTIF(CX35:CX48,"u"),COUNTIF(BW47:CJ47,"t")+COUNTIF(CL47:CY47,"t"),COUNTIF(CI35:CI48,"u")+COUNTIF(CX35:CX48,"u")) -> 9 | BM17: =CHOOSE(StandBer,COUNTIF(BW47:CJ47,"u")+COUNTIF(CI35:CI48,"t")+COUNTIF(CL47:CY47,"u")+COUNTIF(CX35:CX48,"t"),COUNTIF(BW47:CJ47,"u")+COUNTIF(CI35:CI48,"t"),COUNTIF(CL47:CY47,"u")+COUNTIF(CX35:CX48,"t"),COUNTIF(BW47:CJ47,"u")+COUNTIF(CL47:CY47,"u"),COUNTIF(CI35:CI48,"t")+COUNTIF(CX35:CX48,"t"))+BR17 -> 10 | BN17: =CHOOSE(StandBer,COUNTIF(BW47:CJ47,"g")+COUNTIF(CI35:CI48,"g")+COUNTIF(CL47:CY47,"g")+COUNTIF(CX35:CX48,"g"),COUNTIF(BW47:CJ47,"g")+COUNTIF(CI35:CI48,"g"),COUNTIF(CL47:CY47,"g")+COUNTIF(CX35:CX48,"g"),COUNTIF(BW47:CJ47,"g")+COUNTIF(CL47:CY47,"g"),COUNTIF(CI35:CI48,"g")+COUNTIF(CX35:CX48,"g")) -> 6 | BO17: =CHOOSE(StandBer,SUM(BW17:CJ17)+SUM(CI20:CI33)+SUM(CL17:CY17)+SUM(CX20:CX33),SUM(BW17:CJ17)+SUM(CI20:CI33),SUM(CL17:CY17)+SUM(CX20:CX33),SUM(BW17:CJ17)+SUM(CL17:CY17),SUM(CI20:CI33)+SUM(CX20:CX33))-5*BR17 -> 70 | BP17: =CHOOSE(StandBer,SUM(CI5:CI18)+SUM(BW32:CJ32)+SUM(CX5:CX18)+SUM(CL32:CY32),SUM(CI5:CI18)+SUM(BW32:CJ32),SUM(CX5:CX18)+SUM(CL32:CY32),SUM(CI5:CI18)+SUM(CX5:CX18),SUM(BW32:CJ32)+SUM(CL32:CY32)) -> 65 | BQ17: 5 | BR17: =CHOOSE(StandBer,COUNTIF(BW47:CJ47,"ff")+COUNTIF(CI35:CI48,"ff")+COUNTIF(CL47:CY47,"ff")+COUNTIF(CX35:CX48,"ff"),COUNTIF(BW47:CJ47,"ff")+COUNTIF(CI35:CI48,"ff"),COUNTIF(CL47:CY47,"ff")+COUNTIF(CX35:CX48,"ff"),COUNTIF(BW47:CJ47,"ff")+COUNTIF(CL47:CY47,"ff"),COUNTIF(CI35:CI48,"ff")+COUNTIF(CX35:CX48,"ff")) -> 0 | BS17: 13 | BT17: 12.99131212 | BV17: 13 | BW17: =IF(OR(ISERROR(FIND("-",Q17)),AE17>'export html'!$AR$7),"",SUBSTITUTE(_xlfn.TEXTBEFORE(Q17,"-"),"*","")-0) ->  | BX17: =IF(OR(ISERROR(FIND("-",R17)),AF17>'export html'!$AR$7),"",SUBSTITUTE(_xlfn.TEXTBEFORE(R17,"-"),"*","")-0) ->  | BY17: =IF(OR(ISERROR(FIND("-",S17)),AG17>'export html'!$AR$7),"",SUBSTITUTE(_xlfn.TEXTBEFORE(S17,"-"),"*","")-0) ->  | BZ17: =IF(OR(ISERROR(FIND("-",T17)),AH17>'export html'!$AR$7),"",SUBSTITUTE(_xlfn.TEXTBEFORE(T17,"-"),"*","")-0) -> 1 | CA17: =IF(OR(ISERROR(FIND("-",U17)),AI17>'export html'!$AR$7),"",SUBSTITUTE(_xlfn.TEXTBEFORE(U17,"-"),"*","")-0) -> 3 | CB17: =IF(OR(ISERROR(FIND("-",V17)),AJ17>'export html'!$AR$7),"",SUBSTITUTE(_xlfn.TEXTBEFORE(V17,"-"),"*","")-0) ->  | CC17: =IF(OR(ISERROR(FIND("-",W17)),AK17>'export html'!$AR$7),"",SUBSTITUTE(_xlfn.TEXTBEFORE(W17,"-"),"*","")-0) -> 3 | CD17: =IF(OR(ISERROR(FIND("-",X17)),AL17>'export html'!$AR$7),"",SUBSTITUTE(_xlfn.TEXTBEFORE(X17,"-"),"*","")-0) -> 3 | CE17: =IF(OR(ISERROR(FIND("-",Y17)),AM17>'export html'!$AR$7),"",SUBSTITUTE(_xlfn.TEXTBEFORE(Y17,"-"),"*","")-0) ->  | CF17: =IF(OR(ISERROR(FIND("-",Z17)),AN17>'export html'!$AR$7),"",SUBSTITUTE(_xlfn.TEXTBEFORE(Z17,"-"),"*","")-0) -> 3 | CG17: =IF(OR(ISERROR(FIND("-",AA17)),AO17>'export html'!$AR$7),"",SUBSTITUTE(_xlfn.TEXTBEFORE(AA17,"-"),"*","")-0) -> 0 | CH17: =IF(OR(ISERROR(FIND("-",AB17)),AP17>'export html'!$AR$7),"",SUBSTITUTE(_xlfn.TEXTBEFORE(AB17,"-"),"*","")-0) ->  | CJ17: =IF(OR(ISERROR(FIND("-",AD17)),AR17>'export html'!$AR$7),"",SUBSTITUTE(_xlfn.TEXTBEFORE(AD17,"-"),"*","")-0) ->  | CK17: 13 | CL17: =IF(OR(ISERROR(FIND("-",Q17)),AE17<='export html'!$AR$7),"",SUBSTITUTE(_xlfn.TEXTBEFORE(Q17,"-"),"*","")-0) -> 1 | CM17: =IF(OR(ISERROR(FIND("-",R17)),AF17<='export html'!$AR$7),"",SUBSTITUTE(_xlfn.TEXTBEFORE(R17,"-"),"*","")-0) -> 2 | CN17: =IF(OR(ISERROR(FIND("-",S17)),AG17<='export html'!$AR$7),"",SUBSTITUTE(_xlfn.TEXTBEFORE(S17,"-"),"*","")-0) -> 11 | CO17: =IF(OR(ISERROR(FIND("-",T17)),AH17<='export html'!$AR$7),"",SUBSTITUTE(_xlfn.TEXTBEFORE(T17,"-"),"*","")-0) ->  | CP17: =IF(OR(ISERROR(FIND("-",U17)),AI17<='export html'!$AR$7),"",SUBSTITUTE(_xlfn.TEXTBEFORE(U17,"-"),"*","")-0) ->  | CQ17: =IF(OR(ISERROR(FIND("-",V17)),AJ17<='export html'!$AR$7),"",SUBSTITUTE(_xlfn.TEXTBEFORE(V17,"-"),"*","")-0) -> 1 | CR17: =IF(OR(ISERROR(FIND("-",W17)),AK17<='export html'!$AR$7),"",SUBSTITUTE(_xlfn.TEXTBEFORE(W17,"-"),"*","")-0) ->  | CS17: =IF(OR(ISERROR(FIND("-",X17)),AL17<='export html'!$AR$7),"",SUBSTITUTE(_xlfn.TEXTBEFORE(X17,"-"),"*","")-0) ->  | CT17: =IF(OR(ISERROR(FIND("-",Y17)),AM17<='export html'!$AR$7),"",SUBSTITUTE(_xlfn.TEXTBEFORE(Y17,"-"),"*","")-0) -> 10 | CU17: =IF(OR(ISERROR(FIND("-",Z17)),AN17<='export html'!$AR$7),"",SUBSTITUTE(_xlfn.TEXTBEFORE(Z17,"-"),"*","")-0) ->  | CV17: =IF(OR(ISERROR(FIND("-",AA17)),AO17<='export html'!$AR$7),"",SUBSTITUTE(_xlfn.TEXTBEFORE(AA17,"-"),"*","")-0) ->  | CW17: =IF(OR(ISERROR(FIND("-",AB17)),AP17<='export html'!$AR$7),"",SUBSTITUTE(_xlfn.TEXTBEFORE(AB17,"-"),"*","")-0) -> 2 | CY17: =IF(OR(ISERROR(FIND("-",AD17)),AR17<='export html'!$AR$7),"",SUBSTITUTE(_xlfn.TEXTBEFORE(AD17,"-"),"*","")-0) -> 0 | CZ17: 13
C18: 14 | D18: Jolika | E18: 6 | F18: 24 | G18: - | H18: 1 | I18: 20 | J18: 3 | K18: 21 | L18: 122 | M18: -101 | N18: 66 | P18: Yerevan United | Q18: 2-1 | S18: 1-3 | T18: 5-2 | U18: 5-3 | V18: 1-4 | W18: 9-3 | X18: 0-5* | Y18: 13-3 | Z18: 1-7 | AA18: 8-2 | AB18: 6-4 | AC18: 4-1 | AE18: 17 | AF18: 26 | AG18: 15 | AH18: 12 | AI18: 21 | AJ18: 7 | AK18: 3 | AL18: 19 | AM18: 24 | AN18: 23 | AO18: 1 | AP18: 9 | AQ18: 5 | AS18: 2025-01-26 | AT18: 2025-04-06 | AU18: 2025-03-02 | AV18: 2024-11-24 | AW18: 2025-02-23 | AX18: 2024-10-13 | AY18: 2024-09-15 | AZ18: 2025-02-09 | BA18: 2025-03-23 | BB18: 2025-03-16 | BC18: 2024-09-01 | BD18: 2024-11-03 | BE18: 2024-09-29 | BH18: 1.990203021 | BI18: Yerevan United | BJ18: 51 | BK18: 25 | BL18: =CHOOSE(StandBer,COUNTIF(BW48:CJ48,"t")+COUNTIF(CJ35:CJ48,"u")+COUNTIF(CL48:CY48,"t")+COUNTIF(CY35:CY48,"u"),COUNTIF(BW48:CJ48,"t")+COUNTIF(CJ35:CJ48,"u"),COUNTIF(CL48:CY48,"t")+COUNTIF(CY35:CY48,"u"),COUNTIF(BW48:CJ48,"t")+COUNTIF(CL48:CY48,"t"),COUNTIF(CJ35:CJ48,"u")+COUNTIF(CY35:CY48,"u")) -> 16 | BM18: =CHOOSE(StandBer,COUNTIF(BW48:CJ48,"u")+COUNTIF(CJ35:CJ48,"t")+COUNTIF(CL48:CY48,"u")+COUNTIF(CY35:CY48,"t"),COUNTIF(BW48:CJ48,"u")+COUNTIF(CJ35:CJ48,"t"),COUNTIF(CL48:CY48,"u")+COUNTIF(CY35:CY48,"t"),COUNTIF(BW48:CJ48,"u")+COUNTIF(CL48:CY48,"u"),COUNTIF(CJ35:CJ48,"t")+COUNTIF(CY35:CY48,"t"))+BR18 -> 6 | BN18: =CHOOSE(StandBer,COUNTIF(BW48:CJ48,"g")+COUNTIF(CJ35:CJ48,"g")+COUNTIF(CL48:CY48,"g")+COUNTIF(CY35:CY48,"g"),COUNTIF(BW48:CJ48,"g")+COUNTIF(CJ35:CJ48,"g"),COUNTIF(CL48:CY48,"g")+COUNTIF(CY35:CY48,"g"),COUNTIF(BW48:CJ48,"g")+COUNTIF(CL48:CY48,"g"),COUNTIF(CJ35:CJ48,"g")+COUNTIF(CY35:CY48,"g")) -> 3 | BO18: =CHOOSE(StandBer,SUM(BW18:CJ18)+SUM(CJ20:CJ33)+SUM(CL18:CY18)+SUM(CY20:CY33),SUM(BW18:CJ18)+SUM(CJ20:CJ33),SUM(CL18:CY18)+SUM(CY20:CY33),SUM(BW18:CJ18)+SUM(CL18:CY18),SUM(CJ20:CJ33)+SUM(CY20:CY33))-5*BR18 -> 103 | BP18: =CHOOSE(StandBer,SUM(CJ5:CJ18)+SUM(BW33:CJ33)+SUM(CY5:CY18)+SUM(CL33:CY33),SUM(CJ5:CJ18)+SUM(BW33:CJ33),SUM(CY5:CY18)+SUM(CL33:CY33),SUM(CJ5:CJ18)+SUM(CY5:CY18),SUM(BW33:CJ33)+SUM(CL33:CY33)) -> 62 | BQ18: 41 | BR18: =CHOOSE(StandBer,COUNTIF(BW48:CJ48,"ff")+COUNTIF(CJ35:CJ48,"ff")+COUNTIF(CL48:CY48,"ff")+COUNTIF(CY35:CY48,"ff"),COUNTIF(BW48:CJ48,"ff")+COUNTIF(CJ35:CJ48,"ff"),COUNTIF(CL48:CY48,"ff")+COUNTIF(CY35:CY48,"ff"),COUNTIF(BW48:CJ48,"ff")+COUNTIF(CL48:CY48,"ff"),COUNTIF(CJ35:CJ48,"ff")+COUNTIF(CY35:CY48,"ff")) -> 0 | BS18: 14 | BT18: 13.89141414 | BV18: 14 | BW18: =IF(OR(ISERROR(FIND("-",Q18)),AE18>'export html'!$AR$7),"",SUBSTITUTE(_xlfn.TEXTBEFORE(Q18,"-"),"*","")-0) ->  | BX18: =IF(OR(ISERROR(FIND("-",R18)),AF18>'export html'!$AR$7),"",SUBSTITUTE(_xlfn.TEXTBEFORE(R18,"-"),"*","")-0) ->  | BY18: =IF(OR(ISERROR(FIND("-",S18)),AG18>'export html'!$AR$7),"",SUBSTITUTE(_xlfn.TEXTBEFORE(S18,"-"),"*","")-0) ->  | BZ18: =IF(OR(ISERROR(FIND("-",T18)),AH18>'export html'!$AR$7),"",SUBSTITUTE(_xlfn.TEXTBEFORE(T18,"-"),"*","")-0) -> 5 | CA18: =IF(OR(ISERROR(FIND("-",U18)),AI18>'export html'!$AR$7),"",SUBSTITUTE(_xlfn.TEXTBEFORE(U18,"-"),"*","")-0) ->  | CB18: =IF(OR(ISERROR(FIND("-",V18)),AJ18>'export html'!$AR$7),"",SUBSTITUTE(_xlfn.TEXTBEFORE(V18,"-"),"*","")-0) -> 1 | CC18: =IF(OR(ISERROR(FIND("-",W18)),AK18>'export html'!$AR$7),"",SUBSTITUTE(_xlfn.TEXTBEFORE(W18,"-"),"*","")-0) -> 9 | CD18: =IF(OR(ISERROR(FIND("-",X18)),AL18>'export html'!$AR$7),"",SUBSTITUTE(_xlfn.TEXTBEFORE(X18,"-"),"*","")-0) ->  | CE18: =IF(OR(ISERROR(FIND("-",Y18)),AM18>'export html'!$AR$7),"",SUBSTITUTE(_xlfn.TEXTBEFORE(Y18,"-"),"*","")-0) ->  | CF18: =IF(OR(ISERROR(FIND("-",Z18)),AN18>'export html'!$AR$7),"",SUBSTITUTE(_xlfn.TEXTBEFORE(Z18,"-"),"*","")-0) ->  | CG18: =IF(OR(ISERROR(FIND("-",AA18)),AO18>'export html'!$AR$7),"",SUBSTITUTE(_xlfn.TEXTBEFORE(AA18,"-"),"*","")-0) -> 8 | CH18: =IF(OR(ISERROR(FIND("-",AB18)),AP18>'export html'!$AR$7),"",SUBSTITUTE(_xlfn.TEXTBEFORE(AB18,"-"),"*","")-0) -> 6 | CI18: =IF(OR(ISERROR(FIND("-",AC18)),AQ18>'export html'!$AR$7),"",SUBSTITUTE(_xlfn.TEXTBEFORE(AC18,"-"),"*","")-0) -> 4 | CK18: 14 | CL18: =IF(OR(ISERROR(FIND("-",Q18)),AE18<='export html'!$AR$7),"",SUBSTITUTE(_xlfn.TEXTBEFORE(Q18,"-"),"*","")-0) -> 2 | CM18: =IF(OR(ISERROR(FIND("-",R18)),AF18<='export html'!$AR$7),"",SUBSTITUTE(_xlfn.TEXTBEFORE(R18,"-"),"*","")-0) ->  | CN18: =IF(OR(ISERROR(FIND("-",S18)),AG18<='export html'!$AR$7),"",SUBSTITUTE(_xlfn.TEXTBEFORE(S18,"-"),"*","")-0) -> 1 | CO18: =IF(OR(ISERROR(FIND("-",T18)),AH18<='export html'!$AR$7),"",SUBSTITUTE(_xlfn.TEXTBEFORE(T18,"-"),"*","")-0) ->  | CP18: =IF(OR(ISERROR(FIND("-",U18)),AI18<='export html'!$AR$7),"",SUBSTITUTE(_xlfn.TEXTBEFORE(U18,"-"),"*","")-0) -> 5 | CQ18: =IF(OR(ISERROR(FIND("-",V18)),AJ18<='export html'!$AR$7),"",SUBSTITUTE(_xlfn.TEXTBEFORE(V18,"-"),"*","")-0) ->  | CR18: =IF(OR(ISERROR(FIND("-",W18)),AK18<='export html'!$AR$7),"",SUBSTITUTE(_xlfn.TEXTBEFORE(W18,"-"),"*","")-0) ->  | CS18: =IF(OR(ISERROR(FIND("-",X18)),AL18<='export html'!$AR$7),"",SUBSTITUTE(_xlfn.TEXTBEFORE(X18,"-"),"*","")-0) -> 0 | CT18: =IF(OR(ISERROR(FIND("-",Y18)),AM18<='export html'!$AR$7),"",SUBSTITUTE(_xlfn.TEXTBEFORE(Y18,"-"),"*","")-0) -> 13 | CU18: =IF(OR(ISERROR(FIND("-",Z18)),AN18<='export html'!$AR$7),"",SUBSTITUTE(_xlfn.TEXTBEFORE(Z18,"-"),"*","")-0) -> 1 | CV18: =IF(OR(ISERROR(FIND("-",AA18)),AO18<='export html'!$AR$7),"",SUBSTITUTE(_xlfn.TEXTBEFORE(AA18,"-"),"*","")-0) ->  | CW18: =IF(OR(ISERROR(FIND("-",AB18)),AP18<='export html'!$AR$7),"",SUBSTITUTE(_xlfn.TEXTBEFORE(AB18,"-"),"*","")-0) ->  | CX18: =IF(OR(ISERROR(FIND("-",AC18)),AQ18<='export html'!$AR$7),"",SUBSTITUTE(_xlfn.TEXTBEFORE(AC18,"-"),"*","")-0) ->  | CZ18: 14
R19: * regeling forfaits | BW19: 1 | BX19: 2 | BY19: 3 | BZ19: 4 | CA19: 5 | CB19: 6 | CC19: 7 | CD19: 8 | CE19: 9 | CF19: 10 | CG19: 11 | CH19: 12 | CI19: 13 | CJ19: 14 | CL19: 1 | CM19: 2 | CN19: 3 | CO19: 4 | CP19: 5 | CQ19: 6 | CR19: 7 | CS19: 8 | CT19: 9 | CU19: 10 | CV19: 11 | CW19: 12 | CX19: 13 | CY19: 14
BV20: 1 | BX20: =IF(OR(ISERROR(FIND("-",R5)),AF5>'export html'!$AR$7),"",SUBSTITUTE(_xlfn.TEXTAFTER(R5,"-"),"*","")-0) -> 0 | BY20: =IF(OR(ISERROR(FIND("-",S5)),AG5>'export html'!$AR$7),"",SUBSTITUTE(_xlfn.TEXTAFTER(S5,"-"),"*","")-0) -> 3 | BZ20: =IF(OR(ISERROR(FIND("-",T5)),AH5>'export html'!$AR$7),"",SUBSTITUTE(_xlfn.TEXTAFTER(T5,"-"),"*","")-0) ->  | CA20: =IF(OR(ISERROR(FIND("-",U5)),AI5>'export html'!$AR$7),"",SUBSTITUTE(_xlfn.TEXTAFTER(U5,"-"),"*","")-0) ->  | CB20: =IF(OR(ISERROR(FIND("-",V5)),AJ5>'export html'!$AR$7),"",SUBSTITUTE(_xlfn.TEXTAFTER(V5,"-"),"*","")-0) -> 2 | CC20: =IF(OR(ISERROR(FIND("-",W5)),AK5>'export html'!$AR$7),"",SUBSTITUTE(_xlfn.TEXTAFTER(W5,"-"),"*","")-0) ->  | CD20: =IF(OR(ISERROR(FIND("-",X5)),AL5>'export html'!$AR$7),"",SUBSTITUTE(_xlfn.TEXTAFTER(X5,"-"),"*","")-0) ->  | CE20: =IF(OR(ISERROR(FIND("-",Y5)),AM5>'export html'!$AR$7),"",SUBSTITUTE(_xlfn.TEXTAFTER(Y5,"-"),"*","")-0) -> 1 | CF20: =IF(OR(ISERROR(FIND("-",Z5)),AN5>'export html'!$AR$7),"",SUBSTITUTE(_xlfn.TEXTAFTER(Z5,"-"),"*","")-0) ->  | CG20: =IF(OR(ISERROR(FIND("-",AA5)),AO5>'export html'!$AR$7),"",SUBSTITUTE(_xlfn.TEXTAFTER(AA5,"-"),"*","")-0) ->  | CH20: =IF(OR(ISERROR(FIND("-",AB5)),AP5>'export html'!$AR$7),"",SUBSTITUTE(_xlfn.TEXTAFTER(AB5,"-"),"*","")-0) -> 0 | CI20: =IF(OR(ISERROR(FIND("-",AC5)),AQ5>'export html'!$AR$7),"",SUBSTITUTE(_xlfn.TEXTAFTER(AC5,"-"),"*","")-0) -> 1 | CJ20: =IF(OR(ISERROR(FIND("-",AD5)),AR5>'export html'!$AR$7),"",SUBSTITUTE(_xlfn.TEXTAFTER(AD5,"-"),"*","")-0) -> 2 | CK20: 1 | CM20: =IF(OR(ISERROR(FIND("-",R5)),AF5<='export html'!$AR$7),"",SUBSTITUTE(_xlfn.TEXTAFTER(R5,"-"),"*","")-0) ->  | CN20: =IF(OR(ISERROR(FIND("-",S5)),AG5<='export html'!$AR$7),"",SUBSTITUTE(_xlfn.TEXTAFTER(S5,"-"),"*","")-0) ->  | CO20: =IF(OR(ISERROR(FIND("-",T5)),AH5<='export html'!$AR$7),"",SUBSTITUTE(_xlfn.TEXTAFTER(T5,"-"),"*","")-0) -> 1 | CP20: =IF(OR(ISERROR(FIND("-",U5)),AI5<='export html'!$AR$7),"",SUBSTITUTE(_xlfn.TEXTAFTER(U5,"-"),"*","")-0) -> 0 | CQ20: =IF(OR(ISERROR(FIND("-",V5)),AJ5<='export html'!$AR$7),"",SUBSTITUTE(_xlfn.TEXTAFTER(V5,"-"),"*","")-0) ->  | CR20: =IF(OR(ISERROR(FIND("-",W5)),AK5<='export html'!$AR$7),"",SUBSTITUTE(_xlfn.TEXTAFTER(W5,"-"),"*","")-0) -> 0 | CS20: =IF(OR(ISERROR(FIND("-",X5)),AL5<='export html'!$AR$7),"",SUBSTITUTE(_xlfn.TEXTAFTER(X5,"-"),"*","")-0) -> 2 | CT20: =IF(OR(ISERROR(FIND("-",Y5)),AM5<='export html'!$AR$7),"",SUBSTITUTE(_xlfn.TEXTAFTER(Y5,"-"),"*","")-0) ->  | CU20: =IF(OR(ISERROR(FIND("-",Z5)),AN5<='export html'!$AR$7),"",SUBSTITUTE(_xlfn.TEXTAFTER(Z5,"-"),"*","")-0) -> 5 | CV20: =IF(OR(ISERROR(FIND("-",AA5)),AO5<='export html'!$AR$7),"",SUBSTITUTE(_xlfn.TEXTAFTER(AA5,"-"),"*","")-0) -> 0 | CW20: =IF(OR(ISERROR(FIND("-",AB5)),AP5<='export html'!$AR$7),"",SUBSTITUTE(_xlfn.TEXTAFTER(AB5,"-"),"*","")-0) ->  | CX20: =IF(OR(ISERROR(FIND("-",AC5)),AQ5<='export html'!$AR$7),"",SUBSTITUTE(_xlfn.TEXTAFTER(AC5,"-"),"*","")-0) ->  | CY20: =IF(OR(ISERROR(FIND("-",AD5)),AR5<='export html'!$AR$7),"",SUBSTITUTE(_xlfn.TEXTAFTER(AD5,"-"),"*","")-0) ->  | CZ20: 1
E21: ='export html'!V1 -> Recentste duels op | F21: 2025-04-02 | Q21: Topschutters: | T21: ="(na " & COUNTIF( spelersstatistieken!AP49:BO49, ">0" ) & " match" & IF( COUNTIF( spelersstatistieken!AP49:BO49, ">0" ) = 1, "", "en" ) & ")" -> (na 21 matchen) | Z21: Man van het Seizoen: | AD21: =T21 -> (na 21 matchen) | BV21: 2 | BW21: =IF(OR(ISERROR(FIND("-",Q6)),AE6>'export html'!$AR$7),"",SUBSTITUTE(_xlfn.TEXTAFTER(Q6,"-"),"*","")-0) ->  | BY21: =IF(OR(ISERROR(FIND("-",S6)),AG6>'export html'!$AR$7),"",SUBSTITUTE(_xlfn.TEXTAFTER(S6,"-"),"*","")-0) ->  | BZ21: =IF(OR(ISERROR(FIND("-",T6)),AH6>'export html'!$AR$7),"",SUBSTITUTE(_xlfn.TEXTAFTER(T6,"-"),"*","")-0) ->  | CA21: =IF(OR(ISERROR(FIND("-",U6)),AI6>'export html'!$AR$7),"",SUBSTITUTE(_xlfn.TEXTAFTER(U6,"-"),"*","")-0) ->  | CB21: =IF(OR(ISERROR(FIND("-",V6)),AJ6>'export html'!$AR$7),"",SUBSTITUTE(_xlfn.TEXTAFTER(V6,"-"),"*","")-0) -> 4 | CC21: =IF(OR(ISERROR(FIND("-",W6)),AK6>'export html'!$AR$7),"",SUBSTITUTE(_xlfn.TEXTAFTER(W6,"-"),"*","")-0) -> 1 | CD21: =IF(OR(ISERROR(FIND("-",X6)),AL6>'export html'!$AR$7),"",SUBSTITUTE(_xlfn.TEXTAFTER(X6,"-"),"*","")-0) ->  | CE21: =IF(OR(ISERROR(FIND("-",Y6)),AM6>'export html'!$AR$7),"",SUBSTITUTE(_xlfn.TEXTAFTER(Y6,"-"),"*","")-0) -> 0 | CF21: =IF(OR(ISERROR(FIND("-",Z6)),AN6>'export html'!$AR$7),"",SUBSTITUTE(_xlfn.TEXTAFTER(Z6,"-"),"*","")-0) ->  | CG21: =IF(OR(ISERROR(FIND("-",AA6)),AO6>'export html'!$AR$7),"",SUBSTITUTE(_xlfn.TEXTAFTER(AA6,"-"),"*","")-0) -> 3 | CH21: =IF(OR(ISERROR(FIND("-",AB6)),AP6>'export html'!$AR$7),"",SUBSTITUTE(_xlfn.TEXTAFTER(AB6,"-"),"*","")-0) -> 4 | CI21: =IF(OR(ISERROR(FIND("-",AC6)),AQ6>'export html'!$AR$7),"",SUBSTITUTE(_xlfn.TEXTAFTER(AC6,"-"),"*","")-0) -> 1 | CJ21: =IF(OR(ISERROR(FIND("-",AD6)),AR6>'export html'!$AR$7),"",SUBSTITUTE(_xlfn.TEXTAFTER(AD6,"-"),"*","")-0) -> 4 | CK21: 2 | CL21: =IF(OR(ISERROR(FIND("-",Q6)),AE6<='export html'!$AR$7),"",SUBSTITUTE(_xlfn.TEXTAFTER(Q6,"-"),"*","")-0) -> 2 | CN21: =IF(OR(ISERROR(FIND("-",S6)),AG6<='export html'!$AR$7),"",SUBSTITUTE(_xlfn.TEXTAFTER(S6,"-"),"*","")-0) -> 2 | CO21: =IF(OR(ISERROR(FIND("-",T6)),AH6<='export html'!$AR$7),"",SUBSTITUTE(_xlfn.TEXTAFTER(T6,"-"),"*","")-0) -> 1 | CP21: =IF(OR(ISERROR(FIND("-",U6)),AI6<='export html'!$AR$7),"",SUBSTITUTE(_xlfn.TEXTAFTER(U6,"-"),"*","")-0) -> 2 | CQ21: =IF(OR(ISERROR(FIND("-",V6)),AJ6<='export html'!$AR$7),"",SUBSTITUTE(_xlfn.TEXTAFTER(V6,"-"),"*","")-0) ->  | CR21: =IF(OR(ISERROR(FIND("-",W6)),AK6<='export html'!$AR$7),"",SUBSTITUTE(_xlfn.TEXTAFTER(W6,"-"),"*","")-0) ->  | CS21: =IF(OR(ISERROR(FIND("-",X6)),AL6<='export html'!$AR$7),"",SUBSTITUTE(_xlfn.TEXTAFTER(X6,"-"),"*","")-0) -> 1 | CT21: =IF(OR(ISERROR(FIND("-",Y6)),AM6<='export html'!$AR$7),"",SUBSTITUTE(_xlfn.TEXTAFTER(Y6,"-"),"*","")-0) ->  | CU21: =IF(OR(ISERROR(FIND("-",Z6)),AN6<='export html'!$AR$7),"",SUBSTITUTE(_xlfn.TEXTAFTER(Z6,"-"),"*","")-0) -> 0 | CV21: =IF(OR(ISERROR(FIND("-",AA6)),AO6<='export html'!$AR$7),"",SUBSTITUTE(_xlfn.TEXTAFTER(AA6,"-"),"*","")-0) ->  | CW21: =IF(OR(ISERROR(FIND("-",AB6)),AP6<='export html'!$AR$7),"",SUBSTITUTE(_xlfn.TEXTAFTER(AB6,"-"),"*","")-0) ->  | CX21: =IF(OR(ISERROR(FIND("-",AC6)),AQ6<='export html'!$AR$7),"",SUBSTITUTE(_xlfn.TEXTAFTER(AC6,"-"),"*","")-0) ->  | CY21: =IF(OR(ISERROR(FIND("-",AD6)),AR6<='export html'!$AR$7),"",SUBSTITUTE(_xlfn.TEXTAFTER(AD6,"-"),"*","")-0) ->  | CZ21: 2
BV22: 3 | BW22: =IF(OR(ISERROR(FIND("-",Q7)),AE7>'export html'!$AR$7),"",SUBSTITUTE(_xlfn.TEXTAFTER(Q7,"-"),"*","")-0) ->  | BX22: =IF(OR(ISERROR(FIND("-",R7)),AF7>'export html'!$AR$7),"",SUBSTITUTE(_xlfn.TEXTAFTER(R7,"-"),"*","")-0) -> 2 | BZ22: =IF(OR(ISERROR(FIND("-",T7)),AH7>'export html'!$AR$7),"",SUBSTITUTE(_xlfn.TEXTAFTER(T7,"-"),"*","")-0) ->  | CA22: =IF(OR(ISERROR(FIND("-",U7)),AI7>'export html'!$AR$7),"",SUBSTITUTE(_xlfn.TEXTAFTER(U7,"-"),"*","")-0) ->  | CB22: =IF(OR(ISERROR(FIND("-",V7)),AJ7>'export html'!$AR$7),"",SUBSTITUTE(_xlfn.TEXTAFTER(V7,"-"),"*","")-0) -> 1 | CC22: =IF(OR(ISERROR(FIND("-",W7)),AK7>'export html'!$AR$7),"",SUBSTITUTE(_xlfn.TEXTAFTER(W7,"-"),"*","")-0) -> 2 | CD22: =IF(OR(ISERROR(FIND("-",X7)),AL7>'export html'!$AR$7),"",SUBSTITUTE(_xlfn.TEXTAFTER(X7,"-"),"*","")-0) ->  | CE22: =IF(OR(ISERROR(FIND("-",Y7)),AM7>'export html'!$AR$7),"",SUBSTITUTE(_xlfn.TEXTAFTER(Y7,"-"),"*","")-0) -> 0 | CF22: =IF(OR(ISERROR(FIND("-",Z7)),AN7>'export html'!$AR$7),"",SUBSTITUTE(_xlfn.TEXTAFTER(Z7,"-"),"*","")-0) ->  | CG22: =IF(OR(ISERROR(FIND("-",AA7)),AO7>'export html'!$AR$7),"",SUBSTITUTE(_xlfn.TEXTAFTER(AA7,"-"),"*","")-0) ->  | CH22: =IF(OR(ISERROR(FIND("-",AB7)),AP7>'export html'!$AR$7),"",SUBSTITUTE(_xlfn.TEXTAFTER(AB7,"-"),"*","")-0) -> 6 | CI22: =IF(OR(ISERROR(FIND("-",AC7)),AQ7>'export html'!$AR$7),"",SUBSTITUTE(_xlfn.TEXTAFTER(AC7,"-"),"*","")-0) -> 3 | CJ22: =IF(OR(ISERROR(FIND("-",AD7)),AR7>'export html'!$AR$7),"",SUBSTITUTE(_xlfn.TEXTAFTER(AD7,"-"),"*","")-0) -> 4 | CK22: 3 | CL22: =IF(OR(ISERROR(FIND("-",Q7)),AE7<='export html'!$AR$7),"",SUBSTITUTE(_xlfn.TEXTAFTER(Q7,"-"),"*","")-0) -> 5 | CM22: =IF(OR(ISERROR(FIND("-",R7)),AF7<='export html'!$AR$7),"",SUBSTITUTE(_xlfn.TEXTAFTER(R7,"-"),"*","")-0) ->  | CO22: =IF(OR(ISERROR(FIND("-",T7)),AH7<='export html'!$AR$7),"",SUBSTITUTE(_xlfn.TEXTAFTER(T7,"-"),"*","")-0) -> 0 | CP22: =IF(OR(ISERROR(FIND("-",U7)),AI7<='export html'!$AR$7),"",SUBSTITUTE(_xlfn.TEXTAFTER(U7,"-"),"*","")-0) -> 1 | CQ22: =IF(OR(ISERROR(FIND("-",V7)),AJ7<='export html'!$AR$7),"",SUBSTITUTE(_xlfn.TEXTAFTER(V7,"-"),"*","")-0) ->  | CR22: =IF(OR(ISERROR(FIND("-",W7)),AK7<='export html'!$AR$7),"",SUBSTITUTE(_xlfn.TEXTAFTER(W7,"-"),"*","")-0) ->  | CS22: =IF(OR(ISERROR(FIND("-",X7)),AL7<='export html'!$AR$7),"",SUBSTITUTE(_xlfn.TEXTAFTER(X7,"-"),"*","")-0) -> 1 | CT22: =IF(OR(ISERROR(FIND("-",Y7)),AM7<='export html'!$AR$7),"",SUBSTITUTE(_xlfn.TEXTAFTER(Y7,"-"),"*","")-0) ->  | CU22: =IF(OR(ISERROR(FIND("-",Z7)),AN7<='export html'!$AR$7),"",SUBSTITUTE(_xlfn.TEXTAFTER(Z7,"-"),"*","")-0) -> 3 | CV22: =IF(OR(ISERROR(FIND("-",AA7)),AO7<='export html'!$AR$7),"",SUBSTITUTE(_xlfn.TEXTAFTER(AA7,"-"),"*","")-0) -> 2 | CW22: =IF(OR(ISERROR(FIND("-",AB7)),AP7<='export html'!$AR$7),"",SUBSTITUTE(_xlfn.TEXTAFTER(AB7,"-"),"*","")-0) ->  | CX22: =IF(OR(ISERROR(FIND("-",AC7)),AQ7<='export html'!$AR$7),"",SUBSTITUTE(_xlfn.TEXTAFTER(AC7,"-"),"*","")-0) ->  | CY22: =IF(OR(ISERROR(FIND("-",AD7)),AR7<='export html'!$AR$7),"",SUBSTITUTE(_xlfn.TEXTAFTER(AD7,"-"),"*","")-0) ->  | CZ22: 3
D23: =IF('export html'!T3="","",'export html'!T3) -> 2025-03-30 | E23: =IF('export html'!U3="","",'export html'!U3) -> 25 | F23: =IF('export html'!V3="","",'export html'!V3) -> Antwerp Global - Lucyvo | N23: =IF('export html'!W3="","",'export html'!W3) -> 4-0 | Q23: =_xlfn.CHOOSECOLS(_xlfn.ANCHORARRAY( 'export html'!AF3), 2, 1 ) -> 29 | R23: Glenn De Vinster | Z23: =_xlfn.CHOOSECOLS(_xlfn.ANCHORARRAY( spelersstatistieken!AK350), 2, 1 ) -> 243.6371292 | AA23: Glenn De Vinster | BV23: 4 | BW23: =IF(OR(ISERROR(FIND("-",Q8)),AE8>'export html'!$AR$7),"",SUBSTITUTE(_xlfn.TEXTAFTER(Q8,"-"),"*","")-0) -> 1 | BX23: =IF(OR(ISERROR(FIND("-",R8)),AF8>'export html'!$AR$7),"",SUBSTITUTE(_xlfn.TEXTAFTER(R8,"-"),"*","")-0) -> 7 | BY23: =IF(OR(ISERROR(FIND("-",S8)),AG8>'export html'!$AR$7),"",SUBSTITUTE(_xlfn.TEXTAFTER(S8,"-"),"*","")-0) -> 7 | CA23: =IF(OR(ISERROR(FIND("-",U8)),AI8>'export html'!$AR$7),"",SUBSTITUTE(_xlfn.TEXTAFTER(U8,"-"),"*","")-0) -> 2 | CB23: =IF(OR(ISERROR(FIND("-",V8)),AJ8>'export html'!$AR$7),"",SUBSTITUTE(_xlfn.TEXTAFTER(V8,"-"),"*","")-0) ->  | CC23: =IF(OR(ISERROR(FIND("-",W8)),AK8>'export html'!$AR$7),"",SUBSTITUTE(_xlfn.TEXTAFTER(W8,"-"),"*","")-0) ->  | CD23: =IF(OR(ISERROR(FIND("-",X8)),AL8>'export html'!$AR$7),"",SUBSTITUTE(_xlfn.TEXTAFTER(X8,"-"),"*","")-0) -> 5 | CE23: =IF(OR(ISERROR(FIND("-",Y8)),AM8>'export html'!$AR$7),"",SUBSTITUTE(_xlfn.TEXTAFTER(Y8,"-"),"*","")-0) -> 1 | CF23: =IF(OR(ISERROR(FIND("-",Z8)),AN8>'export html'!$AR$7),"",SUBSTITUTE(_xlfn.TEXTAFTER(Z8,"-"),"*","")-0) -> 1 | CG23: =IF(OR(ISERROR(FIND("-",AA8)),AO8>'export html'!$AR$7),"",SUBSTITUTE(_xlfn.TEXTAFTER(AA8,"-"),"*","")-0) ->  | CH23: =IF(OR(ISERROR(FIND("-",AB8)),AP8>'export html'!$AR$7),"",SUBSTITUTE(_xlfn.TEXTAFTER(AB8,"-"),"*","")-0) ->  | CI23: =IF(OR(ISERROR(FIND("-",AC8)),AQ8>'export html'!$AR$7),"",SUBSTITUTE(_xlfn.TEXTAFTER(AC8,"-"),"*","")-0) ->  | CJ23: =IF(OR(ISERROR(FIND("-",AD8)),AR8>'export html'!$AR$7),"",SUBSTITUTE(_xlfn.TEXTAFTER(AD8,"-"),"*","")-0) ->  | CK23: 4 | CL23: =IF(OR(ISERROR(FIND("-",Q8)),AE8<='export html'!$AR$7),"",SUBSTITUTE(_xlfn.TEXTAFTER(Q8,"-"),"*","")-0) ->  | CM23: =IF(OR(ISERROR(FIND("-",R8)),AF8<='export html'!$AR$7),"",SUBSTITUTE(_xlfn.TEXTAFTER(R8,"-"),"*","")-0) ->  | CN23: =IF(OR(ISERROR(FIND("-",S8)),AG8<='export html'!$AR$7),"",SUBSTITUTE(_xlfn.TEXTAFTER(S8,"-"),"*","")-0) ->  | CP23: =IF(OR(ISERROR(FIND("-",U8)),AI8<='export html'!$AR$7),"",SUBSTITUTE(_xlfn.TEXTAFTER(U8,"-"),"*","")-0) ->  | CQ23: =IF(OR(ISERROR(FIND("-",V8)),AJ8<='export html'!$AR$7),"",SUBSTITUTE(_xlfn.TEXTAFTER(V8,"-"),"*","")-0) -> 10 | CR23: =IF(OR(ISERROR(FIND("-",W8)),AK8<='export html'!$AR$7),"",SUBSTITUTE(_xlfn.TEXTAFTER(W8,"-"),"*","")-0) -> 3 | CS23: =IF(OR(ISERROR(FIND("-",X8)),AL8<='export html'!$AR$7),"",SUBSTITUTE(_xlfn.TEXTAFTER(X8,"-"),"*","")-0) ->  | CT23: =IF(OR(ISERROR(FIND("-",Y8)),AM8<='export html'!$AR$7),"",SUBSTITUTE(_xlfn.TEXTAFTER(Y8,"-"),"*","")-0) ->  | CU23: =IF(OR(ISERROR(FIND("-",Z8)),AN8<='export html'!$AR$7),"",SUBSTITUTE(_xlfn.TEXTAFTER(Z8,"-"),"*","")-0) ->  | CV23: =IF(OR(ISERROR(FIND("-",AA8)),AO8<='export html'!$AR$7),"",SUBSTITUTE(_xlfn.TEXTAFTER(AA8,"-"),"*","")-0) -> 4 | CW23: =IF(OR(ISERROR(FIND("-",AB8)),AP8<='export html'!$AR$7),"",SUBSTITUTE(_xlfn.TEXTAFTER(AB8,"-"),"*","")-0) -> 1 | CX23: =IF(OR(ISERROR(FIND("-",AC8)),AQ8<='export html'!$AR$7),"",SUBSTITUTE(_xlfn.TEXTAFTER(AC8,"-"),"*","")-0) -> 0 | CY23: =IF(OR(ISERROR(FIND("-",AD8)),AR8<='export html'!$AR$7),"",SUBSTITUTE(_xlfn.TEXTAFTER(AD8,"-"),"*","")-0) -> 4 | CZ23: 4
D24: =IF('export html'!T4="","",'export html'!T4) -> 2025-03-23 | E24: =IF('export html'!U4="","",'export html'!U4) -> 24 | F24: =IF('export html'!V4="","",'export html'!V4) -> Lucyvo - Bariton | N24: =IF('export html'!W4="","",'export html'!W4) -> 2-1 | Q24: 18 | R24: Stijn Hofmans | Z24: 166.1203348 | AA24: Stijn Hofmans | BV24: 5 | BW24: =IF(OR(ISERROR(FIND("-",Q9)),AE9>'export html'!$AR$7),"",SUBSTITUTE(_xlfn.TEXTAFTER(Q9,"-"),"*","")-0) -> 3 | BX24: =IF(OR(ISERROR(FIND("-",R9)),AF9>'export html'!$AR$7),"",SUBSTITUTE(_xlfn.TEXTAFTER(R9,"-"),"*","")-0) -> 4 | BY24: =IF(OR(ISERROR(FIND("-",S9)),AG9>'export html'!$AR$7),"",SUBSTITUTE(_xlfn.TEXTAFTER(S9,"-"),"*","")-0) -> 1 | BZ24: =IF(OR(ISERROR(FIND("-",T9)),AH9>'export html'!$AR$7),"",SUBSTITUTE(_xlfn.TEXTAFTER(T9,"-"),"*","")-0) ->  | CB24: =IF(OR(ISERROR(FIND("-",V9)),AJ9>'export html'!$AR$7),"",SUBSTITUTE(_xlfn.TEXTAFTER(V9,"-"),"*","")-0) ->  | CC24: =IF(OR(ISERROR(FIND("-",W9)),AK9>'export html'!$AR$7),"",SUBSTITUTE(_xlfn.TEXTAFTER(W9,"-"),"*","")-0) ->  | CD24: =IF(OR(ISERROR(FIND("-",X9)),AL9>'export html'!$AR$7),"",SUBSTITUTE(_xlfn.TEXTAFTER(X9,"-"),"*","")-0) -> 5 | CE24: =IF(OR(ISERROR(FIND("-",Y9)),AM9>'export html'!$AR$7),"",SUBSTITUTE(_xlfn.TEXTAFTER(Y9,"-"),"*","")-0) ->  | CF24: =IF(OR(ISERROR(FIND("-",Z9)),AN9>'export html'!$AR$7),"",SUBSTITUTE(_xlfn.TEXTAFTER(Z9,"-"),"*","")-0) ->  | CG24: =IF(OR(ISERROR(FIND("-",AA9)),AO9>'export html'!$AR$7),"",SUBSTITUTE(_xlfn.TEXTAFTER(AA9,"-"),"*","")-0) ->  | CH24: =IF(OR(ISERROR(FIND("-",AB9)),AP9>'export html'!$AR$7),"",SUBSTITUTE(_xlfn.TEXTAFTER(AB9,"-"),"*","")-0) -> 10 | CI24: =IF(OR(ISERROR(FIND("-",AC9)),AQ9>'export html'!$AR$7),"",SUBSTITUTE(_xlfn.TEXTAFTER(AC9,"-"),"*","")-0) ->  | CJ24: =IF(OR(ISERROR(FIND("-",AD9)),AR9>'export html'!$AR$7),"",SUBSTITUTE(_xlfn.TEXTAFTER(AD9,"-"),"*","")-0) -> 6 | CK24: 5 | CL24: =IF(OR(ISERROR(FIND("-",Q9)),AE9<='export html'!$AR$7),"",SUBSTITUTE(_xlfn.TEXTAFTER(Q9,"-"),"*","")-0) ->  | CM24: =IF(OR(ISERROR(FIND("-",R9)),AF9<='export html'!$AR$7),"",SUBSTITUTE(_xlfn.TEXTAFTER(R9,"-"),"*","")-0) ->  | CN24: =IF(OR(ISERROR(FIND("-",S9)),AG9<='export html'!$AR$7),"",SUBSTITUTE(_xlfn.TEXTAFTER(S9,"-"),"*","")-0) ->  | CO24: =IF(OR(ISERROR(FIND("-",T9)),AH9<='export html'!$AR$7),"",SUBSTITUTE(_xlfn.TEXTAFTER(T9,"-"),"*","")-0) -> 1 | CQ24: =IF(OR(ISERROR(FIND("-",V9)),AJ9<='export html'!$AR$7),"",SUBSTITUTE(_xlfn.TEXTAFTER(V9,"-"),"*","")-0) -> 9 | CR24: =IF(OR(ISERROR(FIND("-",W9)),AK9<='export html'!$AR$7),"",SUBSTITUTE(_xlfn.TEXTAFTER(W9,"-"),"*","")-0) ->  | CS24: =IF(OR(ISERROR(FIND("-",X9)),AL9<='export html'!$AR$7),"",SUBSTITUTE(_xlfn.TEXTAFTER(X9,"-"),"*","")-0) ->  | CT24: =IF(OR(ISERROR(FIND("-",Y9)),AM9<='export html'!$AR$7),"",SUBSTITUTE(_xlfn.TEXTAFTER(Y9,"-"),"*","")-0) -> 1 | CU24: =IF(OR(ISERROR(FIND("-",Z9)),AN9<='export html'!$AR$7),"",SUBSTITUTE(_xlfn.TEXTAFTER(Z9,"-"),"*","")-0) -> 0 | CV24: =IF(OR(ISERROR(FIND("-",AA9)),AO9<='export html'!$AR$7),"",SUBSTITUTE(_xlfn.TEXTAFTER(AA9,"-"),"*","")-0) -> 5 | CW24: =IF(OR(ISERROR(FIND("-",AB9)),AP9<='export html'!$AR$7),"",SUBSTITUTE(_xlfn.TEXTAFTER(AB9,"-"),"*","")-0) ->  | CX24: =IF(OR(ISERROR(FIND("-",AC9)),AQ9<='export html'!$AR$7),"",SUBSTITUTE(_xlfn.TEXTAFTER(AC9,"-"),"*","")-0) -> 2 | CY24: =IF(OR(ISERROR(FIND("-",AD9)),AR9<='export html'!$AR$7),"",SUBSTITUTE(_xlfn.TEXTAFTER(AD9,"-"),"*","")-0) ->  | CZ24: 5
D25: =IF('export html'!T5="","",'export html'!T5) -> 2025-03-16 | E25: =IF('export html'!U5="","",'export html'!U5) -> 23 | F25: =IF('export html'!V5="","",'export html'!V5) -> Yerevan United - Lucyvo | N25: =IF('export html'!W5="","",'export html'!W5) -> 1-7 | Q25: 3 | R25: Jorn Verhellen | Z25: 155.5270784 | AA25: Kaïn Verlooy | BV25: 6 | BW25: =IF(OR(ISERROR(FIND("-",Q10)),AE10>'export html'!$AR$7),"",SUBSTITUTE(_xlfn.TEXTAFTER(Q10,"-"),"*","")-0) ->  | BX25: =IF(OR(ISERROR(FIND("-",R10)),AF10>'export html'!$AR$7),"",SUBSTITUTE(_xlfn.TEXTAFTER(R10,"-"),"*","")-0) ->  | BY25: =IF(OR(ISERROR(FIND("-",S10)),AG10>'export html'!$AR$7),"",SUBSTITUTE(_xlfn.TEXTAFTER(S10,"-"),"*","")-0) ->  | BZ25: =IF(OR(ISERROR(FIND("-",T10)),AH10>'export html'!$AR$7),"",SUBSTITUTE(_xlfn.TEXTAFTER(T10,"-"),"*","")-0) -> 0 | CA25: =IF(OR(ISERROR(FIND("-",U10)),AI10>'export html'!$AR$7),"",SUBSTITUTE(_xlfn.TEXTAFTER(U10,"-"),"*","")-0) -> 0 | CC25: =IF(OR(ISERROR(FIND("-",W10)),AK10>'export html'!$AR$7),"",SUBSTITUTE(_xlfn.TEXTAFTER(W10,"-"),"*","")-0) -> 0 | CD25: =IF(OR(ISERROR(FIND("-",X10)),AL10>'export html'!$AR$7),"",SUBSTITUTE(_xlfn.TEXTAFTER(X10,"-"),"*","")-0) ->  | CE25: =IF(OR(ISERROR(FIND("-",Y10)),AM10>'export html'!$AR$7),"",SUBSTITUTE(_xlfn.TEXTAFTER(Y10,"-"),"*","")-0) ->  | CF25: =IF(OR(ISERROR(FIND("-",Z10)),AN10>'export html'!$AR$7),"",SUBSTITUTE(_xlfn.TEXTAFTER(Z10,"-"),"*","")-0) -> 0 | CG25: =IF(OR(ISERROR(FIND("-",AA10)),AO10>'export html'!$AR$7),"",SUBSTITUTE(_xlfn.TEXTAFTER(AA10,"-"),"*","")-0) -> 2 | CH25: =IF(OR(ISERROR(FIND("-",AB10)),AP10>'export html'!$AR$7),"",SUBSTITUTE(_xlfn.TEXTAFTER(AB10,"-"),"*","")-0) ->  | CI25: =IF(OR(ISERROR(FIND("-",AC10)),AQ10>'export html'!$AR$7),"",SUBSTITUTE(_xlfn.TEXTAFTER(AC10,"-"),"*","")-0) -> 1 | CJ25: =IF(OR(ISERROR(FIND("-",AD10)),AR10>'export html'!$AR$7),"",SUBSTITUTE(_xlfn.TEXTAFTER(AD10,"-"),"*","")-0) ->  | CK25: 6 | CL25: =IF(OR(ISERROR(FIND("-",Q10)),AE10<='export html'!$AR$7),"",SUBSTITUTE(_xlfn.TEXTAFTER(Q10,"-"),"*","")-0) ->  | CM25: =IF(OR(ISERROR(FIND("-",R10)),AF10<='export html'!$AR$7),"",SUBSTITUTE(_xlfn.TEXTAFTER(R10,"-"),"*","")-0) -> 0 | CN25: =IF(OR(ISERROR(FIND("-",S10)),AG10<='export html'!$AR$7),"",SUBSTITUTE(_xlfn.TEXTAFTER(S10,"-"),"*","")-0) -> 1 | CO25: =IF(OR(ISERROR(FIND("-",T10)),AH10<='export html'!$AR$7),"",SUBSTITUTE(_xlfn.TEXTAFTER(T10,"-"),"*","")-0) ->  | CP25: =IF(OR(ISERROR(FIND("-",U10)),AI10<='export html'!$AR$7),"",SUBSTITUTE(_xlfn.TEXTAFTER(U10,"-"),"*","")-0) ->  | CR25: =IF(OR(ISERROR(FIND("-",W10)),AK10<='export html'!$AR$7),"",SUBSTITUTE(_xlfn.TEXTAFTER(W10,"-"),"*","")-0) ->  | CS25: =IF(OR(ISERROR(FIND("-",X10)),AL10<='export html'!$AR$7),"",SUBSTITUTE(_xlfn.TEXTAFTER(X10,"-"),"*","")-0) -> 1 | CT25: =IF(OR(ISERROR(FIND("-",Y10)),AM10<='export html'!$AR$7),"",SUBSTITUTE(_xlfn.TEXTAFTER(Y10,"-"),"*","")-0) -> 0 | CU25: =IF(OR(ISERROR(FIND("-",Z10)),AN10<='export html'!$AR$7),"",SUBSTITUTE(_xlfn.TEXTAFTER(Z10,"-"),"*","")-0) ->  | CV25: =IF(OR(ISERROR(FIND("-",AA10)),AO10<='export html'!$AR$7),"",SUBSTITUTE(_xlfn.TEXTAFTER(AA10,"-"),"*","")-0) ->  | CW25: =IF(OR(ISERROR(FIND("-",AB10)),AP10<='export html'!$AR$7),"",SUBSTITUTE(_xlfn.TEXTAFTER(AB10,"-"),"*","")-0) -> 1 | CX25: =IF(OR(ISERROR(FIND("-",AC10)),AQ10<='export html'!$AR$7),"",SUBSTITUTE(_xlfn.TEXTAFTER(AC10,"-"),"*","")-0) ->  | CY25: =IF(OR(ISERROR(FIND("-",AD10)),AR10<='export html'!$AR$7),"",SUBSTITUTE(_xlfn.TEXTAFTER(AD10,"-"),"*","")-0) -> 0 | CZ25: 6
D26: =IF('export html'!T6="","",'export html'!T6) -> 2025-03-09 | E26: =IF('export html'!U6="","",'export html'!U6) -> 22 | F26: =IF('export html'!V6="","",'export html'!V6) -> Lucyvo - Jolika | N26: =IF('export html'!W6="","",'export html'!W6) -> 2-2 | Q26: 1 | R26: Wout Beirinckx | Z26: 149.5524851 | AA26: Maarten Langenaeker | BV26: 7 | BW26: =IF(OR(ISERROR(FIND("-",Q11)),AE11>'export html'!$AR$7),"",SUBSTITUTE(_xlfn.TEXTAFTER(Q11,"-"),"*","")-0) -> 2 | BX26: =IF(OR(ISERROR(FIND("-",R11)),AF11>'export html'!$AR$7),"",SUBSTITUTE(_xlfn.TEXTAFTER(R11,"-"),"*","")-0) ->  | BY26: =IF(OR(ISERROR(FIND("-",S11)),AG11>'export html'!$AR$7),"",SUBSTITUTE(_xlfn.TEXTAFTER(S11,"-"),"*","")-0) ->  | BZ26: =IF(OR(ISERROR(FIND("-",T11)),AH11>'export html'!$AR$7),"",SUBSTITUTE(_xlfn.TEXTAFTER(T11,"-"),"*","")-0) -> 1 | CA26: =IF(OR(ISERROR(FIND("-",U11)),AI11>'export html'!$AR$7),"",SUBSTITUTE(_xlfn.TEXTAFTER(U11,"-"),"*","")-0) -> 5 | CB26: =IF(OR(ISERROR(FIND("-",V11)),AJ11>'export html'!$AR$7),"",SUBSTITUTE(_xlfn.TEXTAFTER(V11,"-"),"*","")-0) ->  | CD26: =IF(OR(ISERROR(FIND("-",X11)),AL11>'export html'!$AR$7),"",SUBSTITUTE(_xlfn.TEXTAFTER(X11,"-"),"*","")-0) -> 4 | CE26: =IF(OR(ISERROR(FIND("-",Y11)),AM11>'export html'!$AR$7),"",SUBSTITUTE(_xlfn.TEXTAFTER(Y11,"-"),"*","")-0) -> 0 | CF26: =IF(OR(ISERROR(FIND("-",Z11)),AN11>'export html'!$AR$7),"",SUBSTITUTE(_xlfn.TEXTAFTER(Z11,"-"),"*","")-0) -> 0 | CG26: =IF(OR(ISERROR(FIND("-",AA11)),AO11>'export html'!$AR$7),"",SUBSTITUTE(_xlfn.TEXTAFTER(AA11,"-"),"*","")-0) -> 5 | CH26: =IF(OR(ISERROR(FIND("-",AB11)),AP11>'export html'!$AR$7),"",SUBSTITUTE(_xlfn.TEXTAFTER(AB11,"-"),"*","")-0) ->  | CI26: =IF(OR(ISERROR(FIND("-",AC11)),AQ11>'export html'!$AR$7),"",SUBSTITUTE(_xlfn.TEXTAFTER(AC11,"-"),"*","")-0) ->  | CJ26: =IF(OR(ISERROR(FIND("-",AD11)),AR11>'export html'!$AR$7),"",SUBSTITUTE(_xlfn.TEXTAFTER(AD11,"-"),"*","")-0) ->  | CK26: 7 | CL26: =IF(OR(ISERROR(FIND("-",Q11)),AE11<='export html'!$AR$7),"",SUBSTITUTE(_xlfn.TEXTAFTER(Q11,"-"),"*","")-0) ->  | CM26: =IF(OR(ISERROR(FIND("-",R11)),AF11<='export html'!$AR$7),"",SUBSTITUTE(_xlfn.TEXTAFTER(R11,"-"),"*","")-0) -> 5 | CN26: =IF(OR(ISERROR(FIND("-",S11)),AG11<='export html'!$AR$7),"",SUBSTITUTE(_xlfn.TEXTAFTER(S11,"-"),"*","")-0) -> 2 | CO26: =IF(OR(ISERROR(FIND("-",T11)),AH11<='export html'!$AR$7),"",SUBSTITUTE(_xlfn.TEXTAFTER(T11,"-"),"*","")-0) ->  | CP26: =IF(OR(ISERROR(FIND("-",U11)),AI11<='export html'!$AR$7),"",SUBSTITUTE(_xlfn.TEXTAFTER(U11,"-"),"*","")-0) ->  | CQ26: =IF(OR(ISERROR(FIND("-",V11)),AJ11<='export html'!$AR$7),"",SUBSTITUTE(_xlfn.TEXTAFTER(V11,"-"),"*","")-0) -> 2 | CS26: =IF(OR(ISERROR(FIND("-",X11)),AL11<='export html'!$AR$7),"",SUBSTITUTE(_xlfn.TEXTAFTER(X11,"-"),"*","")-0) ->  | CT26: =IF(OR(ISERROR(FIND("-",Y11)),AM11<='export html'!$AR$7),"",SUBSTITUTE(_xlfn.TEXTAFTER(Y11,"-"),"*","")-0) ->  | CU26: =IF(OR(ISERROR(FIND("-",Z11)),AN11<='export html'!$AR$7),"",SUBSTITUTE(_xlfn.TEXTAFTER(Z11,"-"),"*","")-0) ->  | CV26: =IF(OR(ISERROR(FIND("-",AA11)),AO11<='export html'!$AR$7),"",SUBSTITUTE(_xlfn.TEXTAFTER(AA11,"-"),"*","")-0) ->  | CW26: =IF(OR(ISERROR(FIND("-",AB11)),AP11<='export html'!$AR$7),"",SUBSTITUTE(_xlfn.TEXTAFTER(AB11,"-"),"*","")-0) -> 3 | CX26: =IF(OR(ISERROR(FIND("-",AC11)),AQ11<='export html'!$AR$7),"",SUBSTITUTE(_xlfn.TEXTAFTER(AC11,"-"),"*","")-0) -> 4 | CY26: =IF(OR(ISERROR(FIND("-",AD11)),AR11<='export html'!$AR$7),"",SUBSTITUTE(_xlfn.TEXTAFTER(AD11,"-"),"*","")-0) -> 1 | CZ26: 7
D27: =IF('export html'!T7="","",'export html'!T7) -> 2025-03-02 | E27: =IF('export html'!U7="","",'export html'!U7) -> 15 | F27: =IF('export html'!V7="","",'export html'!V7) -> Lucyvo - Goka | N27: =IF('export html'!W7="","",'export html'!W7) -> 3-0 | Q27: 1 | R27: Maarten De Groof | Z27: 134.2971787 | AA27: Maarten De Groof | BV27: 8 | BW27: =IF(OR(ISERROR(FIND("-",Q12)),AE12>'export html'!$AR$7),"",SUBSTITUTE(_xlfn.TEXTAFTER(Q12,"-"),"*","")-0) -> 4 | BX27: =IF(OR(ISERROR(FIND("-",R12)),AF12>'export html'!$AR$7),"",SUBSTITUTE(_xlfn.TEXTAFTER(R12,"-"),"*","")-0) -> 3 | BY27: =IF(OR(ISERROR(FIND("-",S12)),AG12>'export html'!$AR$7),"",SUBSTITUTE(_xlfn.TEXTAFTER(S12,"-"),"*","")-0) -> 4 | BZ27: =IF(OR(ISERROR(FIND("-",T12)),AH12>'export html'!$AR$7),"",SUBSTITUTE(_xlfn.TEXTAFTER(T12,"-"),"*","")-0) ->  | CA27: =IF(OR(ISERROR(FIND("-",U12)),AI12>'export html'!$AR$7),"",SUBSTITUTE(_xlfn.TEXTAFTER(U12,"-"),"*","")-0) ->  | CB27: =IF(OR(ISERROR(FIND("-",V12)),AJ12>'export html'!$AR$7),"",SUBSTITUTE(_xlfn.TEXTAFTER(V12,"-"),"*","")-0) -> 3 | CC27: =IF(OR(ISERROR(FIND("-",W12)),AK12>'export html'!$AR$7),"",SUBSTITUTE(_xlfn.TEXTAFTER(W12,"-"),"*","")-0) ->  | CE27: =IF(OR(ISERROR(FIND("-",Y12)),AM12>'export html'!$AR$7),"",SUBSTITUTE(_xlfn.TEXTAFTER(Y12,"-"),"*","")-0) ->  | CF27: =IF(OR(ISERROR(FIND("-",Z12)),AN12>'export html'!$AR$7),"",SUBSTITUTE(_xlfn.TEXTAFTER(Z12,"-"),"*","")-0) ->  | CG27: =IF(OR(ISERROR(FIND("-",AA12)),AO12>'export html'!$AR$7),"",SUBSTITUTE(_xlfn.TEXTAFTER(AA12,"-"),"*","")-0) ->  | CH27: =IF(OR(ISERROR(FIND("-",AB12)),AP12>'export html'!$AR$7),"",SUBSTITUTE(_xlfn.TEXTAFTER(AB12,"-"),"*","")-0) -> 6 | CI27: =IF(OR(ISERROR(FIND("-",AC12)),AQ12>'export html'!$AR$7),"",SUBSTITUTE(_xlfn.TEXTAFTER(AC12,"-"),"*","")-0) ->  | CJ27: =IF(OR(ISERROR(FIND("-",AD12)),AR12>'export html'!$AR$7),"",SUBSTITUTE(_xlfn.TEXTAFTER(AD12,"-"),"*","")-0) -> 1 | CK27: 8 | CL27: =IF(OR(ISERROR(FIND("-",Q12)),AE12<='export html'!$AR$7),"",SUBSTITUTE(_xlfn.TEXTAFTER(Q12,"-"),"*","")-0) ->  | CM27: =IF(OR(ISERROR(FIND("-",R12)),AF12<='export html'!$AR$7),"",SUBSTITUTE(_xlfn.TEXTAFTER(R12,"-"),"*","")-0) ->  | CN27: =IF(OR(ISERROR(FIND("-",S12)),AG12<='export html'!$AR$7),"",SUBSTITUTE(_xlfn.TEXTAFTER(S12,"-"),"*","")-0) ->  | CO27: =IF(OR(ISERROR(FIND("-",T12)),AH12<='export html'!$AR$7),"",SUBSTITUTE(_xlfn.TEXTAFTER(T12,"-"),"*","")-0) -> 0 | CP27: =IF(OR(ISERROR(FIND("-",U12)),AI12<='export html'!$AR$7),"",SUBSTITUTE(_xlfn.TEXTAFTER(U12,"-"),"*","")-0) -> 6 | CQ27: =IF(OR(ISERROR(FIND("-",V12)),AJ12<='export html'!$AR$7),"",SUBSTITUTE(_xlfn.TEXTAFTER(V12,"-"),"*","")-0) ->  | CR27: =IF(OR(ISERROR(FIND("-",W12)),AK12<='export html'!$AR$7),"",SUBSTITUTE(_xlfn.TEXTAFTER(W12,"-"),"*","")-0) -> 2 | CT27: =IF(OR(ISERROR(FIND("-",Y12)),AM12<='export html'!$AR$7),"",SUBSTITUTE(_xlfn.TEXTAFTER(Y12,"-"),"*","")-0) -> 0 | CU27: =IF(OR(ISERROR(FIND("-",Z12)),AN12<='export html'!$AR$7),"",SUBSTITUTE(_xlfn.TEXTAFTER(Z12,"-"),"*","")-0) ->  | CV27: =IF(OR(ISERROR(FIND("-",AA12)),AO12<='export html'!$AR$7),"",SUBSTITUTE(_xlfn.TEXTAFTER(AA12,"-"),"*","")-0) -> 1 | CW27: =IF(OR(ISERROR(FIND("-",AB12)),AP12<='export html'!$AR$7),"",SUBSTITUTE(_xlfn.TEXTAFTER(AB12,"-"),"*","")-0) ->  | CX27: =IF(OR(ISERROR(FIND("-",AC12)),AQ12<='export html'!$AR$7),"",SUBSTITUTE(_xlfn.TEXTAFTER(AC12,"-"),"*","")-0) ->  | CY27: =IF(OR(ISERROR(FIND("-",AD12)),AR12<='export html'!$AR$7),"",SUBSTITUTE(_xlfn.TEXTAFTER(AD12,"-"),"*","")-0) ->  | CZ27: 8
D28: =IF('export html'!T8="","",'export html'!T8) ->  | E28: =IF('export html'!U8="","",'export html'!U8) ->  | F28: =IF('export html'!V8="","",'export html'!V8) ->  | N28: =IF('export html'!W8="","",'export html'!W8) ->  | BV28: 9 | BW28: =IF(OR(ISERROR(FIND("-",Q13)),AE13>'export html'!$AR$7),"",SUBSTITUTE(_xlfn.TEXTAFTER(Q13,"-"),"*","")-0) ->  | BX28: =IF(OR(ISERROR(FIND("-",R13)),AF13>'export html'!$AR$7),"",SUBSTITUTE(_xlfn.TEXTAFTER(R13,"-"),"*","")-0) ->  | BY28: =IF(OR(ISERROR(FIND("-",S13)),AG13>'export html'!$AR$7),"",SUBSTITUTE(_xlfn.TEXTAFTER(S13,"-"),"*","")-0) ->  | BZ28: =IF(OR(ISERROR(FIND("-",T13)),AH13>'export html'!$AR$7),"",SUBSTITUTE(_xlfn.TEXTAFTER(T13,"-"),"*","")-0) ->  | CA28: =IF(OR(ISERROR(FIND("-",U13)),AI13>'export html'!$AR$7),"",SUBSTITUTE(_xlfn.TEXTAFTER(U13,"-"),"*","")-0) -> 8 | CB28: =IF(OR(ISERROR(FIND("-",V13)),AJ13>'export html'!$AR$7),"",SUBSTITUTE(_xlfn.TEXTAFTER(V13,"-"),"*","")-0) -> 7 | CC28: =IF(OR(ISERROR(FIND("-",W13)),AK13>'export html'!$AR$7),"",SUBSTITUTE(_xlfn.TEXTAFTER(W13,"-"),"*","")-0) ->  | CD28: =IF(OR(ISERROR(FIND("-",X13)),AL13>'export html'!$AR$7),"",SUBSTITUTE(_xlfn.TEXTAFTER(X13,"-"),"*","")-0) -> 6 | CF28: =IF(OR(ISERROR(FIND("-",Z13)),AN13>'export html'!$AR$7),"",SUBSTITUTE(_xlfn.TEXTAFTER(Z13,"-"),"*","")-0) -> 1 | CG28: =IF(OR(ISERROR(FIND("-",AA13)),AO13>'export html'!$AR$7),"",SUBSTITUTE(_xlfn.TEXTAFTER(AA13,"-"),"*","")-0) ->  | CH28: =IF(OR(ISERROR(FIND("-",AB13)),AP13>'export html'!$AR$7),"",SUBSTITUTE(_xlfn.TEXTAFTER(AB13,"-"),"*","")-0) -> 8 | CI28: =IF(OR(ISERROR(FIND("-",AC13)),AQ13>'export html'!$AR$7),"",SUBSTITUTE(_xlfn.TEXTAFTER(AC13,"-"),"*","")-0) -> 0 | CJ28: =IF(OR(ISERROR(FIND("-",AD13)),AR13>'export html'!$AR$7),"",SUBSTITUTE(_xlfn.TEXTAFTER(AD13,"-"),"*","")-0) -> 5 | CK28: 9 | CL28: =IF(OR(ISERROR(FIND("-",Q13)),AE13<='export html'!$AR$7),"",SUBSTITUTE(_xlfn.TEXTAFTER(Q13,"-"),"*","")-0) -> 5 | CM28: =IF(OR(ISERROR(FIND("-",R13)),AF13<='export html'!$AR$7),"",SUBSTITUTE(_xlfn.TEXTAFTER(R13,"-"),"*","")-0) -> 5 | CN28: =IF(OR(ISERROR(FIND("-",S13)),AG13<='export html'!$AR$7),"",SUBSTITUTE(_xlfn.TEXTAFTER(S13,"-"),"*","")-0) -> 2 | CO28: =IF(OR(ISERROR(FIND("-",T13)),AH13<='export html'!$AR$7),"",SUBSTITUTE(_xlfn.TEXTAFTER(T13,"-"),"*","")-0) ->  | CP28: =IF(OR(ISERROR(FIND("-",U13)),AI13<='export html'!$AR$7),"",SUBSTITUTE(_xlfn.TEXTAFTER(U13,"-"),"*","")-0) ->  | CQ28: =IF(OR(ISERROR(FIND("-",V13)),AJ13<='export html'!$AR$7),"",SUBSTITUTE(_xlfn.TEXTAFTER(V13,"-"),"*","")-0) ->  | CR28: =IF(OR(ISERROR(FIND("-",W13)),AK13<='export html'!$AR$7),"",SUBSTITUTE(_xlfn.TEXTAFTER(W13,"-"),"*","")-0) -> 1 | CS28: =IF(OR(ISERROR(FIND("-",X13)),AL13<='export html'!$AR$7),"",SUBSTITUTE(_xlfn.TEXTAFTER(X13,"-"),"*","")-0) ->  | CU28: =IF(OR(ISERROR(FIND("-",Z13)),AN13<='export html'!$AR$7),"",SUBSTITUTE(_xlfn.TEXTAFTER(Z13,"-"),"*","")-0) ->  | CV28: =IF(OR(ISERROR(FIND("-",AA13)),AO13<='export html'!$AR$7),"",SUBSTITUTE(_xlfn.TEXTAFTER(AA13,"-"),"*","")-0) ->  | CW28: =IF(OR(ISERROR(FIND("-",AB13)),AP13<='export html'!$AR$7),"",SUBSTITUTE(_xlfn.TEXTAFTER(AB13,"-"),"*","")-0) ->  | CX28: =IF(OR(ISERROR(FIND("-",AC13)),AQ13<='export html'!$AR$7),"",SUBSTITUTE(_xlfn.TEXTAFTER(AC13,"-"),"*","")-0) ->  | CY28: =IF(OR(ISERROR(FIND("-",AD13)),AR13<='export html'!$AR$7),"",SUBSTITUTE(_xlfn.TEXTAFTER(AD13,"-"),"*","")-0) ->  | CZ28: 9
BV29: 10 | BW29: =IF(OR(ISERROR(FIND("-",Q14)),AE14>'export html'!$AR$7),"",SUBSTITUTE(_xlfn.TEXTAFTER(Q14,"-"),"*","")-0) -> 5 | BX29: =IF(OR(ISERROR(FIND("-",R14)),AF14>'export html'!$AR$7),"",SUBSTITUTE(_xlfn.TEXTAFTER(R14,"-"),"*","")-0) -> 7 | BY29: =IF(OR(ISERROR(FIND("-",S14)),AG14>'export html'!$AR$7),"",SUBSTITUTE(_xlfn.TEXTAFTER(S14,"-"),"*","")-0) -> 4 | BZ29: =IF(OR(ISERROR(FIND("-",T14)),AH14>'export html'!$AR$7),"",SUBSTITUTE(_xlfn.TEXTAFTER(T14,"-"),"*","")-0) ->  | CA29: =IF(OR(ISERROR(FIND("-",U14)),AI14>'export html'!$AR$7),"",SUBSTITUTE(_xlfn.TEXTAFTER(U14,"-"),"*","")-0) -> 5 | CB29: =IF(OR(ISERROR(FIND("-",V14)),AJ14>'export html'!$AR$7),"",SUBSTITUTE(_xlfn.TEXTAFTER(V14,"-"),"*","")-0) ->  | CC29: =IF(OR(ISERROR(FIND("-",W14)),AK14>'export html'!$AR$7),"",SUBSTITUTE(_xlfn.TEXTAFTER(W14,"-"),"*","")-0) ->  | CD29: =IF(OR(ISERROR(FIND("-",X14)),AL14>'export html'!$AR$7),"",SUBSTITUTE(_xlfn.TEXTAFTER(X14,"-"),"*","")-0) -> 1 | CE29: =IF(OR(ISERROR(FIND("-",Y14)),AM14>'export html'!$AR$7),"",SUBSTITUTE(_xlfn.TEXTAFTER(Y14,"-"),"*","")-0) ->  | CG29: =IF(OR(ISERROR(FIND("-",AA14)),AO14>'export html'!$AR$7),"",SUBSTITUTE(_xlfn.TEXTAFTER(AA14,"-"),"*","")-0) ->  | CH29: =IF(OR(ISERROR(FIND("-",AB14)),AP14>'export html'!$AR$7),"",SUBSTITUTE(_xlfn.TEXTAFTER(AB14,"-"),"*","")-0) ->  | CI29: =IF(OR(ISERROR(FIND("-",AC14)),AQ14>'export html'!$AR$7),"",SUBSTITUTE(_xlfn.TEXTAFTER(AC14,"-"),"*","")-0) ->  | CJ29: =IF(OR(ISERROR(FIND("-",AD14)),AR14>'export html'!$AR$7),"",SUBSTITUTE(_xlfn.TEXTAFTER(AD14,"-"),"*","")-0) -> 2 | CK29: 10 | CL29: =IF(OR(ISERROR(FIND("-",Q14)),AE14<='export html'!$AR$7),"",SUBSTITUTE(_xlfn.TEXTAFTER(Q14,"-"),"*","")-0) ->  | CM29: =IF(OR(ISERROR(FIND("-",R14)),AF14<='export html'!$AR$7),"",SUBSTITUTE(_xlfn.TEXTAFTER(R14,"-"),"*","")-0) ->  | CN29: =IF(OR(ISERROR(FIND("-",S14)),AG14<='export html'!$AR$7),"",SUBSTITUTE(_xlfn.TEXTAFTER(S14,"-"),"*","")-0) ->  | CO29: =IF(OR(ISERROR(FIND("-",T14)),AH14<='export html'!$AR$7),"",SUBSTITUTE(_xlfn.TEXTAFTER(T14,"-"),"*","")-0) -> 1 | CP29: =IF(OR(ISERROR(FIND("-",U14)),AI14<='export html'!$AR$7),"",SUBSTITUTE(_xlfn.TEXTAFTER(U14,"-"),"*","")-0) ->  | CQ29: =IF(OR(ISERROR(FIND("-",V14)),AJ14<='export html'!$AR$7),"",SUBSTITUTE(_xlfn.TEXTAFTER(V14,"-"),"*","")-0) -> 5 | CR29: =IF(OR(ISERROR(FIND("-",W14)),AK14<='export html'!$AR$7),"",SUBSTITUTE(_xlfn.TEXTAFTER(W14,"-"),"*","")-0) -> 0 | CS29: =IF(OR(ISERROR(FIND("-",X14)),AL14<='export html'!$AR$7),"",SUBSTITUTE(_xlfn.TEXTAFTER(X14,"-"),"*","")-0) ->  | CT29: =IF(OR(ISERROR(FIND("-",Y14)),AM14<='export html'!$AR$7),"",SUBSTITUTE(_xlfn.TEXTAFTER(Y14,"-"),"*","")-0) -> 2 | CV29: =IF(OR(ISERROR(FIND("-",AA14)),AO14<='export html'!$AR$7),"",SUBSTITUTE(_xlfn.TEXTAFTER(AA14,"-"),"*","")-0) ->  | CW29: =IF(OR(ISERROR(FIND("-",AB14)),AP14<='export html'!$AR$7),"",SUBSTITUTE(_xlfn.TEXTAFTER(AB14,"-"),"*","")-0) -> 2 | CX29: =IF(OR(ISERROR(FIND("-",AC14)),AQ14<='export html'!$AR$7),"",SUBSTITUTE(_xlfn.TEXTAFTER(AC14,"-"),"*","")-0) -> 8 | CY29: =IF(OR(ISERROR(FIND("-",AD14)),AR14<='export html'!$AR$7),"",SUBSTITUTE(_xlfn.TEXTAFTER(AD14,"-"),"*","")-0) ->  | CZ29: 10
BV30: 11 | BW30: =IF(OR(ISERROR(FIND("-",Q15)),AE15>'export html'!$AR$7),"",SUBSTITUTE(_xlfn.TEXTAFTER(Q15,"-"),"*","")-0) -> 1 | BX30: =IF(OR(ISERROR(FIND("-",R15)),AF15>'export html'!$AR$7),"",SUBSTITUTE(_xlfn.TEXTAFTER(R15,"-"),"*","")-0) ->  | BY30: =IF(OR(ISERROR(FIND("-",S15)),AG15>'export html'!$AR$7),"",SUBSTITUTE(_xlfn.TEXTAFTER(S15,"-"),"*","")-0) -> 0 | BZ30: =IF(OR(ISERROR(FIND("-",T15)),AH15>'export html'!$AR$7),"",SUBSTITUTE(_xlfn.TEXTAFTER(T15,"-"),"*","")-0) -> 5 | CA30: =IF(OR(ISERROR(FIND("-",U15)),AI15>'export html'!$AR$7),"",SUBSTITUTE(_xlfn.TEXTAFTER(U15,"-"),"*","")-0) -> 1 | CB30: =IF(OR(ISERROR(FIND("-",V15)),AJ15>'export html'!$AR$7),"",SUBSTITUTE(_xlfn.TEXTAFTER(V15,"-"),"*","")-0) ->  | CC30: =IF(OR(ISERROR(FIND("-",W15)),AK15>'export html'!$AR$7),"",SUBSTITUTE(_xlfn.TEXTAFTER(W15,"-"),"*","")-0) ->  | CD30: =IF(OR(ISERROR(FIND("-",X15)),AL15>'export html'!$AR$7),"",SUBSTITUTE(_xlfn.TEXTAFTER(X15,"-"),"*","")-0) -> 2 | CE30: =IF(OR(ISERROR(FIND("-",Y15)),AM15>'export html'!$AR$7),"",SUBSTITUTE(_xlfn.TEXTAFTER(Y15,"-"),"*","")-0) -> 1 | CF30: =IF(OR(ISERROR(FIND("-",Z15)),AN15>'export html'!$AR$7),"",SUBSTITUTE(_xlfn.TEXTAFTER(Z15,"-"),"*","")-0) -> 2 | CH30: =IF(OR(ISERROR(FIND("-",AB15)),AP15>'export html'!$AR$7),"",SUBSTITUTE(_xlfn.TEXTAFTER(AB15,"-"),"*","")-0) ->  | CI30: =IF(OR(ISERROR(FIND("-",AC15)),AQ15>'export html'!$AR$7),"",SUBSTITUTE(_xlfn.TEXTAFTER(AC15,"-"),"*","")-0) ->  | CJ30: =IF(OR(ISERROR(FIND("-",AD15)),AR15>'export html'!$AR$7),"",SUBSTITUTE(_xlfn.TEXTAFTER(AD15,"-"),"*","")-0) ->  | CK30: 11 | CL30: =IF(OR(ISERROR(FIND("-",Q15)),AE15<='export html'!$AR$7),"",SUBSTITUTE(_xlfn.TEXTAFTER(Q15,"-"),"*","")-0) ->  | CM30: =IF(OR(ISERROR(FIND("-",R15)),AF15<='export html'!$AR$7),"",SUBSTITUTE(_xlfn.TEXTAFTER(R15,"-"),"*","")-0) -> 3 | CN30: =IF(OR(ISERROR(FIND("-",S15)),AG15<='export html'!$AR$7),"",SUBSTITUTE(_xlfn.TEXTAFTER(S15,"-"),"*","")-0) ->  | CO30: =IF(OR(ISERROR(FIND("-",T15)),AH15<='export html'!$AR$7),"",SUBSTITUTE(_xlfn.TEXTAFTER(T15,"-"),"*","")-0) ->  | CP30: =IF(OR(ISERROR(FIND("-",U15)),AI15<='export html'!$AR$7),"",SUBSTITUTE(_xlfn.TEXTAFTER(U15,"-"),"*","")-0) ->  | CQ30: =IF(OR(ISERROR(FIND("-",V15)),AJ15<='export html'!$AR$7),"",SUBSTITUTE(_xlfn.TEXTAFTER(V15,"-"),"*","")-0) -> 1 | CR30: =IF(OR(ISERROR(FIND("-",W15)),AK15<='export html'!$AR$7),"",SUBSTITUTE(_xlfn.TEXTAFTER(W15,"-"),"*","")-0) -> 0 | CS30: =IF(OR(ISERROR(FIND("-",X15)),AL15<='export html'!$AR$7),"",SUBSTITUTE(_xlfn.TEXTAFTER(X15,"-"),"*","")-0) ->  | CT30: =IF(OR(ISERROR(FIND("-",Y15)),AM15<='export html'!$AR$7),"",SUBSTITUTE(_xlfn.TEXTAFTER(Y15,"-"),"*","")-0) ->  | CU30: =IF(OR(ISERROR(FIND("-",Z15)),AN15<='export html'!$AR$7),"",SUBSTITUTE(_xlfn.TEXTAFTER(Z15,"-"),"*","")-0) ->  | CW30: =IF(OR(ISERROR(FIND("-",AB15)),AP15<='export html'!$AR$7),"",SUBSTITUTE(_xlfn.TEXTAFTER(AB15,"-"),"*","")-0) -> 1 | CX30: =IF(OR(ISERROR(FIND("-",AC15)),AQ15<='export html'!$AR$7),"",SUBSTITUTE(_xlfn.TEXTAFTER(AC15,"-"),"*","")-0) -> 6 | CY30: =IF(OR(ISERROR(FIND("-",AD15)),AR15<='export html'!$AR$7),"",SUBSTITUTE(_xlfn.TEXTAFTER(AD15,"-"),"*","")-0) -> 5 | CZ30: 11
D31: ='export html'!C2 -> Matchen van speeldag 25 | F31: 25 | BV31: 12 | BW31: =IF(OR(ISERROR(FIND("-",Q16)),AE16>'export html'!$AR$7),"",SUBSTITUTE(_xlfn.TEXTAFTER(Q16,"-"),"*","")-0) ->  | BX31: =IF(OR(ISERROR(FIND("-",R16)),AF16>'export html'!$AR$7),"",SUBSTITUTE(_xlfn.TEXTAFTER(R16,"-"),"*","")-0) ->  | BY31: =IF(OR(ISERROR(FIND("-",S16)),AG16>'export html'!$AR$7),"",SUBSTITUTE(_xlfn.TEXTAFTER(S16,"-"),"*","")-0) ->  | BZ31: =IF(OR(ISERROR(FIND("-",T16)),AH16>'export html'!$AR$7),"",SUBSTITUTE(_xlfn.TEXTAFTER(T16,"-"),"*","")-0) -> 2 | CA31: =IF(OR(ISERROR(FIND("-",U16)),AI16>'export html'!$AR$7),"",SUBSTITUTE(_xlfn.TEXTAFTER(U16,"-"),"*","")-0) ->  | CB31: =IF(OR(ISERROR(FIND("-",V16)),AJ16>'export html'!$AR$7),"",SUBSTITUTE(_xlfn.TEXTAFTER(V16,"-"),"*","")-0) -> 3 | CC31: =IF(OR(ISERROR(FIND("-",W16)),AK16>'export html'!$AR$7),"",SUBSTITUTE(_xlfn.TEXTAFTER(W16,"-"),"*","")-0) -> 2 | CD31: =IF(OR(ISERROR(FIND("-",X16)),AL16>'export html'!$AR$7),"",SUBSTITUTE(_xlfn.TEXTAFTER(X16,"-"),"*","")-0) ->  | CE31: =IF(OR(ISERROR(FIND("-",Y16)),AM16>'export html'!$AR$7),"",SUBSTITUTE(_xlfn.TEXTAFTER(Y16,"-"),"*","")-0) ->  | CF31: =IF(OR(ISERROR(FIND("-",Z16)),AN16>'export html'!$AR$7),"",SUBSTITUTE(_xlfn.TEXTAFTER(Z16,"-"),"*","")-0) -> 0 | CG31: =IF(OR(ISERROR(FIND("-",AA16)),AO16>'export html'!$AR$7),"",SUBSTITUTE(_xlfn.TEXTAFTER(AA16,"-"),"*","")-0) -> 8 | CI31: =IF(OR(ISERROR(FIND("-",AC16)),AQ16>'export html'!$AR$7),"",SUBSTITUTE(_xlfn.TEXTAFTER(AC16,"-"),"*","")-0) -> 3 | CJ31: =IF(OR(ISERROR(FIND("-",AD16)),AR16>'export html'!$AR$7),"",SUBSTITUTE(_xlfn.TEXTAFTER(AD16,"-"),"*","")-0) ->  | CK31: 12 | CL31: =IF(OR(ISERROR(FIND("-",Q16)),AE16<='export html'!$AR$7),"",SUBSTITUTE(_xlfn.TEXTAFTER(Q16,"-"),"*","")-0) -> 2 | CM31: =IF(OR(ISERROR(FIND("-",R16)),AF16<='export html'!$AR$7),"",SUBSTITUTE(_xlfn.TEXTAFTER(R16,"-"),"*","")-0) -> 2 | CN31: =IF(OR(ISERROR(FIND("-",S16)),AG16<='export html'!$AR$7),"",SUBSTITUTE(_xlfn.TEXTAFTER(S16,"-"),"*","")-0) ->  | CO31: =IF(OR(ISERROR(FIND("-",T16)),AH16<='export html'!$AR$7),"",SUBSTITUTE(_xlfn.TEXTAFTER(T16,"-"),"*","")-0) ->  | CP31: =IF(OR(ISERROR(FIND("-",U16)),AI16<='export html'!$AR$7),"",SUBSTITUTE(_xlfn.TEXTAFTER(U16,"-"),"*","")-0) -> 3 | CQ31: =IF(OR(ISERROR(FIND("-",V16)),AJ16<='export html'!$AR$7),"",SUBSTITUTE(_xlfn.TEXTAFTER(V16,"-"),"*","")-0) ->  | CR31: =IF(OR(ISERROR(FIND("-",W16)),AK16<='export html'!$AR$7),"",SUBSTITUTE(_xlfn.TEXTAFTER(W16,"-"),"*","")-0) ->  | CS31: =IF(OR(ISERROR(FIND("-",X16)),AL16<='export html'!$AR$7),"",SUBSTITUTE(_xlfn.TEXTAFTER(X16,"-"),"*","")-0) -> 0 | CT31: =IF(OR(ISERROR(FIND("-",Y16)),AM16<='export html'!$AR$7),"",SUBSTITUTE(_xlfn.TEXTAFTER(Y16,"-"),"*","")-0) -> 2 | CU31: =IF(OR(ISERROR(FIND("-",Z16)),AN16<='export html'!$AR$7),"",SUBSTITUTE(_xlfn.TEXTAFTER(Z16,"-"),"*","")-0) ->  | CV31: =IF(OR(ISERROR(FIND("-",AA16)),AO16<='export html'!$AR$7),"",SUBSTITUTE(_xlfn.TEXTAFTER(AA16,"-"),"*","")-0) ->  | CX31: =IF(OR(ISERROR(FIND("-",AC16)),AQ16<='export html'!$AR$7),"",SUBSTITUTE(_xlfn.TEXTAFTER(AC16,"-"),"*","")-0) ->  | CY31: =IF(OR(ISERROR(FIND("-",AD16)),AR16<='export html'!$AR$7),"",SUBSTITUTE(_xlfn.TEXTAFTER(AD16,"-"),"*","")-0) -> 9 | CZ31: 12
BV32: 13 | BW32: =IF(OR(ISERROR(FIND("-",Q17)),AE17>'export html'!$AR$7),"",SUBSTITUTE(_xlfn.TEXTAFTER(Q17,"-"),"*","")-0) ->  | BX32: =IF(OR(ISERROR(FIND("-",R17)),AF17>'export html'!$AR$7),"",SUBSTITUTE(_xlfn.TEXTAFTER(R17,"-"),"*","")-0) ->  | BY32: =IF(OR(ISERROR(FIND("-",S17)),AG17>'export html'!$AR$7),"",SUBSTITUTE(_xlfn.TEXTAFTER(S17,"-"),"*","")-0) ->  | BZ32: =IF(OR(ISERROR(FIND("-",T17)),AH17>'export html'!$AR$7),"",SUBSTITUTE(_xlfn.TEXTAFTER(T17,"-"),"*","")-0) -> 1 | CA32: =IF(OR(ISERROR(FIND("-",U17)),AI17>'export html'!$AR$7),"",SUBSTITUTE(_xlfn.TEXTAFTER(U17,"-"),"*","")-0) -> 3 | CB32: =IF(OR(ISERROR(FIND("-",V17)),AJ17>'export html'!$AR$7),"",SUBSTITUTE(_xlfn.TEXTAFTER(V17,"-"),"*","")-0) ->  | CC32: =IF(OR(ISERROR(FIND("-",W17)),AK17>'export html'!$AR$7),"",SUBSTITUTE(_xlfn.TEXTAFTER(W17,"-"),"*","")-0) -> 1 | CD32: =IF(OR(ISERROR(FIND("-",X17)),AL17>'export html'!$AR$7),"",SUBSTITUTE(_xlfn.TEXTAFTER(X17,"-"),"*","")-0) -> 1 | CE32: =IF(OR(ISERROR(FIND("-",Y17)),AM17>'export html'!$AR$7),"",SUBSTITUTE(_xlfn.TEXTAFTER(Y17,"-"),"*","")-0) ->  | CF32: =IF(OR(ISERROR(FIND("-",Z17)),AN17>'export html'!$AR$7),"",SUBSTITUTE(_xlfn.TEXTAFTER(Z17,"-"),"*","")-0) -> 1 | CG32: =IF(OR(ISERROR(FIND("-",AA17)),AO17>'export html'!$AR$7),"",SUBSTITUTE(_xlfn.TEXTAFTER(AA17,"-"),"*","")-0) -> 1 | CH32: =IF(OR(ISERROR(FIND("-",AB17)),AP17>'export html'!$AR$7),"",SUBSTITUTE(_xlfn.TEXTAFTER(AB17,"-"),"*","")-0) ->  | CJ32: =IF(OR(ISERROR(FIND("-",AD17)),AR17>'export html'!$AR$7),"",SUBSTITUTE(_xlfn.TEXTAFTER(AD17,"-"),"*","")-0) ->  | CK32: 13 | CL32: =IF(OR(ISERROR(FIND("-",Q17)),AE17<='export html'!$AR$7),"",SUBSTITUTE(_xlfn.TEXTAFTER(Q17,"-"),"*","")-0) -> 1 | CM32: =IF(OR(ISERROR(FIND("-",R17)),AF17<='export html'!$AR$7),"",SUBSTITUTE(_xlfn.TEXTAFTER(R17,"-"),"*","")-0) -> 2 | CN32: =IF(OR(ISERROR(FIND("-",S17)),AG17<='export html'!$AR$7),"",SUBSTITUTE(_xlfn.TEXTAFTER(S17,"-"),"*","")-0) -> 3 | CO32: =IF(OR(ISERROR(FIND("-",T17)),AH17<='export html'!$AR$7),"",SUBSTITUTE(_xlfn.TEXTAFTER(T17,"-"),"*","")-0) ->  | CP32: =IF(OR(ISERROR(FIND("-",U17)),AI17<='export html'!$AR$7),"",SUBSTITUTE(_xlfn.TEXTAFTER(U17,"-"),"*","")-0) ->  | CQ32: =IF(OR(ISERROR(FIND("-",V17)),AJ17<='export html'!$AR$7),"",SUBSTITUTE(_xlfn.TEXTAFTER(V17,"-"),"*","")-0) -> 1 | CR32: =IF(OR(ISERROR(FIND("-",W17)),AK17<='export html'!$AR$7),"",SUBSTITUTE(_xlfn.TEXTAFTER(W17,"-"),"*","")-0) ->  | CS32: =IF(OR(ISERROR(FIND("-",X17)),AL17<='export html'!$AR$7),"",SUBSTITUTE(_xlfn.TEXTAFTER(X17,"-"),"*","")-0) ->  | CT32: =IF(OR(ISERROR(FIND("-",Y17)),AM17<='export html'!$AR$7),"",SUBSTITUTE(_xlfn.TEXTAFTER(Y17,"-"),"*","")-0) -> 0 | CU32: =IF(OR(ISERROR(FIND("-",Z17)),AN17<='export html'!$AR$7),"",SUBSTITUTE(_xlfn.TEXTAFTER(Z17,"-"),"*","")-0) ->  | CV32: =IF(OR(ISERROR(FIND("-",AA17)),AO17<='export html'!$AR$7),"",SUBSTITUTE(_xlfn.TEXTAFTER(AA17,"-"),"*","")-0) ->  | CW32: =IF(OR(ISERROR(FIND("-",AB17)),AP17<='export html'!$AR$7),"",SUBSTITUTE(_xlfn.TEXTAFTER(AB17,"-"),"*","")-0) -> 2 | CY32: =IF(OR(ISERROR(FIND("-",AD17)),AR17<='export html'!$AR$7),"",SUBSTITUTE(_xlfn.TEXTAFTER(AD17,"-"),"*","")-0) -> 5 | CZ32: 13
D33: =IF('export html'!A3="","",'export html'!A3) -> 2025-03-29 | E33: =IF('export html'!B3="","",'export html'!B3) -> 25 | F33: =IF('export html'!C3="","",'export html'!C3) -> SC Duffel - Jolika | N33: =IF('export html'!D3="","",'export html'!D3) -> 10-0 | BV33: 14 | BW33: =IF(OR(ISERROR(FIND("-",Q18)),AE18>'export html'!$AR$7),"",SUBSTITUTE(_xlfn.TEXTAFTER(Q18,"-"),"*","")-0) ->  | BX33: =IF(OR(ISERROR(FIND("-",R18)),AF18>'export html'!$AR$7),"",SUBSTITUTE(_xlfn.TEXTAFTER(R18,"-"),"*","")-0) ->  | BY33: =IF(OR(ISERROR(FIND("-",S18)),AG18>'export html'!$AR$7),"",SUBSTITUTE(_xlfn.TEXTAFTER(S18,"-"),"*","")-0) ->  | BZ33: =IF(OR(ISERROR(FIND("-",T18)),AH18>'export html'!$AR$7),"",SUBSTITUTE(_xlfn.TEXTAFTER(T18,"-"),"*","")-0) -> 2 | CA33: =IF(OR(ISERROR(FIND("-",U18)),AI18>'export html'!$AR$7),"",SUBSTITUTE(_xlfn.TEXTAFTER(U18,"-"),"*","")-0) ->  | CB33: =IF(OR(ISERROR(FIND("-",V18)),AJ18>'export html'!$AR$7),"",SUBSTITUTE(_xlfn.TEXTAFTER(V18,"-"),"*","")-0) -> 4 | CC33: =IF(OR(ISERROR(FIND("-",W18)),AK18>'export html'!$AR$7),"",SUBSTITUTE(_xlfn.TEXTAFTER(W18,"-"),"*","")-0) -> 3 | CD33: =IF(OR(ISERROR(FIND("-",X18)),AL18>'export html'!$AR$7),"",SUBSTITUTE(_xlfn.TEXTAFTER(X18,"-"),"*","")-0) ->  | CE33: =IF(OR(ISERROR(FIND("-",Y18)),AM18>'export html'!$AR$7),"",SUBSTITUTE(_xlfn.TEXTAFTER(Y18,"-"),"*","")-0) ->  | CF33: =IF(OR(ISERROR(FIND("-",Z18)),AN18>'export html'!$AR$7),"",SUBSTITUTE(_xlfn.TEXTAFTER(Z18,"-"),"*","")-0) ->  | CG33: =IF(OR(ISERROR(FIND("-",AA18)),AO18>'export html'!$AR$7),"",SUBSTITUTE(_xlfn.TEXTAFTER(AA18,"-"),"*","")-0) -> 2 | CH33: =IF(OR(ISERROR(FIND("-",AB18)),AP18>'export html'!$AR$7),"",SUBSTITUTE(_xlfn.TEXTAFTER(AB18,"-"),"*","")-0) -> 4 | CI33: =IF(OR(ISERROR(FIND("-",AC18)),AQ18>'export html'!$AR$7),"",SUBSTITUTE(_xlfn.TEXTAFTER(AC18,"-"),"*","")-0) -> 1 | CK33: 14 | CL33: =IF(OR(ISERROR(FIND("-",Q18)),AE18<='export html'!$AR$7),"",SUBSTITUTE(_xlfn.TEXTAFTER(Q18,"-"),"*","")-0) -> 1 | CM33: =IF(OR(ISERROR(FIND("-",R18)),AF18<='export html'!$AR$7),"",SUBSTITUTE(_xlfn.TEXTAFTER(R18,"-"),"*","")-0) ->  | CN33: =IF(OR(ISERROR(FIND("-",S18)),AG18<='export html'!$AR$7),"",SUBSTITUTE(_xlfn.TEXTAFTER(S18,"-"),"*","")-0) -> 3 | CO33: =IF(OR(ISERROR(FIND("-",T18)),AH18<='export html'!$AR$7),"",SUBSTITUTE(_xlfn.TEXTAFTER(T18,"-"),"*","")-0) ->  | CP33: =IF(OR(ISERROR(FIND("-",U18)),AI18<='export html'!$AR$7),"",SUBSTITUTE(_xlfn.TEXTAFTER(U18,"-"),"*","")-0) -> 3 | CQ33: =IF(OR(ISERROR(FIND("-",V18)),AJ18<='export html'!$AR$7),"",SUBSTITUTE(_xlfn.TEXTAFTER(V18,"-"),"*","")-0) ->  | CR33: =IF(OR(ISERROR(FIND("-",W18)),AK18<='export html'!$AR$7),"",SUBSTITUTE(_xlfn.TEXTAFTER(W18,"-"),"*","")-0) ->  | CS33: =IF(OR(ISERROR(FIND("-",X18)),AL18<='export html'!$AR$7),"",SUBSTITUTE(_xlfn.TEXTAFTER(X18,"-"),"*","")-0) -> 5 | CT33: =IF(OR(ISERROR(FIND("-",Y18)),AM18<='export html'!$AR$7),"",SUBSTITUTE(_xlfn.TEXTAFTER(Y18,"-"),"*","")-0) -> 3 | CU33: =IF(OR(ISERROR(FIND("-",Z18)),AN18<='export html'!$AR$7),"",SUBSTITUTE(_xlfn.TEXTAFTER(Z18,"-"),"*","")-0) -> 7 | CV33: =IF(OR(ISERROR(FIND("-",AA18)),AO18<='export html'!$AR$7),"",SUBSTITUTE(_xlfn.TEXTAFTER(AA18,"-"),"*","")-0) ->  | CW33: =IF(OR(ISERROR(FIND("-",AB18)),AP18<='export html'!$AR$7),"",SUBSTITUTE(_xlfn.TEXTAFTER(AB18,"-"),"*","")-0) ->  | CX33: =IF(OR(ISERROR(FIND("-",AC18)),AQ18<='export html'!$AR$7),"",SUBSTITUTE(_xlfn.TEXTAFTER(AC18,"-"),"*","")-0) ->  | CZ33: 14
D34: =IF('export html'!A4="","",'export html'!A4) -> 2025-03-30 | E34: =IF('export html'!B4="","",'export html'!B4) -> 25 | F34: =IF('export html'!C4="","",'export html'!C4) -> Antwerp Global - Lucyvo | N34: =IF('export html'!D4="","",'export html'!D4) -> 4-0 | BW34: 1 | BX34: 2 | BY34: 3 | BZ34: 4 | CA34: 5 | CB34: 6 | CC34: 7 | CD34: 8 | CE34: 9 | CF34: 10 | CG34: 11 | CH34: 12 | CI34: 13 | CJ34: 14 | CL34: 1 | CM34: 2 | CN34: 3 | CO34: 4 | CP34: 5 | CQ34: 6 | CR34: 7 | CS34: 8 | CT34: 9 | CU34: 10 | CV34: 11 | CW34: 12 | CX34: 13 | CY34: 14
D35: =IF('export html'!A5="","",'export html'!A5) -> 2025-03-30 | E35: =IF('export html'!B5="","",'export html'!B5) -> 25 | F35: =IF('export html'!C5="","",'export html'!C5) -> Bar Patron - Corum | N35: =IF('export html'!D5="","",'export html'!D5) -> 4-1 | BV35: 1 | BX35: =IF(OR(ISERROR(FIND("-",R5)),AF5>'export html'!$AR$7),"",IF(AND(LEFT(R5)="*",RIGHT(R5)="*"),"ff",IF(BX5>BX20,"t",IF(BX5<BX20,"u","g")))) -> t | BY35: =IF(OR(ISERROR(FIND("-",S5)),AG5>'export html'!$AR$7),"",IF(AND(LEFT(S5)="*",RIGHT(S5)="*"),"ff",IF(BY5>BY20,"t",IF(BY5<BY20,"u","g")))) -> g | BZ35: =IF(OR(ISERROR(FIND("-",T5)),AH5>'export html'!$AR$7),"",IF(AND(LEFT(T5)="*",RIGHT(T5)="*"),"ff",IF(BZ5>BZ20,"t",IF(BZ5<BZ20,"u","g")))) ->  | CA35: =IF(OR(ISERROR(FIND("-",U5)),AI5>'export html'!$AR$7),"",IF(AND(LEFT(U5)="*",RIGHT(U5)="*"),"ff",IF(CA5>CA20,"t",IF(CA5<CA20,"u","g")))) ->  | CB35: =IF(OR(ISERROR(FIND("-",V5)),AJ5>'export html'!$AR$7),"",IF(AND(LEFT(V5)="*",RIGHT(V5)="*"),"ff",IF(CB5>CB20,"t",IF(CB5<CB20,"u","g")))) -> u | CC35: =IF(OR(ISERROR(FIND("-",W5)),AK5>'export html'!$AR$7),"",IF(AND(LEFT(W5)="*",RIGHT(W5)="*"),"ff",IF(CC5>CC20,"t",IF(CC5<CC20,"u","g")))) ->  | CD35: =IF(OR(ISERROR(FIND("-",X5)),AL5>'export html'!$AR$7),"",IF(AND(LEFT(X5)="*",RIGHT(X5)="*"),"ff",IF(CD5>CD20,"t",IF(CD5<CD20,"u","g")))) ->  | CE35: =IF(OR(ISERROR(FIND("-",Y5)),AM5>'export html'!$AR$7),"",IF(AND(LEFT(Y5)="*",RIGHT(Y5)="*"),"ff",IF(CE5>CE20,"t",IF(CE5<CE20,"u","g")))) -> t | CF35: =IF(OR(ISERROR(FIND("-",Z5)),AN5>'export html'!$AR$7),"",IF(AND(LEFT(Z5)="*",RIGHT(Z5)="*"),"ff",IF(CF5>CF20,"t",IF(CF5<CF20,"u","g")))) ->  | CG35: =IF(OR(ISERROR(FIND("-",AA5)),AO5>'export html'!$AR$7),"",IF(AND(LEFT(AA5)="*",RIGHT(AA5)="*"),"ff",IF(CG5>CG20,"t",IF(CG5<CG20,"u","g")))) ->  | CH35: =IF(OR(ISERROR(FIND("-",AB5)),AP5>'export html'!$AR$7),"",IF(AND(LEFT(AB5)="*",RIGHT(AB5)="*"),"ff",IF(CH5>CH20,"t",IF(CH5<CH20,"u","g")))) -> t | CI35: =IF(OR(ISERROR(FIND("-",AC5)),AQ5>'export html'!$AR$7),"",IF(AND(LEFT(AC5)="*",RIGHT(AC5)="*"),"ff",IF(CI5>CI20,"t",IF(CI5<CI20,"u","g")))) -> t | CJ35: =IF(OR(ISERROR(FIND("-",AD5)),AR5>'export html'!$AR$7),"",IF(AND(LEFT(AD5)="*",RIGHT(AD5)="*"),"ff",IF(CJ5>CJ20,"t",IF(CJ5<CJ20,"u","g")))) -> g | CK35: 1 | CM35: =IF(OR(ISERROR(FIND("-",R5)),AF5<='export html'!$AR$7),"",IF(AND(LEFT(R5)="*",RIGHT(R5)="*"),"ff",IF(CM5>CM20,"t",IF(CM5<CM20,"u","g")))) ->  | CN35: =IF(OR(ISERROR(FIND("-",S5)),AG5<='export html'!$AR$7),"",IF(AND(LEFT(S5)="*",RIGHT(S5)="*"),"ff",IF(CN5>CN20,"t",IF(CN5<CN20,"u","g")))) ->  | CO35: =IF(OR(ISERROR(FIND("-",T5)),AH5<='export html'!$AR$7),"",IF(AND(LEFT(T5)="*",RIGHT(T5)="*"),"ff",IF(CO5>CO20,"t",IF(CO5<CO20,"u","g")))) -> t | CP35: =IF(OR(ISERROR(FIND("-",U5)),AI5<='export html'!$AR$7),"",IF(AND(LEFT(U5)="*",RIGHT(U5)="*"),"ff",IF(CP5>CP20,"t",IF(CP5<CP20,"u","g")))) -> t | CQ35: =IF(OR(ISERROR(FIND("-",V5)),AJ5<='export html'!$AR$7),"",IF(AND(LEFT(V5)="*",RIGHT(V5)="*"),"ff",IF(CQ5>CQ20,"t",IF(CQ5<CQ20,"u","g")))) ->  | CR35: =IF(OR(ISERROR(FIND("-",W5)),AK5<='export html'!$AR$7),"",IF(AND(LEFT(W5)="*",RIGHT(W5)="*"),"ff",IF(CR5>CR20,"t",IF(CR5<CR20,"u","g")))) -> t | CS35: =IF(OR(ISERROR(FIND("-",X5)),AL5<='export html'!$AR$7),"",IF(AND(LEFT(X5)="*",RIGHT(X5)="*"),"ff",IF(CS5>CS20,"t",IF(CS5<CS20,"u","g")))) -> t | CT35: =IF(OR(ISERROR(FIND("-",Y5)),AM5<='export html'!$AR$7),"",IF(AND(LEFT(Y5)="*",RIGHT(Y5)="*"),"ff",IF(CT5>CT20,"t",IF(CT5<CT20,"u","g")))) ->  | CU35: =IF(OR(ISERROR(FIND("-",Z5)),AN5<='export html'!$AR$7),"",IF(AND(LEFT(Z5)="*",RIGHT(Z5)="*"),"ff",IF(CU5>CU20,"t",IF(CU5<CU20,"u","g")))) -> u | CV35: =IF(OR(ISERROR(FIND("-",AA5)),AO5<='export html'!$AR$7),"",IF(AND(LEFT(AA5)="*",RIGHT(AA5)="*"),"ff",IF(CV5>CV20,"t",IF(CV5<CV20,"u","g")))) -> t | CW35: =IF(OR(ISERROR(FIND("-",AB5)),AP5<='export html'!$AR$7),"",IF(AND(LEFT(AB5)="*",RIGHT(AB5)="*"),"ff",IF(CW5>CW20,"t",IF(CW5<CW20,"u","g")))) ->  | CX35: =IF(OR(ISERROR(FIND("-",AC5)),AQ5<='export html'!$AR$7),"",IF(AND(LEFT(AC5)="*",RIGHT(AC5)="*"),"ff",IF(CX5>CX20,"t",IF(CX5<CX20,"u","g")))) ->  | CY35: =IF(OR(ISERROR(FIND("-",AD5)),AR5<='export html'!$AR$7),"",IF(AND(LEFT(AD5)="*",RIGHT(AD5)="*"),"ff",IF(CY5>CY20,"t",IF(CY5<CY20,"u","g")))) ->  | CZ35: 1
D36: =IF('export html'!A6="","",'export html'!A6) -> 2025-03-30 | E36: =IF('export html'!B6="","",'export html'!B6) -> 25 | F36: =IF('export html'!C6="","",'export html'!C6) -> Bariton - Yerevan United | N36: =IF('export html'!D6="","",'export html'!D6) -> 1-4 | BV36: 2 | BW36: =IF(OR(ISERROR(FIND("-",Q6)),AE6>'export html'!$AR$7),"",IF(AND(LEFT(Q6)="*",RIGHT(Q6)="*"),"ff",IF(BW6>BW21,"t",IF(BW6<BW21,"u","g")))) ->  | BY36: =IF(OR(ISERROR(FIND("-",S6)),AG6>'export html'!$AR$7),"",IF(AND(LEFT(S6)="*",RIGHT(S6)="*"),"ff",IF(BY6>BY21,"t",IF(BY6<BY21,"u","g")))) ->  | BZ36: =IF(OR(ISERROR(FIND("-",T6)),AH6>'export html'!$AR$7),"",IF(AND(LEFT(T6)="*",RIGHT(T6)="*"),"ff",IF(BZ6>BZ21,"t",IF(BZ6<BZ21,"u","g")))) ->  | CA36: =IF(OR(ISERROR(FIND("-",U6)),AI6>'export html'!$AR$7),"",IF(AND(LEFT(U6)="*",RIGHT(U6)="*"),"ff",IF(CA6>CA21,"t",IF(CA6<CA21,"u","g")))) ->  | CB36: =IF(OR(ISERROR(FIND("-",V6)),AJ6>'export html'!$AR$7),"",IF(AND(LEFT(V6)="*",RIGHT(V6)="*"),"ff",IF(CB6>CB21,"t",IF(CB6<CB21,"u","g")))) -> u | CC36: =IF(OR(ISERROR(FIND("-",W6)),AK6>'export html'!$AR$7),"",IF(AND(LEFT(W6)="*",RIGHT(W6)="*"),"ff",IF(CC6>CC21,"t",IF(CC6<CC21,"u","g")))) -> t | CD36: =IF(OR(ISERROR(FIND("-",X6)),AL6>'export html'!$AR$7),"",IF(AND(LEFT(X6)="*",RIGHT(X6)="*"),"ff",IF(CD6>CD21,"t",IF(CD6<CD21,"u","g")))) ->  | CE36: =IF(OR(ISERROR(FIND("-",Y6)),AM6>'export html'!$AR$7),"",IF(AND(LEFT(Y6)="*",RIGHT(Y6)="*"),"ff",IF(CE6>CE21,"t",IF(CE6<CE21,"u","g")))) -> t | CF36: =IF(OR(ISERROR(FIND("-",Z6)),AN6>'export html'!$AR$7),"",IF(AND(LEFT(Z6)="*",RIGHT(Z6)="*"),"ff",IF(CF6>CF21,"t",IF(CF6<CF21,"u","g")))) ->  | CG36: =IF(OR(ISERROR(FIND("-",AA6)),AO6>'export html'!$AR$7),"",IF(AND(LEFT(AA6)="*",RIGHT(AA6)="*"),"ff",IF(CG6>CG21,"t",IF(CG6<CG21,"u","g")))) -> t | CH36: =IF(OR(ISERROR(FIND("-",AB6)),AP6>'export html'!$AR$7),"",IF(AND(LEFT(AB6)="*",RIGHT(AB6)="*"),"ff",IF(CH6>CH21,"t",IF(CH6<CH21,"u","g")))) -> g | CI36: =IF(OR(ISERROR(FIND("-",AC6)),AQ6>'export html'!$AR$7),"",IF(AND(LEFT(AC6)="*",RIGHT(AC6)="*"),"ff",IF(CI6>CI21,"t",IF(CI6<CI21,"u","g")))) -> t | CJ36: =IF(OR(ISERROR(FIND("-",AD6)),AR6>'export html'!$AR$7),"",IF(AND(LEFT(AD6)="*",RIGHT(AD6)="*"),"ff",IF(CJ6>CJ21,"t",IF(CJ6<CJ21,"u","g")))) -> u | CK36: 2 | CL36: =IF(OR(ISERROR(FIND("-",Q6)),AE6<='export html'!$AR$7),"",IF(AND(LEFT(Q6)="*",RIGHT(Q6)="*"),"ff",IF(CL6>CL21,"t",IF(CL6<CL21,"u","g")))) -> t | CN36: =IF(OR(ISERROR(FIND("-",S6)),AG6<='export html'!$AR$7),"",IF(AND(LEFT(S6)="*",RIGHT(S6)="*"),"ff",IF(CN6>CN21,"t",IF(CN6<CN21,"u","g")))) -> g | CO36: =IF(OR(ISERROR(FIND("-",T6)),AH6<='export html'!$AR$7),"",IF(AND(LEFT(T6)="*",RIGHT(T6)="*"),"ff",IF(CO6>CO21,"t",IF(CO6<CO21,"u","g")))) -> t | CP36: =IF(OR(ISERROR(FIND("-",U6)),AI6<='export html'!$AR$7),"",IF(AND(LEFT(U6)="*",RIGHT(U6)="*"),"ff",IF(CP6>CP21,"t",IF(CP6<CP21,"u","g")))) -> t | CQ36: =IF(OR(ISERROR(FIND("-",V6)),AJ6<='export html'!$AR$7),"",IF(AND(LEFT(V6)="*",RIGHT(V6)="*"),"ff",IF(CQ6>CQ21,"t",IF(CQ6<CQ21,"u","g")))) ->  | CR36: =IF(OR(ISERROR(FIND("-",W6)),AK6<='export html'!$AR$7),"",IF(AND(LEFT(W6)="*",RIGHT(W6)="*"),"ff",IF(CR6>CR21,"t",IF(CR6<CR21,"u","g")))) ->  | CS36: =IF(OR(ISERROR(FIND("-",X6)),AL6<='export html'!$AR$7),"",IF(AND(LEFT(X6)="*",RIGHT(X6)="*"),"ff",IF(CS6>CS21,"t",IF(CS6<CS21,"u","g")))) -> g | CT36: =IF(OR(ISERROR(FIND("-",Y6)),AM6<='export html'!$AR$7),"",IF(AND(LEFT(Y6)="*",RIGHT(Y6)="*"),"ff",IF(CT6>CT21,"t",IF(CT6<CT21,"u","g")))) ->  | CU36: =IF(OR(ISERROR(FIND("-",Z6)),AN6<='export html'!$AR$7),"",IF(AND(LEFT(Z6)="*",RIGHT(Z6)="*"),"ff",IF(CU6>CU21,"t",IF(CU6<CU21,"u","g")))) -> t | CV36: =IF(OR(ISERROR(FIND("-",AA6)),AO6<='export html'!$AR$7),"",IF(AND(LEFT(AA6)="*",RIGHT(AA6)="*"),"ff",IF(CV6>CV21,"t",IF(CV6<CV21,"u","g")))) ->  | CW36: =IF(OR(ISERROR(FIND("-",AB6)),AP6<='export html'!$AR$7),"",IF(AND(LEFT(AB6)="*",RIGHT(AB6)="*"),"ff",IF(CW6>CW21,"t",IF(CW6<CW21,"u","g")))) ->  | CX36: =IF(OR(ISERROR(FIND("-",AC6)),AQ6<='export html'!$AR$7),"",IF(AND(LEFT(AC6)="*",RIGHT(AC6)="*"),"ff",IF(CX6>CX21,"t",IF(CX6<CX21,"u","g")))) ->  | CY36: =IF(OR(ISERROR(FIND("-",AD6)),AR6<='export html'!$AR$7),"",IF(AND(LEFT(AD6)="*",RIGHT(AD6)="*"),"ff",IF(CY6>CY21,"t",IF(CY6<CY21,"u","g")))) ->  | CZ36: 2
D37: =IF('export html'!A7="","",'export html'!A7) -> 2025-03-30 | E37: =IF('export html'!B7="","",'export html'!B7) -> 25 | F37: =IF('export html'!C7="","",'export html'!C7) -> Goka - Daltons | N37: =IF('export html'!D7="","",'export html'!D7) -> 0-2 | BV37: 3 | BW37: =IF(OR(ISERROR(FIND("-",Q7)),AE7>'export html'!$AR$7),"",IF(AND(LEFT(Q7)="*",RIGHT(Q7)="*"),"ff",IF(BW7>BW22,"t",IF(BW7<BW22,"u","g")))) ->  | BX37: =IF(OR(ISERROR(FIND("-",R7)),AF7>'export html'!$AR$7),"",IF(AND(LEFT(R7)="*",RIGHT(R7)="*"),"ff",IF(BX7>BX22,"t",IF(BX7<BX22,"u","g")))) -> t | BZ37: =IF(OR(ISERROR(FIND("-",T7)),AH7>'export html'!$AR$7),"",IF(AND(LEFT(T7)="*",RIGHT(T7)="*"),"ff",IF(BZ7>BZ22,"t",IF(BZ7<BZ22,"u","g")))) ->  | CA37: =IF(OR(ISERROR(FIND("-",U7)),AI7>'export html'!$AR$7),"",IF(AND(LEFT(U7)="*",RIGHT(U7)="*"),"ff",IF(CA7>CA22,"t",IF(CA7<CA22,"u","g")))) ->  | CB37: =IF(OR(ISERROR(FIND("-",V7)),AJ7>'export html'!$AR$7),"",IF(AND(LEFT(V7)="*",RIGHT(V7)="*"),"ff",IF(CB7>CB22,"t",IF(CB7<CB22,"u","g")))) -> g | CC37: =IF(OR(ISERROR(FIND("-",W7)),AK7>'export html'!$AR$7),"",IF(AND(LEFT(W7)="*",RIGHT(W7)="*"),"ff",IF(CC7>CC22,"t",IF(CC7<CC22,"u","g")))) -> t | CD37: =IF(OR(ISERROR(FIND("-",X7)),AL7>'export html'!$AR$7),"",IF(AND(LEFT(X7)="*",RIGHT(X7)="*"),"ff",IF(CD7>CD22,"t",IF(CD7<CD22,"u","g")))) ->  | CE37: =IF(OR(ISERROR(FIND("-",Y7)),AM7>'export html'!$AR$7),"",IF(AND(LEFT(Y7)="*",RIGHT(Y7)="*"),"ff",IF(CE7>CE22,"t",IF(CE7<CE22,"u","g")))) -> t | CF37: =IF(OR(ISERROR(FIND("-",Z7)),AN7>'export html'!$AR$7),"",IF(AND(LEFT(Z7)="*",RIGHT(Z7)="*"),"ff",IF(CF7>CF22,"t",IF(CF7<CF22,"u","g")))) ->  | CG37: =IF(OR(ISERROR(FIND("-",AA7)),AO7>'export html'!$AR$7),"",IF(AND(LEFT(AA7)="*",RIGHT(AA7)="*"),"ff",IF(CG7>CG22,"t",IF(CG7<CG22,"u","g")))) ->  | CH37: =IF(OR(ISERROR(FIND("-",AB7)),AP7>'export html'!$AR$7),"",IF(AND(LEFT(AB7)="*",RIGHT(AB7)="*"),"ff",IF(CH7>CH22,"t",IF(CH7<CH22,"u","g")))) -> u | CI37: =IF(OR(ISERROR(FIND("-",AC7)),AQ7>'export html'!$AR$7),"",IF(AND(LEFT(AC7)="*",RIGHT(AC7)="*"),"ff",IF(CI7>CI22,"t",IF(CI7<CI22,"u","g")))) -> u | CJ37: =IF(OR(ISERROR(FIND("-",AD7)),AR7>'export html'!$AR$7),"",IF(AND(LEFT(AD7)="*",RIGHT(AD7)="*"),"ff",IF(CJ7>CJ22,"t",IF(CJ7<CJ22,"u","g")))) -> g | CK37: 3 | CL37: =IF(OR(ISERROR(FIND("-",Q7)),AE7<='export html'!$AR$7),"",IF(AND(LEFT(Q7)="*",RIGHT(Q7)="*"),"ff",IF(CL7>CL22,"t",IF(CL7<CL22,"u","g")))) -> u | CM37: =IF(OR(ISERROR(FIND("-",R7)),AF7<='export html'!$AR$7),"",IF(AND(LEFT(R7)="*",RIGHT(R7)="*"),"ff",IF(CM7>CM22,"t",IF(CM7<CM22,"u","g")))) ->  | CO37: =IF(OR(ISERROR(FIND("-",T7)),AH7<='export html'!$AR$7),"",IF(AND(LEFT(T7)="*",RIGHT(T7)="*"),"ff",IF(CO7>CO22,"t",IF(CO7<CO22,"u","g")))) -> t | CP37: =IF(OR(ISERROR(FIND("-",U7)),AI7<='export html'!$AR$7),"",IF(AND(LEFT(U7)="*",RIGHT(U7)="*"),"ff",IF(CP7>CP22,"t",IF(CP7<CP22,"u","g")))) -> t | CQ37: =IF(OR(ISERROR(FIND("-",V7)),AJ7<='export html'!$AR$7),"",IF(AND(LEFT(V7)="*",RIGHT(V7)="*"),"ff",IF(CQ7>CQ22,"t",IF(CQ7<CQ22,"u","g")))) ->  | CR37: =IF(OR(ISERROR(FIND("-",W7)),AK7<='export html'!$AR$7),"",IF(AND(LEFT(W7)="*",RIGHT(W7)="*"),"ff",IF(CR7>CR22,"t",IF(CR7<CR22,"u","g")))) ->  | CS37: =IF(OR(ISERROR(FIND("-",X7)),AL7<='export html'!$AR$7),"",IF(AND(LEFT(X7)="*",RIGHT(X7)="*"),"ff",IF(CS7>CS22,"t",IF(CS7<CS22,"u","g")))) -> t | CT37: =IF(OR(ISERROR(FIND("-",Y7)),AM7<='export html'!$AR$7),"",IF(AND(LEFT(Y7)="*",RIGHT(Y7)="*"),"ff",IF(CT7>CT22,"t",IF(CT7<CT22,"u","g")))) ->  | CU37: =IF(OR(ISERROR(FIND("-",Z7)),AN7<='export html'!$AR$7),"",IF(AND(LEFT(Z7)="*",RIGHT(Z7)="*"),"ff",IF(CU7>CU22,"t",IF(CU7<CU22,"u","g")))) -> g | CV37: =IF(OR(ISERROR(FIND("-",AA7)),AO7<='export html'!$AR$7),"",IF(AND(LEFT(AA7)="*",RIGHT(AA7)="*"),"ff",IF(CV7>CV22,"t",IF(CV7<CV22,"u","g")))) -> g | CW37: =IF(OR(ISERROR(FIND("-",AB7)),AP7<='export html'!$AR$7),"",IF(AND(LEFT(AB7)="*",RIGHT(AB7)="*"),"ff",IF(CW7>CW22,"t",IF(CW7<CW22,"u","g")))) ->  | CX37: =IF(OR(ISERROR(FIND("-",AC7)),AQ7<='export html'!$AR$7),"",IF(AND(LEFT(AC7)="*",RIGHT(AC7)="*"),"ff",IF(CX7>CX22,"t",IF(CX7<CX22,"u","g")))) ->  | CY37: =IF(OR(ISERROR(FIND("-",AD7)),AR7<='export html'!$AR$7),"",IF(AND(LEFT(AD7)="*",RIGHT(AD7)="*"),"ff",IF(CY7>CY22,"t",IF(CY7<CY22,"u","g")))) ->  | CZ37: 3
D38: =IF('export html'!A8="","",'export html'!A8) -> 2025-03-30 | E38: =IF('export html'!B8="","",'export html'!B8) -> 25 | F38: =IF('export html'!C8="","",'export html'!C8) -> Racing Emblem - Sint Anneke | N38: =IF('export html'!D8="","",'export html'!D8) -> 1-1 | BV38: 4 | BW38: =IF(OR(ISERROR(FIND("-",Q8)),AE8>'export html'!$AR$7),"",IF(AND(LEFT(Q8)="*",RIGHT(Q8)="*"),"ff",IF(BW8>BW23,"t",IF(BW8<BW23,"u","g")))) -> t | BX38: =IF(OR(ISERROR(FIND("-",R8)),AF8>'export html'!$AR$7),"",IF(AND(LEFT(R8)="*",RIGHT(R8)="*"),"ff",IF(BX8>BX23,"t",IF(BX8<BX23,"u","g")))) -> u | BY38: =IF(OR(ISERROR(FIND("-",S8)),AG8>'export html'!$AR$7),"",IF(AND(LEFT(S8)="*",RIGHT(S8)="*"),"ff",IF(BY8>BY23,"t",IF(BY8<BY23,"u","g")))) -> u | CA38: =IF(OR(ISERROR(FIND("-",U8)),AI8>'export html'!$AR$7),"",IF(AND(LEFT(U8)="*",RIGHT(U8)="*"),"ff",IF(CA8>CA23,"t",IF(CA8<CA23,"u","g")))) -> t | CB38: =IF(OR(ISERROR(FIND("-",V8)),AJ8>'export html'!$AR$7),"",IF(AND(LEFT(V8)="*",RIGHT(V8)="*"),"ff",IF(CB8>CB23,"t",IF(CB8<CB23,"u","g")))) ->  | CC38: =IF(OR(ISERROR(FIND("-",W8)),AK8>'export html'!$AR$7),"",IF(AND(LEFT(W8)="*",RIGHT(W8)="*"),"ff",IF(CC8>CC23,"t",IF(CC8<CC23,"u","g")))) ->  | CD38: =IF(OR(ISERROR(FIND("-",X8)),AL8>'export html'!$AR$7),"",IF(AND(LEFT(X8)="*",RIGHT(X8)="*"),"ff",IF(CD8>CD23,"t",IF(CD8<CD23,"u","g")))) -> u | CE38: =IF(OR(ISERROR(FIND("-",Y8)),AM8>'export html'!$AR$7),"",IF(AND(LEFT(Y8)="*",RIGHT(Y8)="*"),"ff",IF(CE8>CE23,"t",IF(CE8<CE23,"u","g")))) -> t | CF38: =IF(OR(ISERROR(FIND("-",Z8)),AN8>'export html'!$AR$7),"",IF(AND(LEFT(Z8)="*",RIGHT(Z8)="*"),"ff",IF(CF8>CF23,"t",IF(CF8<CF23,"u","g")))) -> g | CG38: =IF(OR(ISERROR(FIND("-",AA8)),AO8>'export html'!$AR$7),"",IF(AND(LEFT(AA8)="*",RIGHT(AA8)="*"),"ff",IF(CG8>CG23,"t",IF(CG8<CG23,"u","g")))) ->  | CH38: =IF(OR(ISERROR(FIND("-",AB8)),AP8>'export html'!$AR$7),"",IF(AND(LEFT(AB8)="*",RIGHT(AB8)="*"),"ff",IF(CH8>CH23,"t",IF(CH8<CH23,"u","g")))) ->  | CI38: =IF(OR(ISERROR(FIND("-",AC8)),AQ8>'export html'!$AR$7),"",IF(AND(LEFT(AC8)="*",RIGHT(AC8)="*"),"ff",IF(CI8>CI23,"t",IF(CI8<CI23,"u","g")))) ->  | CJ38: =IF(OR(ISERROR(FIND("-",AD8)),AR8>'export html'!$AR$7),"",IF(AND(LEFT(AD8)="*",RIGHT(AD8)="*"),"ff",IF(CJ8>CJ23,"t",IF(CJ8<CJ23,"u","g")))) ->  | CK38: 4 | CL38: =IF(OR(ISERROR(FIND("-",Q8)),AE8<='export html'!$AR$7),"",IF(AND(LEFT(Q8)="*",RIGHT(Q8)="*"),"ff",IF(CL8>CL23,"t",IF(CL8<CL23,"u","g")))) ->  | CM38: =IF(OR(ISERROR(FIND("-",R8)),AF8<='export html'!$AR$7),"",IF(AND(LEFT(R8)="*",RIGHT(R8)="*"),"ff",IF(CM8>CM23,"t",IF(CM8<CM23,"u","g")))) ->  | CN38: =IF(OR(ISERROR(FIND("-",S8)),AG8<='export html'!$AR$7),"",IF(AND(LEFT(S8)="*",RIGHT(S8)="*"),"ff",IF(CN8>CN23,"t",IF(CN8<CN23,"u","g")))) ->  | CP38: =IF(OR(ISERROR(FIND("-",U8)),AI8<='export html'!$AR$7),"",IF(AND(LEFT(U8)="*",RIGHT(U8)="*"),"ff",IF(CP8>CP23,"t",IF(CP8<CP23,"u","g")))) ->  | CQ38: =IF(OR(ISERROR(FIND("-",V8)),AJ8<='export html'!$AR$7),"",IF(AND(LEFT(V8)="*",RIGHT(V8)="*"),"ff",IF(CQ8>CQ23,"t",IF(CQ8<CQ23,"u","g")))) -> u | CR38: =IF(OR(ISERROR(FIND("-",W8)),AK8<='export html'!$AR$7),"",IF(AND(LEFT(W8)="*",RIGHT(W8)="*"),"ff",IF(CR8>CR23,"t",IF(CR8<CR23,"u","g")))) -> u | CS38: =IF(OR(ISERROR(FIND("-",X8)),AL8<='export html'!$AR$7),"",IF(AND(LEFT(X8)="*",RIGHT(X8)="*"),"ff",IF(CS8>CS23,"t",IF(CS8<CS23,"u","g")))) ->  | CT38: =IF(OR(ISERROR(FIND("-",Y8)),AM8<='export html'!$AR$7),"",IF(AND(LEFT(Y8)="*",RIGHT(Y8)="*"),"ff",IF(CT8>CT23,"t",IF(CT8<CT23,"u","g")))) ->  | CU38: =IF(OR(ISERROR(FIND("-",Z8)),AN8<='export html'!$AR$7),"",IF(AND(LEFT(Z8)="*",RIGHT(Z8)="*"),"ff",IF(CU8>CU23,"t",IF(CU8<CU23,"u","g")))) ->  | CV38: =IF(OR(ISERROR(FIND("-",AA8)),AO8<='export html'!$AR$7),"",IF(AND(LEFT(AA8)="*",RIGHT(AA8)="*"),"ff",IF(CV8>CV23,"t",IF(CV8<CV23,"u","g")))) -> u | CW38: =IF(OR(ISERROR(FIND("-",AB8)),AP8<='export html'!$AR$7),"",IF(AND(LEFT(AB8)="*",RIGHT(AB8)="*"),"ff",IF(CW8>CW23,"t",IF(CW8<CW23,"u","g")))) -> t | CX38: =IF(OR(ISERROR(FIND("-",AC8)),AQ8<='export html'!$AR$7),"",IF(AND(LEFT(AC8)="*",RIGHT(AC8)="*"),"ff",IF(CX8>CX23,"t",IF(CX8<CX23,"u","g")))) -> t | CY38: =IF(OR(ISERROR(FIND("-",AD8)),AR8<='export html'!$AR$7),"",IF(AND(LEFT(AD8)="*",RIGHT(AD8)="*"),"ff",IF(CY8>CY23,"t",IF(CY8<CY23,"u","g")))) -> u | CZ38: 4
D39: =IF('export html'!A9="","",'export html'!A9) -> 2025-03-30 | E39: =IF('export html'!B9="","",'export html'!B9) -> 25 | F39: =IF('export html'!C9="","",'export html'!C9) -> Alberta Schilde - Hombeek | N39: =IF('export html'!D9="","",'export html'!D9) -> 9-2 | BV39: 5 | BW39: =IF(OR(ISERROR(FIND("-",Q9)),AE9>'export html'!$AR$7),"",IF(AND(LEFT(Q9)="*",RIGHT(Q9)="*"),"ff",IF(BW9>BW24,"t",IF(BW9<BW24,"u","g")))) -> u | BX39: =IF(OR(ISERROR(FIND("-",R9)),AF9>'export html'!$AR$7),"",IF(AND(LEFT(R9)="*",RIGHT(R9)="*"),"ff",IF(BX9>BX24,"t",IF(BX9<BX24,"u","g")))) -> g | BY39: =IF(OR(ISERROR(FIND("-",S9)),AG9>'export html'!$AR$7),"",IF(AND(LEFT(S9)="*",RIGHT(S9)="*"),"ff",IF(BY9>BY24,"t",IF(BY9<BY24,"u","g")))) -> t | BZ39: =IF(OR(ISERROR(FIND("-",T9)),AH9>'export html'!$AR$7),"",IF(AND(LEFT(T9)="*",RIGHT(T9)="*"),"ff",IF(BZ9>BZ24,"t",IF(BZ9<BZ24,"u","g")))) ->  | CB39: =IF(OR(ISERROR(FIND("-",V9)),AJ9>'export html'!$AR$7),"",IF(AND(LEFT(V9)="*",RIGHT(V9)="*"),"ff",IF(CB9>CB24,"t",IF(CB9<CB24,"u","g")))) ->  | CC39: =IF(OR(ISERROR(FIND("-",W9)),AK9>'export html'!$AR$7),"",IF(AND(LEFT(W9)="*",RIGHT(W9)="*"),"ff",IF(CC9>CC24,"t",IF(CC9<CC24,"u","g")))) ->  | CD39: =IF(OR(ISERROR(FIND("-",X9)),AL9>'export html'!$AR$7),"",IF(AND(LEFT(X9)="*",RIGHT(X9)="*"),"ff",IF(CD9>CD24,"t",IF(CD9<CD24,"u","g")))) -> u | CE39: =IF(OR(ISERROR(FIND("-",Y9)),AM9>'export html'!$AR$7),"",IF(AND(LEFT(Y9)="*",RIGHT(Y9)="*"),"ff",IF(CE9>CE24,"t",IF(CE9<CE24,"u","g")))) ->  | CF39: =IF(OR(ISERROR(FIND("-",Z9)),AN9>'export html'!$AR$7),"",IF(AND(LEFT(Z9)="*",RIGHT(Z9)="*"),"ff",IF(CF9>CF24,"t",IF(CF9<CF24,"u","g")))) ->  | CG39: =IF(OR(ISERROR(FIND("-",AA9)),AO9>'export html'!$AR$7),"",IF(AND(LEFT(AA9)="*",RIGHT(AA9)="*"),"ff",IF(CG9>CG24,"t",IF(CG9<CG24,"u","g")))) ->  | CH39: =IF(OR(ISERROR(FIND("-",AB9)),AP9>'export html'!$AR$7),"",IF(AND(LEFT(AB9)="*",RIGHT(AB9)="*"),"ff",IF(CH9>CH24,"t",IF(CH9<CH24,"u","g")))) -> u | CI39: =IF(OR(ISERROR(FIND("-",AC9)),AQ9>'export html'!$AR$7),"",IF(AND(LEFT(AC9)="*",RIGHT(AC9)="*"),"ff",IF(CI9>CI24,"t",IF(CI9<CI24,"u","g")))) ->  | CJ39: =IF(OR(ISERROR(FIND("-",AD9)),AR9>'export html'!$AR$7),"",IF(AND(LEFT(AD9)="*",RIGHT(AD9)="*"),"ff",IF(CJ9>CJ24,"t",IF(CJ9<CJ24,"u","g")))) -> u | CK39: 5 | CL39: =IF(OR(ISERROR(FIND("-",Q9)),AE9<='export html'!$AR$7),"",IF(AND(LEFT(Q9)="*",RIGHT(Q9)="*"),"ff",IF(CL9>CL24,"t",IF(CL9<CL24,"u","g")))) ->  | CM39: =IF(OR(ISERROR(FIND("-",R9)),AF9<='export html'!$AR$7),"",IF(AND(LEFT(R9)="*",RIGHT(R9)="*"),"ff",IF(CM9>CM24,"t",IF(CM9<CM24,"u","g")))) ->  | CN39: =IF(OR(ISERROR(FIND("-",S9)),AG9<='export html'!$AR$7),"",IF(AND(LEFT(S9)="*",RIGHT(S9)="*"),"ff",IF(CN9>CN24,"t",IF(CN9<CN24,"u","g")))) ->  | CO39: =IF(OR(ISERROR(FIND("-",T9)),AH9<='export html'!$AR$7),"",IF(AND(LEFT(T9)="*",RIGHT(T9)="*"),"ff",IF(CO9>CO24,"t",IF(CO9<CO24,"u","g")))) -> t | CQ39: =IF(OR(ISERROR(FIND("-",V9)),AJ9<='export html'!$AR$7),"",IF(AND(LEFT(V9)="*",RIGHT(V9)="*"),"ff",IF(CQ9>CQ24,"t",IF(CQ9<CQ24,"u","g")))) -> u | CR39: =IF(OR(ISERROR(FIND("-",W9)),AK9<='export html'!$AR$7),"",IF(AND(LEFT(W9)="*",RIGHT(W9)="*"),"ff",IF(CR9>CR24,"t",IF(CR9<CR24,"u","g")))) ->  | CS39: =IF(OR(ISERROR(FIND("-",X9)),AL9<='export html'!$AR$7),"",IF(AND(LEFT(X9)="*",RIGHT(X9)="*"),"ff",IF(CS9>CS24,"t",IF(CS9<CS24,"u","g")))) ->  | CT39: =IF(OR(ISERROR(FIND("-",Y9)),AM9<='export html'!$AR$7),"",IF(AND(LEFT(Y9)="*",RIGHT(Y9)="*"),"ff",IF(CT9>CT24,"t",IF(CT9<CT24,"u","g")))) -> t | CU39: =IF(OR(ISERROR(FIND("-",Z9)),AN9<='export html'!$AR$7),"",IF(AND(LEFT(Z9)="*",RIGHT(Z9)="*"),"ff",IF(CU9>CU24,"t",IF(CU9<CU24,"u","g")))) -> t | CV39: =IF(OR(ISERROR(FIND("-",AA9)),AO9<='export html'!$AR$7),"",IF(AND(LEFT(AA9)="*",RIGHT(AA9)="*"),"ff",IF(CV9>CV24,"t",IF(CV9<CV24,"u","g")))) -> u | CW39: =IF(OR(ISERROR(FIND("-",AB9)),AP9<='export html'!$AR$7),"",IF(AND(LEFT(AB9)="*",RIGHT(AB9)="*"),"ff",IF(CW9>CW24,"t",IF(CW9<CW24,"u","g")))) ->  | CX39: =IF(OR(ISERROR(FIND("-",AC9)),AQ9<='export html'!$AR$7),"",IF(AND(LEFT(AC9)="*",RIGHT(AC9)="*"),"ff",IF(CX9>CX24,"t",IF(CX9<CX24,"u","g")))) -> t | CY39: =IF(OR(ISERROR(FIND("-",AD9)),AR9<='export html'!$AR$7),"",IF(AND(LEFT(AD9)="*",RIGHT(AD9)="*"),"ff",IF(CY9>CY24,"t",IF(CY9<CY24,"u","g")))) ->  | CZ39: 5
BV40: 6 | BW40: =IF(OR(ISERROR(FIND("-",Q10)),AE10>'export html'!$AR$7),"",IF(AND(LEFT(Q10)="*",RIGHT(Q10)="*"),"ff",IF(BW10>BW25,"t",IF(BW10<BW25,"u","g")))) ->  | BX40: =IF(OR(ISERROR(FIND("-",R10)),AF10>'export html'!$AR$7),"",IF(AND(LEFT(R10)="*",RIGHT(R10)="*"),"ff",IF(BX10>BX25,"t",IF(BX10<BX25,"u","g")))) ->  | BY40: =IF(OR(ISERROR(FIND("-",S10)),AG10>'export html'!$AR$7),"",IF(AND(LEFT(S10)="*",RIGHT(S10)="*"),"ff",IF(BY10>BY25,"t",IF(BY10<BY25,"u","g")))) ->  | BZ40: =IF(OR(ISERROR(FIND("-",T10)),AH10>'export html'!$AR$7),"",IF(AND(LEFT(T10)="*",RIGHT(T10)="*"),"ff",IF(BZ10>BZ25,"t",IF(BZ10<BZ25,"u","g")))) -> t | CA40: =IF(OR(ISERROR(FIND("-",U10)),AI10>'export html'!$AR$7),"",IF(AND(LEFT(U10)="*",RIGHT(U10)="*"),"ff",IF(CA10>CA25,"t",IF(CA10<CA25,"u","g")))) -> t | CC40: =IF(OR(ISERROR(FIND("-",W10)),AK10>'export html'!$AR$7),"",IF(AND(LEFT(W10)="*",RIGHT(W10)="*"),"ff",IF(CC10>CC25,"t",IF(CC10<CC25,"u","g")))) -> t | CD40: =IF(OR(ISERROR(FIND("-",X10)),AL10>'export html'!$AR$7),"",IF(AND(LEFT(X10)="*",RIGHT(X10)="*"),"ff",IF(CD10>CD25,"t",IF(CD10<CD25,"u","g")))) ->  | CE40: =IF(OR(ISERROR(FIND("-",Y10)),AM10>'export html'!$AR$7),"",IF(AND(LEFT(Y10)="*",RIGHT(Y10)="*"),"ff",IF(CE10>CE25,"t",IF(CE10<CE25,"u","g")))) ->  | CF40: =IF(OR(ISERROR(FIND("-",Z10)),AN10>'export html'!$AR$7),"",IF(AND(LEFT(Z10)="*",RIGHT(Z10)="*"),"ff",IF(CF10>CF25,"t",IF(CF10<CF25,"u","g")))) -> t | CG40: =IF(OR(ISERROR(FIND("-",AA10)),AO10>'export html'!$AR$7),"",IF(AND(LEFT(AA10)="*",RIGHT(AA10)="*"),"ff",IF(CG10>CG25,"t",IF(CG10<CG25,"u","g")))) -> t | CH40: =IF(OR(ISERROR(FIND("-",AB10)),AP10>'export html'!$AR$7),"",IF(AND(LEFT(AB10)="*",RIGHT(AB10)="*"),"ff",IF(CH10>CH25,"t",IF(CH10<CH25,"u","g")))) ->  | CI40: =IF(OR(ISERROR(FIND("-",AC10)),AQ10>'export html'!$AR$7),"",IF(AND(LEFT(AC10)="*",RIGHT(AC10)="*"),"ff",IF(CI10>CI25,"t",IF(CI10<CI25,"u","g")))) -> t | CJ40: =IF(OR(ISERROR(FIND("-",AD10)),AR10>'export html'!$AR$7),"",IF(AND(LEFT(AD10)="*",RIGHT(AD10)="*"),"ff",IF(CJ10>CJ25,"t",IF(CJ10<CJ25,"u","g")))) ->  | CK40: 6 | CL40: =IF(OR(ISERROR(FIND("-",Q10)),AE10<='export html'!$AR$7),"",IF(AND(LEFT(Q10)="*",RIGHT(Q10)="*"),"ff",IF(CL10>CL25,"t",IF(CL10<CL25,"u","g")))) ->  | CM40: =IF(OR(ISERROR(FIND("-",R10)),AF10<='export html'!$AR$7),"",IF(AND(LEFT(R10)="*",RIGHT(R10)="*"),"ff",IF(CM10>CM25,"t",IF(CM10<CM25,"u","g")))) -> t | CN40: =IF(OR(ISERROR(FIND("-",S10)),AG10<='export html'!$AR$7),"",IF(AND(LEFT(S10)="*",RIGHT(S10)="*"),"ff",IF(CN10>CN25,"t",IF(CN10<CN25,"u","g")))) -> t | CO40: =IF(OR(ISERROR(FIND("-",T10)),AH10<='export html'!$AR$7),"",IF(AND(LEFT(T10)="*",RIGHT(T10)="*"),"ff",IF(CO10>CO25,"t",IF(CO10<CO25,"u","g")))) ->  | CP40: =IF(OR(ISERROR(FIND("-",U10)),AI10<='export html'!$AR$7),"",IF(AND(LEFT(U10)="*",RIGHT(U10)="*"),"ff",IF(CP10>CP25,"t",IF(CP10<CP25,"u","g")))) ->  | CR40: =IF(OR(ISERROR(FIND("-",W10)),AK10<='export html'!$AR$7),"",IF(AND(LEFT(W10)="*",RIGHT(W10)="*"),"ff",IF(CR10>CR25,"t",IF(CR10<CR25,"u","g")))) ->  | CS40: =IF(OR(ISERROR(FIND("-",X10)),AL10<='export html'!$AR$7),"",IF(AND(LEFT(X10)="*",RIGHT(X10)="*"),"ff",IF(CS10>CS25,"t",IF(CS10<CS25,"u","g")))) -> t | CT40: =IF(OR(ISERROR(FIND("-",Y10)),AM10<='export html'!$AR$7),"",IF(AND(LEFT(Y10)="*",RIGHT(Y10)="*"),"ff",IF(CT10>CT25,"t",IF(CT10<CT25,"u","g")))) -> t | CU40: =IF(OR(ISERROR(FIND("-",Z10)),AN10<='export html'!$AR$7),"",IF(AND(LEFT(Z10)="*",RIGHT(Z10)="*"),"ff",IF(CU10>CU25,"t",IF(CU10<CU25,"u","g")))) ->  | CV40: =IF(OR(ISERROR(FIND("-",AA10)),AO10<='export html'!$AR$7),"",IF(AND(LEFT(AA10)="*",RIGHT(AA10)="*"),"ff",IF(CV10>CV25,"t",IF(CV10<CV25,"u","g")))) ->  | CW40: =IF(OR(ISERROR(FIND("-",AB10)),AP10<='export html'!$AR$7),"",IF(AND(LEFT(AB10)="*",RIGHT(AB10)="*"),"ff",IF(CW10>CW25,"t",IF(CW10<CW25,"u","g")))) -> t | CX40: =IF(OR(ISERROR(FIND("-",AC10)),AQ10<='export html'!$AR$7),"",IF(AND(LEFT(AC10)="*",RIGHT(AC10)="*"),"ff",IF(CX10>CX25,"t",IF(CX10<CX25,"u","g")))) ->  | CY40: =IF(OR(ISERROR(FIND("-",AD10)),AR10<='export html'!$AR$7),"",IF(AND(LEFT(AD10)="*",RIGHT(AD10)="*"),"ff",IF(CY10>CY25,"t",IF(CY10<CY25,"u","g")))) -> t | CZ40: 6
BV41: 7 | BW41: =IF(OR(ISERROR(FIND("-",Q11)),AE11>'export html'!$AR$7),"",IF(AND(LEFT(Q11)="*",RIGHT(Q11)="*"),"ff",IF(BW11>BW26,"t",IF(BW11<BW26,"u","g")))) -> t | BX41: =IF(OR(ISERROR(FIND("-",R11)),AF11>'export html'!$AR$7),"",IF(AND(LEFT(R11)="*",RIGHT(R11)="*"),"ff",IF(BX11>BX26,"t",IF(BX11<BX26,"u","g")))) ->  | BY41: =IF(OR(ISERROR(FIND("-",S11)),AG11>'export html'!$AR$7),"",IF(AND(LEFT(S11)="*",RIGHT(S11)="*"),"ff",IF(BY11>BY26,"t",IF(BY11<BY26,"u","g")))) ->  | BZ41: =IF(OR(ISERROR(FIND("-",T11)),AH11>'export html'!$AR$7),"",IF(AND(LEFT(T11)="*",RIGHT(T11)="*"),"ff",IF(BZ11>BZ26,"t",IF(BZ11<BZ26,"u","g")))) -> t | CA41: =IF(OR(ISERROR(FIND("-",U11)),AI11>'export html'!$AR$7),"",IF(AND(LEFT(U11)="*",RIGHT(U11)="*"),"ff",IF(CA11>CA26,"t",IF(CA11<CA26,"u","g")))) -> g | CB41: =IF(OR(ISERROR(FIND("-",V11)),AJ11>'export html'!$AR$7),"",IF(AND(LEFT(V11)="*",RIGHT(V11)="*"),"ff",IF(CB11>CB26,"t",IF(CB11<CB26,"u","g")))) ->  | CD41: =IF(OR(ISERROR(FIND("-",X11)),AL11>'export html'!$AR$7),"",IF(AND(LEFT(X11)="*",RIGHT(X11)="*"),"ff",IF(CD11>CD26,"t",IF(CD11<CD26,"u","g")))) -> g | CE41: =IF(OR(ISERROR(FIND("-",Y11)),AM11>'export html'!$AR$7),"",IF(AND(LEFT(Y11)="*",RIGHT(Y11)="*"),"ff",IF(CE11>CE26,"t",IF(CE11<CE26,"u","g")))) -> t | CF41: =IF(OR(ISERROR(FIND("-",Z11)),AN11>'export html'!$AR$7),"",IF(AND(LEFT(Z11)="*",RIGHT(Z11)="*"),"ff",IF(CF11>CF26,"t",IF(CF11<CF26,"u","g")))) -> t | CG41: =IF(OR(ISERROR(FIND("-",AA11)),AO11>'export html'!$AR$7),"",IF(AND(LEFT(AA11)="*",RIGHT(AA11)="*"),"ff",IF(CG11>CG26,"t",IF(CG11<CG26,"u","g")))) -> u | CH41: =IF(OR(ISERROR(FIND("-",AB11)),AP11>'export html'!$AR$7),"",IF(AND(LEFT(AB11)="*",RIGHT(AB11)="*"),"ff",IF(CH11>CH26,"t",IF(CH11<CH26,"u","g")))) ->  | CI41: =IF(OR(ISERROR(FIND("-",AC11)),AQ11>'export html'!$AR$7),"",IF(AND(LEFT(AC11)="*",RIGHT(AC11)="*"),"ff",IF(CI11>CI26,"t",IF(CI11<CI26,"u","g")))) ->  | CJ41: =IF(OR(ISERROR(FIND("-",AD11)),AR11>'export html'!$AR$7),"",IF(AND(LEFT(AD11)="*",RIGHT(AD11)="*"),"ff",IF(CJ11>CJ26,"t",IF(CJ11<CJ26,"u","g")))) ->  | CK41: 7 | CL41: =IF(OR(ISERROR(FIND("-",Q11)),AE11<='export html'!$AR$7),"",IF(AND(LEFT(Q11)="*",RIGHT(Q11)="*"),"ff",IF(CL11>CL26,"t",IF(CL11<CL26,"u","g")))) ->  | CM41: =IF(OR(ISERROR(FIND("-",R11)),AF11<='export html'!$AR$7),"",IF(AND(LEFT(R11)="*",RIGHT(R11)="*"),"ff",IF(CM11>CM26,"t",IF(CM11<CM26,"u","g")))) -> u | CN41: =IF(OR(ISERROR(FIND("-",S11)),AG11<='export html'!$AR$7),"",IF(AND(LEFT(S11)="*",RIGHT(S11)="*"),"ff",IF(CN11>CN26,"t",IF(CN11<CN26,"u","g")))) -> u | CO41: =IF(OR(ISERROR(FIND("-",T11)),AH11<='export html'!$AR$7),"",IF(AND(LEFT(T11)="*",RIGHT(T11)="*"),"ff",IF(CO11>CO26,"t",IF(CO11<CO26,"u","g")))) ->  | CP41: =IF(OR(ISERROR(FIND("-",U11)),AI11<='export html'!$AR$7),"",IF(AND(LEFT(U11)="*",RIGHT(U11)="*"),"ff",IF(CP11>CP26,"t",IF(CP11<CP26,"u","g")))) ->  | CQ41: =IF(OR(ISERROR(FIND("-",V11)),AJ11<='export html'!$AR$7),"",IF(AND(LEFT(V11)="*",RIGHT(V11)="*"),"ff",IF(CQ11>CQ26,"t",IF(CQ11<CQ26,"u","g")))) -> u | CS41: =IF(OR(ISERROR(FIND("-",X11)),AL11<='export html'!$AR$7),"",IF(AND(LEFT(X11)="*",RIGHT(X11)="*"),"ff",IF(CS11>CS26,"t",IF(CS11<CS26,"u","g")))) ->  | CT41: =IF(OR(ISERROR(FIND("-",Y11)),AM11<='export html'!$AR$7),"",IF(AND(LEFT(Y11)="*",RIGHT(Y11)="*"),"ff",IF(CT11>CT26,"t",IF(CT11<CT26,"u","g")))) ->  | CU41: =IF(OR(ISERROR(FIND("-",Z11)),AN11<='export html'!$AR$7),"",IF(AND(LEFT(Z11)="*",RIGHT(Z11)="*"),"ff",IF(CU11>CU26,"t",IF(CU11<CU26,"u","g")))) ->  | CV41: =IF(OR(ISERROR(FIND("-",AA11)),AO11<='export html'!$AR$7),"",IF(AND(LEFT(AA11)="*",RIGHT(AA11)="*"),"ff",IF(CV11>CV26,"t",IF(CV11<CV26,"u","g")))) ->  | CW41: =IF(OR(ISERROR(FIND("-",AB11)),AP11<='export html'!$AR$7),"",IF(AND(LEFT(AB11)="*",RIGHT(AB11)="*"),"ff",IF(CW11>CW26,"t",IF(CW11<CW26,"u","g")))) -> g | CX41: =IF(OR(ISERROR(FIND("-",AC11)),AQ11<='export html'!$AR$7),"",IF(AND(LEFT(AC11)="*",RIGHT(AC11)="*"),"ff",IF(CX11>CX26,"t",IF(CX11<CX26,"u","g")))) -> u | CY41: =IF(OR(ISERROR(FIND("-",AD11)),AR11<='export html'!$AR$7),"",IF(AND(LEFT(AD11)="*",RIGHT(AD11)="*"),"ff",IF(CY11>CY26,"t",IF(CY11<CY26,"u","g")))) -> u | CZ41: 7
BV42: 8 | BW42: =IF(OR(ISERROR(FIND("-",Q12)),AE12>'export html'!$AR$7),"",IF(AND(LEFT(Q12)="*",RIGHT(Q12)="*"),"ff",IF(BW12>BW27,"t",IF(BW12<BW27,"u","g")))) -> u | BX42: =IF(OR(ISERROR(FIND("-",R12)),AF12>'export html'!$AR$7),"",IF(AND(LEFT(R12)="*",RIGHT(R12)="*"),"ff",IF(BX12>BX27,"t",IF(BX12<BX27,"u","g")))) -> t | BY42: =IF(OR(ISERROR(FIND("-",S12)),AG12>'export html'!$AR$7),"",IF(AND(LEFT(S12)="*",RIGHT(S12)="*"),"ff",IF(BY12>BY27,"t",IF(BY12<BY27,"u","g")))) -> u | BZ42: =IF(OR(ISERROR(FIND("-",T12)),AH12>'export html'!$AR$7),"",IF(AND(LEFT(T12)="*",RIGHT(T12)="*"),"ff",IF(BZ12>BZ27,"t",IF(BZ12<BZ27,"u","g")))) ->  | CA42: =IF(OR(ISERROR(FIND("-",U12)),AI12>'export html'!$AR$7),"",IF(AND(LEFT(U12)="*",RIGHT(U12)="*"),"ff",IF(CA12>CA27,"t",IF(CA12<CA27,"u","g")))) ->  | CB42: =IF(OR(ISERROR(FIND("-",V12)),AJ12>'export html'!$AR$7),"",IF(AND(LEFT(V12)="*",RIGHT(V12)="*"),"ff",IF(CB12>CB27,"t",IF(CB12<CB27,"u","g")))) -> u | CC42: =IF(OR(ISERROR(FIND("-",W12)),AK12>'export html'!$AR$7),"",IF(AND(LEFT(W12)="*",RIGHT(W12)="*"),"ff",IF(CC12>CC27,"t",IF(CC12<CC27,"u","g")))) ->  | CE42: =IF(OR(ISERROR(FIND("-",Y12)),AM12>'export html'!$AR$7),"",IF(AND(LEFT(Y12)="*",RIGHT(Y12)="*"),"ff",IF(CE12>CE27,"t",IF(CE12<CE27,"u","g")))) ->  | CF42: =IF(OR(ISERROR(FIND("-",Z12)),AN12>'export html'!$AR$7),"",IF(AND(LEFT(Z12)="*",RIGHT(Z12)="*"),"ff",IF(CF12>CF27,"t",IF(CF12<CF27,"u","g")))) ->  | CG42: =IF(OR(ISERROR(FIND("-",AA12)),AO12>'export html'!$AR$7),"",IF(AND(LEFT(AA12)="*",RIGHT(AA12)="*"),"ff",IF(CG12>CG27,"t",IF(CG12<CG27,"u","g")))) ->  | CH42: =IF(OR(ISERROR(FIND("-",AB12)),AP12>'export html'!$AR$7),"",IF(AND(LEFT(AB12)="*",RIGHT(AB12)="*"),"ff",IF(CH12>CH27,"t",IF(CH12<CH27,"u","g")))) -> u | CI42: =IF(OR(ISERROR(FIND("-",AC12)),AQ12>'export html'!$AR$7),"",IF(AND(LEFT(AC12)="*",RIGHT(AC12)="*"),"ff",IF(CI12>CI27,"t",IF(CI12<CI27,"u","g")))) ->  | CJ42: =IF(OR(ISERROR(FIND("-",AD12)),AR12>'export html'!$AR$7),"",IF(AND(LEFT(AD12)="*",RIGHT(AD12)="*"),"ff",IF(CJ12>CJ27,"t",IF(CJ12<CJ27,"u","g")))) -> g | CK42: 8 | CL42: =IF(OR(ISERROR(FIND("-",Q12)),AE12<='export html'!$AR$7),"",IF(AND(LEFT(Q12)="*",RIGHT(Q12)="*"),"ff",IF(CL12>CL27,"t",IF(CL12<CL27,"u","g")))) ->  | CM42: =IF(OR(ISERROR(FIND("-",R12)),AF12<='export html'!$AR$7),"",IF(AND(LEFT(R12)="*",RIGHT(R12)="*"),"ff",IF(CM12>CM27,"t",IF(CM12<CM27,"u","g")))) ->  | CN42: =IF(OR(ISERROR(FIND("-",S12)),AG12<='export html'!$AR$7),"",IF(AND(LEFT(S12)="*",RIGHT(S12)="*"),"ff",IF(CN12>CN27,"t",IF(CN12<CN27,"u","g")))) ->  | CO42: =IF(OR(ISERROR(FIND("-",T12)),AH12<='export html'!$AR$7),"",IF(AND(LEFT(T12)="*",RIGHT(T12)="*"),"ff",IF(CO12>CO27,"t",IF(CO12<CO27,"u","g")))) -> t | CP42: =IF(OR(ISERROR(FIND("-",U12)),AI12<='export html'!$AR$7),"",IF(AND(LEFT(U12)="*",RIGHT(U12)="*"),"ff",IF(CP12>CP27,"t",IF(CP12<CP27,"u","g")))) -> u | CQ42: =IF(OR(ISERROR(FIND("-",V12)),AJ12<='export html'!$AR$7),"",IF(AND(LEFT(V12)="*",RIGHT(V12)="*"),"ff",IF(CQ12>CQ27,"t",IF(CQ12<CQ27,"u","g")))) ->  | CR42: =IF(OR(ISERROR(FIND("-",W12)),AK12<='export html'!$AR$7),"",IF(AND(LEFT(W12)="*",RIGHT(W12)="*"),"ff",IF(CR12>CR27,"t",IF(CR12<CR27,"u","g")))) -> t | CT42: =IF(OR(ISERROR(FIND("-",Y12)),AM12<='export html'!$AR$7),"",IF(AND(LEFT(Y12)="*",RIGHT(Y12)="*"),"ff",IF(CT12>CT27,"t",IF(CT12<CT27,"u","g")))) -> t | CU42: =IF(OR(ISERROR(FIND("-",Z12)),AN12<='export html'!$AR$7),"",IF(AND(LEFT(Z12)="*",RIGHT(Z12)="*"),"ff",IF(CU12>CU27,"t",IF(CU12<CU27,"u","g")))) ->  | CV42: =IF(OR(ISERROR(FIND("-",AA12)),AO12<='export html'!$AR$7),"",IF(AND(LEFT(AA12)="*",RIGHT(AA12)="*"),"ff",IF(CV12>CV27,"t",IF(CV12<CV27,"u","g")))) -> u | CW42: =IF(OR(ISERROR(FIND("-",AB12)),AP12<='export html'!$AR$7),"",IF(AND(LEFT(AB12)="*",RIGHT(AB12)="*"),"ff",IF(CW12>CW27,"t",IF(CW12<CW27,"u","g")))) ->  | CX42: =IF(OR(ISERROR(FIND("-",AC12)),AQ12<='export html'!$AR$7),"",IF(AND(LEFT(AC12)="*",RIGHT(AC12)="*"),"ff",IF(CX12>CX27,"t",IF(CX12<CX27,"u","g")))) ->  | CY42: =IF(OR(ISERROR(FIND("-",AD12)),AR12<='export html'!$AR$7),"",IF(AND(LEFT(AD12)="*",RIGHT(AD12)="*"),"ff",IF(CY12>CY27,"t",IF(CY12<CY27,"u","g")))) ->  | CZ42: 8
BV43: 9 | BW43: =IF(OR(ISERROR(FIND("-",Q13)),AE13>'export html'!$AR$7),"",IF(AND(LEFT(Q13)="*",RIGHT(Q13)="*"),"ff",IF(BW13>BW28,"t",IF(BW13<BW28,"u","g")))) ->  | BX43: =IF(OR(ISERROR(FIND("-",R13)),AF13>'export html'!$AR$7),"",IF(AND(LEFT(R13)="*",RIGHT(R13)="*"),"ff",IF(BX13>BX28,"t",IF(BX13<BX28,"u","g")))) ->  | BY43: =IF(OR(ISERROR(FIND("-",S13)),AG13>'export html'!$AR$7),"",IF(AND(LEFT(S13)="*",RIGHT(S13)="*"),"ff",IF(BY13>BY28,"t",IF(BY13<BY28,"u","g")))) ->  | BZ43: =IF(OR(ISERROR(FIND("-",T13)),AH13>'export html'!$AR$7),"",IF(AND(LEFT(T13)="*",RIGHT(T13)="*"),"ff",IF(BZ13>BZ28,"t",IF(BZ13<BZ28,"u","g")))) ->  | CA43: =IF(OR(ISERROR(FIND("-",U13)),AI13>'export html'!$AR$7),"",IF(AND(LEFT(U13)="*",RIGHT(U13)="*"),"ff",IF(CA13>CA28,"t",IF(CA13<CA28,"u","g")))) -> u | CB43: =IF(OR(ISERROR(FIND("-",V13)),AJ13>'export html'!$AR$7),"",IF(AND(LEFT(V13)="*",RIGHT(V13)="*"),"ff",IF(CB13>CB28,"t",IF(CB13<CB28,"u","g")))) -> u | CC43: =IF(OR(ISERROR(FIND("-",W13)),AK13>'export html'!$AR$7),"",IF(AND(LEFT(W13)="*",RIGHT(W13)="*"),"ff",IF(CC13>CC28,"t",IF(CC13<CC28,"u","g")))) ->  | CD43: =IF(OR(ISERROR(FIND("-",X13)),AL13>'export html'!$AR$7),"",IF(AND(LEFT(X13)="*",RIGHT(X13)="*"),"ff",IF(CD13>CD28,"t",IF(CD13<CD28,"u","g")))) -> u | CF43: =IF(OR(ISERROR(FIND("-",Z13)),AN13>'export html'!$AR$7),"",IF(AND(LEFT(Z13)="*",RIGHT(Z13)="*"),"ff",IF(CF13>CF28,"t",IF(CF13<CF28,"u","g")))) -> g | CG43: =IF(OR(ISERROR(FIND("-",AA13)),AO13>'export html'!$AR$7),"",IF(AND(LEFT(AA13)="*",RIGHT(AA13)="*"),"ff",IF(CG13>CG28,"t",IF(CG13<CG28,"u","g")))) ->  | CH43: =IF(OR(ISERROR(FIND("-",AB13)),AP13>'export html'!$AR$7),"",IF(AND(LEFT(AB13)="*",RIGHT(AB13)="*"),"ff",IF(CH13>CH28,"t",IF(CH13<CH28,"u","g")))) -> u | CI43: =IF(OR(ISERROR(FIND("-",AC13)),AQ13>'export html'!$AR$7),"",IF(AND(LEFT(AC13)="*",RIGHT(AC13)="*"),"ff",IF(CI13>CI28,"t",IF(CI13<CI28,"u","g")))) -> t | CJ43: =IF(OR(ISERROR(FIND("-",AD13)),AR13>'export html'!$AR$7),"",IF(AND(LEFT(AD13)="*",RIGHT(AD13)="*"),"ff",IF(CJ13>CJ28,"t",IF(CJ13<CJ28,"u","g")))) -> u | CK43: 9 | CL43: =IF(OR(ISERROR(FIND("-",Q13)),AE13<='export html'!$AR$7),"",IF(AND(LEFT(Q13)="*",RIGHT(Q13)="*"),"ff",IF(CL13>CL28,"t",IF(CL13<CL28,"u","g")))) -> u | CM43: =IF(OR(ISERROR(FIND("-",R13)),AF13<='export html'!$AR$7),"",IF(AND(LEFT(R13)="*",RIGHT(R13)="*"),"ff",IF(CM13>CM28,"t",IF(CM13<CM28,"u","g")))) -> u | CN43: =IF(OR(ISERROR(FIND("-",S13)),AG13<='export html'!$AR$7),"",IF(AND(LEFT(S13)="*",RIGHT(S13)="*"),"ff",IF(CN13>CN28,"t",IF(CN13<CN28,"u","g")))) -> u | CO43: =IF(OR(ISERROR(FIND("-",T13)),AH13<='export html'!$AR$7),"",IF(AND(LEFT(T13)="*",RIGHT(T13)="*"),"ff",IF(CO13>CO28,"t",IF(CO13<CO28,"u","g")))) ->  | CP43: =IF(OR(ISERROR(FIND("-",U13)),AI13<='export html'!$AR$7),"",IF(AND(LEFT(U13)="*",RIGHT(U13)="*"),"ff",IF(CP13>CP28,"t",IF(CP13<CP28,"u","g")))) ->  | CQ43: =IF(OR(ISERROR(FIND("-",V13)),AJ13<='export html'!$AR$7),"",IF(AND(LEFT(V13)="*",RIGHT(V13)="*"),"ff",IF(CQ13>CQ28,"t",IF(CQ13<CQ28,"u","g")))) ->  | CR43: =IF(OR(ISERROR(FIND("-",W13)),AK13<='export html'!$AR$7),"",IF(AND(LEFT(W13)="*",RIGHT(W13)="*"),"ff",IF(CR13>CR28,"t",IF(CR13<CR28,"u","g")))) -> g | CS43: =IF(OR(ISERROR(FIND("-",X13)),AL13<='export html'!$AR$7),"",IF(AND(LEFT(X13)="*",RIGHT(X13)="*"),"ff",IF(CS13>CS28,"t",IF(CS13<CS28,"u","g")))) ->  | CU43: =IF(OR(ISERROR(FIND("-",Z13)),AN13<='export html'!$AR$7),"",IF(AND(LEFT(Z13)="*",RIGHT(Z13)="*"),"ff",IF(CU13>CU28,"t",IF(CU13<CU28,"u","g")))) ->  | CV43: =IF(OR(ISERROR(FIND("-",AA13)),AO13<='export html'!$AR$7),"",IF(AND(LEFT(AA13)="*",RIGHT(AA13)="*"),"ff",IF(CV13>CV28,"t",IF(CV13<CV28,"u","g")))) ->  | CW43: =IF(OR(ISERROR(FIND("-",AB13)),AP13<='export html'!$AR$7),"",IF(AND(LEFT(AB13)="*",RIGHT(AB13)="*"),"ff",IF(CW13>CW28,"t",IF(CW13<CW28,"u","g")))) ->  | CX43: =IF(OR(ISERROR(FIND("-",AC13)),AQ13<='export html'!$AR$7),"",IF(AND(LEFT(AC13)="*",RIGHT(AC13)="*"),"ff",IF(CX13>CX28,"t",IF(CX13<CX28,"u","g")))) ->  | CY43: =IF(OR(ISERROR(FIND("-",AD13)),AR13<='export html'!$AR$7),"",IF(AND(LEFT(AD13)="*",RIGHT(AD13)="*"),"ff",IF(CY13>CY28,"t",IF(CY13<CY28,"u","g")))) ->  | CZ43: 9
BV44: 10 | BW44: =IF(OR(ISERROR(FIND("-",Q14)),AE14>'export html'!$AR$7),"",IF(AND(LEFT(Q14)="*",RIGHT(Q14)="*"),"ff",IF(BW14>BW29,"t",IF(BW14<BW29,"u","g")))) -> u | BX44: =IF(OR(ISERROR(FIND("-",R14)),AF14>'export html'!$AR$7),"",IF(AND(LEFT(R14)="*",RIGHT(R14)="*"),"ff",IF(BX14>BX29,"t",IF(BX14<BX29,"u","g")))) -> u | BY44: =IF(OR(ISERROR(FIND("-",S14)),AG14>'export html'!$AR$7),"",IF(AND(LEFT(S14)="*",RIGHT(S14)="*"),"ff",IF(BY14>BY29,"t",IF(BY14<BY29,"u","g")))) -> u | BZ44: =IF(OR(ISERROR(FIND("-",T14)),AH14>'export html'!$AR$7),"",IF(AND(LEFT(T14)="*",RIGHT(T14)="*"),"ff",IF(BZ14>BZ29,"t",IF(BZ14<BZ29,"u","g")))) ->  | CA44: =IF(OR(ISERROR(FIND("-",U14)),AI14>'export html'!$AR$7),"",IF(AND(LEFT(U14)="*",RIGHT(U14)="*"),"ff",IF(CA14>CA29,"t",IF(CA14<CA29,"u","g")))) -> g | CB44: =IF(OR(ISERROR(FIND("-",V14)),AJ14>'export html'!$AR$7),"",IF(AND(LEFT(V14)="*",RIGHT(V14)="*"),"ff",IF(CB14>CB29,"t",IF(CB14<CB29,"u","g")))) ->  | CC44: =IF(OR(ISERROR(FIND("-",W14)),AK14>'export html'!$AR$7),"",IF(AND(LEFT(W14)="*",RIGHT(W14)="*"),"ff",IF(CC14>CC29,"t",IF(CC14<CC29,"u","g")))) ->  | CD44: =IF(OR(ISERROR(FIND("-",X14)),AL14>'export html'!$AR$7),"",IF(AND(LEFT(X14)="*",RIGHT(X14)="*"),"ff",IF(CD14>CD29,"t",IF(CD14<CD29,"u","g")))) -> t | CE44: =IF(OR(ISERROR(FIND("-",Y14)),AM14>'export html'!$AR$7),"",IF(AND(LEFT(Y14)="*",RIGHT(Y14)="*"),"ff",IF(CE14>CE29,"t",IF(CE14<CE29,"u","g")))) ->  | CG44: =IF(OR(ISERROR(FIND("-",AA14)),AO14>'export html'!$AR$7),"",IF(AND(LEFT(AA14)="*",RIGHT(AA14)="*"),"ff",IF(CG14>CG29,"t",IF(CG14<CG29,"u","g")))) ->  | CH44: =IF(OR(ISERROR(FIND("-",AB14)),AP14>'export html'!$AR$7),"",IF(AND(LEFT(AB14)="*",RIGHT(AB14)="*"),"ff",IF(CH14>CH29,"t",IF(CH14<CH29,"u","g")))) ->  | CI44: =IF(OR(ISERROR(FIND("-",AC14)),AQ14>'export html'!$AR$7),"",IF(AND(LEFT(AC14)="*",RIGHT(AC14)="*"),"ff",IF(CI14>CI29,"t",IF(CI14<CI29,"u","g")))) ->  | CJ44: =IF(OR(ISERROR(FIND("-",AD14)),AR14>'export html'!$AR$7),"",IF(AND(LEFT(AD14)="*",RIGHT(AD14)="*"),"ff",IF(CJ14>CJ29,"t",IF(CJ14<CJ29,"u","g")))) -> t | CK44: 10 | CL44: =IF(OR(ISERROR(FIND("-",Q14)),AE14<='export html'!$AR$7),"",IF(AND(LEFT(Q14)="*",RIGHT(Q14)="*"),"ff",IF(CL14>CL29,"t",IF(CL14<CL29,"u","g")))) ->  | CM44: =IF(OR(ISERROR(FIND("-",R14)),AF14<='export html'!$AR$7),"",IF(AND(LEFT(R14)="*",RIGHT(R14)="*"),"ff",IF(CM14>CM29,"t",IF(CM14<CM29,"u","g")))) ->  | CN44: =IF(OR(ISERROR(FIND("-",S14)),AG14<='export html'!$AR$7),"",IF(AND(LEFT(S14)="*",RIGHT(S14)="*"),"ff",IF(CN14>CN29,"t",IF(CN14<CN29,"u","g")))) ->  | CO44: =IF(OR(ISERROR(FIND("-",T14)),AH14<='export html'!$AR$7),"",IF(AND(LEFT(T14)="*",RIGHT(T14)="*"),"ff",IF(CO14>CO29,"t",IF(CO14<CO29,"u","g")))) -> t | CP44: =IF(OR(ISERROR(FIND("-",U14)),AI14<='export html'!$AR$7),"",IF(AND(LEFT(U14)="*",RIGHT(U14)="*"),"ff",IF(CP14>CP29,"t",IF(CP14<CP29,"u","g")))) ->  | CQ44: =IF(OR(ISERROR(FIND("-",V14)),AJ14<='export html'!$AR$7),"",IF(AND(LEFT(V14)="*",RIGHT(V14)="*"),"ff",IF(CQ14>CQ29,"t",IF(CQ14<CQ29,"u","g")))) -> u | CR44: =IF(OR(ISERROR(FIND("-",W14)),AK14<='export html'!$AR$7),"",IF(AND(LEFT(W14)="*",RIGHT(W14)="*"),"ff",IF(CR14>CR29,"t",IF(CR14<CR29,"u","g")))) -> t | CS44: =IF(OR(ISERROR(FIND("-",X14)),AL14<='export html'!$AR$7),"",IF(AND(LEFT(X14)="*",RIGHT(X14)="*"),"ff",IF(CS14>CS29,"t",IF(CS14<CS29,"u","g")))) ->  | CT44: =IF(OR(ISERROR(FIND("-",Y14)),AM14<='export html'!$AR$7),"",IF(AND(LEFT(Y14)="*",RIGHT(Y14)="*"),"ff",IF(CT14>CT29,"t",IF(CT14<CT29,"u","g")))) -> g | CV44: =IF(OR(ISERROR(FIND("-",AA14)),AO14<='export html'!$AR$7),"",IF(AND(LEFT(AA14)="*",RIGHT(AA14)="*"),"ff",IF(CV14>CV29,"t",IF(CV14<CV29,"u","g")))) ->  | CW44: =IF(OR(ISERROR(FIND("-",AB14)),AP14<='export html'!$AR$7),"",IF(AND(LEFT(AB14)="*",RIGHT(AB14)="*"),"ff",IF(CW14>CW29,"t",IF(CW14<CW29,"u","g")))) -> t | CX44: =IF(OR(ISERROR(FIND("-",AC14)),AQ14<='export html'!$AR$7),"",IF(AND(LEFT(AC14)="*",RIGHT(AC14)="*"),"ff",IF(CX14>CX29,"t",IF(CX14<CX29,"u","g")))) -> u | CY44: =IF(OR(ISERROR(FIND("-",AD14)),AR14<='export html'!$AR$7),"",IF(AND(LEFT(AD14)="*",RIGHT(AD14)="*"),"ff",IF(CY14>CY29,"t",IF(CY14<CY29,"u","g")))) ->  | CZ44: 10
BV45: 11 | BW45: =IF(OR(ISERROR(FIND("-",Q15)),AE15>'export html'!$AR$7),"",IF(AND(LEFT(Q15)="*",RIGHT(Q15)="*"),"ff",IF(BW15>BW30,"t",IF(BW15<BW30,"u","g")))) -> t | BX45: =IF(OR(ISERROR(FIND("-",R15)),AF15>'export html'!$AR$7),"",IF(AND(LEFT(R15)="*",RIGHT(R15)="*"),"ff",IF(BX15>BX30,"t",IF(BX15<BX30,"u","g")))) ->  | BY45: =IF(OR(ISERROR(FIND("-",S15)),AG15>'export html'!$AR$7),"",IF(AND(LEFT(S15)="*",RIGHT(S15)="*"),"ff",IF(BY15>BY30,"t",IF(BY15<BY30,"u","g")))) -> t | BZ45: =IF(OR(ISERROR(FIND("-",T15)),AH15>'export html'!$AR$7),"",IF(AND(LEFT(T15)="*",RIGHT(T15)="*"),"ff",IF(BZ15>BZ30,"t",IF(BZ15<BZ30,"u","g")))) -> u | CA45: =IF(OR(ISERROR(FIND("-",U15)),AI15>'export html'!$AR$7),"",IF(AND(LEFT(U15)="*",RIGHT(U15)="*"),"ff",IF(CA15>CA30,"t",IF(CA15<CA30,"u","g")))) -> t | CB45: =IF(OR(ISERROR(FIND("-",V15)),AJ15>'export html'!$AR$7),"",IF(AND(LEFT(V15)="*",RIGHT(V15)="*"),"ff",IF(CB15>CB30,"t",IF(CB15<CB30,"u","g")))) ->  | CC45: =IF(OR(ISERROR(FIND("-",W15)),AK15>'export html'!$AR$7),"",IF(AND(LEFT(W15)="*",RIGHT(W15)="*"),"ff",IF(CC15>CC30,"t",IF(CC15<CC30,"u","g")))) ->  | CD45: =IF(OR(ISERROR(FIND("-",X15)),AL15>'export html'!$AR$7),"",IF(AND(LEFT(X15)="*",RIGHT(X15)="*"),"ff",IF(CD15>CD30,"t",IF(CD15<CD30,"u","g")))) -> u | CE45: =IF(OR(ISERROR(FIND("-",Y15)),AM15>'export html'!$AR$7),"",IF(AND(LEFT(Y15)="*",RIGHT(Y15)="*"),"ff",IF(CE15>CE30,"t",IF(CE15<CE30,"u","g")))) -> t | CF45: =IF(OR(ISERROR(FIND("-",Z15)),AN15>'export html'!$AR$7),"",IF(AND(LEFT(Z15)="*",RIGHT(Z15)="*"),"ff",IF(CF15>CF30,"t",IF(CF15<CF30,"u","g")))) -> t | CH45: =IF(OR(ISERROR(FIND("-",AB15)),AP15>'export html'!$AR$7),"",IF(AND(LEFT(AB15)="*",RIGHT(AB15)="*"),"ff",IF(CH15>CH30,"t",IF(CH15<CH30,"u","g")))) ->  | CI45: =IF(OR(ISERROR(FIND("-",AC15)),AQ15>'export html'!$AR$7),"",IF(AND(LEFT(AC15)="*",RIGHT(AC15)="*"),"ff",IF(CI15>CI30,"t",IF(CI15<CI30,"u","g")))) ->  | CJ45: =IF(OR(ISERROR(FIND("-",AD15)),AR15>'export html'!$AR$7),"",IF(AND(LEFT(AD15)="*",RIGHT(AD15)="*"),"ff",IF(CJ15>CJ30,"t",IF(CJ15<CJ30,"u","g")))) ->  | CK45: 11 | CL45: =IF(OR(ISERROR(FIND("-",Q15)),AE15<='export html'!$AR$7),"",IF(AND(LEFT(Q15)="*",RIGHT(Q15)="*"),"ff",IF(CL15>CL30,"t",IF(CL15<CL30,"u","g")))) ->  | CM45: =IF(OR(ISERROR(FIND("-",R15)),AF15<='export html'!$AR$7),"",IF(AND(LEFT(R15)="*",RIGHT(R15)="*"),"ff",IF(CM15>CM30,"t",IF(CM15<CM30,"u","g")))) -> u | CN45: =IF(OR(ISERROR(FIND("-",S15)),AG15<='export html'!$AR$7),"",IF(AND(LEFT(S15)="*",RIGHT(S15)="*"),"ff",IF(CN15>CN30,"t",IF(CN15<CN30,"u","g")))) ->  | CO45: =IF(OR(ISERROR(FIND("-",T15)),AH15<='export html'!$AR$7),"",IF(AND(LEFT(T15)="*",RIGHT(T15)="*"),"ff",IF(CO15>CO30,"t",IF(CO15<CO30,"u","g")))) ->  | CP45: =IF(OR(ISERROR(FIND("-",U15)),AI15<='export html'!$AR$7),"",IF(AND(LEFT(U15)="*",RIGHT(U15)="*"),"ff",IF(CP15>CP30,"t",IF(CP15<CP30,"u","g")))) ->  | CQ45: =IF(OR(ISERROR(FIND("-",V15)),AJ15<='export html'!$AR$7),"",IF(AND(LEFT(V15)="*",RIGHT(V15)="*"),"ff",IF(CQ15>CQ30,"t",IF(CQ15<CQ30,"u","g")))) -> g | CR45: =IF(OR(ISERROR(FIND("-",W15)),AK15<='export html'!$AR$7),"",IF(AND(LEFT(W15)="*",RIGHT(W15)="*"),"ff",IF(CR15>CR30,"t",IF(CR15<CR30,"u","g")))) -> t | CS45: =IF(OR(ISERROR(FIND("-",X15)),AL15<='export html'!$AR$7),"",IF(AND(LEFT(X15)="*",RIGHT(X15)="*"),"ff",IF(CS15>CS30,"t",IF(CS15<CS30,"u","g")))) ->  | CT45: =IF(OR(ISERROR(FIND("-",Y15)),AM15<='export html'!$AR$7),"",IF(AND(LEFT(Y15)="*",RIGHT(Y15)="*"),"ff",IF(CT15>CT30,"t",IF(CT15<CT30,"u","g")))) ->  | CU45: =IF(OR(ISERROR(FIND("-",Z15)),AN15<='export html'!$AR$7),"",IF(AND(LEFT(Z15)="*",RIGHT(Z15)="*"),"ff",IF(CU15>CU30,"t",IF(CU15<CU30,"u","g")))) ->  | CW45: =IF(OR(ISERROR(FIND("-",AB15)),AP15<='export html'!$AR$7),"",IF(AND(LEFT(AB15)="*",RIGHT(AB15)="*"),"ff",IF(CW15>CW30,"t",IF(CW15<CW30,"u","g")))) -> g | CX45: =IF(OR(ISERROR(FIND("-",AC15)),AQ15<='export html'!$AR$7),"",IF(AND(LEFT(AC15)="*",RIGHT(AC15)="*"),"ff",IF(CX15>CX30,"t",IF(CX15<CX30,"u","g")))) -> u | CY45: =IF(OR(ISERROR(FIND("-",AD15)),AR15<='export html'!$AR$7),"",IF(AND(LEFT(AD15)="*",RIGHT(AD15)="*"),"ff",IF(CY15>CY30,"t",IF(CY15<CY30,"u","g")))) -> u | CZ45: 11
BV46: 12 | BW46: =IF(OR(ISERROR(FIND("-",Q16)),AE16>'export html'!$AR$7),"",IF(AND(LEFT(Q16)="*",RIGHT(Q16)="*"),"ff",IF(BW16>BW31,"t",IF(BW16<BW31,"u","g")))) ->  | BX46: =IF(OR(ISERROR(FIND("-",R16)),AF16>'export html'!$AR$7),"",IF(AND(LEFT(R16)="*",RIGHT(R16)="*"),"ff",IF(BX16>BX31,"t",IF(BX16<BX31,"u","g")))) ->  | BY46: =IF(OR(ISERROR(FIND("-",S16)),AG16>'export html'!$AR$7),"",IF(AND(LEFT(S16)="*",RIGHT(S16)="*"),"ff",IF(BY16>BY31,"t",IF(BY16<BY31,"u","g")))) ->  | BZ46: =IF(OR(ISERROR(FIND("-",T16)),AH16>'export html'!$AR$7),"",IF(AND(LEFT(T16)="*",RIGHT(T16)="*"),"ff",IF(BZ16>BZ31,"t",IF(BZ16<BZ31,"u","g")))) -> t | CA46: =IF(OR(ISERROR(FIND("-",U16)),AI16>'export html'!$AR$7),"",IF(AND(LEFT(U16)="*",RIGHT(U16)="*"),"ff",IF(CA16>CA31,"t",IF(CA16<CA31,"u","g")))) ->  | CB46: =IF(OR(ISERROR(FIND("-",V16)),AJ16>'export html'!$AR$7),"",IF(AND(LEFT(V16)="*",RIGHT(V16)="*"),"ff",IF(CB16>CB31,"t",IF(CB16<CB31,"u","g")))) -> u | CC46: =IF(OR(ISERROR(FIND("-",W16)),AK16>'export html'!$AR$7),"",IF(AND(LEFT(W16)="*",RIGHT(W16)="*"),"ff",IF(CC16>CC31,"t",IF(CC16<CC31,"u","g")))) -> t | CD46: =IF(OR(ISERROR(FIND("-",X16)),AL16>'export html'!$AR$7),"",IF(AND(LEFT(X16)="*",RIGHT(X16)="*"),"ff",IF(CD16>CD31,"t",IF(CD16<CD31,"u","g")))) ->  | CE46: =IF(OR(ISERROR(FIND("-",Y16)),AM16>'export html'!$AR$7),"",IF(AND(LEFT(Y16)="*",RIGHT(Y16)="*"),"ff",IF(CE16>CE31,"t",IF(CE16<CE31,"u","g")))) ->  | CF46: =IF(OR(ISERROR(FIND("-",Z16)),AN16>'export html'!$AR$7),"",IF(AND(LEFT(Z16)="*",RIGHT(Z16)="*"),"ff",IF(CF16>CF31,"t",IF(CF16<CF31,"u","g")))) -> t | CG46: =IF(OR(ISERROR(FIND("-",AA16)),AO16>'export html'!$AR$7),"",IF(AND(LEFT(AA16)="*",RIGHT(AA16)="*"),"ff",IF(CG16>CG31,"t",IF(CG16<CG31,"u","g")))) -> u | CI46: =IF(OR(ISERROR(FIND("-",AC16)),AQ16>'export html'!$AR$7),"",IF(AND(LEFT(AC16)="*",RIGHT(AC16)="*"),"ff",IF(CI16>CI31,"t",IF(CI16<CI31,"u","g")))) -> t | CJ46: =IF(OR(ISERROR(FIND("-",AD16)),AR16>'export html'!$AR$7),"",IF(AND(LEFT(AD16)="*",RIGHT(AD16)="*"),"ff",IF(CJ16>CJ31,"t",IF(CJ16<CJ31,"u","g")))) ->  | CK46: 12 | CL46: =IF(OR(ISERROR(FIND("-",Q16)),AE16<='export html'!$AR$7),"",IF(AND(LEFT(Q16)="*",RIGHT(Q16)="*"),"ff",IF(CL16>CL31,"t",IF(CL16<CL31,"u","g")))) -> u | CM46: =IF(OR(ISERROR(FIND("-",R16)),AF16<='export html'!$AR$7),"",IF(AND(LEFT(R16)="*",RIGHT(R16)="*"),"ff",IF(CM16>CM31,"t",IF(CM16<CM31,"u","g")))) -> u | CN46: =IF(OR(ISERROR(FIND("-",S16)),AG16<='export html'!$AR$7),"",IF(AND(LEFT(S16)="*",RIGHT(S16)="*"),"ff",IF(CN16>CN31,"t",IF(CN16<CN31,"u","g")))) ->  | CO46: =IF(OR(ISERROR(FIND("-",T16)),AH16<='export html'!$AR$7),"",IF(AND(LEFT(T16)="*",RIGHT(T16)="*"),"ff",IF(CO16>CO31,"t",IF(CO16<CO31,"u","g")))) ->  | CP46: =IF(OR(ISERROR(FIND("-",U16)),AI16<='export html'!$AR$7),"",IF(AND(LEFT(U16)="*",RIGHT(U16)="*"),"ff",IF(CP16>CP31,"t",IF(CP16<CP31,"u","g")))) -> t | CQ46: =IF(OR(ISERROR(FIND("-",V16)),AJ16<='export html'!$AR$7),"",IF(AND(LEFT(V16)="*",RIGHT(V16)="*"),"ff",IF(CQ16>CQ31,"t",IF(CQ16<CQ31,"u","g")))) ->  | CR46: =IF(OR(ISERROR(FIND("-",W16)),AK16<='export html'!$AR$7),"",IF(AND(LEFT(W16)="*",RIGHT(W16)="*"),"ff",IF(CR16>CR31,"t",IF(CR16<CR31,"u","g")))) ->  | CS46: =IF(OR(ISERROR(FIND("-",X16)),AL16<='export html'!$AR$7),"",IF(AND(LEFT(X16)="*",RIGHT(X16)="*"),"ff",IF(CS16>CS31,"t",IF(CS16<CS31,"u","g")))) -> t | CT46: =IF(OR(ISERROR(FIND("-",Y16)),AM16<='export html'!$AR$7),"",IF(AND(LEFT(Y16)="*",RIGHT(Y16)="*"),"ff",IF(CT16>CT31,"t",IF(CT16<CT31,"u","g")))) -> t | CU46: =IF(OR(ISERROR(FIND("-",Z16)),AN16<='export html'!$AR$7),"",IF(AND(LEFT(Z16)="*",RIGHT(Z16)="*"),"ff",IF(CU16>CU31,"t",IF(CU16<CU31,"u","g")))) ->  | CV46: =IF(OR(ISERROR(FIND("-",AA16)),AO16<='export html'!$AR$7),"",IF(AND(LEFT(AA16)="*",RIGHT(AA16)="*"),"ff",IF(CV16>CV31,"t",IF(CV16<CV31,"u","g")))) ->  | CX46: =IF(OR(ISERROR(FIND("-",AC16)),AQ16<='export html'!$AR$7),"",IF(AND(LEFT(AC16)="*",RIGHT(AC16)="*"),"ff",IF(CX16>CX31,"t",IF(CX16<CX31,"u","g")))) ->  | CY46: =IF(OR(ISERROR(FIND("-",AD16)),AR16<='export html'!$AR$7),"",IF(AND(LEFT(AD16)="*",RIGHT(AD16)="*"),"ff",IF(CY16>CY31,"t",IF(CY16<CY31,"u","g")))) -> u | CZ46: 12
BV47: 13 | BW47: =IF(OR(ISERROR(FIND("-",Q17)),AE17>'export html'!$AR$7),"",IF(AND(LEFT(Q17)="*",RIGHT(Q17)="*"),"ff",IF(BW17>BW32,"t",IF(BW17<BW32,"u","g")))) ->  | BX47: =IF(OR(ISERROR(FIND("-",R17)),AF17>'export html'!$AR$7),"",IF(AND(LEFT(R17)="*",RIGHT(R17)="*"),"ff",IF(BX17>BX32,"t",IF(BX17<BX32,"u","g")))) ->  | BY47: =IF(OR(ISERROR(FIND("-",S17)),AG17>'export html'!$AR$7),"",IF(AND(LEFT(S17)="*",RIGHT(S17)="*"),"ff",IF(BY17>BY32,"t",IF(BY17<BY32,"u","g")))) ->  | BZ47: =IF(OR(ISERROR(FIND("-",T17)),AH17>'export html'!$AR$7),"",IF(AND(LEFT(T17)="*",RIGHT(T17)="*"),"ff",IF(BZ17>BZ32,"t",IF(BZ17<BZ32,"u","g")))) -> g | CA47: =IF(OR(ISERROR(FIND("-",U17)),AI17>'export html'!$AR$7),"",IF(AND(LEFT(U17)="*",RIGHT(U17)="*"),"ff",IF(CA17>CA32,"t",IF(CA17<CA32,"u","g")))) -> g | CB47: =IF(OR(ISERROR(FIND("-",V17)),AJ17>'export html'!$AR$7),"",IF(AND(LEFT(V17)="*",RIGHT(V17)="*"),"ff",IF(CB17>CB32,"t",IF(CB17<CB32,"u","g")))) ->  | CC47: =IF(OR(ISERROR(FIND("-",W17)),AK17>'export html'!$AR$7),"",IF(AND(LEFT(W17)="*",RIGHT(W17)="*"),"ff",IF(CC17>CC32,"t",IF(CC17<CC32,"u","g")))) -> t | CD47: =IF(OR(ISERROR(FIND("-",X17)),AL17>'export html'!$AR$7),"",IF(AND(LEFT(X17)="*",RIGHT(X17)="*"),"ff",IF(CD17>CD32,"t",IF(CD17<CD32,"u","g")))) -> t | CE47: =IF(OR(ISERROR(FIND("-",Y17)),AM17>'export html'!$AR$7),"",IF(AND(LEFT(Y17)="*",RIGHT(Y17)="*"),"ff",IF(CE17>CE32,"t",IF(CE17<CE32,"u","g")))) ->  | CF47: =IF(OR(ISERROR(FIND("-",Z17)),AN17>'export html'!$AR$7),"",IF(AND(LEFT(Z17)="*",RIGHT(Z17)="*"),"ff",IF(CF17>CF32,"t",IF(CF17<CF32,"u","g")))) -> t | CG47: =IF(OR(ISERROR(FIND("-",AA17)),AO17>'export html'!$AR$7),"",IF(AND(LEFT(AA17)="*",RIGHT(AA17)="*"),"ff",IF(CG17>CG32,"t",IF(CG17<CG32,"u","g")))) -> u | CH47: =IF(OR(ISERROR(FIND("-",AB17)),AP17>'export html'!$AR$7),"",IF(AND(LEFT(AB17)="*",RIGHT(AB17)="*"),"ff",IF(CH17>CH32,"t",IF(CH17<CH32,"u","g")))) ->  | CJ47: =IF(OR(ISERROR(FIND("-",AD17)),AR17>'export html'!$AR$7),"",IF(AND(LEFT(AD17)="*",RIGHT(AD17)="*"),"ff",IF(CJ17>CJ32,"t",IF(CJ17<CJ32,"u","g")))) ->  | CK47: 13 | CL47: =IF(OR(ISERROR(FIND("-",Q17)),AE17<='export html'!$AR$7),"",IF(AND(LEFT(Q17)="*",RIGHT(Q17)="*"),"ff",IF(CL17>CL32,"t",IF(CL17<CL32,"u","g")))) -> g | CM47: =IF(OR(ISERROR(FIND("-",R17)),AF17<='export html'!$AR$7),"",IF(AND(LEFT(R17)="*",RIGHT(R17)="*"),"ff",IF(CM17>CM32,"t",IF(CM17<CM32,"u","g")))) -> g | CN47: =IF(OR(ISERROR(FIND("-",S17)),AG17<='export html'!$AR$7),"",IF(AND(LEFT(S17)="*",RIGHT(S17)="*"),"ff",IF(CN17>CN32,"t",IF(CN17<CN32,"u","g")))) -> t | CO47: =IF(OR(ISERROR(FIND("-",T17)),AH17<='export html'!$AR$7),"",IF(AND(LEFT(T17)="*",RIGHT(T17)="*"),"ff",IF(CO17>CO32,"t",IF(CO17<CO32,"u","g")))) ->  | CP47: =IF(OR(ISERROR(FIND("-",U17)),AI17<='export html'!$AR$7),"",IF(AND(LEFT(U17)="*",RIGHT(U17)="*"),"ff",IF(CP17>CP32,"t",IF(CP17<CP32,"u","g")))) ->  | CQ47: =IF(OR(ISERROR(FIND("-",V17)),AJ17<='export html'!$AR$7),"",IF(AND(LEFT(V17)="*",RIGHT(V17)="*"),"ff",IF(CQ17>CQ32,"t",IF(CQ17<CQ32,"u","g")))) -> g | CR47: =IF(OR(ISERROR(FIND("-",W17)),AK17<='export html'!$AR$7),"",IF(AND(LEFT(W17)="*",RIGHT(W17)="*"),"ff",IF(CR17>CR32,"t",IF(CR17<CR32,"u","g")))) ->  | CS47: =IF(OR(ISERROR(FIND("-",X17)),AL17<='export html'!$AR$7),"",IF(AND(LEFT(X17)="*",RIGHT(X17)="*"),"ff",IF(CS17>CS32,"t",IF(CS17<CS32,"u","g")))) ->  | CT47: =IF(OR(ISERROR(FIND("-",Y17)),AM17<='export html'!$AR$7),"",IF(AND(LEFT(Y17)="*",RIGHT(Y17)="*"),"ff",IF(CT17>CT32,"t",IF(CT17<CT32,"u","g")))) -> t | CU47: =IF(OR(ISERROR(FIND("-",Z17)),AN17<='export html'!$AR$7),"",IF(AND(LEFT(Z17)="*",RIGHT(Z17)="*"),"ff",IF(CU17>CU32,"t",IF(CU17<CU32,"u","g")))) ->  | CV47: =IF(OR(ISERROR(FIND("-",AA17)),AO17<='export html'!$AR$7),"",IF(AND(LEFT(AA17)="*",RIGHT(AA17)="*"),"ff",IF(CV17>CV32,"t",IF(CV17<CV32,"u","g")))) ->  | CW47: =IF(OR(ISERROR(FIND("-",AB17)),AP17<='export html'!$AR$7),"",IF(AND(LEFT(AB17)="*",RIGHT(AB17)="*"),"ff",IF(CW17>CW32,"t",IF(CW17<CW32,"u","g")))) -> g | CY47: =IF(OR(ISERROR(FIND("-",AD17)),AR17<='export html'!$AR$7),"",IF(AND(LEFT(AD17)="*",RIGHT(AD17)="*"),"ff",IF(CY17>CY32,"t",IF(CY17<CY32,"u","g")))) -> u | CZ47: 13
BV48: 14 | BW48: =IF(OR(ISERROR(FIND("-",Q18)),AE18>'export html'!$AR$7),"",IF(AND(LEFT(Q18)="*",RIGHT(Q18)="*"),"ff",IF(BW18>BW33,"t",IF(BW18<BW33,"u","g")))) ->  | BX48: =IF(OR(ISERROR(FIND("-",R18)),AF18>'export html'!$AR$7),"",IF(AND(LEFT(R18)="*",RIGHT(R18)="*"),"ff",IF(BX18>BX33,"t",IF(BX18<BX33,"u","g")))) ->  | BY48: =IF(OR(ISERROR(FIND("-",S18)),AG18>'export html'!$AR$7),"",IF(AND(LEFT(S18)="*",RIGHT(S18)="*"),"ff",IF(BY18>BY33,"t",IF(BY18<BY33,"u","g")))) ->  | BZ48: =IF(OR(ISERROR(FIND("-",T18)),AH18>'export html'!$AR$7),"",IF(AND(LEFT(T18)="*",RIGHT(T18)="*"),"ff",IF(BZ18>BZ33,"t",IF(BZ18<BZ33,"u","g")))) -> t | CA48: =IF(OR(ISERROR(FIND("-",U18)),AI18>'export html'!$AR$7),"",IF(AND(LEFT(U18)="*",RIGHT(U18)="*"),"ff",IF(CA18>CA33,"t",IF(CA18<CA33,"u","g")))) ->  | CB48: =IF(OR(ISERROR(FIND("-",V18)),AJ18>'export html'!$AR$7),"",IF(AND(LEFT(V18)="*",RIGHT(V18)="*"),"ff",IF(CB18>CB33,"t",IF(CB18<CB33,"u","g")))) -> u | CC48: =IF(OR(ISERROR(FIND("-",W18)),AK18>'export html'!$AR$7),"",IF(AND(LEFT(W18)="*",RIGHT(W18)="*"),"ff",IF(CC18>CC33,"t",IF(CC18<CC33,"u","g")))) -> t | CD48: =IF(OR(ISERROR(FIND("-",X18)),AL18>'export html'!$AR$7),"",IF(AND(LEFT(X18)="*",RIGHT(X18)="*"),"ff",IF(CD18>CD33,"t",IF(CD18<CD33,"u","g")))) ->  | CE48: =IF(OR(ISERROR(FIND("-",Y18)),AM18>'export html'!$AR$7),"",IF(AND(LEFT(Y18)="*",RIGHT(Y18)="*"),"ff",IF(CE18>CE33,"t",IF(CE18<CE33,"u","g")))) ->  | CF48: =IF(OR(ISERROR(FIND("-",Z18)),AN18>'export html'!$AR$7),"",IF(AND(LEFT(Z18)="*",RIGHT(Z18)="*"),"ff",IF(CF18>CF33,"t",IF(CF18<CF33,"u","g")))) ->  | CG48: =IF(OR(ISERROR(FIND("-",AA18)),AO18>'export html'!$AR$7),"",IF(AND(LEFT(AA18)="*",RIGHT(AA18)="*"),"ff",IF(CG18>CG33,"t",IF(CG18<CG33,"u","g")))) -> t | CH48: =IF(OR(ISERROR(FIND("-",AB18)),AP18>'export html'!$AR$7),"",IF(AND(LEFT(AB18)="*",RIGHT(AB18)="*"),"ff",IF(CH18>CH33,"t",IF(CH18<CH33,"u","g")))) -> t | CI48: =IF(OR(ISERROR(FIND("-",AC18)),AQ18>'export html'!$AR$7),"",IF(AND(LEFT(AC18)="*",RIGHT(AC18)="*"),"ff",IF(CI18>CI33,"t",IF(CI18<CI33,"u","g")))) -> t | CK48: 14 | CL48: =IF(OR(ISERROR(FIND("-",Q18)),AE18<='export html'!$AR$7),"",IF(AND(LEFT(Q18)="*",RIGHT(Q18)="*"),"ff",IF(CL18>CL33,"t",IF(CL18<CL33,"u","g")))) -> t | CM48: =IF(OR(ISERROR(FIND("-",R18)),AF18<='export html'!$AR$7),"",IF(AND(LEFT(R18)="*",RIGHT(R18)="*"),"ff",IF(CM18>CM33,"t",IF(CM18<CM33,"u","g")))) ->  | CN48: =IF(OR(ISERROR(FIND("-",S18)),AG18<='export html'!$AR$7),"",IF(AND(LEFT(S18)="*",RIGHT(S18)="*"),"ff",IF(CN18>CN33,"t",IF(CN18<CN33,"u","g")))) -> u | CO48: =IF(OR(ISERROR(FIND("-",T18)),AH18<='export html'!$AR$7),"",IF(AND(LEFT(T18)="*",RIGHT(T18)="*"),"ff",IF(CO18>CO33,"t",IF(CO18<CO33,"u","g")))) ->  | CP48: =IF(OR(ISERROR(FIND("-",U18)),AI18<='export html'!$AR$7),"",IF(AND(LEFT(U18)="*",RIGHT(U18)="*"),"ff",IF(CP18>CP33,"t",IF(CP18<CP33,"u","g")))) -> t | CQ48: =IF(OR(ISERROR(FIND("-",V18)),AJ18<='export html'!$AR$7),"",IF(AND(LEFT(V18)="*",RIGHT(V18)="*"),"ff",IF(CQ18>CQ33,"t",IF(CQ18<CQ33,"u","g")))) ->  | CR48: =IF(OR(ISERROR(FIND("-",W18)),AK18<='export html'!$AR$7),"",IF(AND(LEFT(W18)="*",RIGHT(W18)="*"),"ff",IF(CR18>CR33,"t",IF(CR18<CR33,"u","g")))) ->  | CS48: =IF(OR(ISERROR(FIND("-",X18)),AL18<='export html'!$AR$7),"",IF(AND(LEFT(X18)="*",RIGHT(X18)="*"),"ff",IF(CS18>CS33,"t",IF(CS18<CS33,"u","g")))) -> u | CT48: =IF(OR(ISERROR(FIND("-",Y18)),AM18<='export html'!$AR$7),"",IF(AND(LEFT(Y18)="*",RIGHT(Y18)="*"),"ff",IF(CT18>CT33,"t",IF(CT18<CT33,"u","g")))) -> t | CU48: =IF(OR(ISERROR(FIND("-",Z18)),AN18<='export html'!$AR$7),"",IF(AND(LEFT(Z18)="*",RIGHT(Z18)="*"),"ff",IF(CU18>CU33,"t",IF(CU18<CU33,"u","g")))) -> u | CV48: =IF(OR(ISERROR(FIND("-",AA18)),AO18<='export html'!$AR$7),"",IF(AND(LEFT(AA18)="*",RIGHT(AA18)="*"),"ff",IF(CV18>CV33,"t",IF(CV18<CV33,"u","g")))) ->  | CW48: =IF(OR(ISERROR(FIND("-",AB18)),AP18<='export html'!$AR$7),"",IF(AND(LEFT(AB18)="*",RIGHT(AB18)="*"),"ff",IF(CW18>CW33,"t",IF(CW18<CW33,"u","g")))) ->  | CX48: =IF(OR(ISERROR(FIND("-",AC18)),AQ18<='export html'!$AR$7),"",IF(AND(LEFT(AC18)="*",RIGHT(AC18)="*"),"ff",IF(CX18>CX33,"t",IF(CX18<CX33,"u","g")))) ->  | CZ48: 14
BW49: 1 | BX49: 2 | BY49: 3 | BZ49: 4 | CA49: 5 | CB49: 6 | CC49: 7 | CD49: 8 | CE49: 9 | CF49: 10 | CG49: 11 | CH49: 12 | CI49: 13 | CJ49: 14 | CL49: 1 | CM49: 2 | CN49: 3 | CO49: 4 | CP49: 5 | CQ49: 6 | CR49: 7 | CS49: 8 | CT49: 9 | CU49: 10 | CV49: 11 | CW49: 12 | CX49: 13 | CY49: 14

Sheet kalender
B2: Spd. | C2: Datum | D2: Thuisploeg | F2: Uitploeg | G2: Uitslag
A3: Competitie | B3: =IF(LEN('export html'!BF3),'export html'!BF3,"") -> 1 | C3: =IF(LEN('export html'!BE3),'export html'!BE3,"") -> 2024-09-01 | D3: =IF(LEN('export html'!BI3),'export html'!BI3,"") -> Lucyvo | E3: =IF(LEN('export html'!BI3),"-","") -> - | F3: =IF(LEN('export html'!BJ3),'export html'!BJ3,"") -> Bar Patron | G3: =IF(LEN('export html'!BH3),'export html'!BH3,"") -> 2-4
B4: =IF(LEN('export html'!BF4),'export html'!BF4,"") -> 2 | C4: =IF(LEN('export html'!BE4),'export html'!BE4,"") -> 2024-09-08 | D4: =IF(LEN('export html'!BI4),'export html'!BI4,"") -> Goka | E4: =IF(LEN('export html'!BI4),"-","") -> - | F4: =IF(LEN('export html'!BJ4),'export html'!BJ4,"") -> Lucyvo | G4: =IF(LEN('export html'!BH4),'export html'!BH4,"") -> 3-0
B5: =IF(LEN('export html'!BF5),'export html'!BF5,"") -> 3 | C5: =IF(LEN('export html'!BE5),'export html'!BE5,"") -> 2024-09-15 | D5: =IF(LEN('export html'!BI5),'export html'!BI5,"") -> Lucyvo | E5: =IF(LEN('export html'!BI5),"-","") -> - | F5: =IF(LEN('export html'!BJ5),'export html'!BJ5,"") -> Alberta Schilde | G5: =IF(LEN('export html'!BH5),'export html'!BH5,"") -> 1-5
B6: =IF(LEN('export html'!BF6),'export html'!BF6,"") -> 4 | C6: =IF(LEN('export html'!BE6),'export html'!BE6,"") -> 2024-09-21 | D6: =IF(LEN('export html'!BI6),'export html'!BI6,"") -> SC Duffel | E6: =IF(LEN('export html'!BI6),"-","") -> - | F6: =IF(LEN('export html'!BJ6),'export html'!BJ6,"") -> Lucyvo | G6: =IF(LEN('export html'!BH6),'export html'!BH6,"") -> 3-1
B7: =IF(LEN('export html'!BF7),'export html'!BF7,"") -> 5 | C7: =IF(LEN('export html'!BE7),'export html'!BE7,"") -> 2024-09-29 | D7: =IF(LEN('export html'!BI7),'export html'!BI7,"") -> Lucyvo | E7: =IF(LEN('export html'!BI7),"-","") -> - | F7: =IF(LEN('export html'!BJ7),'export html'!BJ7,"") -> Hombeek | G7: =IF(LEN('export html'!BH7),'export html'!BH7,"") -> 5-1
B8: =IF(LEN('export html'!BF8),'export html'!BF8,"") -> 6 | C8: =IF(LEN('export html'!BE8),'export html'!BE8,"") -> 2024-10-06 | D8: =IF(LEN('export html'!BI8),'export html'!BI8,"") -> Daltons | E8: =IF(LEN('export html'!BI8),"-","") -> - | F8: =IF(LEN('export html'!BJ8),'export html'!BJ8,"") -> Lucyvo | G8: =IF(LEN('export html'!BH8),'export html'!BH8,"") -> 3-0
B9: =IF(LEN('export html'!BF9),'export html'!BF9,"") -> 7 | C9: =IF(LEN('export html'!BE9),'export html'!BE9,"") -> 2024-10-13 | D9: =IF(LEN('export html'!BI9),'export html'!BI9,"") -> Lucyvo | E9: =IF(LEN('export html'!BI9),"-","") -> - | F9: =IF(LEN('export html'!BJ9),'export html'!BJ9,"") -> Corum | G9: =IF(LEN('export html'!BH9),'export html'!BH9,"") -> 5-5
B10: =IF(LEN('export html'!BF10),'export html'!BF10,"") -> 8 | C10: =IF(LEN('export html'!BE10),'export html'!BE10,"") -> 2024-10-20 | D10: =IF(LEN('export html'!BI10),'export html'!BI10,"") -> Sint Anneke | E10: =IF(LEN('export html'!BI10),"-","") -> - | F10: =IF(LEN('export html'!BJ10),'export html'!BJ10,"") -> Lucyvo | G10: =IF(LEN('export html'!BH10),'export html'!BH10,"") -> 4-0
B11: =IF(LEN('export html'!BF11),'export html'!BF11,"") -> 9 | C11: =IF(LEN('export html'!BE11),'export html'!BE11,"") -> 2024-11-03 | D11: =IF(LEN('export html'!BI11),'export html'!BI11,"") -> Jolika | E11: =IF(LEN('export html'!BI11),"-","") -> - | F11: =IF(LEN('export html'!BJ11),'export html'!BJ11,"") -> Lucyvo | G11: =IF(LEN('export html'!BH11),'export html'!BH11,"") -> 1-1
B12: =IF(LEN('export html'!BF12),'export html'!BF12,"") -> 10 | C12: =IF(LEN('export html'!BE12),'export html'!BE12,"") -> 2024-11-10 | D12: =IF(LEN('export html'!BI12),'export html'!BI12,"") -> Lucyvo | E12: =IF(LEN('export html'!BI12),"-","") -> - | F12: =IF(LEN('export html'!BJ12),'export html'!BJ12,"") -> Yerevan United | G12: =IF(LEN('export html'!BH12),'export html'!BH12,"") -> 6-2
B13: =IF(LEN('export html'!BF13),'export html'!BF13,"") -> 11 | C13: =IF(LEN('export html'!BE13),'export html'!BE13,"") -> 2024-11-17 | D13: =IF(LEN('export html'!BI13),'export html'!BI13,"") -> Bariton | E13: =IF(LEN('export html'!BI13),"-","") -> - | F13: =IF(LEN('export html'!BJ13),'export html'!BJ13,"") -> Lucyvo | G13: =IF(LEN('export html'!BH13),'export html'!BH13,"") -> 1-1
B14: =IF(LEN('export html'!BF14),'export html'!BF14,"") -> 12 | C14: =IF(LEN('export html'!BE14),'export html'!BE14,"") -> 2024-11-24 | D14: =IF(LEN('export html'!BI14),'export html'!BI14,"") -> Lucyvo | E14: =IF(LEN('export html'!BI14),"-","") -> - | F14: =IF(LEN('export html'!BJ14),'export html'!BJ14,"") -> Antwerp Global | G14: =IF(LEN('export html'!BH14),'export html'!BH14,"") -> 1-7
B15: =IF(LEN('export html'!BF15),'export html'!BF15,"") -> 13 | C15: =IF(LEN('export html'!BE15),'export html'!BE15,"") -> 2024-12-01 | D15: =IF(LEN('export html'!BI15),'export html'!BI15,"") -> Racing Emblem | E15: =IF(LEN('export html'!BI15),"-","") -> - | F15: =IF(LEN('export html'!BJ15),'export html'!BJ15,"") -> Lucyvo | G15: =IF(LEN('export html'!BH15),'export html'!BH15,"") -> 8-2
B16: =IF(LEN('export html'!BF16),'export html'!BF16,"") -> 14 | C16: =IF(LEN('export html'!BE16),'export html'!BE16,"") -> 2024-12-08 | D16: =IF(LEN('export html'!BI16),'export html'!BI16,"") -> Bar Patron | E16: =IF(LEN('export html'!BI16),"-","") -> - | F16: =IF(LEN('export html'!BJ16),'export html'!BJ16,"") -> Lucyvo | G16: =IF(LEN('export html'!BH16),'export html'!BH16,"") -> 3-3
B17: =IF(LEN('export html'!BF17),'export html'!BF17,"") -> 17 | C17: =IF(LEN('export html'!BE17),'export html'!BE17,"") -> 2024-12-22 | D17: =IF(LEN('export html'!BI17),'export html'!BI17,"") -> Lucyvo | E17: =IF(LEN('export html'!BI17),"-","") -> - | F17: =IF(LEN('export html'!BJ17),'export html'!BJ17,"") -> SC Duffel | G17: =IF(LEN('export html'!BH17),'export html'!BH17,"") -> 4-8
B18: =IF(LEN('export html'!BF18),'export html'!BF18,"") -> 16 | C18: =IF(LEN('export html'!BE18),'export html'!BE18,"") -> 2025-01-19 | D18: =IF(LEN('export html'!BI18),'export html'!BI18,"") -> Alberta Schilde | E18: =IF(LEN('export html'!BI18),"-","") -> - | F18: =IF(LEN('export html'!BJ18),'export html'!BJ18,"") -> Lucyvo | G18: =IF(LEN('export html'!BH18),'export html'!BH18,"") -> 4-5
B19: =IF(LEN('export html'!BF19),'export html'!BF19,"") -> 19 | C19: =IF(LEN('export html'!BE19),'export html'!BE19,"") -> 2025-02-09 | D19: =IF(LEN('export html'!BI19),'export html'!BI19,"") -> Lucyvo | E19: =IF(LEN('export html'!BI19),"-","") -> - | F19: =IF(LEN('export html'!BJ19),'export html'!BJ19,"") -> Daltons | G19: =IF(LEN('export html'!BH19),'export html'!BH19,"") -> 0-5*
B20: =IF(LEN('export html'!BF20),'export html'!BF20,"") -> 20 | C20: =IF(LEN('export html'!BE20),'export html'!BE20,"") -> 2025-02-16 | D20: =IF(LEN('export html'!BI20),'export html'!BI20,"") -> Corum | E20: =IF(LEN('export html'!BI20),"-","") -> - | F20: =IF(LEN('export html'!BJ20),'export html'!BJ20,"") -> Lucyvo | G20: =IF(LEN('export html'!BH20),'export html'!BH20,"") -> 9-0
B21: =IF(LEN('export html'!BF21),'export html'!BF21,"") -> 21 | C21: =IF(LEN('export html'!BE21),'export html'!BE21,"") -> 2025-02-23 | D21: =IF(LEN('export html'!BI21),'export html'!BI21,"") -> Lucyvo | E21: =IF(LEN('export html'!BI21),"-","") -> - | F21: =IF(LEN('export html'!BJ21),'export html'!BJ21,"") -> Sint Anneke | G21: =IF(LEN('export html'!BH21),'export html'!BH21,"") -> 5-2
B22: =IF(LEN('export html'!BF22),'export html'!BF22,"") -> 15 | C22: =IF(LEN('export html'!BE22),'export html'!BE22,"") -> 2025-03-02 | D22: =IF(LEN('export html'!BI22),'export html'!BI22,"") -> Lucyvo | E22: =IF(LEN('export html'!BI22),"-","") -> - | F22: =IF(LEN('export html'!BJ22),'export html'!BJ22,"") -> Goka | G22: =IF(LEN('export html'!BH22),'export html'!BH22,"") -> 3-0
B23: =IF(LEN('export html'!BF23),'export html'!BF23,"") -> 22 | C23: =IF(LEN('export html'!BE23),'export html'!BE23,"") -> 2025-03-09 | D23: =IF(LEN('export html'!BI23),'export html'!BI23,"") -> Lucyvo | E23: =IF(LEN('export html'!BI23),"-","") -> - | F23: =IF(LEN('export html'!BJ23),'export html'!BJ23,"") -> Jolika | G23: =IF(LEN('export html'!BH23),'export html'!BH23,"") -> 2-2
B24: =IF(LEN('export html'!BF24),'export html'!BF24,"") -> 23 | C24: =IF(LEN('export html'!BE24),'export html'!BE24,"") -> 2025-03-16 | D24: =IF(LEN('export html'!BI24),'export html'!BI24,"") -> Yerevan United | E24: =IF(LEN('export html'!BI24),"-","") -> - | F24: =IF(LEN('export html'!BJ24),'export html'!BJ24,"") -> Lucyvo | G24: =IF(LEN('export html'!BH24),'export html'!BH24,"") -> 1-7
B25: =IF(LEN('export html'!BF25),'export html'!BF25,"") -> 24 | C25: =IF(LEN('export html'!BE25),'export html'!BE25,"") -> 2025-03-23 | D25: =IF(LEN('export html'!BI25),'export html'!BI25,"") -> Lucyvo | E25: =IF(LEN('export html'!BI25),"-","") -> - | F25: =IF(LEN('export html'!BJ25),'export html'!BJ25,"") -> Bariton | G25: =IF(LEN('export html'!BH25),'export html'!BH25,"") -> 2-1
B26: =IF(LEN('export html'!BF26),'export html'!BF26,"") -> 25 | C26: =IF(LEN('export html'!BE26),'export html'!BE26,"") -> 2025-03-30 | D26: =IF(LEN('export html'!BI26),'export html'!BI26,"") -> Antwerp Global | E26: =IF(LEN('export html'!BI26),"-","") -> - | F26: =IF(LEN('export html'!BJ26),'export html'!BJ26,"") -> Lucyvo | G26: =IF(LEN('export html'!BH26),'export html'!BH26,"") -> 4-0
B27: =IF(LEN('export html'!BF27),'export html'!BF27,"") -> 26 | C27: =IF(LEN('export html'!BE27),'export html'!BE27,"") -> 2025-04-06 | D27: =IF(LEN('export html'!BI27),'export html'!BI27,"") -> Lucyvo | E27: =IF(LEN('export html'!BI27),"-","") -> - | F27: =IF(LEN('export html'!BJ27),'export html'!BJ27,"") -> Racing Emblem | G27: =IF(LEN('export html'!BH27),'export html'!BH27,"") -> 
B28: =IF(LEN('export html'!BF28),'export html'!BF28,"") -> 18 | C28: =IF(LEN('export html'!BE28),'export html'!BE28,"") -> 2025-04-13 | D28: =IF(LEN('export html'!BI28),'export html'!BI28,"") -> Hombeek | E28: =IF(LEN('export html'!BI28),"-","") -> - | F28: =IF(LEN('export html'!BJ28),'export html'!BJ28,"") -> Lucyvo | G28: =IF(LEN('export html'!BH28),'export html'!BH28,"") -> 
B29: =IF(LEN('export html'!BF29),'export html'!BF29,"") ->  | C29: =IF(LEN('export html'!BE29),'export html'!BE29,"") ->  | D29: =IF(LEN('export html'!BI29),'export html'!BI29,"") ->  | E29: =IF(LEN('export html'!BI29),"-","") ->  | F29: =IF(LEN('export html'!BJ29),'export html'!BJ29,"") ->  | G29: =IF(LEN('export html'!BH29),'export html'!BH29,"") -> 
B30: =IF(LEN('export html'!BF30),'export html'!BF30,"") ->  | C30: =IF(LEN('export html'!BE30),'export html'!BE30,"") ->  | D30: =IF(LEN('export html'!BI30),'export html'!BI30,"") ->  | E30: =IF(LEN('export html'!BI30),"-","") ->  | F30: =IF(LEN('export html'!BJ30),'export html'!BJ30,"") -> 
A34: Oefenmatchen | B34: 1 | E34: -
B35: 2 | E35: -
B36: 3 | E36: -
B37: 4 | E37: -
A39: Beker | B39: 1 | E39: -

Sheet export html (hidden)
A1: =MAX(1,COUNTA(A3:A20)) -> 7 | E1: hulp: thuis | F1: hulp: uit | G1: hulp: uitslag | I1: =MAX(1,COUNT(I3:I9)) -> 7 | M1: hulp: thuis | N1: hulp: uit | O1: hulp: uitslag | T1: =MAX(1,COUNT(T3:T20)) -> 5 | V1: Recentste duels op | W1: uitslag | Z1: =ROWS(_xlfn.ANCHORARRAY( Z3) ) -> 5 | AF1: =ROWS(_xlfn.ANCHORARRAY( AF3) ) -> 5 | AH1: Hulp: # goals | AJ1: =MAX(1,COUNTA(AJ3:AJ20)) -> 1 | AP1: =RANK(spelersstatistieken!AB5,INDIRECT("spelersstatistieken!$" & $AR$8 & "$5:$" & $AR$8 & "$" & 5+$AR$6-1))+ROW()/10^4 -> 10.0001 | AU1: =MAX(1,COUNTA(AU3:AU40)) -> 3 | BE1: =MAX(1,COUNT(BE3:BE30)) -> 26 | BI1: hulp: thuis | BJ1: hulp: uit
A2: Datum | B2: Speeldag | C2: ="Matchen van " & IF('rooster en stand'!$J$31=0,"speeldag " & 'rooster en stand'!$F$31,TEXT('rooster en stand'!$J$31,"dd/mm/jjjj")) -> Matchen van speeldag 25 | D2: Uitslag | I2: Datum | J2: Speeldag | K2: ="Matchen van " & IF('rooster en stand'!$J$31=0,"speeldag " & 'rooster en stand'!$F$31+1,TEXT('rooster en stand'!$J$31+'rooster en stand'!$K$31,"dd/mm/jjjj")) -> Matchen van speeldag 26 | L2: Uitslag / Plaatsen | T2: Datum | U2: Speeldag | V2: =V1 & TEXT('rooster en stand'!$F$21,"dd/mm/yyyy") -> Recentste duels op 02/04/2025 | Z2: Top-5 | AA2: Assists | AF2: Top-5 | AG2: Goals | AJ2: Ronde | AK2: Datum | AL2: Uur | AM2: Match | AN2: Uitslag | AP2: =RANK(spelersstatistieken!AB6,INDIRECT("spelersstatistieken!$" & $AR$8 & "$5:$" & $AR$8 & "$" & 5+$AR$6-1))+ROW()/10^4 -> 10.0002 | AR2: 1 | AS2: berekening stand | AU2: Jaar | AV2: ="Uit het verleden..." & IF(COUNTA(#REF!)>0," (" & AU1 & "x)","") -> Uit het verleden... (3x) | AW2: Uitslag | AX2: Datum | AY2: Speeldag | BE2: Datum | BF2: Speeldag | BG2: Kalender | BH2: Uitslag
A3: 2025-03-29 | B3: 25 | C3: SC Duffel - Jolika | D3: =IF(G3=0,"",G3) -> 10-0 | E3: SC Duffel | F3: Jolika | G3: 10-0 | I3: 2025-04-06 | J3: 26 | K3: Hombeek - SC Duffel | L3: =IF( O3 <> "", O3, "plaats " & MATCH( M3, 'rooster en stand'!$D$5:$D$18, 0 ) & " - plaats " & MATCH( N3, 'rooster en stand'!$D$5:$D$18, 0 ) ) -> plaats 9 - plaats 8 | M3: Hombeek | N3: SC Duffel | T3: 2025-03-30 | U3: 25 | V3: Antwerp Global - Lucyvo | W3: 4-0 | Y3: =_xlfn.SEQUENCE(Z1) -> 1 | Z3: =_xlfn.ANCHORARRAY(spelersstatistieken!AK150) -> Stijn Hofmans | AA3: 11 | AE3: =_xlfn.SEQUENCE(AF1) -> 1 | AF3: =_xlfn.ANCHORARRAY(spelersstatistieken!AK100) -> Glenn De Vinster | AG3: 29 | AJ3: Ronde 1 | AP3: =RANK(spelersstatistieken!AB7,INDIRECT("spelersstatistieken!$" & $AR$8 & "$5:$" & $AR$8 & "$" & 5+$AR$6-1))+ROW()/10^4 -> 10.0003 | AR3: 00:00:00 | AS3: VO kleurtje speeldag | AU3: 2024-2025 | AV3: Racing Emblem - Lucyvo | AW3: 8-2 | BE3: 2024-09-01 | BF3: 1 | BG3: Lucyvo - Bar Patron | BH3: 2-4 | BI3: Lucyvo | BJ3: Bar Patron
A4: 2025-03-30 | B4: 25 | C4: Antwerp Global - Lucyvo | D4: 4-0 | E4: Antwerp Global | F4: Lucyvo | G4: 4-0 | I4: 2025-04-06 | J4: 26 | K4: Jolika - Bariton | L4: =IF( O4 <> "", O4, "plaats " & MATCH( M4, 'rooster en stand'!$D$5:$D$18, 0 ) & " - plaats " & MATCH( N4, 'rooster en stand'!$D$5:$D$18, 0 ) ) -> plaats 14 - plaats 12 | M4: Jolika | N4: Bariton | T4: 2025-03-23 | U4: 24 | V4: Lucyvo - Bariton | W4: 2-1 | Y4: 2 | Z4: Glenn De Vinster | AA4: 10 | AE4: 2 | AF4: Stijn Hofmans | AG4: 18 | AP4: =RANK(spelersstatistieken!AB8,INDIRECT("spelersstatistieken!$" & $AR$8 & "$5:$" & $AR$8 & "$" & 5+$AR$6-1))+ROW()/10^4 -> 10.0004 | AR4: =COUNTA( 'rooster en stand'!BI5:BI18 ) -> 14 | AS4: aantal ploegen | AU4: 2023-2024 | AV4: Lucyvo - Racing Emblem | AW4: 3-5 | BE4: 2024-09-08 | BF4: 2 | BG4: Goka - Lucyvo | BH4: 3-0 | BI4: Goka | BJ4: Lucyvo
A5: 2025-03-30 | B5: 25 | C5: Bar Patron - Corum | D5: 4-1 | E5: Bar Patron | F5: Corum | G5: 4-1 | I5: 2025-04-06 | J5: 26 | K5: Lucyvo - Racing Emblem | L5: =IF( O5 <> "", O5, "plaats " & MATCH( M5, 'rooster en stand'!$D$5:$D$18, 0 ) & " - plaats " & MATCH( N5, 'rooster en stand'!$D$5:$D$18, 0 ) ) -> plaats 10 - plaats 6 | M5: Lucyvo | N5: Racing Emblem | T5: 2025-03-16 | U5: 23 | V5: Yerevan United - Lucyvo | W5: 1-7 | Y5: 3 | Z5: Steven De Groof | AA5: 5 | AE5: 3 | AF5: Jorn Verhellen | AG5: 3 | AP5: =RANK(spelersstatistieken!AB9,INDIRECT("spelersstatistieken!$" & $AR$8 & "$5:$" & $AR$8 & "$" & 5+$AR$6-1))+ROW()/10^4 -> 4.0005 | AR5: =2 * ( AR4 - 1 ) -> 26 | AS5: aantal matchen / ploeg | AU5: 2023-2024 | AV5: Racing Emblem - Lucyvo | AW5: 3-3 | BE5: 2024-09-15 | BF5: 3 | BG5: Lucyvo - Alberta Schilde | BH5: 1-5 | BI5: Lucyvo | BJ5: Alberta Schilde
A6: 2025-03-30 | B6: 25 | C6: Bariton - Yerevan United | D6: 1-4 | E6: Bariton | F6: Yerevan United | G6: 1-4 | I6: 2025-04-06 | J6: 26 | K6: Corum - Goka | L6: =IF( O6 <> "", O6, "plaats " & MATCH( M6, 'rooster en stand'!$D$5:$D$18, 0 ) & " - plaats " & MATCH( N6, 'rooster en stand'!$D$5:$D$18, 0 ) ) -> plaats 11 - plaats 13 | M6: Corum | N6: Goka | T6: 2025-03-09 | U6: 22 | V6: Lucyvo - Jolika | W6: 2-2 | Y6: 4 | Z6: Stijn Verdickt | AA6: 3 | AE6: 4 | AF6: Wout Beirinckx | AG6: 1 | AP6: =RANK(spelersstatistieken!AB10,INDIRECT("spelersstatistieken!$" & $AR$8 & "$5:$" & $AR$8 & "$" & 5+$AR$6-1))+ROW()/10^4 -> 10.0006 | AR6: 34 | AS6: aantal spelers | BE6: 2024-09-21 | BF6: 4 | BG6: SC Duffel - Lucyvo | BH6: 3-1 | BI6: SC Duffel | BJ6: Lucyvo
A7: 2025-03-30 | B7: 25 | C7: Goka - Daltons | D7: 0-2 | E7: Goka | F7: Daltons | G7: 0-2 | I7: 2025-04-06 | J7: 26 | K7: Daltons - Alberta Schilde | L7: =IF( O7 <> "", O7, "plaats " & MATCH( M7, 'rooster en stand'!$D$5:$D$18, 0 ) & " - plaats " & MATCH( N7, 'rooster en stand'!$D$5:$D$18, 0 ) ) -> plaats 1 - plaats 3 | M7: Daltons | N7: Alberta Schilde | T7: 2025-03-02 | U7: 15 | V7: Lucyvo - Goka | W7: 3-0 | Y7: 5 | Z7: Wout Beirinckx | AA7: 2 | AE7: 5 | AF7: Maarten De Groof | AG7: 1 | AP7: =RANK(spelersstatistieken!AB11,INDIRECT("spelersstatistieken!$" & $AR$8 & "$5:$" & $AR$8 & "$" & 5+$AR$6-1))+ROW()/10^4 -> 10.0007 | AR7: =MatchenPerPloeg / 2 + ( ISODD( AR4 )) -> 13 | AS7: speeldagen in heenronde | BE7: 2024-09-29 | BF7: 5 | BG7: Lucyvo - Hombeek | BH7: 5-1 | BI7: Lucyvo | BJ7: Hombeek
A8: 2025-03-30 | B8: 25 | C8: Racing Emblem - Sint Anneke | D8: =IF(G8=0,"",G8) -> 1-1 | E8: Racing Emblem | F8: Sint Anneke | G8: 1-1 | I8: 2025-04-06 | J8: 26 | K8: Sint Anneke - Bar Patron | L8: =IF( O8 <> "", O8, "plaats " & MATCH( M8, 'rooster en stand'!$D$5:$D$18, 0 ) & " - plaats " & MATCH( N8, 'rooster en stand'!$D$5:$D$18, 0 ) ) -> plaats 7 - plaats 5 | M8: Sint Anneke | N8: Bar Patron | AP8: =RANK(spelersstatistieken!AB12,INDIRECT("spelersstatistieken!$" & $AR$8 & "$5:$" & $AR$8 & "$" & 5+$AR$6-1))+ROW()/10^4 -> 10.0008 | AR8: =SUBSTITUTE( SUBSTITUTE( ADDRESS( 1, 1 + MatchenPerPloeg + 1 ), 1, "" ), "$", "" ) -> AB | AS8: Kolom van de goal totalen | BE8: 2024-10-06 | BF8: 6 | BG8: Daltons - Lucyvo | BH8: 3-0 | BI8: Daltons | BJ8: Lucyvo
A9: 2025-03-30 | B9: 25 | C9: Alberta Schilde - Hombeek | D9: 9-2 | E9: Alberta Schilde | F9: Hombeek | G9: 9-2 | I9: 2025-04-06 | J9: 26 | K9: Yerevan United - Antwerp Global | L9: =IF( O9 <> "", O9, "plaats " & MATCH( M9, 'rooster en stand'!$D$5:$D$18, 0 ) & " - plaats " & MATCH( N9, 'rooster en stand'!$D$5:$D$18, 0 ) ) -> plaats 2 - plaats 4 | M9: Yerevan United | N9: Antwerp Global | AP9: =RANK(spelersstatistieken!AB13,INDIRECT("spelersstatistieken!$" & $AR$8 & "$5:$" & $AR$8 & "$" & 5+$AR$6-1))+ROW()/10^4 -> 10.0009 | BE9: 2024-10-13 | BF9: 7 | BG9: Lucyvo - Corum | BH9: 5-5 | BI9: Lucyvo | BJ9: Corum
AP10: =RANK(spelersstatistieken!AB14,INDIRECT("spelersstatistieken!$" & $AR$8 & "$5:$" & $AR$8 & "$" & 5+$AR$6-1))+ROW()/10^4 -> 10.001 | BE10: 2024-10-20 | BF10: 8 | BG10: Sint Anneke - Lucyvo | BH10: 4-0 | BI10: Sint Anneke | BJ10: Lucyvo
AP11: =RANK(spelersstatistieken!AB15,INDIRECT("spelersstatistieken!$" & $AR$8 & "$5:$" & $AR$8 & "$" & 5+$AR$6-1))+ROW()/10^4 -> 4.0011 | BE11: 2024-11-03 | BF11: 9 | BG11: Jolika - Lucyvo | BH11: 1-1 | BI11: Jolika | BJ11: Lucyvo
AP12: =RANK(spelersstatistieken!AB16,INDIRECT("spelersstatistieken!$" & $AR$8 & "$5:$" & $AR$8 & "$" & 5+$AR$6-1))+ROW()/10^4 -> 4.0012 | BE12: 2024-11-10 | BF12: 10 | BG12: Lucyvo - Yerevan United | BH12: 6-2 | BI12: Lucyvo | BJ12: Yerevan United
AP13: =RANK(spelersstatistieken!AB17,INDIRECT("spelersstatistieken!$" & $AR$8 & "$5:$" & $AR$8 & "$" & 5+$AR$6-1))+ROW()/10^4 -> 10.0013 | BE13: 2024-11-17 | BF13: 11 | BG13: Bariton - Lucyvo | BH13: 1-1 | BI13: Bariton | BJ13: Lucyvo
AP14: =RANK(spelersstatistieken!AB18,INDIRECT("spelersstatistieken!$" & $AR$8 & "$5:$" & $AR$8 & "$" & 5+$AR$6-1))+ROW()/10^4 -> 1.0014 | BE14: 2024-11-24 | BF14: 12 | BG14: Lucyvo - Antwerp Global | BH14: 1-7 | BI14: Lucyvo | BJ14: Antwerp Global
AP15: =RANK(spelersstatistieken!AB19,INDIRECT("spelersstatistieken!$" & $AR$8 & "$5:$" & $AR$8 & "$" & 5+$AR$6-1))+ROW()/10^4 -> 10.0015 | BE15: 2024-12-01 | BF15: 13 | BG15: Racing Emblem - Lucyvo | BH15: 8-2 | BI15: Racing Emblem | BJ15: Lucyvo
AP16: =RANK(spelersstatistieken!AB20,INDIRECT("spelersstatistieken!$" & $AR$8 & "$5:$" & $AR$8 & "$" & 5+$AR$6-1))+ROW()/10^4 -> 10.0016 | BE16: 2024-12-08 | BF16: 14 | BG16: Bar Patron - Lucyvo | BH16: 3-3 | BI16: Bar Patron | BJ16: Lucyvo
AP17: =RANK(spelersstatistieken!AB21,INDIRECT("spelersstatistieken!$" & $AR$8 & "$5:$" & $AR$8 & "$" & 5+$AR$6-1))+ROW()/10^4 -> 10.0017 | AR17: =IF( O4 <> ""; O4; "Pl. 4 - pl. 5" ) | BE17: 2024-12-22 | BF17: 17 | BG17: Lucyvo - SC Duffel | BH17: 4-8 | BI17: Lucyvo | BJ17: SC Duffel
AP18: =RANK(spelersstatistieken!AB22,INDIRECT("spelersstatistieken!$" & $AR$8 & "$5:$" & $AR$8 & "$" & 5+$AR$6-1))+ROW()/10^4 -> 10.0018 | BE18: 2025-01-19 | BF18: 16 | BG18: Alberta Schilde - Lucyvo | BH18: 4-5 | BI18: Alberta Schilde | BJ18: Lucyvo
AP19: =RANK(spelersstatistieken!AB23,INDIRECT("spelersstatistieken!$" & $AR$8 & "$5:$" & $AR$8 & "$" & 5+$AR$6-1))+ROW()/10^4 -> 2.0019 | BE19: 2025-02-09 | BF19: 19 | BG19: Lucyvo - Daltons | BH19: 0-5* | BI19: Lucyvo | BJ19: Daltons
AP20: =RANK(spelersstatistieken!AB24,INDIRECT("spelersstatistieken!$" & $AR$8 & "$5:$" & $AR$8 & "$" & 5+$AR$6-1))+ROW()/10^4 -> 10.002 | BE20: 2025-02-16 | BF20: 20 | BG20: Corum - Lucyvo | BH20: 9-0 | BI20: Corum | BJ20: Lucyvo
AP21: =RANK(spelersstatistieken!AB25,INDIRECT("spelersstatistieken!$" & $AR$8 & "$5:$" & $AR$8 & "$" & 5+$AR$6-1))+ROW()/10^4 -> 10.0021 | BE21: 2025-02-23 | BF21: 21 | BG21: Lucyvo - Sint Anneke | BH21: 5-2 | BI21: Lucyvo | BJ21: Sint Anneke
AP22: =RANK(spelersstatistieken!AB26,INDIRECT("spelersstatistieken!$" & $AR$8 & "$5:$" & $AR$8 & "$" & 5+$AR$6-1))+ROW()/10^4 -> 10.0022 | BE22: 2025-03-02 | BF22: 15 | BG22: Lucyvo - Goka | BH22: 3-0 | BI22: Lucyvo | BJ22: Goka
AF23: #IF(OR($AE3#0;$AG3#"");"(Niemand)";OFFSET(spelersstatistieken!$A$4;MATCH(SMALL(coeffsspelers;AE3);coeffsspelers;0);0)) | AG23: #IF($AE3#0;"";IF(AH3#0;"";AH3)) | AH23: #OFFSET(spelersstatistieken!$A$4;MATCH(SMALL(coeffsspelers;AE3);coeffsspelers;0);MatchenPerPloeg+1) | AP23: =RANK(spelersstatistieken!AB27,INDIRECT("spelersstatistieken!$" & $AR$8 & "$5:$" & $AR$8 & "$" & 5+$AR$6-1))+ROW()/10^4 -> 10.0023 | BE23: 2025-03-09 | BF23: 22 | BG23: Lucyvo - Jolika | BH23: 2-2 | BI23: Lucyvo | BJ23: Jolika
AF24: #IF(OR($AE4#0;$AG4#"");"";OFFSET(spelersstatistieken!$A$4;MATCH(SMALL(coeffsspelers;AE4);coeffsspelers;0);0)) | AG24: #IF($AE4#0;"";IF(AH4#0;"";AH4)) | AH24: #OFFSET(spelersstatistieken!$A$4;MATCH(SMALL(coeffsspelers;AE4);coeffsspelers;0);MatchenPerPloeg+1) | AP24: =RANK(spelersstatistieken!AB28,INDIRECT("spelersstatistieken!$" & $AR$8 & "$5:$" & $AR$8 & "$" & 5+$AR$6-1))+ROW()/10^4 -> 10.0024 | BE24: 2025-03-16 | BF24: 23 | BG24: Yerevan United - Lucyvo | BH24: 1-7 | BI24: Yerevan United | BJ24: Lucyvo
AF25: #IF(OR($AE5#0;$AG5#"");"";OFFSET(spelersstatistieken!$A$4;MATCH(SMALL(coeffsspelers;AE5);coeffsspelers;0);0)) | AG25: #IF($AE5#0;"";IF(AH5#0;"";AH5)) | AH25: #OFFSET(spelersstatistieken!$A$4;MATCH(SMALL(coeffsspelers;AE5);coeffsspelers;0);MatchenPerPloeg+1) | AP25: =RANK(spelersstatistieken!AB29,INDIRECT("spelersstatistieken!$" & $AR$8 & "$5:$" & $AR$8 & "$" & 5+$AR$6-1))+ROW()/10^4 -> 10.0025 | BE25: 2025-03-23 | BF25: 24 | BG25: Lucyvo - Bariton | BH25: 2-1 | BI25: Lucyvo | BJ25: Bariton
AF26: #IF(OR($AE6#0;$AG6#"");"";OFFSET(spelersstatistieken!$A$4;MATCH(SMALL(coeffsspelers;AE6);coeffsspelers;0);0)) | AG26: #IF($AE6#0;"";IF(AH6#0;"";AH6)) | AH26: #OFFSET(spelersstatistieken!$A$4;MATCH(SMALL(coeffsspelers;AE6);coeffsspelers;0);MatchenPerPloeg+1) | AP26: =RANK(spelersstatistieken!AB30,INDIRECT("spelersstatistieken!$" & $AR$8 & "$5:$" & $AR$8 & "$" & 5+$AR$6-1))+ROW()/10^4 -> 10.0026 | BE26: 2025-03-30 | BF26: 25 | BG26: Antwerp Global - Lucyvo | BH26: 4-0 | BI26: Antwerp Global | BJ26: Lucyvo
AF27: #IF(OR($AE7#0;$AG7#"");"";OFFSET(spelersstatistieken!$A$4;MATCH(SMALL(coeffsspelers;AE7);coeffsspelers;0);0)) | AG27: #IF($AE7#0;"";IF(AH7#0;"";AH7)) | AH27: #OFFSET(spelersstatistieken!$A$4;MATCH(SMALL(coeffsspelers;AE7);coeffsspelers;0);MatchenPerPloeg+1) | AP27: =RANK(spelersstatistieken!AB31,INDIRECT("spelersstatistieken!$" & $AR$8 & "$5:$" & $AR$8 & "$" & 5+$AR$6-1))+ROW()/10^4 -> 10.0027 | BE27: 2025-04-06 | BF27: 26 | BG27: Lucyvo - Racing Emblem | BI27: Lucyvo | BJ27: Racing Emblem
AP28: =RANK(spelersstatistieken!AB32,INDIRECT("spelersstatistieken!$" & $AR$8 & "$5:$" & $AR$8 & "$" & 5+$AR$6-1))+ROW()/10^4 -> 10.0028 | BE28: 2025-04-13 | BF28: 18 | BG28: Hombeek - Lucyvo | BI28: Hombeek | BJ28: Lucyvo
AP29: =RANK(spelersstatistieken!AB33,INDIRECT("spelersstatistieken!$" & $AR$8 & "$5:$" & $AR$8 & "$" & 5+$AR$6-1))+ROW()/10^4 -> 10.0029
AP30: =RANK(spelersstatistieken!AB34,INDIRECT("spelersstatistieken!$" & $AR$8 & "$5:$" & $AR$8 & "$" & 5+$AR$6-1))+ROW()/10^4 -> 10.003
AP31: =RANK(spelersstatistieken!AB35,INDIRECT("spelersstatistieken!$" & $AR$8 & "$5:$" & $AR$8 & "$" & 5+$AR$6-1))+ROW()/10^4 -> 3.0031
AP32: =RANK(spelersstatistieken!AB36,INDIRECT("spelersstatistieken!$" & $AR$8 & "$5:$" & $AR$8 & "$" & 5+$AR$6-1))+ROW()/10^4 -> 4.0032
AP33: =RANK(spelersstatistieken!AB37,INDIRECT("spelersstatistieken!$" & $AR$8 & "$5:$" & $AR$8 & "$" & 5+$AR$6-1))+ROW()/10^4 -> 4.0033
AP34: =RANK(spelersstatistieken!AB38,INDIRECT("spelersstatistieken!$" & $AR$8 & "$5:$" & $AR$8 & "$" & 5+$AR$6-1))+ROW()/10^4 -> 4.0034

Sheet spelersstatistieken
B1: =IF(kalender!$D3='rooster en stand'!$C$3,kalender!$F3&" (T)",kalender!$D3&" (U)") -> Bar Patron (T) | C1: =IF(kalender!$D4='rooster en stand'!$C$3,kalender!$F4&" (T)",kalender!$D4&" (U)") -> Goka (U) | D1: =IF(kalender!$D5='rooster en stand'!$C$3,kalender!$F5&" (T)",kalender!$D5&" (U)") -> Alberta Schilde (T) | E1: =IF(kalender!$D6='rooster en stand'!$C$3,kalender!$F6&" (T)",kalender!$D6&" (U)") -> SC Duffel (U) | F1: =IF(kalender!$D7='rooster en stand'!$C$3,kalender!$F7&" (T)",kalender!$D7&" (U)") -> Hombeek (T) | G1: =IF(kalender!$D8='rooster en stand'!$C$3,kalender!$F8&" (T)",kalender!$D8&" (U)") -> Daltons (U) | H1: =IF(kalender!$D9='rooster en stand'!$C$3,kalender!$F9&" (T)",kalender!$D9&" (U)") -> Corum (T) | I1: =IF(kalender!$D10='rooster en stand'!$C$3,kalender!$F10&" (T)",kalender!$D10&" (U)") -> Sint Anneke (U) | J1: =IF(kalender!$D11='rooster en stand'!$C$3,kalender!$F11&" (T)",kalender!$D11&" (U)") -> Jolika (U) | K1: =IF(kalender!$D12='rooster en stand'!$C$3,kalender!$F12&" (T)",kalender!$D12&" (U)") -> Yerevan United (T) | L1: =IF(kalender!$D13='rooster en stand'!$C$3,kalender!$F13&" (T)",kalender!$D13&" (U)") -> Bariton (U) | M1: =IF(kalender!$D14='rooster en stand'!$C$3,kalender!$F14&" (T)",kalender!$D14&" (U)") -> Antwerp Global (T) | N1: =IF(kalender!$D15='rooster en stand'!$C$3,kalender!$F15&" (T)",kalender!$D15&" (U)") -> Racing Emblem (U) | O1: =IF(kalender!$D16='rooster en stand'!$C$3,kalender!$F16&" (T)",kalender!$D16&" (U)") -> Bar Patron (U) | P1: =IF(kalender!$D17='rooster en stand'!$C$3,kalender!$F17&" (T)",kalender!$D17&" (U)") -> SC Duffel (T) | Q1: =IF(kalender!$D18='rooster en stand'!$C$3,kalender!$F18&" (T)",kalender!$D18&" (U)") -> Alberta Schilde (U) | R1: =IF(kalender!$D19='rooster en stand'!$C$3,kalender!$F19&" (T)",kalender!$D19&" (U)") -> Daltons (T) | S1: =IF(kalender!$D20='rooster en stand'!$C$3,kalender!$F20&" (T)",kalender!$D20&" (U)") -> Corum (U) | T1: =IF(kalender!$D21='rooster en stand'!$C$3,kalender!$F21&" (T)",kalender!$D21&" (U)") -> Sint Anneke (T) | U1: =IF(kalender!$D22='rooster en stand'!$C$3,kalender!$F22&" (T)",kalender!$D22&" (U)") -> Goka (T) | V1: =IF(kalender!$D23='rooster en stand'!$C$3,kalender!$F23&" (T)",kalender!$D23&" (U)") -> Jolika (T) | W1: =IF(kalender!$D24='rooster en stand'!$C$3,kalender!$F24&" (T)",kalender!$D24&" (U)") -> Yerevan United (U) | X1: =IF(kalender!$D25='rooster en stand'!$C$3,kalender!$F25&" (T)",kalender!$D25&" (U)") -> Bariton (T) | Y1: =IF(kalender!$D26='rooster en stand'!$C$3,kalender!$F26&" (T)",kalender!$D26&" (U)") -> Antwerp Global (U) | Z1: =IF(kalender!$D27='rooster en stand'!$C$3,kalender!$F27&" (T)",kalender!$D27&" (U)") -> Racing Emblem (T) | AA1: =IF(kalender!$D28='rooster en stand'!$C$3,kalender!$F28&" (T)",kalender!$D28&" (U)") -> Hombeek (U) | AB1: Totaal # goals | AC1: # matchen | AD1: Gem. # goals | AE1: Afwezig | AF1: Blessure | AG1: Schorsing | AH1: Niet gespeeld totaal | AI1: Keeper | AM1: =IFERROR( _xlfn.XMATCH( AN2, B4:AA4, 0 ), 0 ) -> 22 | AN1: ="Hint: " & _xlfn.XLOOKUP(TRUE, B4:AA4 <> "", B4:AA4,,,-1) -> Hint: 25 | AP1: =B1 -> Bar Patron (T) | AQ1: Goka (U) | AR1: Alberta Schilde (T) | AS1: SC Duffel (U) | AT1: Hombeek (T) | AU1: Daltons (U) | AV1: Corum (T) | AW1: Sint Anneke (U) | AX1: =J1 -> Jolika (U) | AY1: Yerevan United (T) | AZ1: Bariton (U) | BA1: Antwerp Global (T) | BB1: =N1 -> Racing Emblem (U) | BC1: Bar Patron (U) | BD1: SC Duffel (T) | BE1: Alberta Schilde (U) | BF1: Daltons (T) | BG1: Corum (U) | BH1: Sint Anneke (T) | BI1: Goka (T) | BJ1: Jolika (T) | BK1: Yerevan United (U) | BL1: Bariton (T) | BM1: Antwerp Global (U) | BN1: Racing Emblem (T) | BO1: Hombeek (U)
A2: Uitslag | B2: =TRANSPOSE( kalender!G3:G28 ) -> 2-4 | C2: 3-0 | D2: 1-5 | E2: 3-1 | F2: 5-1 | G2: 3-0 | H2: 5-5 | I2: 4-0 | J2: 1-1 | K2: 6-2 | L2: 1-1 | M2: 1-7 | N2: 8-2 | O2: 3-3 | P2: 4-8 | Q2: 4-5 | R2: 0-5* | S2: 9-0 | T2: 5-2 | U2: 3-0 | V2: 2-2 | W2: 1-7 | X2: 2-1 | Y2: 4-0 | AN2: 23 | BQ2: P | BR2: coeff | BS2: coeff aflopend | BU2: P | BV2: coeff | BW2: coeff aflopend | BY2: aantal | BZ2: coeff | CA2: coeff aflopend | CG2: =MAX( CG5:CG39 ) -> 17.14285714 | CH2: =MAX( 1, CE5:CE37, CL5:CL37 ) -> 29 | CN2: =MAX( CN5:CN39 ) -> 243.6371292 | CY2: =MAX( 1, CX5:CX37, DC5:DC37 ) -> 19 | DI2: =MAX( DI5:DI39 ) -> 29.00005 | DY2: =_xlfn.TAKE( _xlfn.SCAN( "", _xlfn._xlws.SORT( _xlfn.UNIQUE( _xlfn.TOCOL(_xlfn.ANCHORARRAY( DN5), 2 ))), _xlfn.LAMBDA(_xlpm.a,_xlpm.v, IF( COUNTIF( $CY$5:$CY$40, _xlpm.v ) > 0, _xlpm.a, _xlpm.a & " / " & _xlpm.v ))), -1 ) -> / Beirinckx Wout / Celis Ive / Coolsaet Joy / De Groof Maarten / De Groof Steven / De Vinster Glenn / Delen Robbe / Elst Pieter / Gielis Bernd / Hofmans Stijn / Jordens Koen / Langenaeker Maarten / Nyckees Wannes / Stevens Siebe / Van de Vondel Rob / Van Den Brande Brent / Van Dessel Dieter / Verhellen Jorn / Verlooy Kaïn
A3: Aanwezigen | B3: =IF(COUNTBLANK(B5:B37)='export html'!$AR$6,"",'export html'!$AR$6-COUNTIF(B5:B37,"a")-COUNTIF(B5:B37,"b")-COUNTIF(B5:B37,"s")) -> 21 | C3: =IF(COUNTBLANK(C5:C37)='export html'!$AR$6,"",'export html'!$AR$6-COUNTIF(C5:C37,"a")-COUNTIF(C5:C37,"b")-COUNTIF(C5:C37,"s")) -> 18 | D3: =IF(COUNTBLANK(D5:D37)='export html'!$AR$6,"",'export html'!$AR$6-COUNTIF(D5:D37,"a")-COUNTIF(D5:D37,"b")-COUNTIF(D5:D37,"s")) -> 23 | E3: =IF(COUNTBLANK(E5:E37)='export html'!$AR$6,"",'export html'!$AR$6-COUNTIF(E5:E37,"a")-COUNTIF(E5:E37,"b")-COUNTIF(E5:E37,"s")) -> 18 | F3: =IF(COUNTBLANK(F5:F37)='export html'!$AR$6,"",'export html'!$AR$6-COUNTIF(F5:F37,"a")-COUNTIF(F5:F37,"b")-COUNTIF(F5:F37,"s")) -> 19 | G3: =IF(COUNTBLANK(G5:G37)='export html'!$AR$6,"",'export html'!$AR$6-COUNTIF(G5:G37,"a")-COUNTIF(G5:G37,"b")-COUNTIF(G5:G37,"s")) -> 16 | H3: =IF(COUNTBLANK(H5:H37)='export html'!$AR$6,"",'export html'!$AR$6-COUNTIF(H5:H37,"a")-COUNTIF(H5:H37,"b")-COUNTIF(H5:H37,"s")) -> 18 | I3: =IF(COUNTBLANK(I5:I37)='export html'!$AR$6,"",'export html'!$AR$6-COUNTIF(I5:I37,"a")-COUNTIF(I5:I37,"b")-COUNTIF(I5:I37,"s")) -> 15 | J3: =IF(COUNTBLANK(J5:J37)='export html'!$AR$6,"",'export html'!$AR$6-COUNTIF(J5:J37,"a")-COUNTIF(J5:J37,"b")-COUNTIF(J5:J37,"s")) -> 18 | K3: =IF(COUNTBLANK(K5:K37)='export html'!$AR$6,"",'export html'!$AR$6-COUNTIF(K5:K37,"a")-COUNTIF(K5:K37,"b")-COUNTIF(K5:K37,"s")) -> 18 | L3: =IF(COUNTBLANK(L5:L37)='export html'!$AR$6,"",'export html'!$AR$6-COUNTIF(L5:L37,"a")-COUNTIF(L5:L37,"b")-COUNTIF(L5:L37,"s")) -> 16 | M3: =IF(COUNTBLANK(M5:M37)='export html'!$AR$6,"",'export html'!$AR$6-COUNTIF(M5:M37,"a")-COUNTIF(M5:M37,"b")-COUNTIF(M5:M37,"s")) -> 17 | N3: =IF(COUNTBLANK(N5:N37)='export html'!$AR$6,"",'export html'!$AR$6-COUNTIF(N5:N37,"a")-COUNTIF(N5:N37,"b")-COUNTIF(N5:N37,"s")) -> 19 | O3: =IF(COUNTBLANK(O5:O37)='export html'!$AR$6,"",'export html'!$AR$6-COUNTIF(O5:O37,"a")-COUNTIF(O5:O37,"b")-COUNTIF(O5:O37,"s")) -> 16 | P3: =IF(COUNTBLANK(P5:P37)='export html'!$AR$6,"",'export html'!$AR$6-COUNTIF(P5:P37,"a")-COUNTIF(P5:P37,"b")-COUNTIF(P5:P37,"s")) -> 19 | Q3: =IF(COUNTBLANK(Q5:Q37)='export html'!$AR$6,"",'export html'!$AR$6-COUNTIF(Q5:Q37,"a")-COUNTIF(Q5:Q37,"b")-COUNTIF(Q5:Q37,"s")) -> 15 | R3: =IF(COUNTBLANK(R5:R37)='export html'!$AR$6,"",'export html'!$AR$6-COUNTIF(R5:R37,"a")-COUNTIF(R5:R37,"b")-COUNTIF(R5:R37,"s")) -> 34 | S3: =IF(COUNTBLANK(S5:S37)='export html'!$AR$6,"",'export html'!$AR$6-COUNTIF(S5:S37,"a")-COUNTIF(S5:S37,"b")-COUNTIF(S5:S37,"s")) -> 16 | T3: =IF(COUNTBLANK(T5:T37)='export html'!$AR$6,"",'export html'!$AR$6-COUNTIF(T5:T37,"a")-COUNTIF(T5:T37,"b")-COUNTIF(T5:T37,"s")) -> 19 | U3: =IF(COUNTBLANK(U5:U37)='export html'!$AR$6,"",'export html'!$AR$6-COUNTIF(U5:U37,"a")-COUNTIF(U5:U37,"b")-COUNTIF(U5:U37,"s")) -> 15 | V3: =IF(COUNTBLANK(V5:V37)='export html'!$AR$6,"",'export html'!$AR$6-COUNTIF(V5:V37,"a")-COUNTIF(V5:V37,"b")-COUNTIF(V5:V37,"s")) -> 16 | W3: =IF(COUNTBLANK(W5:W37)='export html'!$AR$6,"",'export html'!$AR$6-COUNTIF(W5:W37,"a")-COUNTIF(W5:W37,"b")-COUNTIF(W5:W37,"s")) -> 15 | X3: =IF(COUNTBLANK(X5:X37)='export html'!$AR$6,"",'export html'!$AR$6-COUNTIF(X5:X37,"a")-COUNTIF(X5:X37,"b")-COUNTIF(X5:X37,"s")) -> 17 | Y3: =IF(COUNTBLANK(Y5:Y37)='export html'!$AR$6,"",'export html'!$AR$6-COUNTIF(Y5:Y37,"a")-COUNTIF(Y5:Y37,"b")-COUNTIF(Y5:Y37,"s")) -> 18 | Z3: =IF(COUNTBLANK(Z5:Z37)='export html'!$AR$6,"",'export html'!$AR$6-COUNTIF(Z5:Z37,"a")-COUNTIF(Z5:Z37,"b")-COUNTIF(Z5:Z37,"s")) -> 34 | AA3: =IF(COUNTBLANK(AA5:AA37)='export html'!$AR$6,"",'export html'!$AR$6-COUNTIF(AA5:AA37,"a")-COUNTIF(AA5:AA37,"b")-COUNTIF(AA5:AA37,"s")) -> 34 | AK3: Match van de Man | BQ3: DEZE WEEK | BU3: SEIZOEN | BY3: WEEKOVERWINNINGEN | DY3: =_xlfn.TEXTJOIN( "|",TRUE, _xlfn.DROP( _xlfn.TEXTSPLIT( DY2, , " / " ), 1 )) -> Beirinckx Wout|Celis Ive|Coolsaet Joy|De Groof Maarten|De Groof Steven|De Vinster Glenn|Delen Robbe|Elst Pieter|Gielis Bernd|Hofmans Stijn|Jordens Koen|Langenaeker Maarten|Nyckees Wannes|Stevens Siebe|Van de Vondel Rob|Van Den Brande Brent|Van Dessel Dieter|Verhellen Jorn|Verlooy Kaïn
A4: Speeldag | B4: =IF(COUNTBLANK(B5:B38)='export html'!$AR$6,"",kalender!$B3) -> 1 | C4: =IF(COUNTBLANK(C5:C38)='export html'!$AR$6,"",kalender!$B4) -> 2 | D4: =IF(COUNTBLANK(D5:D38)='export html'!$AR$6,"",kalender!$B5) -> 3 | E4: =IF(COUNTBLANK(E5:E38)='export html'!$AR$6,"",kalender!$B6) -> 4 | F4: =IF(COUNTBLANK(F5:F38)='export html'!$AR$6,"",kalender!$B7) -> 5 | G4: =IF(COUNTBLANK(G5:G38)='export html'!$AR$6,"",kalender!$B8) -> 6 | H4: =IF(COUNTBLANK(H5:H38)='export html'!$AR$6,"",kalender!$B9) -> 7 | I4: =IF(COUNTBLANK(I5:I38)='export html'!$AR$6,"",kalender!$B10) -> 8 | J4: =IF(COUNTBLANK(J5:J38)='export html'!$AR$6,"",kalender!$B11) -> 9 | K4: =IF(COUNTBLANK(K5:K38)='export html'!$AR$6,"",kalender!$B12) -> 10 | L4: =IF(COUNTBLANK(L5:L38)='export html'!$AR$6,"",kalender!$B13) -> 11 | M4: =IF(COUNTBLANK(M5:M38)='export html'!$AR$6,"",kalender!$B14) -> 12 | N4: =IF(COUNTBLANK(N5:N38)='export html'!$AR$6,"",kalender!$B15) -> 13 | O4: =IF(COUNTBLANK(O5:O38)='export html'!$AR$6,"",kalender!$B16) -> 14 | P4: =IF(COUNTBLANK(P5:P38)='export html'!$AR$6,"",kalender!$B17) -> 17 | Q4: =IF(COUNTBLANK(Q5:Q38)='export html'!$AR$6,"",kalender!$B18) -> 16 | R4: =IF(COUNTBLANK(R5:R38)='export html'!$AR$6,"",kalender!$B19) -> 19 | S4: =IF(COUNTBLANK(S5:S38)='export html'!$AR$6,"",kalender!$B20) -> 20 | T4: =IF(COUNTBLANK(T5:T38)='export html'!$AR$6,"",kalender!$B21) -> 21 | U4: =IF(COUNTBLANK(U5:U38)='export html'!$AR$6,"",kalender!$B22) -> 15 | V4: =IF(COUNTBLANK(V5:V38)='export html'!$AR$6,"",kalender!$B23) -> 22 | W4: =IF(COUNTBLANK(W5:W38)='export html'!$AR$6,"",kalender!$B24) -> 23 | X4: =IF(COUNTBLANK(X5:X38)='export html'!$AR$6,"",kalender!$B25) -> 24 | Y4: =IF(COUNTBLANK(Y5:Y38)='export html'!$AR$6,"",kalender!$B26) -> 25 | Z4: =IF(COUNTBLANK(Z5:Z38)='export html'!$AR$6,"",kalender!$B27) ->  | AA4: =IF(COUNTBLANK(AA5:AA38)='export html'!$AR$6,"",kalender!$B28) ->  | AK4: Speler | AL4: Totaal | AM4: Plaats | AN4: =INDEX( B1:AA1, 1, MATCH( AN2, B4:AA4, 0 )) -> Yerevan United (U) | AO4: Plaats | CF4: ="Match tegen " & AN4 -> Match tegen Yerevan United (U) | CG4: Punten - GEWOGEN | CH4: Punten - ONGEWOGEN | CM4: Seizoenstotaal | CN4: Punten - GEWOGEN | CO4: Punten - ONGEWOGEN | CP4: Matchen | CS4: HULP 1 | CT4: HULP 2 | CU4: HULP 3 | CV4: HULP 4 | CY4: Weekoverwinningen | CZ4: Aantal | DA4: Matchen | DD4: Podiumplaatsen | DE4: Goud | DF4: Zilver | DG4: Brons | DH4: Totaal | DI4: Goud = 3 Zilver = 2 Brons = 1 | DL4: Ook op het podium: | DR4: Speler | DS4: Plaats 1 | DT4: Plaats 2 | DU4: Plaats 3 | DV4: Totaal | DW4: Gewogen som
A5: Beckx Pieter-Alexander | B5: a | C5: a | D5: a | E5: 1 | F5: a | G5: a | H5: b | I5: b | J5: b | K5: a | L5: a | M5: a | N5: a | O5: a | P5: a | Q5: a | R5: ff | S5: a | T5: a | U5: a | V5: a | W5: a | X5: a | Y5: a | AB5: =SUM( B102:AA102 ) -> 0 | AC5: =COUNTIF( B5:AA5, "k" ) + SUM( B5:AA5 ) -> 1 | AD5: =IFERROR( AB5 / COUNT($B$4:$AA$4), "" ) -> 0 | AE5: =COUNTIF( B5:AA5, "a" ) -> 19 | AF5: =COUNTIF( B5:AA5, "b" ) -> 3 | AG5: =COUNTIF( B5:AA5, "s" ) -> 0 | AH5: =COUNTIF( B5:AA5, "ng" ) + COUNTIF( B5:AA5, "na" ) + COUNTIF( B5:AA5, "p" ) + COUNTIF( B5:AA5, "t" ) -> 0 | AI5: =COUNTIF(B5:AA5,"k") -> 0 | AK5: =A5 -> Beckx Pieter-Alexander | AL5: =IF(SUM(AP5:BO5)=0,"",SUM(AP5:BO5)) ->  | AM5: =IF(AL5="","",RANK(AL5,AL$5:AL$41)) ->  | AN5: =_xlfn.LET( _xlpm.i, INDEX( $AP5:$BO5, 1, MAX( 1, MATCH( $AN$2, $B$4:$AA$4, 0 ))), IF( _xlpm.i = "", "", _xlpm.i )) -> 0 | AO5: =IF(AN5="","",RANK(AN5,AN$5:AN$41)) -> 11 | AP5: =B352 -> 0 | AQ5: =C352 -> 0 | AR5: =D352 -> 0 | AS5: =E352 -> 0 | AT5: =F352 -> 0 | AU5: =G352 -> 0 | AV5: =H352 -> 0 | AW5: =I352 -> 0 | AX5: =J352 -> 0 | AY5: =K352 -> 0 | AZ5: =L352 -> 0 | BA5: =M352 -> 0 | BB5: =N352 -> 0 | BC5: =O352 -> 0 | BD5: =P352 -> 0 | BE5: =Q352 -> 0 | BF5: =R352 -> 0 | BG5: =S352 -> 0 | BH5: =T352 -> 0 | BI5: =U352 -> 0 | BJ5: =V352 -> 0 | BK5: =W352 -> 0 | BL5: =X352 -> 0 | BM5: =Y352 -> 0 | BN5: =Z352 -> 0 | BO5: =AA352 -> 0 | BQ5: =INDEX($AP5:$BO5,1,MAX(1,MATCH($AN$2,$B$4:$AA$4,0))) -> 0 | BR5: =BQ5-CC5/100 -> -0.01 | BS5: =LARGE(BR$5:BR$40,CC5) -> 17.00285714 | BU5: =SUM(AP5:BO5) -> 0 | BV5: =BU5-CC5/100 -> -0.01 | BW5: =LARGE(BV$5:BV$40,CC5) -> 243.4971292 | BY5: =COUNTIF( $AP$45:$BO$45, "*" & AK5 & "*" ) -> 0 | BZ5: =1000*BY5+BU5-CC5/100 -> -0.01 | CA5: =LARGE(BZ$5:BZ$40,CC5) -> 7243.497129 | CC5: =_xlfn.SEQUENCE(AantalSpelers + 1) -> 1 | CE5: =IF( CG5 = "", "", CC5 ) -> 1 | CF5: =_xlfn.XLOOKUP( CS5, $DZ$5:$DZ$39, $EA$5:$EA$39, "" ) -> Glenn De Vinster | CG5: =IF( INDEX( $BQ$5:$BQ$40, MATCH( BS5, $BR$5:$BR$40, 0 )) = 0, "", INDEX( $BQ$5:$BQ$40, MATCH( BS5, $BR$5:$BR$40, 0 ))) -> 17.14285714 | CH5: =IF( CS5 = "", "", _xlfn.XLOOKUP( CS5, $A$302:$A$336, INDEX( $B$302:$AA$336, , $AM$1 ), "" )) -> 12 | CL5: =IF( CN5 = "", "", CC5 ) -> 1 | CM5: =_xlfn.XLOOKUP( CT5, $DZ$5:$DZ$39, $EA$5:$EA$39, "" ) -> Glenn De Vinster | CN5: =IF( INDEX( $BU$5:$BU$40, MATCH( BW5, $BV$5:$BV$40, 0 )) = 0, "", INDEX( $BU$5:$BU$40, MATCH( BW5, $BV$5:$BV$40, 0 ))) -> 243.6371292 | CO5: =IF( CT5 = "", "", _xlfn.XLOOKUP( CT5, $A$302:$A$336, $AB$302:$AB$336, "" )) -> 187 | CP5: =_xlfn.LET( _xlpm.m, INDEX( $AC$5:$AC$40, MATCH( CT5, $AK$5:$AK$40, 0 )), IF( CN5 = "", "", "(" & IF( _xlpm.m = "", 0, _xlpm.m ) & ")" )) -> (20) | CQ5: =IFERROR(IF(CN5="","",ABS(CN5/CP5)),0) -> 12.18185646 | CS5: =IF( CG5 = "", "", INDEX( $AK$5:$AK$41, MATCH( BS5, $BR$5:$BR$40, 0 ))) -> De Vinster Glenn | CT5: =IF( CN5 = "", "", INDEX( $AK$5:$AK$40, MATCH( BW5, $BV$5:$BV$40, 0 ))) -> De Vinster Glenn | CU5: =IF( CZ5 = "", "", INDEX( $AK$5:$AK$40, MATCH( CA5, $BZ$5:$BZ$40, 0 ))) -> De Vinster Glenn | CV5: =_xlfn.TAKE( _xlfn.SORTBY( OFFSET( DR5:DW19, , , COUNT(_xlfn.ANCHORARRAY( DW5) ), ),_xlfn.ANCHORARRAY( DW5), -1 ), , 1 ) -> De Vinster Glenn | CX5: =IF(CZ5="","",CC5) -> 1 | CY5: =_xlfn.XLOOKUP( CU5, $DZ$5:$DZ$39, $EA$5:$EA$39, "" ) -> Glenn De Vinster | CZ5: =IF(INDEX($BY$5:$BY$40,MATCH(CA5,$BZ$5:$BZ$40,0))=0,"",INDEX($BY$5:$BY$40,MATCH(CA5,$BZ$5:$BZ$40,0))) -> 7 | DA5: =IF(CZ5="","","(" & INDEX($AC$5:$AC$40,MATCH(CU5,$AK$5:$AK$40,0)) & ")") -> (20) | DC5: =_xlfn.SEQUENCE( ROWS(_xlfn.ANCHORARRAY( DR5) )) -> 1 | DD5: =_xlfn.XLOOKUP(_xlfn.ANCHORARRAY( CV5), $DZ$5:$DZ$39, $EA$5:$EA$39, "" ) -> Glenn De Vinster | DE5: =_xlfn.DROP( _xlfn.SORTBY( OFFSET( DR5:DW19, , , COUNT(_xlfn.ANCHORARRAY( DW5) ), ),_xlfn.ANCHORARRAY( DW5), -1 ), , 1 ) -> 7 | DF5: 3 | DG5: 2 | DH5: 12 | DI5: 29.00005 | DL5: =_xlfn.LET( _xlpm.n, _xlfn.TOCOL( AP45:BO47, 1 ), _xlfn._xlws.FILTER( _xlpm.n, _xlpm.n <> "", "Niets weer te geven." )) -> Nyckees Wannes | DN5: =_xlfn.LET( _xlpm.a,_xlfn.ANCHORARRAY( DL5), _xlpm.b, (LEN(_xlpm.a) - LEN(SUBSTITUTE(_xlpm.a, " / ",)))/LEN( " / " ) +1, _xlpm.c, _xlfn.SEQUENCE( , MAX(_xlpm.b)), IFERROR( _xlfn.TEXTSPLIT( _xlfn.TEXTAFTER( " / " & _xlpm.a & " / "," / ", _xlpm.c ), " / "), NA() )) -> Nyckees Wannes | DR5: =_xlfn.UNIQUE( _xlfn.TOCOL(_xlfn.ANCHORARRAY( DN5), 2 )) -> Nyckees Wannes | DS5: =COUNTIF( $AP$45:$BO$45, "*" &_xlfn.ANCHORARRAY( DR5) & "*" ) -> 1 | DT5: =COUNTIF( $AP$46:$BO$46, "*" &_xlfn.ANCHORARRAY( DR5) & "*" ) -> 0 | DU5: =COUNTIF( $AP$47:$BO$47, "*" &_xlfn.ANCHORARRAY( DR5) & "*" ) -> 1 | DV5: =_xlfn.ANCHORARRAY(DS5) +_xlfn.ANCHORARRAY( DT5) +_xlfn.ANCHORARRAY( DU5) -> 2 | DW5: =3 *_xlfn.ANCHORARRAY( DS5) + 2 *_xlfn.ANCHORARRAY( DT5) + 1 *_xlfn.ANCHORARRAY( DU5) + ROW()/100000 -> 4.00005 | DZ5: =A5 -> Beckx Pieter-Alexander | EA5: Pieter-Alexander Beckx
A6: Beirinckx Geert | B6: p | C6: a | D6: t | E6: t | F6: t | G6: a | H6: t | I6: a | J6: a | K6: p | L6: p | M6: p | N6: t | O6: a | P6: t | Q6: t | R6: ff | S6: a | T6: as | U6: a | V6: t | W6: a | X6: td | Y6: a | AB6: 0 | AC6: 0 | AD6: 0 | AE6: 9 | AF6: 0 | AG6: 0 | AH6: 12 | AI6: =COUNTIF(B6:AA6,"k") -> 0 | AK6: Beirinckx Geert | AL6: =IF(SUM(AP6:BO6)=0,"",SUM(AP6:BO6)) ->  | AN6: =_xlfn.LET( _xlpm.i, INDEX( $AP6:$BO6, 1, MAX( 1, MATCH( $AN$2, $B$4:$AA$4, 0 ))), IF( _xlpm.i = "", "", _xlpm.i )) -> 0 | AO6: 11 | AP6: 0 | AQ6: 0 | AR6: 0 | AS6: 0 | AT6: 0 | AU6: 0 | AV6: 0 | AW6: 0 | AX6: 0 | AY6: 0 | AZ6: 0 | BA6: 0 | BB6: 0 | BC6: 0 | BD6: 0 | BE6: 0 | BF6: 0 | BG6: 0 | BH6: 0 | BI6: 0 | BJ6: 0 | BK6: 0 | BL6: 0 | BM6: 0 | BN6: 0 | BO6: 0 | BQ6: =INDEX($AP6:$BO6,1,MAX(1,MATCH($AN$2,$B$4:$AA$4,0))) -> 0 | BR6: -0.02 | BS6: 16.95285714 | BU6: 0 | BV6: =BU6-CC6/100 -> -0.02 | BW6: 165.9303348 | BY6: 0 | BZ6: =1000*BY6+BU6-CC6/100 -> -0.02 | CA6: 5165.930335 | CC6: 2 | CE6: 2 | CF6: Stijn Hofmans | CG6: 17.14285714 | CH6: =IF( CS6 = "", "", _xlfn.XLOOKUP( CS6, $A$302:$A$336, INDEX( $B$302:$AA$336, , $AM$1 ), "" )) -> 12 | CL6: 2 | CM6: Stijn Hofmans | CN6: 166.1203348 | CO6: 135 | CP6: (16) | CQ6: 10.38252092 | CS6: Hofmans Stijn | CT6: Hofmans Stijn | CU6: Hofmans Stijn | CV6: Hofmans Stijn | CX6: 2 | CY6: Stijn Hofmans | CZ6: 5 | DA6: (16) | DC6: 2 | DD6: Stijn Hofmans | DE6: 5 | DF6: 3 | DG6: 0 | DH6: 8 | DI6: 21.00005 | DL6: De Vinster Glenn | DN6: De Vinster Glenn | DR6: De Vinster Glenn | DS6: 7 | DT6: 3 | DU6: 2 | DV6: 12 | DW6: 29.00005 | DZ6: =A6 -> Beirinckx Geert | EA6: Geert Beirinckx
A7: Beirinckx Jurgen | B7: 1 | C7: ng | D7: ng | E7: 1 | F7: p | G7: p | H7: p | I7: ng | J7: p | K7: a | L7: ng | M7: 1 | N7: ng | O7: 1 | P7: p | Q7: p | R7: ff | S7: p | T7: p | U7: p | V7: p | W7: p | X7: p | Y7: p | AB7: 0 | AC7: 4 | AD7: 0 | AE7: 1 | AF7: 0 | AG7: 0 | AH7: 18 | AI7: 0 | AK7: Beirinckx Jurgen | AL7: 8.829365079 | AM7: 26 | AN7: =_xlfn.LET( _xlpm.i, INDEX( $AP7:$BO7, 1, MAX( 1, MATCH( $AN$2, $B$4:$AA$4, 0 ))), IF( _xlpm.i = "", "", _xlpm.i )) -> 0 | AO7: 11 | AP7: 2.222222222 | AQ7: 0 | AR7: 0 | AS7: 0 | AT7: 0 | AU7: 0 | AV7: 0 | AW7: 0 | AX7: 0 | AY7: 0 | AZ7: 0 | BA7: 3.75 | BB7: 0 | BC7: 1.428571429 | BD7: 0 | BE7: 0 | BF7: 0 | BG7: 1.428571429 | BH7: 0 | BI7: 0 | BJ7: 0 | BK7: 0 | BL7: 0 | BM7: 0 | BN7: 0 | BO7: 0 | BQ7: =INDEX($AP7:$BO7,1,MAX(1,MATCH($AN$2,$B$4:$AA$4,0))) -> 0 | BR7: -0.03 | BS7: 15.50428571 | BU7: 8.829365079 | BV7: =BU7-CC7/100 -> 8.799365079 | BW7: 155.2070784 | BY7: 0 | BZ7: =1000*BY7+BU7-CC7/100 -> 8.799365079 | CA7: 2127.182561 | CC7: 3 | CE7: 3 | CF7: Maarten Langenaeker | CG7: 15.71428571 | CH7: =IF( CS7 = "", "", _xlfn.XLOOKUP( CS7, $A$302:$A$336, INDEX( $B$302:$AA$336, , $AM$1 ), "" )) -> 11 | CL7: 3 | CM7: Kaïn Verlooy | CN7: 155.5270784 | CO7: 125 | CP7: (18) | CQ7: 8.640393247 | CS7: Langenaeker Maarten | CT7: Verlooy Kaïn | CU7: Jordens Koen | CV7: Langenaeker Maarten | CX7: 3 | CY7: Koen Jordens | CZ7: 2 | DA7: (19) | DC7: 3 | DD7: Maarten Langenaeker | DE7: 1 | DF7: 1 | DG7: 6 | DH7: 8 | DI7: 11.00005 | DL7: Delen Robbe | DN7: Delen Robbe | DR7: Delen Robbe | DS7: 1 | DT7: 0 | DU7: 0 | DV7: 1 | DW7: 3.00005 | DZ7: Beirinckx Jurgen | EA7: Jurgen Beirinckx
A8: Beirinckx Rani | AB8: 0 | AC8: =COUNTIF( B8:AA8, "k" ) + SUM( B8:AA8 ) -> 0 | AD8: =IFERROR( AB8 / COUNT($B$4:$AA$4), "" ) -> 0 | AE8: =COUNTIF( B8:AA8, "a" ) -> 0 | AF8: =COUNTIF( B8:AA8, "b" ) -> 0 | AG8: =COUNTIF( B8:AA8, "s" ) -> 0 | AH8: =COUNTIF( B8:AA8, "ng" ) + COUNTIF( B8:AA8, "na" ) + COUNTIF( B8:AA8, "p" ) + COUNTIF( B8:AA8, "t" ) -> 0 | AI8: =COUNTIF(B8:AA8,"k") -> 0 | AK8: =A8 -> Beirinckx Rani | AL8: =IF(SUM(AP8:BO8)=0,"",SUM(AP8:BO8)) -> 2.361111111 | AM8: 29 | AN8: =_xlfn.LET( _xlpm.i, INDEX( $AP8:$BO8, 1, MAX( 1, MATCH( $AN$2, $B$4:$AA$4, 0 ))), IF( _xlpm.i = "", "", _xlpm.i )) -> 0 | AO8: 11 | AP8: 1.111111111 | AQ8: 0 | AR8: 0 | AS8: 0 | AT8: 0 | AU8: 0 | AV8: 0 | AW8: 0 | AX8: 0 | AY8: 0 | AZ8: 0 | BA8: 1.25 | BB8: 0 | BC8: 0 | BD8: 0 | BE8: 0 | BF8: 0 | BG8: 0 | BH8: 0 | BI8: 0 | BJ8: 0 | BK8: 0 | BL8: 0 | BM8: 0 | BN8: 0 | BO8: 0 | BQ8: =INDEX($AP8:$BO8,1,MAX(1,MATCH($AN$2,$B$4:$AA$4,0))) -> 0 | BR8: =BQ8-CC8/100 -> -0.04 | BS8: 15.39428571 | BU8: =SUM(AP8:BO8) -> 2.361111111 | BV8: =BU8-CC8/100 -> 2.321111111 | BW8: 149.3424851 | BY8: 0 | BZ8: =1000*BY8+BU8-CC8/100 -> 2.321111111 | CA8: 2074.408266 | CC8: 4 | CE8: =IF( CG8 = "", "", CC8 ) -> 4 | CF8: Kaïn Verlooy | CG8: 15.71428571 | CH8: =IF( CS8 = "", "", _xlfn.XLOOKUP( CS8, $A$302:$A$336, INDEX( $B$302:$AA$336, , $AM$1 ), "" )) -> 11 | CL8: =IF( CN8 = "", "", CC8 ) -> 4 | CM8: Maarten Langenaeker | CN8: 149.5524851 | CO8: 116 | CP8: (19) | CQ8: =IFERROR(IF(CN8="","",ABS(CN8/CP8)),0) -> 7.871183426 | CS8: Verlooy Kaïn | CT8: Langenaeker Maarten | CU8: Verhellen Jorn | CV8: Jordens Koen | CX8: =IF(CZ8="","",CC8) -> 4 | CY8: Jorn Verhellen | CZ8: 2 | DA8: (5) | DC8: 4 | DD8: Koen Jordens | DE8: 2 | DF8: 0 | DG8: 5 | DH8: 7 | DI8: 11.00005 | DL8: Langenaeker Maarten | DN8: Langenaeker Maarten | DR8: Langenaeker Maarten | DS8: 1 | DT8: 1 | DU8: 6 | DV8: 8 | DW8: 11.00005 | DZ8: Beirinckx Rani | EA8: Rani Beirinckx
A9: Beirinckx Wout | B9: a | C9: 1 | D9: 1 | E9: 1 | F9: 1 | G9: 1 | H9: 1 | I9: k | J9: 1 | K9: 1 | L9: b | M9: t | N9: k | O9: 1 | P9: 1 | Q9: 1 | R9: ff | S9: 1 | T9: 1 | U9: a | V9: 1 | W9: 1 | X9: 1 | Y9: 1 | AB9: 1 | AC9: 19 | AD9: 0.04166666667 | AE9: 2 | AF9: 1 | AG9: 0 | AH9: 1 | AI9: 2 | AK9: Beirinckx Wout | AL9: 75.17577881 | AM9: 11 | AN9: =_xlfn.LET( _xlpm.i, INDEX( $AP9:$BO9, 1, MAX( 1, MATCH( $AN$2, $B$4:$AA$4, 0 ))), IF( _xlpm.i = "", "", _xlpm.i )) -> 10 | AO9: 5 | AP9: 0 | AQ9: 9.333333333 | AR9: 7 | AS9: 1.333333333 | AT9: 0 | AU9: 8.571428571 | AV9: 2.666666667 | AW9: 9.230769231 | AX9: 0 | AY9: 0 | AZ9: 0 | BA9: 0 | BB9: 6.666666667 | BC9: 0 | BD9: 3.157894737 | BE9: 4.285714286 | BF9: 0 | BG9: 5.714285714 | BH9: 1.333333333 | BI9: 0 | BJ9: 5.882352941 | BK9: 10 | BL9: 0 | BM9: 0 | BN9: 0 | BO9: 0 | BQ9: =INDEX($AP9:$BO9,1,MAX(1,MATCH($AN$2,$B$4:$AA$4,0))) -> 10 | BR9: 9.95 | BS9: 9.95 | BU9: 75.17577881 | BV9: 75.12577881 | BW9: 134.1871787 | BY9: 0 | BZ9: 75.12577881 | CA9: 2045.275368 | CC9: 5 | CE9: 5 | CF9: Wout Beirinckx | CG9: 10 | CH9: =IF( CS9 = "", "", _xlfn.XLOOKUP( CS9, $A$302:$A$336, INDEX( $B$302:$AA$336, , $AM$1 ), "" )) -> 7 | CL9: 5 | CM9: Maarten De Groof | CN9: 134.2971787 | CO9: 106 | CP9: (19) | CQ9: 7.068272561 | CS9: Beirinckx Wout | CT9: De Groof Maarten | CU9: Van Den Brande Brent | CV9: Verhellen Jorn | CX9: 5 | CY9: Brent Van Den Brande | CZ9: 2 | DA9: (4) | DC9: 5 | DD9: Jorn Verhellen | DE9: 2 | DF9: 1 | DG9: 2 | DH9: 5 | DI9: 10.00005 | DL9: De Vinster Glenn / Verhellen Jorn | DN9: De Vinster Glenn | DO9: Verhellen Jorn | DR9: Verhellen Jorn | DS9: 2 | DT9: 1 | DU9: 2 | DV9: 5 | DW9: 10.00005 | DZ9: Beirinckx Wout | EA9: Wout Beirinckx
A10: Boes Dieuwer | B10: 1 | C10: 1 | D10: 1 | E10: 1 | F10: a | G10: 1 | H10: b | I10: b | J10: b | K10: b | L10: b | M10: b | N10: b | O10: a | P10: 1 | Q10: a | R10: ff | S10: a | T10: a | U10: a | V10: a | W10: a | X10: a | Y10: 1 | AB10: 0 | AC10: 7 | AD10: 0 | AE10: 9 | AF10: 7 | AG10: 0 | AH10: 0 | AI10: 0 | AK10: Boes Dieuwer | AL10: 21.01002506 | AM10: 21 | AN10: =_xlfn.LET( _xlpm.i, INDEX( $AP10:$BO10, 1, MAX( 1, MATCH( $AN$2, $B$4:$AA$4, 0 ))), IF( _xlpm.i = "", "", _xlpm.i )) -> 0 | AO10: 11 | AP10: 0 | AQ10: 5.333333333 | AR10: 1 | AS10: 4 | AT10: 0 | AU10: 8.571428571 | AV10: 0 | AW10: 0 | AX10: 0 | AY10: 0 | AZ10: 0 | BA10: 0 | BB10: 0 | BC10: 0 | BD10: 2.105263158 | BE10: 0 | BF10: 0 | BG10: 0 | BH10: 0 | BI10: 0 | BJ10: 0 | BK10: 0 | BL10: 0 | BM10: 0 | BN10: 0 | BO10: 0 | BQ10: =INDEX($AP10:$BO10,1,MAX(1,MATCH($AN$2,$B$4:$AA$4,0))) -> 0 | BR10: -0.06 | BS10: 8.401428571 | BU10: 21.01002506 | BV10: 20.95002506 | BW10: 127.1825609 | BY10: 0 | BZ10: 20.95002506 | CA10: 1155.207078 | CC10: 6 | CE10: 6 | CF10: Bernd Gielis | CG10: 8.571428571 | CH10: =IF( CS10 = "", "", _xlfn.XLOOKUP( CS10, $A$302:$A$336, INDEX( $B$302:$AA$336, , $AM$1 ), "" )) -> 6 | CL10: 6 | CM10: Koen Jordens | CN10: 127.3825609 | CO10: 98 | CP10: (19) | CQ10: 6.704345308 | CS10: Gielis Bernd | CT10: Jordens Koen | CU10: Verlooy Kaïn | CV10: Gielis Bernd | CX10: 6 | CY10: Kaïn Verlooy | CZ10: 1 | DA10: (18) | DC10: 6 | DD10: Bernd Gielis | DE10: 1 | DF10: 3 | DG10: 1 | DH10: 5 | DI10: 10.00005 | DL10: Gielis Bernd | DN10: Gielis Bernd | DR10: Gielis Bernd | DS10: 1 | DT10: 3 | DU10: 1 | DV10: 5 | DW10: 10.00005 | DZ10: Boes Dieuwer | EA10: Dieuwer Boes
A11: Celis Ive | B11: a | C11: a | D11: 1 | E11: a | F11: 1 | G11: 1 | H11: 1 | I11: a | J11: a | K11: a | L11: 1 | M11: 1 | N11: 1 | O11: 1 | P11: 1 | Q11: a | R11: ff | S11: a | T11: a | U11: a | V11: a | W11: a | X11: a | Y11: a | AB11: 0 | AC11: 9 | AD11: 0 | AE11: 14 | AF11: 0 | AG11: 0 | AH11: 0 | AI11: 0 | AK11: Celis Ive | AL11: 73.27764264 | AM11: 13 | AN11: =_xlfn.LET( _xlpm.i, INDEX( $AP11:$BO11, 1, MAX( 1, MATCH( $AN$2, $B$4:$AA$4, 0 ))), IF( _xlpm.i = "", "", _xlpm.i )) -> 0 | AO11: 11 | AP11: 0 | AQ11: 0 | AR11: 3 | AS11: 0 | AT11: 12.94117647 | AU11: 12.85714286 | AV11: 4 | AW11: 0 | AX11: 0 | AY11: 0 | AZ11: 6.666666667 | BA11: 8.75 | BB11: 13.33333333 | BC11: 8.571428571 | BD11: 3.157894737 | BE11: 0 | BF11: 0 | BG11: 0 | BH11: 0 | BI11: 0 | BJ11: 0 | BK11: 0 | BL11: 0 | BM11: 0 | BN11: 0 | BO11: 0 | BQ11: =INDEX($AP11:$BO11,1,MAX(1,MATCH($AN$2,$B$4:$AA$4,0))) -> 0 | BR11: -0.07 | BS11: 7.022857143 | BU11: 73.27764264 | BV11: 73.20764264 | BW11: 123.4655311 | BY11: 0 | BZ11: 73.20764264 | CA11: 1149.342485 | CC11: 7 | CE11: 7 | CF11: Steven De Groof | CG11: 7.142857143 | CH11: =IF( CS11 = "", "", _xlfn.XLOOKUP( CS11, $A$302:$A$336, INDEX( $B$302:$AA$336, , $AM$1 ), "" )) -> 5 | CL11: 7 | CM11: Bernd Gielis | CN11: 123.6355311 | CO11: 93 | CP11: (14) | CQ11: 8.831109367 | CS11: De Groof Steven | CT11: Gielis Bernd | CU11: Langenaeker Maarten | CV11: Verlooy Kaïn | CX11: 7 | CY11: Maarten Langenaeker | CZ11: 1 | DA11: (19) | DC11: 7 | DD11: Kaïn Verlooy | DE11: 1 | DF11: 3 | DG11: 0 | DH11: 4 | DI11: 9.00005 | DL11: De Vinster Glenn | DN11: De Vinster Glenn | DR11: Van Den Brande Brent | DS11: 2 | DT11: 0 | DU11: 0 | DV11: 2 | DW11: 6.00005 | DZ11: Celis Ive | EA11: Ive Celis
A12: Coolsaet Joy | B12: a | C12: a | D12: td | E12: 1 | F12: td | G12: 1 | H12: td | I12: a | J12: 1 | K12: td | L12: 1 | M12: 1 | N12: 1 | O12: a | P12: 1 | Q12: a | R12: ff | S12: 1 | T12: td | U12: 1 | V12: 1 | W12: a | X12: 1 | Y12: 1 | AB12: 0 | AC12: 12 | AD12: 0 | AE12: 6 | AF12: 0 | AG12: 0 | AH12: 0 | AI12: 0 | AK12: Coolsaet Joy | AL12: 73.27052359 | AM12: 14 | AN12: =_xlfn.LET( _xlpm.i, INDEX( $AP12:$BO12, 1, MAX( 1, MATCH( $AN$2, $B$4:$AA$4, 0 ))), IF( _xlpm.i = "", "", _xlpm.i )) -> 0 | AO12: 11 | AP12: 0 | AQ12: 0 | AR12: 1 | AS12: 9.333333333 | AT12: 0 | AU12: 10 | AV12: 0 | AW12: 0 | AX12: 7.5 | AY12: 0 | AZ12: 10.66666667 | BA12: 10 | BB12: 2.857142857 | BC12: 0 | BD12: 0 | BE12: 0 | BF12: 0 | BG12: 5.714285714 | BH12: 0 | BI12: 13.84615385 | BJ12: 2.352941176 | BK12: 0 | BL12: 0 | BM12: 0 | BN12: 0 | BO12: 0 | BQ12: =INDEX($AP12:$BO12,1,MAX(1,MATCH($AN$2,$B$4:$AA$4,0))) -> 0 | BR12: -0.08 | BS12: 4.175714286 | BU12: 73.27052359 | BV12: 73.19052359 | BW12: 114.3926457 | BY12: 0 | BZ12: =1000*BY12+BU12-CC12/100 -> 73.19052359 | CA12: 1123.465531 | CC12: 8 | CE12: 8 | CF12: Maarten De Groof | CG12: 4.285714286 | CH12: =IF( CS12 = "", "", _xlfn.XLOOKUP( CS12, $A$302:$A$336, INDEX( $B$302:$AA$336, , $AM$1 ), "" )) -> 3 | CL12: 8 | CM12: Steven De Groof | CN12: 114.5126457 | CO12: 88 | CP12: (20) | CQ12: 5.725632284 | CS12: De Groof Maarten | CT12: De Groof Steven | CU12: Gielis Bernd | CV12: De Groof Maarten | CX12: 8 | CY12: Bernd Gielis | CZ12: 1 | DA12: (14) | DC12: 8 | DD12: Maarten De Groof | DE12: 0 | DF12: 3 | DG12: 2 | DH12: 5 | DI12: 8.00005 | DL12: Van Den Brande Brent | DN12: Van Den Brande Brent | DR12: Jordens Koen | DS12: 2 | DT12: 0 | DU12: 5 | DV12: 7 | DW12: 11.00005 | DZ12: Coolsaet Joy | EA12: Joy Coolsaet
A13: De Clerck Tom | B13: a | C13: a | D13: a | E13: a | F13: a | G13: a | H13: a | I13: a | J13: a | K13: a | L13: b | M13: a | N13: a | O13: a | P13: a | Q13: a | R13: ff | S13: a | T13: a | U13: a | V13: a | W13: a | X13: a | Y13: a | AB13: 0 | AC13: 0 | AD13: 0 | AE13: 22 | AF13: 1 | AG13: 0 | AH13: 0 | AI13: 0 | AK13: De Clerck Tom | AL13: =IF(SUM(AP13:BO13)=0,"",SUM(AP13:BO13)) ->  | AN13: =_xlfn.LET( _xlpm.i, INDEX( $AP13:$BO13, 1, MAX( 1, MATCH( $AN$2, $B$4:$AA$4, 0 ))), IF( _xlpm.i = "", "", _xlpm.i )) -> 0 | AO13: 11 | AP13: 0 | AQ13: 0 | AR13: 0 | AS13: 0 | AT13: 0 | AU13: 0 | AV13: 0 | AW13: 0 | AX13: 0 | AY13: 0 | AZ13: 0 | BA13: 0 | BB13: 0 | BC13: 0 | BD13: 0 | BE13: 0 | BF13: 0 | BG13: 0 | BH13: 0 | BI13: 0 | BJ13: 0 | BK13: 0 | BL13: 0 | BM13: 0 | BN13: 0 | BO13: 0 | BQ13: =INDEX($AP13:$BO13,1,MAX(1,MATCH($AN$2,$B$4:$AA$4,0))) -> 0 | BR13: -0.09 | BS13: 2.697142857 | BU13: 0 | BV13: =BU13-CC13/100 -> -0.09 | BW13: 110.875169 | BY13: 0 | BZ13: =1000*BY13+BU13-CC13/100 -> -0.09 | CA13: 1070.430476 | CC13: 9 | CE13: 9 | CF13: Pieter Elst | CG13: 2.857142857 | CH13: =IF( CS13 = "", "", _xlfn.XLOOKUP( CS13, $A$302:$A$336, INDEX( $B$302:$AA$336, , $AM$1 ), "" )) -> 2 | CL13: 9 | CM13: Pieter Elst | CN13: 111.035169 | CO13: 88 | CP13: (17) | CQ13: 6.531480529 | CS13: Elst Pieter | CT13: Elst Pieter | CU13: Van de Vondel Rob | CV13: Van Den Brande Brent | CX13: 9 | CY13: Rob Van de Vondel | CZ13: 1 | DA13: (11) | DC13: 9 | DD13: Brent Van Den Brande | DE13: 2 | DF13: 0 | DG13: 0 | DH13: 2 | DI13: 6.00005 | DL13: Van Den Brande Brent | DN13: Van Den Brande Brent | DR13: Verlooy Kaïn | DS13: 1 | DT13: 3 | DU13: 0 | DV13: 4 | DW13: 9.00005 | DZ13: De Clerck Tom | EA13: Tom De Clerck
A14: De Graeve Robbe | B14: 1 | C14: 1 | D14: a | E14: a | F14: a | G14: a | H14: a | I14: a | J14: a | K14: 1 | L14: b | M14: b | N14: b | O14: b | P14: b | Q14: b | R14: ff | S14: b | T14: b | U14: b | V14: b | W14: b | X14: b | Y14: b | AB14: 0 | AC14: 3 | AD14: 0 | AE14: 7 | AF14: 13 | AG14: 0 | AH14: 0 | AI14: 0 | AK14: De Graeve Robbe | AL14: 8.444444444 | AM14: 27 | AN14: =_xlfn.LET( _xlpm.i, INDEX( $AP14:$BO14, 1, MAX( 1, MATCH( $AN$2, $B$4:$AA$4, 0 ))), IF( _xlpm.i = "", "", _xlpm.i )) -> 0 | AO14: 11 | AP14: 4.444444444 | AQ14: 2.666666667 | AR14: 0 | AS14: 0 | AT14: 0 | AU14: 0 | AV14: 0 | AW14: 0 | AX14: 0 | AY14: 1.333333333 | AZ14: 0 | BA14: 0 | BB14: 0 | BC14: 0 | BD14: 0 | BE14: 0 | BF14: 0 | BG14: 0 | BH14: 0 | BI14: 0 | BJ14: 0 | BK14: 0 | BL14: 0 | BM14: 0 | BN14: 0 | BO14: 0 | BQ14: =INDEX($AP14:$BO14,1,MAX(1,MATCH($AN$2,$B$4:$AA$4,0))) -> 0 | BR14: -0.1 | BS14: 1.088571429 | BU14: =SUM(AP14:BO14) -> 8.444444444 | BV14: =BU14-CC14/100 -> 8.344444444 | BW14: 110.6377402 | BY14: 0 | BZ14: =1000*BY14+BU14-CC14/100 -> 8.344444444 | CA14: 1037.992222 | CC14: 10 | CE14: 10 | CF14: Ryan Verrijdt | CG14: 1.428571429 | CH14: =IF( CS14 = "", "", _xlfn.XLOOKUP( CS14, $A$302:$A$336, INDEX( $B$302:$AA$336, , $AM$1 ), "" )) -> 1 | CL14: 10 | CM14: Dieter Van Dessel | CN14: 110.9177402 | CO14: 88 | CP14: (18) | CQ14: 6.16209668 | CS14: Verrijdt Ryan | CT14: Van Dessel Dieter | CU14: Nyckees Wannes | CV14: Coolsaet Joy | CX14: 10 | CY14: Wannes Nyckees | CZ14: 1 | DA14: (2) | DC14: 10 | DD14: Joy Coolsaet | DE14: 0 | DF14: 2 | DG14: 2 | DH14: 4 | DI14: 6.00005 | DL14: De Vinster Glenn | DN14: De Vinster Glenn | DR14: Hofmans Stijn | DS14: 5 | DT14: 3 | DU14: 0 | DV14: 8 | DW14: 21.00005 | DZ14: De Graeve Robbe | EA14: Robbe De Graeve
A15: De Groof Maarten | B15: 1 | C15: 1 | D15: 1 | E15: 1 | F15: 1 | G15: t | H15: ng | I15: 1 | J15: 1 | K15: 1 | L15: 1 | M15: a | N15: ng | O15: 1 | P15: 1 | Q15: 1 | R15: ff | S15: 1 | T15: 1 | U15: 1 | V15: 1 | W15: 1 | X15: 1 | Y15: 1 | AB15: 1 | AC15: 19 | AD15: 0.04166666667 | AE15: 1 | AF15: 0 | AG15: 0 | AH15: 3 | AI15: =COUNTIF(B15:AA15,"k") -> 0 | AK15: De Groof Maarten | AL15: 134.2971787 | AM15: 5 | AN15: =_xlfn.LET( _xlpm.i, INDEX( $AP15:$BO15, 1, MAX( 1, MATCH( $AN$2, $B$4:$AA$4, 0 ))), IF( _xlpm.i = "", "", _xlpm.i )) -> 4.285714286 | AO15: 8 | AP15: 7.777777778 | AQ15: 14.66666667 | AR15: 16 | AS15: 6.666666667 | AT15: 2.352941176 | AU15: 0 | AV15: 0 | AW15: 12.30769231 | AX15: 8.75 | AY15: 8 | AZ15: 9.333333333 | BA15: 0 | BB15: 0.9523809524 | BC15: 1.428571429 | BD15: 3.157894737 | BE15: 8.571428571 | BF15: 0 | BG15: 5.714285714 | BH15: 10.66666667 | BI15: 3.076923077 | BJ15: 10.58823529 | BK15: 4.285714286 | BL15: 0 | BM15: 0 | BN15: 0 | BO15: 0 | BQ15: =INDEX($AP15:$BO15,1,MAX(1,MATCH($AN$2,$B$4:$AA$4,0))) -> 4.285714286 | BR15: 4.175714286 | BS15: -0.01 | BU15: 134.2971787 | BV15: 134.1871787 | BW15: 75.12577881 | BY15: 0 | BZ15: 134.1871787 | CA15: 1019.85 | CC15: 11 | CH15: =IF( CS15 = "", "", _xlfn.XLOOKUP( CS15, $A$302:$A$336, INDEX( $B$302:$AA$336, , $AM$1 ), "" )) ->  | CL15: 11 | CM15: Wout Beirinckx | CN15: 75.17577881 | CO15: 59 | CP15: (19) | CQ15: 3.956619938 | CT15: Beirinckx Wout | CU15: Delen Robbe | CV15: Van de Vondel Rob | CX15: 11 | CY15: Robbe Delen | CZ15: 1 | DA15: (1) | DC15: 11 | DD15: Rob Van de Vondel | DE15: 1 | DF15: 1 | DG15: 0 | DH15: 2 | DI15: 5.00005 | DL15: Jordens Koen | DN15: Jordens Koen | DR15: Van de Vondel Rob | DS15: 1 | DT15: 1 | DU15: 0 | DV15: 2 | DW15: 5.00005 | DZ15: De Groof Maarten | EA15: Maarten De Groof
A16: De Groof Steven | B16: 1 | C16: b | D16: p | E16: 1 | F16: 1 | G16: 1 | H16: 1 | I16: 1 | J16: 1 | K16: 1 | L16: 1 | M16: a | N16: 1 | O16: 1 | P16: 1 | Q16: 1 | R16: ff | S16: 1 | T16: 1 | U16: 1 | V16: 1 | W16: 1 | X16: 1 | Y16: 1 | AB16: 1 | AC16: 20 | AD16: 0.04166666667 | AE16: 1 | AF16: 1 | AG16: 0 | AH16: 1 | AI16: 0 | AK16: De Groof Steven | AL16: 114.5126457 | AM16: 8 | AN16: =_xlfn.LET( _xlpm.i, INDEX( $AP16:$BO16, 1, MAX( 1, MATCH( $AN$2, $B$4:$AA$4, 0 ))), IF( _xlpm.i = "", "", _xlpm.i )) -> 7.142857143 | AO16: 7 | AP16: 2.222222222 | AQ16: 0 | AR16: 0 | AS16: 0 | AT16: 0 | AU16: 12.85714286 | AV16: 9.333333333 | AW16: 6.153846154 | AX16: 3.75 | AY16: 10.66666667 | AZ16: 8 | BA16: 0 | BB16: 6.666666667 | BC16: 12.85714286 | BD16: 8.421052632 | BE16: 1.428571429 | BF16: 0 | BG16: 7.142857143 | BH16: 2.666666667 | BI16: 4.615384615 | BJ16: 10.58823529 | BK16: 7.142857143 | BL16: 0 | BM16: 0 | BN16: 0 | BO16: 0 | BQ16: =INDEX($AP16:$BO16,1,MAX(1,MATCH($AN$2,$B$4:$AA$4,0))) -> 7.142857143 | BR16: 7.022857143 | BS16: -0.02 | BU16: 114.5126457 | BV16: 114.3926457 | BW16: 74.40826625 | BY16: 0 | BZ16: 114.3926457 | CA16: 134.1871787 | CC16: 12 | CH16: =IF( CS16 = "", "", _xlfn.XLOOKUP( CS16, $A$302:$A$336, INDEX( $B$302:$AA$336, , $AM$1 ), "" )) ->  | CL16: 12 | CM16: Jorn Verhellen | CN16: 74.71826625 | CO16: 62 | CP16: (5) | CQ16: 14.94365325 | CT16: Verhellen Jorn | CV16: Elst Pieter | DC16: 12 | DD16: Pieter Elst | DE16: 0 | DF16: 2 | DG16: 1 | DH16: 3 | DI16: 5.00005 | DL16: Verlooy Kaïn | DN16: Verlooy Kaïn | DR16: De Groof Maarten | DS16: 0 | DT16: 3 | DU16: 2 | DV16: 5 | DW16: 8.00005 | DZ16: De Groof Steven | EA16: Steven De Groof
A17: De Swert Erlend | B17: a | C17: 1 | D17: a | E17: a | F17: a | G17: 1 | H17: a | I17: 1 | J17: a | K17: a | L17: a | M17: 1 | N17: a | O17: a | P17: a | Q17: a | R17: ff | S17: a | T17: a | U17: a | V17: a | W17: a | X17: 1 | Y17: a | AB17: 0 | AC17: 5 | AD17: 0 | AE17: 18 | AF17: 0 | AG17: 0 | AH17: 0 | AI17: 0 | AK17: De Swert Erlend | AL17: 24.20787546 | AM17: 19 | AN17: =_xlfn.LET( _xlpm.i, INDEX( $AP17:$BO17, 1, MAX( 1, MATCH( $AN$2, $B$4:$AA$4, 0 ))), IF( _xlpm.i = "", "", _xlpm.i )) -> 0 | AO17: 11 | AP17: 0 | AQ17: 6.666666667 | AR17: 0 | AS17: 0 | AT17: 0 | AU17: 5.714285714 | AV17: 0 | AW17: 3.076923077 | AX17: 0 | AY17: 0 | AZ17: 0 | BA17: 8.75 | BB17: 0 | BC17: 0 | BD17: 0 | BE17: 0 | BF17: 0 | BG17: 0 | BH17: 0 | BI17: 0 | BJ17: 0 | BK17: 0 | BL17: 0 | BM17: 0 | BN17: 0 | BO17: 0 | BQ17: =INDEX($AP17:$BO17,1,MAX(1,MATCH($AN$2,$B$4:$AA$4,0))) -> 0 | BR17: -0.13 | BS17: -0.03 | BU17: 24.20787546 | BV17: 24.07787546 | BW17: 73.20764264 | BY17: 0 | BZ17: 24.07787546 | CA17: 114.3926457 | CC17: 13 | CH17: =IF( CS17 = "", "", _xlfn.XLOOKUP( CS17, $A$302:$A$336, INDEX( $B$302:$AA$336, , $AM$1 ), "" )) ->  | CL17: 13 | CM17: Ive Celis | CN17: 73.27764264 | CO17: 61 | CP17: (9) | CQ17: 8.141960293 | CT17: Celis Ive | CV17: Celis Ive | DC17: 13 | DD17: Ive Celis | DE17: 0 | DF17: 2 | DG17: 1 | DH17: 3 | DI17: 5.00005 | DL17: Hofmans Stijn | DN17: Hofmans Stijn | DR17: Elst Pieter | DS17: 0 | DT17: 2 | DU17: 1 | DV17: 3 | DW17: 5.00005 | DZ17: De Swert Erlend | EA17: Erlend De Swert
A18: De Vinster Glenn | B18: 1 | C18: 1 | D18: 1 | E18: a | F18: 1 | G18: 1 | H18: 1 | I18: 1 | J18: 1 | K18: 1 | L18: 1 | M18: 1 | N18: 1 | O18: 1 | P18: s | Q18: 1 | R18: ff | S18: 1 | T18: 1 | U18: 1 | V18: 1 | W18: 1 | X18: 1 | Y18: t | AB18: 29 | AC18: 20 | AD18: 1.208333333 | AE18: 1 | AF18: 0 | AG18: 1 | AH18: 1 | AI18: 0 | AK18: De Vinster Glenn | AL18: 243.6371292 | AM18: 1 | AN18: =_xlfn.LET( _xlpm.i, INDEX( $AP18:$BO18, 1, MAX( 1, MATCH( $AN$2, $B$4:$AA$4, 0 ))), IF( _xlpm.i = "", "", _xlpm.i )) -> 17.14285714 | AO18: 1 | AP18: 7.777777778 | AQ18: 16 | AR18: 7 | AS18: 0 | AT18: 18.82352941 | AU18: 7.142857143 | AV18: 26.66666667 | AW18: 7.692307692 | AX18: 11.25 | AY18: 17.33333333 | AZ18: 10.66666667 | BA18: 5 | BB18: 12.38095238 | BC18: 17.14285714 | BD18: 0 | BE18: 17.14285714 | BF18: 0 | BG18: 15.71428571 | BH18: 16 | BI18: 9.230769231 | BJ18: 3.529411765 | BK18: 17.14285714 | BL18: 0 | BM18: 0 | BN18: 0 | BO18: 0 | BQ18: =INDEX($AP18:$BO18,1,MAX(1,MATCH($AN$2,$B$4:$AA$4,0))) -> 17.14285714 | BR18: 17.00285714 | BS18: -0.04 | BU18: 243.6371292 | BV18: 243.4971292 | BW18: 73.19052359 | BY18: 7 | BZ18: 7243.497129 | CA18: 110.875169 | CC18: 14 | CH18: =IF( CS18 = "", "", _xlfn.XLOOKUP( CS18, $A$302:$A$336, INDEX( $B$302:$AA$336, , $AM$1 ), "" )) ->  | CL18: 14 | CM18: Joy Coolsaet | CN18: 73.27052359 | CO18: 55 | CP18: (12) | CQ18: 6.105876966 | CT18: Coolsaet Joy | CV18: De Groof Steven | DC18: 14 | DD18: Steven De Groof | DE18: 0 | DF18: 2 | DG18: 1 | DH18: 3 | DI18: 5.00005 | DL18: De Vinster Glenn | DN18: De Vinster Glenn | DR18: Celis Ive | DS18: 0 | DT18: 2 | DU18: 1 | DV18: 3 | DW18: 5.00005 | DZ18: De Vinster Glenn | EA18: Glenn De Vinster
A19: Delen Robbe | B19: na | C19: a | D19: 1 | E19: a | F19: a | G19: a | H19: a | I19: a | J19: a | K19: a | L19: a | M19: a | N19: a | O19: a | P19: a | Q19: a | R19: ff | S19: a | T19: a | U19: a | V19: a | W19: a | X19: a | Y19: a | AB19: 0 | AC19: =COUNTIF( B19:AA19, "k" ) + SUM( B19:AA19 ) -> 1 | AD19: =IFERROR( AB19 / COUNT($B$4:$AA$4), "" ) -> 0 | AE19: =COUNTIF( B19:AA19, "a" ) -> 21 | AF19: =COUNTIF( B19:AA19, "b" ) -> 0 | AG19: =COUNTIF( B19:AA19, "s" ) -> 0 | AH19: =COUNTIF( B19:AA19, "ng" ) + COUNTIF( B19:AA19, "na" ) + COUNTIF( B19:AA19, "p" ) + COUNTIF( B19:AA19, "t" ) -> 1 | AI19: =COUNTIF(B19:AA19,"k") -> 0 | AK19: Delen Robbe | AL19: 20 | AM19: 22 | AN19: =_xlfn.LET( _xlpm.i, INDEX( $AP19:$BO19, 1, MAX( 1, MATCH( $AN$2, $B$4:$AA$4, 0 ))), IF( _xlpm.i = "", "", _xlpm.i )) -> 0 | AO19: 11 | AP19: 0 | AQ19: 0 | AR19: 20 | AS19: 0 | AT19: 0 | AU19: 0 | AV19: 0 | AW19: 0 | AX19: 0 | AY19: 0 | AZ19: 0 | BA19: 0 | BB19: 0 | BC19: 0 | BD19: 0 | BE19: 0 | BF19: 0 | BG19: 0 | BH19: 0 | BI19: 0 | BJ19: 0 | BK19: 0 | BL19: 0 | BM19: 0 | BN19: 0 | BO19: 0 | BQ19: =INDEX($AP19:$BO19,1,MAX(1,MATCH($AN$2,$B$4:$AA$4,0))) -> 0 | BR19: -0.15 | BS19: -0.06 | BU19: =SUM(AP19:BO19) -> 20 | BV19: =BU19-CC19/100 -> 19.85 | BW19: 70.43047619 | BY19: 1 | BZ19: =1000*BY19+BU19-CC19/100 -> 1019.85 | CA19: 110.6377402 | CC19: 15 | CH19: =IF( CS19 = "", "", _xlfn.XLOOKUP( CS19, $A$302:$A$336, INDEX( $B$302:$AA$336, , $AM$1 ), "" )) ->  | CL19: 15 | CM19: Rob Van de Vondel | CN19: 70.69047619 | CO19: 55 | CP19: (11) | CQ19: =IFERROR(IF(CN19="","",ABS(CN19/CP19)),0) -> 6.426406926 | CT19: Van de Vondel Rob | CV19: Nyckees Wannes | CX19: =IF(CZ19="","",CC19) ->  | DC19: 15 | DD19: Wannes Nyckees | DE19: 1 | DF19: 0 | DG19: 1 | DH19: 2 | DI19: 4.00005 | DL19: Hofmans Stijn / Verhellen Jorn | DN19: Hofmans Stijn | DO19: Verhellen Jorn | DR19: De Groof Steven | DS19: 0 | DT19: 2 | DU19: 1 | DV19: 3 | DW19: 5.00005 | DZ19: Delen Robbe | EA19: Robbe Delen
A20: Elst Pieter | B20: 1 | C20: 1 | D20: 1 | E20: a | F20: 1 | G20: a | H20: 1 | I20: 1 | J20: a | K20: 1 | L20: a | M20: 1 | N20: 1 | O20: 1 | P20: 1 | Q20: a | R20: ff | S20: 1 | T20: 1 | U20: 1 | V20: 1 | W20: 1 | X20: a | Y20: 1 | AB20: 0 | AC20: 17 | AD20: 0 | AE20: 6 | AF20: 0 | AG20: 0 | AH20: 0 | AI20: 0 | AK20: Elst Pieter | AL20: 111.035169 | AM20: 9 | AN20: =_xlfn.LET( _xlpm.i, INDEX( $AP20:$BO20, 1, MAX( 1, MATCH( $AN$2, $B$4:$AA$4, 0 ))), IF( _xlpm.i = "", "", _xlpm.i )) -> 2.857142857 | AO20: 9 | AP20: 7.777777778 | AQ20: 14.66666667 | AR20: 11 | AS20: 0 | AT20: 2.352941176 | AU20: 0 | AV20: 5.333333333 | AW20: 10.76923077 | AX20: 0 | AY20: 8 | AZ20: 0 | BA20: 7.5 | BB20: 2.857142857 | BC20: 5.714285714 | BD20: 4.210526316 | BE20: 0 | BF20: 0 | BG20: 4.285714286 | BH20: 0 | BI20: 10.76923077 | BJ20: 12.94117647 | BK20: 2.857142857 | BL20: 0 | BM20: 0 | BN20: 0 | BO20: 0 | BQ20: =INDEX($AP20:$BO20,1,MAX(1,MATCH($AN$2,$B$4:$AA$4,0))) -> 2.857142857 | BR20: 2.697142857 | BS20: -0.07 | BU20: 111.035169 | BV20: 110.875169 | BW20: 53.47075702 | BY20: 0 | BZ20: 110.875169 | CA20: 75.12577881 | CC20: 16 | CH20: =IF( CS20 = "", "", _xlfn.XLOOKUP( CS20, $A$302:$A$336, INDEX( $B$302:$AA$336, , $AM$1 ), "" )) ->  | CL20: 16 | CM20: Stijn Verdickt | CN20: 53.77075702 | CO20: 39 | CP20: (16) | CQ20: 3.360672314 | CT20: Verdickt Stijn | CV20: Van Dessel Dieter | DC20: 16 | DD20: Dieter Van Dessel | DE20: 0 | DF20: 1 | DG20: 2 | DH20: 3 | DI20: 4.00005 | DL20: Jordens Koen | DN20: Jordens Koen | DR20: Coolsaet Joy | DS20: 0 | DT20: 2 | DU20: 2 | DV20: 4 | DW20: 6.00005 | DZ20: Elst Pieter | EA20: Pieter Elst
A21: Gielis Bernd | B21: a | C21: a | D21: 1 | E21: b | F21: b | G21: 1 | H21: 1 | I21: 1 | J21: 1 | K21: 1 | L21: a | M21: a | N21: 1 | O21: 1 | P21: a | Q21: 1 | R21: ff | S21: 1 | T21: 1 | U21: a | V21: a | W21: 1 | X21: 1 | Y21: 1 | AB21: 0 | AC21: 14 | AD21: 0 | AE21: 7 | AF21: 2 | AG21: 0 | AH21: 0 | AI21: 0 | AK21: Gielis Bernd | AL21: 123.6355311 | AM21: 7 | AN21: =_xlfn.LET( _xlpm.i, INDEX( $AP21:$BO21, 1, MAX( 1, MATCH( $AN$2, $B$4:$AA$4, 0 ))), IF( _xlpm.i = "", "", _xlpm.i )) -> 8.571428571 | AO21: 6 | AP21: 0 | AQ21: 0 | AR21: 2 | AS21: 0 | AT21: 0 | AU21: 14.28571429 | AV21: 13.33333333 | AW21: 9.230769231 | AX21: 12.5 | AY21: 13.33333333 | AZ21: 0 | BA21: 0 | BB21: 9.523809524 | BC21: 10 | BD21: 0 | BE21: 14.28571429 | BF21: 0 | BG21: 8.571428571 | BH21: 8 | BI21: 0 | BJ21: 0 | BK21: 8.571428571 | BL21: 0 | BM21: 0 | BN21: 0 | BO21: 0 | BQ21: =INDEX($AP21:$BO21,1,MAX(1,MATCH($AN$2,$B$4:$AA$4,0))) -> 8.571428571 | BR21: 8.401428571 | BS21: -0.08 | BU21: 123.6355311 | BV21: 123.4655311 | BW21: 45.27536794 | BY21: 1 | BZ21: 1123.465531 | CA21: 73.20764264 | CC21: 17 | CH21: =IF( CS21 = "", "", _xlfn.XLOOKUP( CS21, $A$302:$A$336, INDEX( $B$302:$AA$336, , $AM$1 ), "" )) ->  | CL21: 17 | CM21: Brent Van Den Brande | CN21: 45.54536794 | CO21: 35 | CP21: (4) | CQ21: 11.38634199 | CT21: Van Den Brande Brent | CV21: Delen Robbe | DC21: 17 | DD21: Robbe Delen | DE21: 1 | DF21: 0 | DG21: 0 | DH21: 1 | DI21: 3.00005 | DL21: De Vinster Glenn | DN21: De Vinster Glenn | DR21: Van Dessel Dieter | DS21: 0 | DT21: 1 | DU21: 2 | DV21: 3 | DW21: 4.00005 | DZ21: Gielis Bernd | EA21: Bernd Gielis
A22: Gielis Wim | B22: 1 | C22: 1 | D22: 1 | E22: 1 | F22: b | G22: 1 | H22: 1 | I22: b | J22: 1 | K22: b | L22: 1 | M22: 1 | N22: ng | O22: a | P22: b | Q22: 1 | R22: ff | S22: b | T22: 1 | U22: 1 | V22: 1 | W22: 1 | X22: 1 | Y22: 1 | AB22: 0 | AC22: 16 | AD22: 0 | AE22: 1 | AF22: 5 | AG22: 0 | AH22: 1 | AI22: 0 | AK22: Gielis Wim | AL22: 17.96428571 | AM22: 23 | AN22: =_xlfn.LET( _xlpm.i, INDEX( $AP22:$BO22, 1, MAX( 1, MATCH( $AN$2, $B$4:$AA$4, 0 ))), IF( _xlpm.i = "", "", _xlpm.i )) -> 0 | AO22: 11 | AP22: 0 | AQ22: 4 | AR22: 1 | AS22: 0 | AT22: 0 | AU22: 0 | AV22: 1.333333333 | AW22: 0 | AX22: 1.25 | AY22: 0 | AZ22: 8 | BA22: 0 | BB22: 0.9523809524 | BC22: 0 | BD22: 0 | BE22: 1.428571429 | BF22: 0 | BG22: 0 | BH22: 0 | BI22: 0 | BJ22: 0 | BK22: 0 | BL22: 0 | BM22: 0 | BN22: 0 | BO22: 0 | BQ22: =INDEX($AP22:$BO22,1,MAX(1,MATCH($AN$2,$B$4:$AA$4,0))) -> 0 | BR22: -0.18 | BS22: -0.09 | BU22: =SUM(AP22:BO22) -> 17.96428571 | BV22: =BU22-CC22/100 -> 17.78428571 | BW22: 37.99222222 | BY22: 0 | BZ22: =1000*BY22+BU22-CC22/100 -> 17.78428571 | CA22: 73.19052359 | CC22: 18 | CH22: =IF( CS22 = "", "", _xlfn.XLOOKUP( CS22, $A$302:$A$336, INDEX( $B$302:$AA$336, , $AM$1 ), "" )) ->  | CL22: 18 | CM22: Wannes Nyckees | CN22: 38.22222222 | CO22: 32 | CP22: (2) | CQ22: =IFERROR(IF(CN22="","",ABS(CN22/CP22)),0) -> 19.11111111 | CT22: Nyckees Wannes | CV22: Stevens Siebe | DC22: 18 | DD22: Siebe Stevens | DE22: 0 | DF22: 0 | DG22: 1 | DH22: 1 | DI22: 1.00005 | DL22: Van de Vondel Rob | DN22: Van de Vondel Rob | DR22: Stevens Siebe | DS22: 0 | DT22: 0 | DU22: 1 | DV22: 1 | DW22: 1.00005 | DZ22: Gielis Wim | EA22: Wim Gielis
A23: Hofmans Stijn | B23: 1 | C23: 1 | D23: 1 | E23: a | F23: 1 | G23: a | H23: 1 | I23: a | J23: a | K23: 1 | L23: 1 | M23: a | N23: 1 | O23: 1 | P23: 1 | Q23: 1 | R23: ff | S23: a | T23: 1 | U23: 1 | V23: 1 | W23: 1 | X23: 1 | Y23: a | AB23: 18 | AC23: =COUNTIF( B23:AA23, "k" ) + SUM( B23:AA23 ) -> 16 | AD23: =IFERROR( AB23 / COUNT($B$4:$AA$4), "" ) -> 0.75 | AE23: =COUNTIF( B23:AA23, "a" ) -> 7 | AF23: =COUNTIF( B23:AA23, "b" ) -> 0 | AG23: =COUNTIF( B23:AA23, "s" ) -> 0 | AH23: =COUNTIF( B23:AA23, "ng" ) + COUNTIF( B23:AA23, "na" ) + COUNTIF( B23:AA23, "p" ) + COUNTIF( B23:AA23, "t" ) -> 0 | AI23: =COUNTIF(B23:AA23,"k") -> 0 | AK23: Hofmans Stijn | AL23: =IF(SUM(AP23:BO23)=0,"",SUM(AP23:BO23)) -> 166.1203348 | AM23: 2 | AN23: =_xlfn.LET( _xlpm.i, INDEX( $AP23:$BO23, 1, MAX( 1, MATCH( $AN$2, $B$4:$AA$4, 0 ))), IF( _xlpm.i = "", "", _xlpm.i )) -> 17.14285714 | AO23: 1 | AP23: 13.33333333 | AQ23: 8 | AR23: 3 | AS23: 0 | AT23: 16.47058824 | AU23: 0 | AV23: 2.666666667 | AW23: 0 | AX23: 0 | AY23: 13.33333333 | AZ23: 2.666666667 | BA23: 0 | BB23: 14.28571429 | BC23: 8.571428571 | BD23: 17.89473684 | BE23: 5.714285714 | BF23: 0 | BG23: 0 | BH23: 12 | BI23: 16.92307692 | BJ23: 14.11764706 | BK23: 17.14285714 | BL23: 0 | BM23: 0 | BN23: 0 | BO23: 0 | BQ23: =INDEX($AP23:$BO23,1,MAX(1,MATCH($AN$2,$B$4:$AA$4,0))) -> 17.14285714 | BR23: 16.95285714 | BS23: -0.1 | BU23: 166.1203348 | BV23: 165.9303348 | BW23: 24.07787546 | BY23: 5 | BZ23: 5165.930335 | CA23: 53.47075702 | CC23: 19 | CH23: =IF( CS23 = "", "", _xlfn.XLOOKUP( CS23, $A$302:$A$336, INDEX( $B$302:$AA$336, , $AM$1 ), "" )) ->  | CL23: 19 | CM23: Erlend De Swert | CN23: 24.20787546 | CO23: 18 | CP23: (5) | CQ23: 4.841575092 | CT23: De Swert Erlend | CV23: Beirinckx Wout | DC23: 19 | DD23: Wout Beirinckx | DE23: 0 | DF23: 0 | DG23: 1 | DH23: 1 | DI23: 1.00005 | DL23: Hofmans Stijn | DN23: Hofmans Stijn | DR23: Beirinckx Wout | DS23: 0 | DT23: 0 | DU23: 1 | DV23: 1 | DW23: 1.00005 | DZ23: Hofmans Stijn | EA23: Stijn Hofmans
A24: Jordens Koen | B24: 1 | C24: 1 | D24: 1 | E24: a | F24: 1 | G24: 1 | H24: 1 | I24: a | J24: 1 | K24: 1 | L24: 1 | M24: a | N24: 1 | O24: k | P24: k | Q24: k | R24: ff | S24: a | T24: 1 | U24: 1 | V24: 1 | W24: 1 | X24: 1 | Y24: 1 | AB24: 0 | AC24: 19 | AD24: 0 | AE24: 4 | AF24: 0 | AG24: 0 | AH24: 0 | AI24: 3 | AK24: Jordens Koen | AL24: 127.3825609 | AM24: 6 | AN24: =_xlfn.LET( _xlpm.i, INDEX( $AP24:$BO24, 1, MAX( 1, MATCH( $AN$2, $B$4:$AA$4, 0 ))), IF( _xlpm.i = "", "", _xlpm.i )) -> 0 | AO24: 11 | AP24: 5.555555556 | AQ24: 10.66666667 | AR24: 2 | AS24: 0 | AT24: 0 | AU24: 5.714285714 | AV24: 9.333333333 | AW24: 0 | AX24: 2.5 | AY24: 5.333333333 | AZ24: 17.33333333 | BA24: 0 | BB24: 2.857142857 | BC24: 11.42857143 | BD24: 10.52631579 | BE24: 18.57142857 | BF24: 0 | BG24: 0 | BH24: 2.666666667 | BI24: 12.30769231 | BJ24: 10.58823529 | BK24: 0 | BL24: 0 | BM24: 0 | BN24: 0 | BO24: 0 | BQ24: =INDEX($AP24:$BO24,1,MAX(1,MATCH($AN$2,$B$4:$AA$4,0))) -> 0 | BR24: -0.2 | BS24: -0.13 | BU24: 127.3825609 | BV24: 127.1825609 | BW24: 23.01 | BY24: 2 | BZ24: 2127.182561 | CA24: 24.07787546 | CC24: 20 | CH24: =IF( CS24 = "", "", _xlfn.XLOOKUP( CS24, $A$302:$A$336, INDEX( $B$302:$AA$336, , $AM$1 ), "" )) ->  | CL24: 20 | CM24: Siebe Stevens | CN24: 23.25 | CO24: 18 | CP24: (2) | CQ24: 11.625 | CT24: Stevens Siebe | DL24: Hofmans Stijn | DN24: Hofmans Stijn | DZ24: Jordens Koen | EA24: Koen Jordens
A25: Langenaeker Maarten | B25: k | C25: k | D25: k | E25: k | F25: k | G25: k | H25: k | I25: k | J25: k | K25: k | L25: k | M25: k | N25: b | O25: b | P25: b | Q25: b | R25: ff | S25: k | T25: k | U25: k | V25: k | W25: k | X25: k | Y25: k | AB25: 0 | AC25: 19 | AD25: 0 | AE25: 0 | AF25: 4 | AG25: 0 | AH25: 0 | AI25: 19 | AK25: Langenaeker Maarten | AL25: 149.5524851 | AM25: 4 | AN25: =_xlfn.LET( _xlpm.i, INDEX( $AP25:$BO25, 1, MAX( 1, MATCH( $AN$2, $B$4:$AA$4, 0 ))), IF( _xlpm.i = "", "", _xlpm.i )) -> 15.71428571 | AO25: 3 | AP25: 12.22222222 | AQ25: 2.666666667 | AR25: 13 | AS25: 20 | AT25: 2.352941176 | AU25: 10 | AV25: 8 | AW25: 4.615384615 | AX25: 8.75 | AY25: 12 | AZ25: 5.333333333 | BA25: 0 | BB25: 0 | BC25: 0 | BD25: 0 | BE25: 0 | BF25: 0 | BG25: 11.42857143 | BH25: 13.33333333 | BI25: 3.076923077 | BJ25: 7.058823529 | BK25: 15.71428571 | BL25: 0 | BM25: 0 | BN25: 0 | BO25: 0 | BQ25: =INDEX($AP25:$BO25,1,MAX(1,MATCH($AN$2,$B$4:$AA$4,0))) -> 15.71428571 | BR25: 15.50428571 | BS25: -0.15 | BU25: 149.5524851 | BV25: 149.3424851 | BW25: 20.95002506 | BY25: 1 | BZ25: 1149.342485 | CA25: 23.01 | CC25: 21 | CH25: =IF( CS25 = "", "", _xlfn.XLOOKUP( CS25, $A$302:$A$336, INDEX( $B$302:$AA$336, , $AM$1 ), "" )) ->  | CL25: 21 | CM25: Dieuwer Boes | CN25: 21.01002506 | CO25: 16 | CP25: (7) | CQ25: 3.001432152 | CT25: Boes Dieuwer | DL25: De Vinster Glenn / Hofmans Stijn | DN25: De Vinster Glenn | DO25: Hofmans Stijn | DZ25: Langenaeker Maarten | EA25: Maarten Langenaeker
A26: Lenaerts Jordy | B26: a | C26: a | D26: a | E26: a | F26: a | G26: a | H26: a | I26: 1 | J26: a | K26: a | L26: a | M26: a | N26: a | O26: a | P26: a | Q26: a | R26: ff | S26: a | T26: a | U26: a | V26: a | W26: a | X26: a | Y26: a | AB26: 0 | AC26: 1 | AD26: 0 | AE26: 22 | AF26: 0 | AG26: 0 | AH26: 0 | AI26: 0 | AK26: Lenaerts Jordy | AL26: 6.153846154 | AM26: 28 | AN26: =_xlfn.LET( _xlpm.i, INDEX( $AP26:$BO26, 1, MAX( 1, MATCH( $AN$2, $B$4:$AA$4, 0 ))), IF( _xlpm.i = "", "", _xlpm.i )) -> 0 | AO26: 11 | AP26: 0 | AQ26: 0 | AR26: 0 | AS26: 0 | AT26: 0 | AU26: 0 | AV26: 0 | AW26: 6.153846154 | AX26: 0 | AY26: 0 | AZ26: 0 | BA26: 0 | BB26: 0 | BC26: 0 | BD26: 0 | BE26: 0 | BF26: 0 | BG26: 0 | BH26: 0 | BI26: 0 | BJ26: 0 | BK26: 0 | BL26: 0 | BM26: 0 | BN26: 0 | BO26: 0 | BQ26: =INDEX($AP26:$BO26,1,MAX(1,MATCH($AN$2,$B$4:$AA$4,0))) -> 0 | BR26: -0.22 | BS26: -0.18 | BU26: 6.153846154 | BV26: 5.933846154 | BW26: 19.85 | BY26: 0 | BZ26: 5.933846154 | CA26: 20.95002506 | CC26: 22 | CH26: =IF( CS26 = "", "", _xlfn.XLOOKUP( CS26, $A$302:$A$336, INDEX( $B$302:$AA$336, , $AM$1 ), "" )) ->  | CL26: 22 | CM26: Robbe Delen | CN26: 20 | CO26: 20 | CP26: (1) | CQ26: 20 | CT26: Delen Robbe | DL26: Hofmans Stijn | DN26: Hofmans Stijn | DZ26: Lenaerts Jordy | EA26: Jordy Lenaerts
A27: Nyckees Wannes | B27: 1 | C27: b | D27: a | E27: 1 | F27: b | G27: b | H27: b | I27: b | J27: b | K27: b | L27: b | M27: b | N27: b | O27: b | P27: b | Q27: b | R27: ff | S27: b | T27: b | U27: b | V27: b | W27: b | X27: b | Y27: b | AB27: 0 | AC27: 2 | AD27: 0 | AE27: 1 | AF27: 20 | AG27: 0 | AH27: 0 | AI27: 0 | AK27: Nyckees Wannes | AL27: 38.22222222 | AM27: 18 | AN27: =_xlfn.LET( _xlpm.i, INDEX( $AP27:$BO27, 1, MAX( 1, MATCH( $AN$2, $B$4:$AA$4, 0 ))), IF( _xlpm.i = "", "", _xlpm.i )) -> 0 | AO27: 11 | AP27: 22.22222222 | AQ27: 0 | AR27: 0 | AS27: 16 | AT27: 0 | AU27: 0 | AV27: 0 | AW27: 0 | AX27: 0 | AY27: 0 | AZ27: 0 | BA27: 0 | BB27: 0 | BC27: 0 | BD27: 0 | BE27: 0 | BF27: 0 | BG27: 0 | BH27: 0 | BI27: 0 | BJ27: 0 | BK27: 0 | BL27: 0 | BM27: 0 | BN27: 0 | BO27: 0 | BQ27: =INDEX($AP27:$BO27,1,MAX(1,MATCH($AN$2,$B$4:$AA$4,0))) -> 0 | BR27: -0.23 | BS27: -0.2 | BU27: 38.22222222 | BV27: 37.99222222 | BW27: 17.78428571 | BY27: 1 | BZ27: 1037.992222 | CA27: 17.78428571 | CC27: 23 | CH27: =IF( CS27 = "", "", _xlfn.XLOOKUP( CS27, $A$302:$A$336, INDEX( $B$302:$AA$336, , $AM$1 ), "" )) ->  | CL27: 23 | CM27: Wim Gielis | CN27: 17.96428571 | CO27: 14 | CP27: (16) | CQ27: 1.122767857 | CT27: Gielis Wim | DL27: De Groof Maarten / Elst Pieter | DN27: De Groof Maarten | DO27: Elst Pieter | DZ27: Nyckees Wannes | EA27: Wannes Nyckees
A28: Stevens Siebe | B28: b | C28: b | D28: b | E28: 1 | F28: a | G28: a | H28: a | I28: a | J28: 1 | K28: a | L28: a | M28: a | N28: a | O28: a | P28: a | Q28: a | R28: ff | S28: a | T28: a | U28: b | V28: b | W28: b | X28: b | Y28: b | AB28: 0 | AC28: 2 | AD28: 0 | AE28: 13 | AF28: 8 | AG28: 0 | AH28: 0 | AI28: 0 | AK28: Stevens Siebe | AL28: 23.25 | AM28: 20 | AN28: =_xlfn.LET( _xlpm.i, INDEX( $AP28:$BO28, 1, MAX( 1, MATCH( $AN$2, $B$4:$AA$4, 0 ))), IF( _xlpm.i = "", "", _xlpm.i )) -> 0 | AO28: 11 | AP28: 0 | AQ28: 0 | AR28: 0 | AS28: 12 | AT28: 0 | AU28: 0 | AV28: 0 | AW28: 0 | AX28: 11.25 | AY28: 0 | AZ28: 0 | BA28: 0 | BB28: 0 | BC28: 0 | BD28: 0 | BE28: 0 | BF28: 0 | BG28: 0 | BH28: 0 | BI28: 0 | BJ28: 0 | BK28: 0 | BL28: 0 | BM28: 0 | BN28: 0 | BO28: 0 | BQ28: =INDEX($AP28:$BO28,1,MAX(1,MATCH($AN$2,$B$4:$AA$4,0))) -> 0 | BR28: -0.24 | BS28: -0.22 | BU28: 23.25 | BV28: 23.01 | BW28: 15.47158779 | BY28: 0 | BZ28: 23.01 | CA28: 15.47158779 | CC28: 24 | CH28: =IF( CS28 = "", "", _xlfn.XLOOKUP( CS28, $A$302:$A$336, INDEX( $B$302:$AA$336, , $AM$1 ), "" )) ->  | CL28: 24 | CM28: Ryan Verrijdt | CN28: 15.81158779 | CO28: 13 | CP28: (6) | CQ28: 2.635264632 | CT28: Verrijdt Ryan | CY28: =_xlfn.XLOOKUP( CU28, $DZ$5:$DZ$39, $EA$5:$EA$39, "" ) ->  | CZ28: =IF(INDEX($BY$5:$BY$40,MATCH(CA28,$BZ$5:$BZ$40,0))=0,"",INDEX($BY$5:$BY$40,MATCH(CA28,$BZ$5:$BZ$40,0))) ->  | DA28: =IF(CZ28="","","(" & INDEX($AC$5:$AC$40,MATCH(CU28,$AK$5:$AK$40,0)) & ")") ->  | DL28: De Groof Maarten | DN28: De Groof Maarten | DZ28: Stevens Siebe | EA28: Siebe Stevens
A29: Tielemans Tom | B29: a | C29: a | D29: a | E29: a | F29: a | G29: a | H29: a | I29: a | J29: a | K29: a | L29: a | M29: a | N29: a | O29: a | P29: a | Q29: a | R29: ff | S29: a | T29: a | U29: a | V29: a | W29: a | X29: a | Y29: a | AB29: 0 | AC29: 0 | AD29: 0 | AE29: 23 | AF29: 0 | AG29: 0 | AH29: 0 | AI29: =COUNTIF(B29:AA29,"k") -> 0 | AK29: Tielemans Tom | AN29: =_xlfn.LET( _xlpm.i, INDEX( $AP29:$BO29, 1, MAX( 1, MATCH( $AN$2, $B$4:$AA$4, 0 ))), IF( _xlpm.i = "", "", _xlpm.i )) -> 0 | AO29: 11 | AP29: 0 | AQ29: 0 | AR29: 0 | AS29: 0 | AT29: 0 | AU29: 0 | AV29: 0 | AW29: 0 | AX29: 0 | AY29: 0 | AZ29: 0 | BA29: 0 | BB29: 0 | BC29: 0 | BD29: 0 | BE29: 0 | BF29: 0 | BG29: 0 | BH29: 0 | BI29: 0 | BJ29: 0 | BK29: 0 | BL29: 0 | BM29: 0 | BN29: 0 | BO29: 0 | BQ29: =INDEX($AP29:$BO29,1,MAX(1,MATCH($AN$2,$B$4:$AA$4,0))) -> 0 | BR29: -0.25 | BS29: -0.23 | BU29: 0 | BV29: =BU29-CC29/100 -> -0.25 | BW29: 10.34857143 | BY29: 0 | BZ29: =1000*BY29+BU29-CC29/100 -> -0.25 | CA29: 10.34857143 | CC29: 25 | CH29: =IF( CS29 = "", "", _xlfn.XLOOKUP( CS29, $A$302:$A$336, INDEX( $B$302:$AA$336, , $AM$1 ), "" )) ->  | CL29: 25 | CM29: Jason Vermeylen | CN29: 10.67857143 | CO29: 9 | CP29: (5) | CQ29: 2.135714286 | CT29: Vermeylen Jason | DL29: Verhellen Jorn | DN29: Verhellen Jorn | DZ29: Tielemans Tom | EA29: Tom Tielemans
A30: Van de Vondel Rob | B30: b | C30: b | D30: b | E30: b | F30: b | G30: b | H30: b | I30: b | J30: 1 | K30: 1 | L30: 1 | M30: 1 | N30: 1 | O30: 1 | P30: 1 | Q30: 1 | R30: ff | S30: 1 | T30: 1 | U30: a | V30: a | W30: a | X30: a | Y30: 1 | AB30: 0 | AC30: 11 | AD30: 0 | AE30: 4 | AF30: 8 | AG30: 0 | AH30: 0 | AI30: 0 | AK30: Van de Vondel Rob | AL30: 70.69047619 | AM30: 15 | AN30: =_xlfn.LET( _xlpm.i, INDEX( $AP30:$BO30, 1, MAX( 1, MATCH( $AN$2, $B$4:$AA$4, 0 ))), IF( _xlpm.i = "", "", _xlpm.i )) -> 0 | AO30: 11 | AP30: 0 | AQ30: 0 | AR30: 0 | AS30: 0 | AT30: 0 | AU30: 0 | AV30: 0 | AW30: 0 | AX30: 3.75 | AY30: 0 | AZ30: 4 | BA30: 8.75 | BB30: 8.571428571 | BC30: 2.857142857 | BD30: 0 | BE30: 8.571428571 | BF30: 0 | BG30: 12.85714286 | BH30: 21.33333333 | BI30: 0 | BJ30: 0 | BK30: 0 | BL30: 0 | BM30: 0 | BN30: 0 | BO30: 0 | BQ30: =INDEX($AP30:$BO30,1,MAX(1,MATCH($AN$2,$B$4:$AA$4,0))) -> 0 | BR30: -0.26 | BS30: -0.24 | BU30: 70.69047619 | BV30: =BU30-CC30/100 -> 70.43047619 | BW30: 8.799365079 | BY30: 1 | BZ30: =1000*BY30+BU30-CC30/100 -> 1070.430476 | CA30: 8.799365079 | CC30: 26 | CH30: =IF( CS30 = "", "", _xlfn.XLOOKUP( CS30, $A$302:$A$336, INDEX( $B$302:$AA$336, , $AM$1 ), "" )) ->  | CL30: 26 | CM30: Jurgen Beirinckx | CN30: 8.829365079 | CO30: 7 | CP30: (4) | CQ30: 2.20734127 | CT30: Beirinckx Jurgen | CY30: =_xlfn.XLOOKUP( CU30, $DZ$5:$DZ$39, $EA$5:$EA$39, "" ) ->  | DL30: Hofmans Stijn | DN30: Hofmans Stijn | DZ30: Van de Vondel Rob | EA30: Rob Van de Vondel
A31: Van Den Brande Brent | B31: ng | C31: ng | D31: na | E31: na | F31: 1 | G31: a | H31: a | I31: 1 | J31: 1 | K31: a | L31: a | M31: a | N31: a | O31: a | P31: 1 | Q31: a | R31: ff | S31: b | T31: b | U31: b | V31: b | W31: b | X31: b | Y31: b | AB31: 0 | AC31: =COUNTIF( B31:AA31, "k" ) + SUM( B31:AA31 ) -> 4 | AD31: =IFERROR( AB31 / COUNT($B$4:$AA$4), "" ) -> 0 | AE31: =COUNTIF( B31:AA31, "a" ) -> 8 | AF31: =COUNTIF( B31:AA31, "b" ) -> 7 | AG31: =COUNTIF( B31:AA31, "s" ) -> 0 | AH31: =COUNTIF( B31:AA31, "ng" ) + COUNTIF( B31:AA31, "na" ) + COUNTIF( B31:AA31, "p" ) + COUNTIF( B31:AA31, "t" ) -> 4 | AI31: =COUNTIF(B31:AA31,"k") -> 0 | AK31: Van Den Brande Brent | AL31: =IF(SUM(AP31:BO31)=0,"",SUM(AP31:BO31)) -> 45.54536794 | AM31: 17 | AN31: =_xlfn.LET( _xlpm.i, INDEX( $AP31:$BO31, 1, MAX( 1, MATCH( $AN$2, $B$4:$AA$4, 0 ))), IF( _xlpm.i = "", "", _xlpm.i )) -> 0 | AO31: 11 | AP31: 0 | AQ31: 0 | AR31: 0 | AS31: 0 | AT31: 9.411764706 | AU31: 0 | AV31: 0 | AW31: 16.92307692 | AX31: 15 | AY31: 0 | AZ31: 0 | BA31: 0 | BB31: 0 | BC31: 0 | BD31: 4.210526316 | BE31: 0 | BF31: 0 | BG31: 0 | BH31: 0 | BI31: 0 | BJ31: 0 | BK31: 0 | BL31: 0 | BM31: 0 | BN31: 0 | BO31: 0 | BQ31: =INDEX($AP31:$BO31,1,MAX(1,MATCH($AN$2,$B$4:$AA$4,0))) -> 0 | BR31: -0.27 | BS31: -0.25 | BU31: =SUM(AP31:BO31) -> 45.54536794 | BV31: =BU31-CC31/100 -> 45.27536794 | BW31: 8.344444444 | BY31: 2 | BZ31: =1000*BY31+BU31-CC31/100 -> 2045.275368 | CA31: 8.344444444 | CC31: 27 | CH31: =IF( CS31 = "", "", _xlfn.XLOOKUP( CS31, $A$302:$A$336, INDEX( $B$302:$AA$336, , $AM$1 ), "" )) ->  | CL31: 27 | CM31: Robbe De Graeve | CN31: 8.444444444 | CO31: 7 | CP31: (3) | CQ31: =IFERROR(IF(CN31="","",ABS(CN31/CP31)),0) -> 2.814814815 | CT31: De Graeve Robbe | CX31: =IF(CZ31="","",CC31) ->  | DL31: Celis Ive / De Groof Steven | DN31: Celis Ive | DO31: De Groof Steven | DZ31: Van Den Brande Brent | EA31: Brent Van Den Brande
A32: Van Dessel Dieter | B32: 1 | C32: 1 | D32: 1 | E32: a | F32: 1 | G32: 1 | H32: 1 | I32: 1 | J32: 1 | K32: 1 | L32: a | M32: 1 | N32: 1 | O32: 1 | P32: 1 | Q32: a | R32: ff | S32: 1 | T32: 1 | U32: 1 | V32: 1 | W32: s | X32: a | Y32: 1 | AB32: 0 | AC32: =COUNTIF( B32:AA32, "k" ) + SUM( B32:AA32 ) -> 18 | AD32: =IFERROR( AB32 / COUNT($B$4:$AA$4), "" ) -> 0 | AE32: =COUNTIF( B32:AA32, "a" ) -> 4 | AF32: =COUNTIF( B32:AA32, "b" ) -> 0 | AG32: 1 | AH32: 0 | AI32: 0 | AK32: Van Dessel Dieter | AL32: 110.9177402 | AM32: 10 | AN32: =_xlfn.LET( _xlpm.i, INDEX( $AP32:$BO32, 1, MAX( 1, MATCH( $AN$2, $B$4:$AA$4, 0 ))), IF( _xlpm.i = "", "", _xlpm.i )) -> 0 | AO32: 11 | AP32: 4.444444444 | AQ32: 4 | AR32: 2 | AS32: 0 | AT32: 7.058823529 | AU32: 4.285714286 | AV32: 10.66666667 | AW32: 10.76923077 | AX32: 3.75 | AY32: 5.333333333 | AZ32: 0 | BA32: 12.5 | BB32: 10.47619048 | BC32: 8.571428571 | BD32: 5.263157895 | BE32: 0 | BF32: 0 | BG32: 5.714285714 | BH32: 1.333333333 | BI32: 7.692307692 | BJ32: 7.058823529 | BK32: 0 | BL32: 0 | BM32: 0 | BN32: 0 | BO32: 0 | BQ32: =INDEX($AP32:$BO32,1,MAX(1,MATCH($AN$2,$B$4:$AA$4,0))) -> 0 | BR32: -0.28 | BS32: -0.26 | BU32: 110.9177402 | BV32: =BU32-CC32/100 -> 110.6377402 | BW32: 5.933846154 | BY32: 0 | BZ32: =1000*BY32+BU32-CC32/100 -> 110.6377402 | CA32: 5.933846154 | CC32: 28 | CH32: =IF( CS32 = "", "", _xlfn.XLOOKUP( CS32, $A$302:$A$336, INDEX( $B$302:$AA$336, , $AM$1 ), "" )) ->  | CL32: 28 | CM32: Jordy Lenaerts | CN32: 6.153846154 | CO32: 4 | CP32: (1) | CQ32: 6.153846154 | CT32: Lenaerts Jordy | DL32: Gielis Bernd | DN32: Gielis Bernd | DZ32: Van Dessel Dieter | EA32: Dieter Van Dessel
A33: Van Gehuchten Vincent | B33: a | C33: a | D33: a | E33: b | F33: b | G33: b | H33: b | I33: b | J33: b | K33: b | L33: b | M33: b | N33: b | O33: b | P33: b | Q33: b | R33: ff | S33: b | T33: b | U33: b | V33: b | W33: b | X33: b | Y33: b | AB33: 0 | AC33: 0 | AD33: 0 | AE33: 3 | AF33: 20 | AG33: 0 | AH33: 0 | AI33: 0 | AK33: Van Gehuchten Vincent | AN33: =_xlfn.LET( _xlpm.i, INDEX( $AP33:$BO33, 1, MAX( 1, MATCH( $AN$2, $B$4:$AA$4, 0 ))), IF( _xlpm.i = "", "", _xlpm.i )) -> 0 | AO33: 11 | AP33: 0 | AQ33: 0 | AR33: 0 | AS33: 0 | AT33: 0 | AU33: 0 | AV33: 0 | AW33: 0 | AX33: 0 | AY33: 0 | AZ33: 0 | BA33: 0 | BB33: 0 | BC33: 0 | BD33: 0 | BE33: 0 | BF33: 0 | BG33: 0 | BH33: 0 | BI33: 0 | BJ33: 0 | BK33: 0 | BL33: 0 | BM33: 0 | BN33: 0 | BO33: 0 | BQ33: =INDEX($AP33:$BO33,1,MAX(1,MATCH($AN$2,$B$4:$AA$4,0))) -> 0 | BR33: -0.29 | BS33: -0.27 | BU33: 0 | BV33: -0.29 | BW33: 2.321111111 | BY33: 0 | BZ33: -0.29 | CA33: 2.321111111 | CC33: 29 | CH33: =IF( CS33 = "", "", _xlfn.XLOOKUP( CS33, $A$302:$A$336, INDEX( $B$302:$AA$336, , $AM$1 ), "" )) ->  | CL33: 29 | CM33: Rani Beirinckx | CN33: 2.361111111 | CO33: 2 | CP33: (0) | CQ33: 0 | CT33: Beirinckx Rani | DL33: De Groof Maarten | DN33: De Groof Maarten | DZ33: Van Gehuchten Vincent | EA33: Vincent Van Gehuchten
A34: Verdickt Stijn | B34: 1 | C34: a | D34: 1 | E34: 1 | F34: 1 | G34: b | H34: b | I34: 1 | J34: a | K34: 1 | L34: 1 | M34: 1 | N34: ng | O34: 1 | P34: 1 | Q34: 1 | R34: ff | S34: 1 | T34: 1 | U34: 1 | V34: a | W34: 1 | X34: 1 | Y34: a | AB34: 0 | AC34: 16 | AD34: 0 | AE34: 4 | AF34: 2 | AG34: 0 | AH34: 1 | AI34: 0 | AK34: Verdickt Stijn | AL34: 53.77075702 | AM34: 16 | AN34: =_xlfn.LET( _xlpm.i, INDEX( $AP34:$BO34, 1, MAX( 1, MATCH( $AN$2, $B$4:$AA$4, 0 ))), IF( _xlpm.i = "", "", _xlpm.i )) -> 0 | AO34: 11 | AP34: 2.222222222 | AQ34: 0 | AR34: 1 | AS34: 8 | AT34: 0 | AU34: 0 | AV34: 0 | AW34: 3.076923077 | AX34: 0 | AY34: 2.666666667 | AZ34: 8 | BA34: 3.75 | BB34: 0 | BC34: 1.428571429 | BD34: 0 | BE34: 5.714285714 | BF34: 0 | BG34: 7.142857143 | BH34: 0 | BI34: 10.76923077 | BJ34: 0 | BK34: 0 | BL34: 0 | BM34: 0 | BN34: 0 | BO34: 0 | BQ34: =INDEX($AP34:$BO34,1,MAX(1,MATCH($AN$2,$B$4:$AA$4,0))) -> 0 | BR34: -0.3 | BS34: -0.28 | BU34: 53.77075702 | BV34: 53.47075702 | BW34: -0.01 | BY34: 0 | BZ34: 53.47075702 | CA34: -0.01 | CC34: 30 | CH34: =IF( CS34 = "", "", _xlfn.XLOOKUP( CS34, $A$302:$A$336, INDEX( $B$302:$AA$336, , $AM$1 ), "" )) ->  | DL34: Gielis Bernd | DN34: Gielis Bernd | DZ34: Verdickt Stijn | EA34: Stijn Verdickt
A35: Verhellen Jorn | B35: na | C35: na | D35: na | E35: 1 | F35: 1 | G35: a | H35: b | I35: b | J35: a | K35: a | L35: 1 | M35: 1 | N35: b | O35: b | P35: 1 | Q35: a | R35: ff | S35: a | T35: a | U35: a | V35: a | W35: a | X35: a | Y35: a | AB35: 3 | AC35: =COUNTIF( B35:AA35, "k" ) + SUM( B35:AA35 ) -> 5 | AD35: =IFERROR( AB35 / COUNT($B$4:$AA$4), "" ) -> 0.125 | AE35: =COUNTIF( B35:AA35, "a" ) -> 11 | AF35: =COUNTIF( B35:AA35, "b" ) -> 4 | AG35: =COUNTIF( B35:AA35, "s" ) -> 0 | AH35: =COUNTIF( B35:AA35, "ng" ) + COUNTIF( B35:AA35, "na" ) + COUNTIF( B35:AA35, "p" ) + COUNTIF( B35:AA35, "t" ) -> 3 | AI35: =COUNTIF(B35:AA35,"k") -> 0 | AK35: Verhellen Jorn | AL35: =IF(SUM(AP35:BO35)=0,"",SUM(AP35:BO35)) -> 74.71826625 | AM35: 12 | AN35: =_xlfn.LET( _xlpm.i, INDEX( $AP35:$BO35, 1, MAX( 1, MATCH( $AN$2, $B$4:$AA$4, 0 ))), IF( _xlpm.i = "", "", _xlpm.i )) -> 0 | AO35: 11 | AP35: 0 | AQ35: 0 | AR35: 0 | AS35: 18.66666667 | AT35: 18.82352941 | AU35: 0 | AV35: 0 | AW35: 0 | AX35: 0 | AY35: 0 | AZ35: 9.333333333 | BA35: 10 | BB35: 0 | BC35: 0 | BD35: 17.89473684 | BE35: 0 | BF35: 0 | BG35: 0 | BH35: 0 | BI35: 0 | BJ35: 0 | BK35: 0 | BL35: 0 | BM35: 0 | BN35: 0 | BO35: 0 | BQ35: =INDEX($AP35:$BO35,1,MAX(1,MATCH($AN$2,$B$4:$AA$4,0))) -> 0 | BR35: -0.31 | BS35: -0.29 | BU35: =SUM(AP35:BO35) -> 74.71826625 | BV35: =BU35-CC35/100 -> 74.40826625 | BW35: -0.02 | BY35: 2 | BZ35: =1000*BY35+BU35-CC35/100 -> 2074.408266 | CA35: -0.02 | CC35: 31 | CH35: =IF( CS35 = "", "", _xlfn.XLOOKUP( CS35, $A$302:$A$336, INDEX( $B$302:$AA$336, , $AM$1 ), "" )) ->  | CQ35: =IFERROR(IF(CN35="","",ABS(CN35/CP35)),0) ->  | CX35: =IF(CZ35="","",CC35) ->  | DL35: Gielis Bernd / Hofmans Stijn | DN35: Gielis Bernd | DO35: Hofmans Stijn | DZ35: Verhellen Jorn | EA35: Jorn Verhellen
A36: Verlooy Kaïn | B36: a | C36: a | D36: 1 | E36: 1 | F36: 1 | G36: a | H36: 1 | I36: a | J36: 1 | K36: 1 | L36: a | M36: 1 | N36: 1 | O36: 1 | P36: 1 | Q36: 1 | R36: ff | S36: 1 | T36: 1 | U36: 1 | V36: 1 | W36: 1 | X36: 1 | Y36: 1 | AB36: 1 | AC36: 18 | AD36: 0.04166666667 | AE36: 5 | AF36: 0 | AG36: 0 | AH36: 0 | AI36: 0 | AK36: Verlooy Kaïn | AL36: 155.5270784 | AM36: 3 | AN36: =_xlfn.LET( _xlpm.i, INDEX( $AP36:$BO36, 1, MAX( 1, MATCH( $AN$2, $B$4:$AA$4, 0 ))), IF( _xlpm.i = "", "", _xlpm.i )) -> 15.71428571 | AO36: 3 | AP36: 0 | AQ36: 0 | AR36: 10 | AS36: 4 | AT36: 9.411764706 | AU36: 0 | AV36: 6.666666667 | AW36: 0 | AX36: 8.75 | AY36: 2.666666667 | AZ36: 0 | BA36: 20 | BB36: 7.619047619 | BC36: 10 | BD36: 13.68421053 | BE36: 8.571428571 | BF36: 0 | BG36: 7.142857143 | BH36: 10.66666667 | BI36: 7.692307692 | BJ36: 12.94117647 | BK36: 15.71428571 | BL36: 0 | BM36: 0 | BN36: 0 | BO36: 0 | BQ36: =INDEX($AP36:$BO36,1,MAX(1,MATCH($AN$2,$B$4:$AA$4,0))) -> 15.71428571 | BR36: 15.39428571 | BS36: -0.3 | BU36: 155.5270784 | BV36: =BU36-CC36/100 -> 155.2070784 | BW36: -0.09 | BY36: 1 | BZ36: =1000*BY36+BU36-CC36/100 -> 1155.207078 | CA36: -0.09 | CC36: 32 | CH36: =IF( CS36 = "", "", _xlfn.XLOOKUP( CS36, $A$302:$A$336, INDEX( $B$302:$AA$336, , $AM$1 ), "" )) ->  | CU36: =IF(CZ36="","",INDEX($AK$5:$AK$40,MATCH(CA36,$BZ$5:$BZ$40,0))) ->  | DL36: Coolsaet Joy / De Vinster Glenn | DN36: Coolsaet Joy | DO36: De Vinster Glenn | DZ36: Verlooy Kaïn | EA36: Kaïn Verlooy
A37: Vermeylen Jason | B37: 1 | C37: 1 | D37: b | E37: b | F37: b | G37: b | H37: b | I37: b | J37: 1 | K37: b | L37: b | M37: b | N37: b | O37: b | P37: b | Q37: b | R37: ff | S37: 1 | T37: a | U37: a | V37: a | W37: a | X37: a | Y37: 1 | AB37: 1 | AC37: 5 | AD37: 0.04166666667 | AE37: 5 | AF37: 13 | AG37: 0 | AH37: 0 | AI37: =COUNTIF(B37:AA37,"k") -> 0 | AK37: Vermeylen Jason | AL37: 10.67857143 | AM37: 25 | AN37: =_xlfn.LET( _xlpm.i, INDEX( $AP37:$BO37, 1, MAX( 1, MATCH( $AN$2, $B$4:$AA$4, 0 ))), IF( _xlpm.i = "", "", _xlpm.i )) -> 0 | AO37: 11 | AP37: 6.666666667 | AQ37: 1.333333333 | AR37: 0 | AS37: 0 | AT37: 0 | AU37: 0 | AV37: 0 | AW37: 0 | AX37: 1.25 | AY37: 0 | AZ37: 0 | BA37: 0 | BB37: 0 | BC37: 0 | BD37: 0 | BE37: 0 | BF37: 0 | BG37: 1.428571429 | BH37: 0 | BI37: 0 | BJ37: 0 | BK37: 0 | BL37: 0 | BM37: 0 | BN37: 0 | BO37: 0 | BQ37: =INDEX($AP37:$BO37,1,MAX(1,MATCH($AN$2,$B$4:$AA$4,0))) -> 0 | BR37: -0.33 | BS37: -0.31 | BU37: 10.67857143 | BV37: =BU37-CC37/100 -> 10.34857143 | BW37: -0.25 | BY37: 0 | BZ37: =1000*BY37+BU37-CC37/100 -> 10.34857143 | CA37: -0.25 | CC37: 33 | CH37: =IF( CS37 = "", "", _xlfn.XLOOKUP( CS37, $A$302:$A$336, INDEX( $B$302:$AA$336, , $AM$1 ), "" )) ->  | CU37: =IF(CZ37="","",INDEX($AK$5:$AK$40,MATCH(CA37,$BZ$5:$BZ$40,0))) ->  | DL37: Van Dessel Dieter | DN37: Van Dessel Dieter | DZ37: Vermeylen Jason | EA37: Jason Vermeylen
A38: Verrijdt Ryan | B38: na | C38: na | D38: na | E38: na | F38: na | G38: na | H38: na | I38: na | J38: na | K38: na | L38: na | M38: na | N38: na | O38: na | P38: 1 | Q38: 1 | R38: ff | S38: b | T38: as | U38: b | V38: 1 | W38: 1 | X38: 1 | Y38: 1 | AB38: 1 | AC38: =COUNTIF( B38:AA38, "k" ) + SUM( B38:AA38 ) -> 6 | AD38: =IFERROR( AB38 / COUNT($B$4:$AA$4), "" ) -> 0.04166666667 | AE38: =COUNTIF( B38:AA38, "a" ) -> 0 | AF38: =COUNTIF( B38:AA38, "b" ) -> 2 | AG38: =COUNTIF( B38:AA38, "s" ) -> 0 | AH38: =COUNTIF( B38:AA38, "ng" ) + COUNTIF( B38:AA38, "na" ) + COUNTIF( B38:AA38, "p" ) + COUNTIF( B38:AA38, "t" ) -> 14 | AI38: =COUNTIF(B38:AA38,"k") -> 0 | AK38: =A38 -> Verrijdt Ryan | AL38: =IF(SUM(AP38:BO38)=0,"",SUM(AP38:BO38)) -> 15.81158779 | AM38: 24 | AN38: =_xlfn.LET( _xlpm.i, INDEX( $AP38:$BO38, 1, MAX( 1, MATCH( $AN$2, $B$4:$AA$4, 0 ))), IF( _xlpm.i = "", "", _xlpm.i )) -> 1.428571429 | AO38: 10 | AP38: 0 | AQ38: 0 | AR38: 0 | AS38: 0 | AT38: 0 | AU38: 0 | AV38: 0 | AW38: 0 | AX38: 0 | AY38: 0 | AZ38: 0 | BA38: 0 | BB38: 0 | BC38: 0 | BD38: 6.315789474 | BE38: 5.714285714 | BF38: 0 | BG38: 0 | BH38: 0 | BI38: 0 | BJ38: 2.352941176 | BK38: 1.428571429 | BL38: 0 | BM38: 0 | BN38: 0 | BO38: 0 | BQ38: =INDEX($AP38:$BO38,1,MAX(1,MATCH($AN$2,$B$4:$AA$4,0))) -> 1.428571429 | BR38: =BQ38-CC38/100 -> 1.088571429 | BS38: -0.33 | BU38: =SUM(AP38:BO38) -> 15.81158779 | BV38: =BU38-CC38/100 -> 15.47158779 | BW38: -0.29 | BY38: 0 | BZ38: =1000*BY38+BU38-CC38/100 -> 15.47158779 | CA38: -0.29 | CC38: 34 | CE38: =IF( CG38 = "", "", CC38 ) ->  | CH38: =IF( CS38 = "", "", _xlfn.XLOOKUP( CS38, $A$302:$A$336, INDEX( $B$302:$AA$336, , $AM$1 ), "" )) ->  | CL38: =IF( CN38 = "", "", CC38 ) ->  | CQ38: =IFERROR(IF(CN38="","",ABS(CN38/CP38)),0) ->  | CU38: =IF(CZ38="","",INDEX($AK$5:$AK$40,MATCH(CA38,$BZ$5:$BZ$40,0))) ->  | CX38: =IF(CZ38="","",CC38) ->  | DL38: Celis Ive | DN38: Celis Ive | DZ38: Verrijdt Ryan | EA38: Ryan Verrijdt
A39: Own-goals/ff-goals | AB39: =SUM( B134:AA134 ) -> 1 | AD39: 0.04166666667 | AE39: 0 | AF39: 0 | AG39: 0 | AH39: 0 | AI39: 0 | AK39: =A39 -> Own-goals/ff-goals | AN39: =_xlfn.LET( _xlpm.i, INDEX( $AP39:$BO39, 1, MAX( 1, MATCH( $AN$2, $B$4:$AA$4, 0 ))), IF( _xlpm.i = "", "", _xlpm.i )) -> 0 | AO39: 11 | AP39: 0 | AQ39: 0 | AR39: 0 | AS39: 0 | AT39: 0 | AU39: 0 | AV39: 0 | AW39: 0 | AX39: 0 | AY39: 0 | AZ39: 0 | BA39: 0 | BB39: 0 | BC39: 0 | BD39: 0 | BE39: 0 | BF39: 0 | BG39: 0 | BH39: 0 | BI39: 0 | BJ39: 0 | BK39: 0 | BL39: 0 | BM39: 0 | BN39: 0 | BO39: 0 | BQ39: =INDEX($AP39:$BO39,1,MAX(1,MATCH($AN$2,$B$4:$AA$4,0))) -> 0 | BR39: -0.35 | BS39: -0.35 | BU39: =SUM(AP39:BO39) -> 0 | BV39: =BU39-CC39/100 -> -0.35 | BW39: -0.35 | BY39: 0 | BZ39: =1000*BY39+BU39-CC39/100 -> -0.35 | CA39: -0.35 | CC39: 35 | CF39: =_xlfn.XLOOKUP( CS39, $DZ$5:$DZ$39, $EA$5:$EA$39, "" ) ->  | CH39: =IF( CS39 = "", "", _xlfn.XLOOKUP( CS39, $A$302:$A$336, INDEX( $B$302:$AA$336, , $AM$1 ), "" )) ->  | CU39: =IF(CZ39="","",INDEX($AK$5:$AK$40,MATCH(CA39,$BZ$5:$BZ$40,0))) ->  | DL39: De Groof Steven | DN39: De Groof Steven | DZ39: Own-goals/ff-goals | EA39: Own-goals/ff-goals
DL40: Verlooy Kaïn | DN40: Verlooy Kaïn
A41: Legende: | DL41: De Vinster Glenn | DN41: De Vinster Glenn
AK42: Niet toegekend | AL42: =IF(SUM(AP42:BO42)=0,"",SUM(AP42:BO42)) ->  | AM42: =IF(AL42="","",RANK(AL42,AL$5:AL$42)) ->  | AN42: =IF(INDEX($AP42:$BO42,1,MAX(1,COUNT($B$4:$AA$4)))=0,"",INDEX($AP42:$BO42,1,MAX(1,COUNT($B$4:$AA$4)))) ->  | AO42: =IF(AN42="","",RANK(AN42,AN$5:AN$41)) ->  | DL42: Van de Vondel Rob | DN42: Van de Vondel Rob
A43: Uitleg en afkorting | AK43: Som | AP43: =SUM( AP5:AP42 ) -> 100 | AQ43: 100 | AR43: 100 | AS43: 100 | AT43: 100 | AU43: 100 | AV43: 100 | AW43: 100 | AX43: 100 | AY43: 100 | AZ43: 100 | BA43: 100 | BB43: 100 | BC43: 100 | BD43: 100 | BE43: 100 | BF43: 0 | BG43: 100 | BH43: 100 | BI43: 100 | BJ43: 100 | BK43: 100 | BL43: 0 | BM43: 0 | BN43: 0 | BO43: 0 | DL43: De Vinster Glenn | DN43: De Vinster Glenn
A44: Thuiswedstrijd | B44: T | D44: Aantal doelpunten | E44: Getal (Goals) | AK44: Aantal invullers | AP44: =AP43 / 5 -> 20 | AQ44: =AQ43 / 5 -> 20 | AR44: 20 | AS44: 20 | AT44: 20 | AU44: 20 | AV44: 20 | AW44: 20 | AX44: =AX43 / 5 -> 20 | AY44: 20 | AZ44: 20 | BA44: 20 | BB44: 20 | BC44: 20 | BD44: 20 | BE44: 20 | BF44: 0 | BG44: 20 | BH44: 20 | BI44: 20 | BJ44: 20 | BK44: 20 | BL44: 0 | BM44: 0 | BN44: 0 | BO44: 0 | DL44: Coolsaet Joy | DN44: Coolsaet Joy
A45: Uitwedstrijd | B45: U | D45: Aantal assists | E45: Getal (Assists) | AK45: Winnaar(s) | AP45: =IF( AP$43 = 0, "", _xlfn.TEXTJOIN( " / ",TRUE, _xlfn._xlws.FILTER( $AK$5:$AK$41, AP$5:AP$41 = LARGE( _xlfn.UNIQUE( AP$5:AP$41 ), 1 )))) -> Nyckees Wannes | AQ45: =IF( AQ$43 = 0, "", _xlfn.TEXTJOIN( " / ",TRUE, _xlfn._xlws.FILTER( $AK$5:$AK$41, AQ$5:AQ$41 = LARGE( _xlfn.UNIQUE( AQ$5:AQ$41 ), 1 )))) -> De Vinster Glenn | AR45: =IF( AR$43 = 0, "", _xlfn.TEXTJOIN( " / ",TRUE, _xlfn._xlws.FILTER( $AK$5:$AK$41, AR$5:AR$41 = LARGE( _xlfn.UNIQUE( AR$5:AR$41 ), 1 )))) -> Delen Robbe | AS45: =IF( AS$43 = 0, "", _xlfn.TEXTJOIN( " / ",TRUE, _xlfn._xlws.FILTER( $AK$5:$AK$41, AS$5:AS$41 = LARGE( _xlfn.UNIQUE( AS$5:AS$41 ), 1 )))) -> Langenaeker Maarten | AT45: =IF( AT$43 = 0, "", _xlfn.TEXTJOIN( " / ",TRUE, _xlfn._xlws.FILTER( $AK$5:$AK$41, AT$5:AT$41 = LARGE( _xlfn.UNIQUE( AT$5:AT$41 ), 1 )))) -> De Vinster Glenn / Verhellen Jorn | AU45: =IF( AU$43 = 0, "", _xlfn.TEXTJOIN( " / ",TRUE, _xlfn._xlws.FILTER( $AK$5:$AK$41, AU$5:AU$41 = LARGE( _xlfn.UNIQUE( AU$5:AU$41 ), 1 )))) -> Gielis Bernd | AV45: =IF( AV$43 = 0, "", _xlfn.TEXTJOIN( " / ",TRUE, _xlfn._xlws.FILTER( $AK$5:$AK$41, AV$5:AV$41 = LARGE( _xlfn.UNIQUE( AV$5:AV$41 ), 1 )))) -> De Vinster Glenn | AW45: =IF( AW$43 = 0, "", _xlfn.TEXTJOIN( " / ",TRUE, _xlfn._xlws.FILTER( $AK$5:$AK$41, AW$5:AW$41 = LARGE( _xlfn.UNIQUE( AW$5:AW$41 ), 1 )))) -> Van Den Brande Brent | AX45: =IF( AX$43 = 0, "", _xlfn.TEXTJOIN( " / ",TRUE, _xlfn._xlws.FILTER( $AK$5:$AK$41, AX$5:AX$41 = LARGE( _xlfn.UNIQUE( AX$5:AX$41 ), 1 )))) -> Van Den Brande Brent | AY45: =IF( AY$43 = 0, "", _xlfn.TEXTJOIN( " / ",TRUE, _xlfn._xlws.FILTER( $AK$5:$AK$41, AY$5:AY$41 = LARGE( _xlfn.UNIQUE( AY$5:AY$41 ), 1 )))) -> De Vinster Glenn | AZ45: =IF( AZ$43 = 0, "", _xlfn.TEXTJOIN( " / ",TRUE, _xlfn._xlws.FILTER( $AK$5:$AK$41, AZ$5:AZ$41 = LARGE( _xlfn.UNIQUE( AZ$5:AZ$41 ), 1 )))) -> Jordens Koen | BA45: =IF( BA$43 = 0, "", _xlfn.TEXTJOIN( " / ",TRUE, _xlfn._xlws.FILTER( $AK$5:$AK$41, BA$5:BA$41 = LARGE( _xlfn.UNIQUE( BA$5:BA$41 ), 1 )))) -> Verlooy Kaïn | BB45: =IF( BB$43 = 0, "", _xlfn.TEXTJOIN( " / ",TRUE, _xlfn._xlws.FILTER( $AK$5:$AK$41, BB$5:BB$41 = LARGE( _xlfn.UNIQUE( BB$5:BB$41 ), 1 )))) -> Hofmans Stijn | BC45: =IF( BC$43 = 0, "", _xlfn.TEXTJOIN( " / ",TRUE, _xlfn._xlws.FILTER( $AK$5:$AK$41, BC$5:BC$41 = LARGE( _xlfn.UNIQUE( BC$5:BC$41 ), 1 )))) -> De Vinster Glenn | BD45: =IF( BD$43 = 0, "", _xlfn.TEXTJOIN( " / ",TRUE, _xlfn._xlws.FILTER( $AK$5:$AK$41, BD$5:BD$41 = LARGE( _xlfn.UNIQUE( BD$5:BD$41 ), 1 )))) -> Hofmans Stijn / Verhellen Jorn | BE45: =IF( BE$43 = 0, "", _xlfn.TEXTJOIN( " / ",TRUE, _xlfn._xlws.FILTER( $AK$5:$AK$41, BE$5:BE$41 = LARGE( _xlfn.UNIQUE( BE$5:BE$41 ), 1 )))) -> Jordens Koen | BF45: =IF( BF$43 = 0, "", _xlfn.TEXTJOIN( " / ",TRUE, _xlfn._xlws.FILTER( $AK$5:$AK$41, BF$5:BF$41 = LARGE( _xlfn.UNIQUE( BF$5:BF$41 ), 1 )))) ->  | BG45: =IF( BG$43 = 0, "", _xlfn.TEXTJOIN( " / ",TRUE, _xlfn._xlws.FILTER( $AK$5:$AK$41, BG$5:BG$41 = LARGE( _xlfn.UNIQUE( BG$5:BG$41 ), 1 )))) -> De Vinster Glenn | BH45: =IF( BH$43 = 0, "", _xlfn.TEXTJOIN( " / ",TRUE, _xlfn._xlws.FILTER( $AK$5:$AK$41, BH$5:BH$41 = LARGE( _xlfn.UNIQUE( BH$5:BH$41 ), 1 )))) -> Van de Vondel Rob | BI45: =IF( BI$43 = 0, "", _xlfn.TEXTJOIN( " / ",TRUE, _xlfn._xlws.FILTER( $AK$5:$AK$41, BI$5:BI$41 = LARGE( _xlfn.UNIQUE( BI$5:BI$41 ), 1 )))) -> Hofmans Stijn | BJ45: =IF( BJ$43 = 0, "", _xlfn.TEXTJOIN( " / ",TRUE, _xlfn._xlws.FILTER( $AK$5:$AK$41, BJ$5:BJ$41 = LARGE( _xlfn.UNIQUE( BJ$5:BJ$41 ), 1 )))) -> Hofmans Stijn | BK45: =IF( BK$43 = 0, "", _xlfn.TEXTJOIN( " / ",TRUE, _xlfn._xlws.FILTER( $AK$5:$AK$41, BK$5:BK$41 = LARGE( _xlfn.UNIQUE( BK$5:BK$41 ), 1 )))) -> De Vinster Glenn / Hofmans Stijn | BL45: =IF( BL$43 = 0, "", _xlfn.TEXTJOIN( " / ",TRUE, _xlfn._xlws.FILTER( $AK$5:$AK$41, BL$5:BL$41 = LARGE( _xlfn.UNIQUE( BL$5:BL$41 ), 1 )))) ->  | BM45: =IF( BM$43 = 0, "", _xlfn.TEXTJOIN( " / ",TRUE, _xlfn._xlws.FILTER( $AK$5:$AK$41, BM$5:BM$41 = LARGE( _xlfn.UNIQUE( BM$5:BM$41 ), 1 )))) ->  | BN45: =IF( BN$43 = 0, "", _xlfn.TEXTJOIN( " / ",TRUE, _xlfn._xlws.FILTER( $AK$5:$AK$41, BN$5:BN$41 = LARGE( _xlfn.UNIQUE( BN$5:BN$41 ), 1 )))) ->  | BO45: =IF( BO$43 = 0, "", _xlfn.TEXTJOIN( " / ",TRUE, _xlfn._xlws.FILTER( $AK$5:$AK$41, BO$5:BO$41 = LARGE( _xlfn.UNIQUE( BO$5:BO$41 ), 1 )))) ->  | DL45: Elst Pieter / Verlooy Kaïn | DN45: Elst Pieter | DO45: Verlooy Kaïn
A46: Aanwezige speler | B46: 1 (Aanwezigheden) | D46: Strafschopdoelpunt | E46: onderlijnd (Goals) | AK46: Plaats 2 | AP46: =IF( AP$43 = 0, "", _xlfn.TEXTJOIN( " / ",TRUE, _xlfn._xlws.FILTER( $AK$5:$AK$41, AP$5:AP$41 = LARGE( _xlfn.UNIQUE( AP$5:AP$41 ), 2 )))) -> Hofmans Stijn | AQ46: =IF( AQ$43 = 0, "", _xlfn.TEXTJOIN( " / ",TRUE, _xlfn._xlws.FILTER( $AK$5:$AK$41, AQ$5:AQ$41 = LARGE( _xlfn.UNIQUE( AQ$5:AQ$41 ), 2 )))) -> De Groof Maarten / Elst Pieter | AR46: =IF( AR$43 = 0, "", _xlfn.TEXTJOIN( " / ",TRUE, _xlfn._xlws.FILTER( $AK$5:$AK$41, AR$5:AR$41 = LARGE( _xlfn.UNIQUE( AR$5:AR$41 ), 2 )))) -> De Groof Maarten | AS46: =IF( AS$43 = 0, "", _xlfn.TEXTJOIN( " / ",TRUE, _xlfn._xlws.FILTER( $AK$5:$AK$41, AS$5:AS$41 = LARGE( _xlfn.UNIQUE( AS$5:AS$41 ), 2 )))) -> Verhellen Jorn | AT46: =IF( AT$43 = 0, "", _xlfn.TEXTJOIN( " / ",TRUE, _xlfn._xlws.FILTER( $AK$5:$AK$41, AT$5:AT$41 = LARGE( _xlfn.UNIQUE( AT$5:AT$41 ), 2 )))) -> Hofmans Stijn | AU46: =IF( AU$43 = 0, "", _xlfn.TEXTJOIN( " / ",TRUE, _xlfn._xlws.FILTER( $AK$5:$AK$41, AU$5:AU$41 = LARGE( _xlfn.UNIQUE( AU$5:AU$41 ), 2 )))) -> Celis Ive / De Groof Steven | AV46: =IF( AV$43 = 0, "", _xlfn.TEXTJOIN( " / ",TRUE, _xlfn._xlws.FILTER( $AK$5:$AK$41, AV$5:AV$41 = LARGE( _xlfn.UNIQUE( AV$5:AV$41 ), 2 )))) -> Gielis Bernd | AW46: =IF( AW$43 = 0, "", _xlfn.TEXTJOIN( " / ",TRUE, _xlfn._xlws.FILTER( $AK$5:$AK$41, AW$5:AW$41 = LARGE( _xlfn.UNIQUE( AW$5:AW$41 ), 2 )))) -> De Groof Maarten | AX46: =IF( AX$43 = 0, "", _xlfn.TEXTJOIN( " / ",TRUE, _xlfn._xlws.FILTER( $AK$5:$AK$41, AX$5:AX$41 = LARGE( _xlfn.UNIQUE( AX$5:AX$41 ), 2 )))) -> Gielis Bernd | AY46: =IF( AY$43 = 0, "", _xlfn.TEXTJOIN( " / ",TRUE, _xlfn._xlws.FILTER( $AK$5:$AK$41, AY$5:AY$41 = LARGE( _xlfn.UNIQUE( AY$5:AY$41 ), 2 )))) -> Gielis Bernd / Hofmans Stijn | AZ46: =IF( AZ$43 = 0, "", _xlfn.TEXTJOIN( " / ",TRUE, _xlfn._xlws.FILTER( $AK$5:$AK$41, AZ$5:AZ$41 = LARGE( _xlfn.UNIQUE( AZ$5:AZ$41 ), 2 )))) -> Coolsaet Joy / De Vinster Glenn | BA46: =IF( BA$43 = 0, "", _xlfn.TEXTJOIN( " / ",TRUE, _xlfn._xlws.FILTER( $AK$5:$AK$41, BA$5:BA$41 = LARGE( _xlfn.UNIQUE( BA$5:BA$41 ), 2 )))) -> Van Dessel Dieter | BB46: =IF( BB$43 = 0, "", _xlfn.TEXTJOIN( " / ",TRUE, _xlfn._xlws.FILTER( $AK$5:$AK$41, BB$5:BB$41 = LARGE( _xlfn.UNIQUE( BB$5:BB$41 ), 2 )))) -> Celis Ive | BC46: =IF( BC$43 = 0, "", _xlfn.TEXTJOIN( " / ",TRUE, _xlfn._xlws.FILTER( $AK$5:$AK$41, BC$5:BC$41 = LARGE( _xlfn.UNIQUE( BC$5:BC$41 ), 2 )))) -> De Groof Steven | BD46: =IF( BD$43 = 0, "", _xlfn.TEXTJOIN( " / ",TRUE, _xlfn._xlws.FILTER( $AK$5:$AK$41, BD$5:BD$41 = LARGE( _xlfn.UNIQUE( BD$5:BD$41 ), 2 )))) -> Verlooy Kaïn | BE46: =IF( BE$43 = 0, "", _xlfn.TEXTJOIN( " / ",TRUE, _xlfn._xlws.FILTER( $AK$5:$AK$41, BE$5:BE$41 = LARGE( _xlfn.UNIQUE( BE$5:BE$41 ), 2 )))) -> De Vinster Glenn | BF46: =IF( BF$43 = 0, "", _xlfn.TEXTJOIN( " / ",TRUE, _xlfn._xlws.FILTER( $AK$5:$AK$41, BF$5:BF$41 = LARGE( _xlfn.UNIQUE( BF$5:BF$41 ), 2 )))) ->  | BG46: =IF( BG$43 = 0, "", _xlfn.TEXTJOIN( " / ",TRUE, _xlfn._xlws.FILTER( $AK$5:$AK$41, BG$5:BG$41 = LARGE( _xlfn.UNIQUE( BG$5:BG$41 ), 2 )))) -> Van de Vondel Rob | BH46: =IF( BH$43 = 0, "", _xlfn.TEXTJOIN( " / ",TRUE, _xlfn._xlws.FILTER( $AK$5:$AK$41, BH$5:BH$41 = LARGE( _xlfn.UNIQUE( BH$5:BH$41 ), 2 )))) -> De Vinster Glenn | BI46: =IF( BI$43 = 0, "", _xlfn.TEXTJOIN( " / ",TRUE, _xlfn._xlws.FILTER( $AK$5:$AK$41, BI$5:BI$41 = LARGE( _xlfn.UNIQUE( BI$5:BI$41 ), 2 )))) -> Coolsaet Joy | BJ46: =IF( BJ$43 = 0, "", _xlfn.TEXTJOIN( " / ",TRUE, _xlfn._xlws.FILTER( $AK$5:$AK$41, BJ$5:BJ$41 = LARGE( _xlfn.UNIQUE( BJ$5:BJ$41 ), 2 )))) -> Elst Pieter / Verlooy Kaïn | BK46: =IF( BK$43 = 0, "", _xlfn.TEXTJOIN( " / ",TRUE, _xlfn._xlws.FILTER( $AK$5:$AK$41, BK$5:BK$41 = LARGE( _xlfn.UNIQUE( BK$5:BK$41 ), 2 )))) -> Langenaeker Maarten / Verlooy Kaïn | BL46: =IF( BL$43 = 0, "", _xlfn.TEXTJOIN( " / ",TRUE, _xlfn._xlws.FILTER( $AK$5:$AK$41, BL$5:BL$41 = LARGE( _xlfn.UNIQUE( BL$5:BL$41 ), 2 )))) ->  | BM46: =IF( BM$43 = 0, "", _xlfn.TEXTJOIN( " / ",TRUE, _xlfn._xlws.FILTER( $AK$5:$AK$41, BM$5:BM$41 = LARGE( _xlfn.UNIQUE( BM$5:BM$41 ), 2 )))) ->  | BN46: =IF( BN$43 = 0, "", _xlfn.TEXTJOIN( " / ",TRUE, _xlfn._xlws.FILTER( $AK$5:$AK$41, BN$5:BN$41 = LARGE( _xlfn.UNIQUE( BN$5:BN$41 ), 2 )))) ->  | BO46: =IF( BO$43 = 0, "", _xlfn.TEXTJOIN( " / ",TRUE, _xlfn._xlws.FILTER( $AK$5:$AK$41, BO$5:BO$41 = LARGE( _xlfn.UNIQUE( BO$5:BO$41 ), 2 )))) ->  | DL46: Langenaeker Maarten / Verlooy Kaïn | DN46: Langenaeker Maarten | DO46: Verlooy Kaïn
A47: Afwezige speler/supporter | B47: a | D47: Niet van toepassing | E47: (blanco) | AK47: Plaats 3 | AP47: =IF( AP$43 = 0, "", _xlfn.TEXTJOIN( " / ",TRUE, _xlfn._xlws.FILTER( $AK$5:$AK$41, AP$5:AP$41 = LARGE( _xlfn.UNIQUE( AP$5:AP$41 ), 3 )))) -> Langenaeker Maarten | AQ47: =IF( AQ$43 = 0, "", _xlfn.TEXTJOIN( " / ",TRUE, _xlfn._xlws.FILTER( $AK$5:$AK$41, AQ$5:AQ$41 = LARGE( _xlfn.UNIQUE( AQ$5:AQ$41 ), 3 )))) -> Jordens Koen | AR47: =IF( AR$43 = 0, "", _xlfn.TEXTJOIN( " / ",TRUE, _xlfn._xlws.FILTER( $AK$5:$AK$41, AR$5:AR$41 = LARGE( _xlfn.UNIQUE( AR$5:AR$41 ), 3 )))) -> Langenaeker Maarten | AS47: =IF( AS$43 = 0, "", _xlfn.TEXTJOIN( " / ",TRUE, _xlfn._xlws.FILTER( $AK$5:$AK$41, AS$5:AS$41 = LARGE( _xlfn.UNIQUE( AS$5:AS$41 ), 3 )))) -> Nyckees Wannes | AT47: =IF( AT$43 = 0, "", _xlfn.TEXTJOIN( " / ",TRUE, _xlfn._xlws.FILTER( $AK$5:$AK$41, AT$5:AT$41 = LARGE( _xlfn.UNIQUE( AT$5:AT$41 ), 3 )))) -> Celis Ive | AU47: =IF( AU$43 = 0, "", _xlfn.TEXTJOIN( " / ",TRUE, _xlfn._xlws.FILTER( $AK$5:$AK$41, AU$5:AU$41 = LARGE( _xlfn.UNIQUE( AU$5:AU$41 ), 3 )))) -> Coolsaet Joy / Langenaeker Maarten | AV47: =IF( AV$43 = 0, "", _xlfn.TEXTJOIN( " / ",TRUE, _xlfn._xlws.FILTER( $AK$5:$AK$41, AV$5:AV$41 = LARGE( _xlfn.UNIQUE( AV$5:AV$41 ), 3 )))) -> Van Dessel Dieter | AW47: =IF( AW$43 = 0, "", _xlfn.TEXTJOIN( " / ",TRUE, _xlfn._xlws.FILTER( $AK$5:$AK$41, AW$5:AW$41 = LARGE( _xlfn.UNIQUE( AW$5:AW$41 ), 3 )))) -> Elst Pieter / Van Dessel Dieter | AX47: =IF( AX$43 = 0, "", _xlfn.TEXTJOIN( " / ",TRUE, _xlfn._xlws.FILTER( $AK$5:$AK$41, AX$5:AX$41 = LARGE( _xlfn.UNIQUE( AX$5:AX$41 ), 3 )))) -> De Vinster Glenn / Stevens Siebe | AY47: =IF( AY$43 = 0, "", _xlfn.TEXTJOIN( " / ",TRUE, _xlfn._xlws.FILTER( $AK$5:$AK$41, AY$5:AY$41 = LARGE( _xlfn.UNIQUE( AY$5:AY$41 ), 3 )))) -> Langenaeker Maarten | AZ47: =IF( AZ$43 = 0, "", _xlfn.TEXTJOIN( " / ",TRUE, _xlfn._xlws.FILTER( $AK$5:$AK$41, AZ$5:AZ$41 = LARGE( _xlfn.UNIQUE( AZ$5:AZ$41 ), 3 )))) -> De Groof Maarten / Verhellen Jorn | BA47: =IF( BA$43 = 0, "", _xlfn.TEXTJOIN( " / ",TRUE, _xlfn._xlws.FILTER( $AK$5:$AK$41, BA$5:BA$41 = LARGE( _xlfn.UNIQUE( BA$5:BA$41 ), 3 )))) -> Coolsaet Joy / Verhellen Jorn | BB47: =IF( BB$43 = 0, "", _xlfn.TEXTJOIN( " / ",TRUE, _xlfn._xlws.FILTER( $AK$5:$AK$41, BB$5:BB$41 = LARGE( _xlfn.UNIQUE( BB$5:BB$41 ), 3 )))) -> De Vinster Glenn | BC47: =IF( BC$43 = 0, "", _xlfn.TEXTJOIN( " / ",TRUE, _xlfn._xlws.FILTER( $AK$5:$AK$41, BC$5:BC$41 = LARGE( _xlfn.UNIQUE( BC$5:BC$41 ), 3 )))) -> Jordens Koen | BD47: =IF( BD$43 = 0, "", _xlfn.TEXTJOIN( " / ",TRUE, _xlfn._xlws.FILTER( $AK$5:$AK$41, BD$5:BD$41 = LARGE( _xlfn.UNIQUE( BD$5:BD$41 ), 3 )))) -> Jordens Koen | BE47: =IF( BE$43 = 0, "", _xlfn.TEXTJOIN( " / ",TRUE, _xlfn._xlws.FILTER( $AK$5:$AK$41, BE$5:BE$41 = LARGE( _xlfn.UNIQUE( BE$5:BE$41 ), 3 )))) -> Gielis Bernd | BF47: =IF( BF$43 = 0, "", _xlfn.TEXTJOIN( " / ",TRUE, _xlfn._xlws.FILTER( $AK$5:$AK$41, BF$5:BF$41 = LARGE( _xlfn.UNIQUE( BF$5:BF$41 ), 3 )))) ->  | BG47: =IF( BG$43 = 0, "", _xlfn.TEXTJOIN( " / ",TRUE, _xlfn._xlws.FILTER( $AK$5:$AK$41, BG$5:BG$41 = LARGE( _xlfn.UNIQUE( BG$5:BG$41 ), 3 )))) -> Langenaeker Maarten | BH47: =IF( BH$43 = 0, "", _xlfn.TEXTJOIN( " / ",TRUE, _xlfn._xlws.FILTER( $AK$5:$AK$41, BH$5:BH$41 = LARGE( _xlfn.UNIQUE( BH$5:BH$41 ), 3 )))) -> Langenaeker Maarten | BI47: =IF( BI$43 = 0, "", _xlfn.TEXTJOIN( " / ",TRUE, _xlfn._xlws.FILTER( $AK$5:$AK$41, BI$5:BI$41 = LARGE( _xlfn.UNIQUE( BI$5:BI$41 ), 3 )))) -> Jordens Koen | BJ47: =IF( BJ$43 = 0, "", _xlfn.TEXTJOIN( " / ",TRUE, _xlfn._xlws.FILTER( $AK$5:$AK$41, BJ$5:BJ$41 = LARGE( _xlfn.UNIQUE( BJ$5:BJ$41 ), 3 )))) -> De Groof Maarten / De Groof Steven / Jordens Koen | BK47: =IF( BK$43 = 0, "", _xlfn.TEXTJOIN( " / ",TRUE, _xlfn._xlws.FILTER( $AK$5:$AK$41, BK$5:BK$41 = LARGE( _xlfn.UNIQUE( BK$5:BK$41 ), 3 )))) -> Beirinckx Wout | BL47: =IF( BL$43 = 0, "", _xlfn.TEXTJOIN( " / ",TRUE, _xlfn._xlws.FILTER( $AK$5:$AK$41, BL$5:BL$41 = LARGE( _xlfn.UNIQUE( BL$5:BL$41 ), 3 )))) ->  | BM47: =IF( BM$43 = 0, "", _xlfn.TEXTJOIN( " / ",TRUE, _xlfn._xlws.FILTER( $AK$5:$AK$41, BM$5:BM$41 = LARGE( _xlfn.UNIQUE( BM$5:BM$41 ), 3 )))) ->  | BN47: =IF( BN$43 = 0, "", _xlfn.TEXTJOIN( " / ",TRUE, _xlfn._xlws.FILTER( $AK$5:$AK$41, BN$5:BN$41 = LARGE( _xlfn.UNIQUE( BN$5:BN$41 ), 3 )))) ->  | BO47: =IF( BO$43 = 0, "", _xlfn.TEXTJOIN( " / ",TRUE, _xlfn._xlws.FILTER( $AK$5:$AK$41, BO$5:BO$41 = LARGE( _xlfn.UNIQUE( BO$5:BO$41 ), 3 )))) ->  | DL47: Langenaeker Maarten | DN47: Langenaeker Maarten
A48: Aanwezige supporter | B48: as | D48: Gele kaart | DL48: Jordens Koen | DN48: Jordens Koen
